Workbook

Sheet ACCUEILPRO
A1: Accueil
F7: =ACCUEIL!F7 -> 2021-04-11

Sheet ACCUEILPREM
A1: Accueil
F7: =ACCUEIL!F7 -> 2021-04-11

Sheet ACCUEILGP
A1: Accueil
F7: =ACCUEIL!F7 -> 2021-04-11

Sheet ACCUEIL
F7: 2021-04-11

Sheet Accueilagence
A1: Accueil
E7: =ACCUEIL!F7 -> 2021-04-11

Sheet Accueilsecteur
A1: Accueil
E7: =ACCUEIL!F7 -> 2021-04-11

Sheet AccueilDircom
A1: Accueil
E7: =ACCUEIL!F7 -> 2021-04-11

Sheet DC_FICHE
A1: Accueil
A2: BAROMETRE BDD
A4: UNITE: | B4: DIRECTION REGIONALE | E4: ETP perf : | F4: =VLOOKUP(A5,'RECAP DIRCOM'!$G$6:$I$12,3,FALSE) -> 253.89
A5: =VLOOKUP(B5,LISTES!$M$6:$N$12,2,FALSE) -> 262 | B5: BAS-RHIN
C6: Coefficient du critére | E6: Résultats | I6: Ecart au 1ier | M6: Evolution | O6: Rang
E7: du 1ier | G7: DIRECTION | I7: Du mois | K7: Au 31/12/2019
A9: RANG au CLASSEMENT GENERAL | K9: =VLOOKUP($A$5,#REF!,168,FALSE) ->  | M9: =+K9-O9 ->  | O9: =VLOOKUP($A$5,'RECAP DIRCOM'!$G$6:$DG$312,168,FALSE) -> 
A11: CRITERE CLIENTS | C11: 15% | O11: =VLOOKUP($A$5,'RECAP DIRCOM'!$G$6:$DG$312,23,FALSE) -> 13.0333004
B12: PNB Evolution nette Clients BP | C12: 4% | E12: ='RECAP DIRCOM'!#REF! ->  | G12: =VLOOKUP($A$5,'RECAP DIRCOM'!$G$6:$DG$312,6,FALSE) -> 0.5 | I12: =VLOOKUP($A$5,'RECAP DIRCOM'!$G$6:$DG$312,7,FALSE) -> 600% | K12: =VLOOKUP($A$5,#REF!,7,FALSE) ->  | M12: =+K12-I12 ->  | O12: =VLOOKUP($A$5,'RECAP DIRCOM'!$G$6:$DG$312,8,FALSE) -> 0.4721639091
B13: PNB Evolution nette Clients PREMIUM | C13: 5% | E13: ='RECAP DIRCOM'!#REF! ->  | G13: =VLOOKUP($A$5,'RECAP DIRCOM'!$G$6:$DG$312,10,FALSE) -> 6.0 | I13: =VLOOKUP($A$5,'RECAP DIRCOM'!$G$6:$DG$312,11,FALSE) -> 41% | K13: =VLOOKUP($A$5,#REF!,11,FALSE) ->  | M13: =+K13-I13 ->  | O13: =VLOOKUP($A$5,'RECAP DIRCOM'!$G$6:$DG$312,12,FALSE) -> 0.4054917704
B14: PNB Evolution nette Clients Jeunes Equipés | C14: 3% | E14: ='RECAP DIRCOM'!#REF! ->  | G14: =VLOOKUP($A$5,'RECAP DIRCOM'!$G$6:$DG$312,14,FALSE) -> 0.0 | I14: =VLOOKUP($A$5,'RECAP DIRCOM'!$G$6:$DG$312,15,FALSE) -> 0% | K14: =VLOOKUP($A$5,#REF!,15,FALSE) ->  | M14: =+K14-I14 ->  | O14: =VLOOKUP($A$5,'RECAP DIRCOM'!$G$6:$DG$312,16,FALSE) -> 0
B15: PNB Evolution nette Clients Pro Actifs Equipés | C15: 3% | E15: ='RECAP DIRCOM'!W4 -> 0.0 | G15: =VLOOKUP($A$5,'RECAP DIRCOM'!$G$6:$DG$312,18,FALSE) -> 7453.3 | I15: =VLOOKUP($A$5,'RECAP DIRCOM'!$G$6:$DG$312,19,FALSE) -> 2936% | K15: =VLOOKUP($A$5,#REF!,19,FALSE) ->  | M15: =+K15-I15 ->  | O15: =VLOOKUP($A$5,'RECAP DIRCOM'!$G$6:$DG$312,20,FALSE) -> 0
A17: CRITERE BANCARISATION | C17: 15% | O17: =VLOOKUP($A$5,'RECAP DIRCOM'!$G$6:$DG$312,48,FALSE) -> 2
B18: PNB Ventes nettes forfaits | C18: 4% | E18: ='RECAP DIRCOM'!X4 -> 29.4 | G18: =VLOOKUP($A$5,'RECAP DIRCOM'!$G$6:$DG$312,31,FALSE) -> -0.7 | I18: =VLOOKUP($A$5,'RECAP DIRCOM'!$G$6:$DG$312,32,FALSE) -> 36% | K18: =VLOOKUP($A$5,#REF!,32,FALSE) ->  | M18: =+K18-I18 ->  | O18: =VLOOKUP($A$5,'RECAP DIRCOM'!$G$6:$DG$312,33,FALSE) -> 7
B19: PNB Ventes nettes IZICARTES Débit Différé | C19: 4% | E19: ='RECAP DIRCOM'!AB4 -> 15.2 | G19: =VLOOKUP($A$5,'RECAP DIRCOM'!$G$6:$DG$312,35,FALSE) -> 0.1 | I19: =VLOOKUP($A$5,'RECAP DIRCOM'!$G$6:$DG$312,36,FALSE) -> 200% | K19: =VLOOKUP($A$5,#REF!,36,FALSE) ->  | M19: =+K19-I19 ->  | O19: =VLOOKUP($A$5,'RECAP DIRCOM'!$G$6:$DG$312,37,FALSE) -> 0
B20: PNB Ventes nettes cartes HDG Débit Différé | C20: 4% | E20: ='RECAP DIRCOM'!AF4 -> 4.3 | G20: =VLOOKUP($A$5,'RECAP DIRCOM'!$G$6:$DG$312,39,FALSE) -> 0.0 | I20: =VLOOKUP($A$5,'RECAP DIRCOM'!$G$6:$DG$312,40,FALSE) -> 0% | K20: =VLOOKUP($A$5,#REF!,40,FALSE) ->  | M20: =+K20-I20 ->  | O20: =VLOOKUP($A$5,'RECAP DIRCOM'!$G$6:$DG$312,41,FALSE) -> 60857.90194
B21: PNB Ventes nettes Forfaits Pro, Carte pro | C21: 3% | E21: ='RECAP DIRCOM'!AJ4 -> -0.5 | G21: =VLOOKUP($A$5,'RECAP DIRCOM'!$G$6:$DG$312,43,FALSE) -> 0.0 | I21: =VLOOKUP($A$5,'RECAP DIRCOM'!$G$6:$DG$312,44,FALSE) -> 100% | K21: =VLOOKUP($A$5,#REF!,44,FALSE) ->  | M21: =+K21-I21 ->  | O21: =VLOOKUP($A$5,'RECAP DIRCOM'!$G$6:$DG$312,45,FALSE) -> 2122
A23: CRITERE EPARGNE | C23: 10% | O23: =VLOOKUP($A$5,'RECAP DIRCOM'!$G$6:$DG$312,69,FALSE) -> 0.3364508556
B24: PNB Epargne Liquide | C24: 3% | E24: ='RECAP DIRCOM'!AU4 -> 239.7 | G24: =VLOOKUP($A$5,'RECAP DIRCOM'!$G$6:$DG$312,56,FALSE) -> 8914.0 | I24: =VLOOKUP($A$5,'RECAP DIRCOM'!$G$6:$DG$312,57,FALSE) -> 3511% | K24: =VLOOKUP($A$5,#REF!,57,FALSE) ->  | M24: =+K24-I24 ->  | O24: =VLOOKUP($A$5,'RECAP DIRCOM'!$G$6:$DG$312,58,FALSE) -> 0.5134154868
B25: PNB CA UC + arbitrage | C25: 4% | E25: ='RECAP DIRCOM'!AY4 -> 9.0 | G25: =VLOOKUP($A$5,'RECAP DIRCOM'!$G$6:$DG$312,60,FALSE) -> 4116.8 | I25: =VLOOKUP($A$5,'RECAP DIRCOM'!$G$6:$DG$312,61,FALSE) -> 1622% | K25: =VLOOKUP($A$5,#REF!,61,FALSE) ->  | M25: =+K25-I25 ->  | O25: =VLOOKUP($A$5,'RECAP DIRCOM'!$G$6:$DG$312,62,FALSE) -> 0.092937394
B26: PNB Excédent assurance vie | C26: 3% | E26: ='RECAP DIRCOM'!#REF! ->  | G26: =VLOOKUP($A$5,'RECAP DIRCOM'!$G$6:$DG$312,64,FALSE) -> 1082.0 | I26: =VLOOKUP($A$5,'RECAP DIRCOM'!$G$6:$DG$312,65,FALSE) -> 426% | K26: =VLOOKUP($A$5,#REF!,65,FALSE) ->  | M26: =+K26-I26 ->  | O26: =VLOOKUP($A$5,'RECAP DIRCOM'!$G$6:$DG$312,66,FALSE) -> 0.3575774948
A28: CRITERE CREDITS | C28: 15% | O28: =VLOOKUP($A$5,'RECAP DIRCOM'!$G$6:$DG$312,102,FALSE) -> 0.1775167199
B29: PNB crédit conso | C29: 4% | E29: ='RECAP DIRCOM'!BJ4 -> 72.2 | G29: =VLOOKUP($A$5,'RECAP DIRCOM'!$G$6:$DG$312,77,FALSE) -> 0.2 | I29: =VLOOKUP($A$5,'RECAP DIRCOM'!$G$6:$DG$312,78,FALSE) -> 500% | K29: =VLOOKUP($A$5,#REF!,78,FALSE) ->  | M29: =+K29-I29 ->  | O29: =VLOOKUP($A$5,'RECAP DIRCOM'!$G$6:$DG$312,79,FALSE) -> 3016
B30: PNB ADE crédit conso | C30: 1% | E30: ='RECAP DIRCOM'!#REF! ->  | G30: =VLOOKUP($A$5,'RECAP DIRCOM'!$G$6:$DG$312,81,FALSE) -> 0.2 | I30: =VLOOKUP($A$5,'RECAP DIRCOM'!$G$6:$DG$312,82,FALSE) -> 300% | K30: =VLOOKUP($A$5,#REF!,82,FALSE) ->  | O30: =VLOOKUP($A$5,'RECAP DIRCOM'!$G$6:$DG$312,83,FALSE) -> 0.1624375431
B31: PNB crédit immo | C31: 4% | E31: ='RECAP DIRCOM'!BN4 -> 17.9 | G31: =VLOOKUP($A$5,'RECAP DIRCOM'!$G$6:$DG$312,85,FALSE) -> 4.0 | I31: =VLOOKUP($A$5,'RECAP DIRCOM'!$G$6:$DG$312,86,FALSE) -> 0% | K31: =VLOOKUP($A$5,#REF!,86,FALSE) ->  | O31: =VLOOKUP($A$5,'RECAP DIRCOM'!$G$6:$DG$312,87,FALSE) -> 0
B32: PNB ADE crédit immo | C32: 2% | E32: ='RECAP DIRCOM'!#REF! ->  | G32: =VLOOKUP($A$5,'RECAP DIRCOM'!$G$6:$DG$312,89,FALSE) -> 0.0 | I32: =VLOOKUP($A$5,'RECAP DIRCOM'!$G$6:$DG$312,90,FALSE) -> 0% | K32: =VLOOKUP($A$5,#REF!,90,FALSE) ->  | O32: =VLOOKUP($A$5,'RECAP DIRCOM'!$G$6:$DG$312,91,FALSE) -> 0
B33: PNB SACCEF | C33: 2% | E33: ='RECAP DIRCOM'!#REF! ->  | G33: =VLOOKUP($A$5,'RECAP DIRCOM'!$G$6:$DG$312,93,FALSE) -> 0.0 | I33: =VLOOKUP($A$5,'RECAP DIRCOM'!$G$6:$DG$312,94,FALSE) -> 0% | K33: =VLOOKUP($A$5,#REF!,94,FALSE) ->  | O33: =VLOOKUP($A$5,'RECAP DIRCOM'!$G$6:$DG$312,95,FALSE) -> 0
B34: PNB Crédit MLT + Crédit Bail | C34: 2% | E34: ='RECAP DIRCOM'!BR4 -> 6.6 | G34: =VLOOKUP($A$5,'RECAP DIRCOM'!$G$6:$DG$312,97,FALSE) -> 0.0 | I34: =VLOOKUP($A$5,'RECAP DIRCOM'!$G$6:$DG$312,98,FALSE) -> 0% | K34: =VLOOKUP($A$5,#REF!,98,FALSE) ->  | O34: =VLOOKUP($A$5,'RECAP DIRCOM'!$G$6:$DG$312,99,FALSE) -> 0
A36: CRITERE IARD PREVOYANCE | C36: 15% | O36: =VLOOKUP($A$5,'RECAP DIRCOM'!$G$6:$DG$312,119,FALSE) -> 
B37: PNB Ventes nettes IARD | C37: 9% | E37: ='RECAP DIRCOM'!CC4 -> 81.6 | G37: =VLOOKUP($A$5,'RECAP DIRCOM'!$G$6:$DG$312,110,FALSE) ->  | I37: =VLOOKUP($A$5,'RECAP DIRCOM'!$G$6:$DG$312,111,FALSE) ->  | K37: =VLOOKUP($A$5,#REF!,111,FALSE) ->  | M37: =+K37-I37 ->  | O37: =VLOOKUP($A$5,'RECAP DIRCOM'!$G$6:$DG$312,112,FALSE) -> 
B38: PNB Ventes nettes Prévoyance | C38: 6% | E38: ='RECAP DIRCOM'!CG4 -> 14.3 | G38: =VLOOKUP($A$5,'RECAP DIRCOM'!$G$6:$DG$312,114,FALSE) ->  | I38: =VLOOKUP($A$5,'RECAP DIRCOM'!$G$6:$DG$312,115,FALSE) ->  | K38: =VLOOKUP($A$5,#REF!,115,FALSE) ->  | M38: =+K38-I38 ->  | O38: =VLOOKUP($A$5,'RECAP DIRCOM'!$G$6:$DG$312,116,FALSE) -> 
A40: CRITERE ACCELERATEURS PNB | C40: 15% | O40: =VLOOKUP($A$5,'RECAP DIRCOM'!$G$6:$DG$312,144,FALSE) -> 
B41: PNB Ventes brutes SED Finalisées | C41: 6% | E41: ='RECAP DIRCOM'!#REF! ->  | G41: =VLOOKUP($A$5,'RECAP DIRCOM'!$G$6:$DG$312,127,FALSE) ->  | I41: =VLOOKUP($A$5,'RECAP DIRCOM'!$G$6:$DG$312,128,FALSE) ->  | K41: =VLOOKUP($A$5,#REF!,128,FALSE) ->  | M41: =+K41-I41 ->  | O41: =VLOOKUP($A$5,'RECAP DIRCOM'!$G$6:$DG$312,129,FALSE) -> 
B42: PNB clients équipés E documents | C42: 3% | E42: ='RECAP DIRCOM'!#REF! ->  | G42: =VLOOKUP($A$5,'RECAP DIRCOM'!$G$6:$DG$312,131,FALSE) ->  | I42: =VLOOKUP($A$5,'RECAP DIRCOM'!$G$6:$DG$312,132,FALSE) ->  | K42: =VLOOKUP($A$5,#REF!,132,FALSE) ->  | M42: =+K42-I42 ->  | O42: =VLOOKUP($A$5,'RECAP DIRCOM'!$G$6:$DG$312,133,FALSE) -> 
B43: Economie opt'in | C43: 3% | E43: ='RECAP DIRCOM'!#REF! ->  | G43: =VLOOKUP($A$5,'RECAP DIRCOM'!$G$6:$DG$312,135,FALSE) ->  | I43: =VLOOKUP($A$5,'RECAP DIRCOM'!$G$6:$DG$312,136,FALSE) ->  | K43: =VLOOKUP($A$5,#REF!,136,FALSE) ->  | M43: =+K43-I43 ->  | O43: =VLOOKUP($A$5,'RECAP DIRCOM'!$G$6:$DG$312,137,FALSE) -> 
B44: Remises commerciales | C44: 3% | E44: ='RECAP DIRCOM'!#REF! ->  | G44: =VLOOKUP($A$5,'RECAP DIRCOM'!$G$6:$DG$312,139,FALSE) ->  | I44: =VLOOKUP($A$5,'RECAP DIRCOM'!$G$6:$DG$312,140,FALSE) ->  | K44: =VLOOKUP($A$5,#REF!,140,FALSE) ->  | M44: =+K44-I44 ->  | O44: =VLOOKUP($A$5,'RECAP DIRCOM'!$G$6:$DG$312,141,FALSE) -> 
A46: CRITERE Qualité-Satisfaction Clients | C46: 15% | O46: =VLOOKUP($A$5,'RECAP DIRCOM'!$G$6:$DG$312,159,FALSE) -> 
B47: Objectifs NPS* | C47: 8% | E47: ='RECAP DIRCOM'!K4 -> 19 | G47: =VLOOKUP($A$5,'RECAP DIRCOM'!$G$6:$DG$312,151,FALSE) ->  | I47: =VLOOKUP($A$5,'RECAP DIRCOM'!$G$6:$DG$312,152,FALSE) ->  | K47: =VLOOKUP($A$5,#REF!,152,FALSE) ->  | M47: =+K47-I47 ->  | O47: =VLOOKUP($A$5,'RECAP DIRCOM'!$G$6:$DG$312,153,FALSE) -> 
B48: Enquête Qualité Haute Définition | C48: 7% | E48: ='RECAP DIRCOM'!N4 -> 66% | G48: =VLOOKUP($A$5,'RECAP DIRCOM'!$G$6:$DG$312,154,FALSE) ->  | I48: =VLOOKUP($A$5,'RECAP DIRCOM'!$G$6:$DG$312,155,FALSE) ->  | K48: =VLOOKUP($A$5,#REF!,155,FALSE) ->  | M48: =+K48-I48 ->  | O48: =VLOOKUP($A$5,'RECAP DIRCOM'!$G$6:$DG$312,156,FALSE) -> 

Sheet DC_TOTAL
B1: Accueil | D1: BAROMETRE BDD - DIRECTIONS REGIONALES
D2: TOTAL GENERAL
D3: =ACCUEIL!F7 -> 2021-04-11
D7: TOTAL GENERAL | G7: Total Satisfaction Clients | J7: Total Bancarisation | M7: Total Epargne | P7: Total IARD Prévoyance | S7: Total Crédits
E8: coef | F8: 100% | H8: coef | I8: =DC_SATISFACTION!L8 -> 20% | K8: coef | L8: =DC_BANCA!V8 -> 20% | N8: coef | O8: =DC_EPARGNE!N8 -> 20% | Q8: coef | R8: =DC_IARD!N8 -> 20% | T8: coef | U8: =DC_CREDIT!R8 -> 20%
A9: eds | B9: Direction | C9: ="ETP perf "&DATEMAJ!$C$28 -> ETP perf 28-févr | D9: Moyenne ecart au 1er | E9: % Ecart au 1er | F9: Rang CEGEE | G9: Moyenne ecart au 1er | H9: % Ecart au 1er | I9: Rang CEGEE | J9: Moyenne ecart au 1er | K9: % Ecart au 1er | L9: Rang CEGEE | M9: Moyenne ecart au 1er | N9: % Ecart au 1er | O9: Rang CEGEE | P9: Moyenne ecart au 1er | Q9: % Ecart au 1er | R9: Rang CEGEE | S9: Moyenne ecart au 1er | T9: % Ecart au 1er | U9: Rang CEGEE
A10: 50 | B10: Meurthe et Moselle Meuse | C10: 245 | D10: 9% | E10: 0% | F10: 1 | G10: 34% | H10: 34% | I10: 5 | J10: 9% | K10: 0% | L10: 1 | M10: 14% | N10: 12% | O10: 3 | P10: 9% | Q10: 1% | R10: 2 | S10: 0% | T10: 0% | U10: 1
A11: 262 | B11: Vosges | C11: 134 | D11: 15% | E11: 6% | F11: 2 | G11: 0% | H11: 0% | I11: 1 | J11: 42% | K11: 33% | L11: 6 | M11: 13% | N11: 10% | O11: 2 | P11: 8% | Q11: 0% | R11: 1 | S11: 34% | T11: 33% | U11: 5
A12: 264 | B12: Marne-Ardennes | C12: 228 | D12: 16% | E12: 6% | F12: 3 | G12: 14% | H12: 14% | I12: 2 | J12: 29% | K12: 20% | L12: 4 | M12: 23% | N12: 20% | O12: 5 | P12: 17% | Q12: 9% | R12: 5 | S12: 16% | T12: 16% | U12: 2
A13: 30 | B13: Bas-Rhin | C13: 254 | D13: 18% | E13: 8% | F13: 4 | G13: 41% | H13: 41% | I13: 6 | J13: 15% | K13: 6% | L13: 2 | M13: 2% | N13: 0% | O13: 1 | P13: 16% | Q13: 9% | R13: 4 | S13: 34% | T13: 34% | U13: 6
A14: 110 | B14: Moselle | C14: 271 | D14: 19% | E14: 10% | F14: 5 | G14: 26% | H14: 26% | I14: 4 | J14: 25% | K14: 16% | L14: 3 | M14: 21% | N14: 19% | O14: 4 | P14: 14% | Q14: 6% | R14: 3 | S14: 28% | T14: 28% | U14: 3
A15: 160 | B15: Aube Haute Marne | C15: 128 | D15: 28% | E15: 19% | F15: 6 | G15: 17% | H15: 17% | I15: 3 | J15: 38% | K15: 29% | L15: 5 | M15: 44% | N15: 42% | O15: 6 | P15: 30% | Q15: 22% | R15: 6 | S15: 32% | T15: 32% | U15: 4
A16: 80 | B16: Haut-Rhin | C16: 155 | D16: 47% | E16: 38% | F16: 7 | G16: 62% | H16: 62% | I16: 7 | J16: 55% | K16: 45% | L16: 7 | M16: 48% | N16: 46% | O16: 7 | P16: 42% | Q16: 34% | R16: 7 | S16: 49% | T16: 49% | U16: 7
B17: Total CEGEE Directions Régionales | C17: =SUM(C10:C16) -> 1414

Sheet DC_BANCA
B1: Accueil | D1: BAROMETRE BDD - DIRECTIONS REGIONALES
D2: BANCARISATION
D3: =ACCUEIL!F7 -> 2021-04-11
D7: Ventes Nettes produits pondérés | H7: Ventes sur client non détenteur de l’univers | L7: Mobilité Macron | P7: Remises commerciales | T7: Total Bancarisation
D8: =DATEMAJ!C8 -> au 11/04 | F8: coef | G8: ='RECAP DIRCOM'!AA4 -> 10% | H8: =DATEMAJ!C9 -> au 11/04 | J8: coef | K8: ='RECAP DIRCOM'!AE4 -> 4% | L8: =DATEMAJ!C10 -> au 11/04 | N8: coef | O8: ='RECAP DIRCOM'!AI4 -> 3% | P8: =DATEMAJ!C11 -> au 28/02 | R8: coef | S8: ='RECAP DIRCOM'!AM4 -> 3% | U8: coef | V8: ='RECAP DIRCOM'!AP4 -> 20%
B9: Direction | C9: ="ETP perf "&DATEMAJ!$C$28 -> ETP perf 28-févr | D9: VN | E9: VN / ETP | F9: % Ecart au 1er | G9: Rang | H9: VB | I9: VB / ETP | J9: % Ecart au 1er | K9: Rang | L9: Nb | M9: Nb / ETP | N9: % Ecart au 1er | O9: Rang | P9: Montant | Q9: Montant / ETP | R9: % Ecart au 1er | S9: Rang | T9: Moyenne ecart au 1er | U9: % Ecart au 1er | V9: Rang CEGEE
A10: 50 | B10: Aube Haute Marne | C10: =VLOOKUP($A10,'RECAP DIRCOM'!$G$6:$DC$12,3,FALSE) -> 128 | D10: =VLOOKUP($A10,'RECAP DIRCOM'!$G$6:$DC$12,18,FALSE) -> 1,894 | E10: =VLOOKUP($A10,'RECAP DIRCOM'!$G$6:$DC$12,19,FALSE) -> 14.74 | F10: =VLOOKUP($A10,'RECAP DIRCOM'!$G$6:$DC$12,20,FALSE) -> 50% | G10: =VLOOKUP($A10,'RECAP DIRCOM'!$G$6:$DC$12,21,FALSE) -> 6 | H10: =VLOOKUP($A10,'RECAP DIRCOM'!$G$6:$DC$12,22,FALSE) -> 1,544 | I10: =VLOOKUP($A10,'RECAP DIRCOM'!$G$6:$DC$12,23,FALSE) -> 12.02 | J10: =VLOOKUP($A10,'RECAP DIRCOM'!$G$6:$DC$12,24,FALSE) -> 21% | K10: =VLOOKUP($A10,'RECAP DIRCOM'!$G$6:$DC$12,25,FALSE) -> 5 | L10: =VLOOKUP($A10,'RECAP DIRCOM'!$G$6:$DC$12,26,FALSE) -> 233 | M10: =VLOOKUP($A10,'RECAP DIRCOM'!$G$6:$DC$12,27,FALSE) -> 1.81 | N10: =VLOOKUP($A10,'RECAP DIRCOM'!$G$6:$DC$12,28,FALSE) -> 57% | O10: =VLOOKUP($A10,'RECAP DIRCOM'!$G$6:$DC$12,29,FALSE) -> 6 | P10: =VLOOKUP($A10,'RECAP DIRCOM'!$G$6:$DC$12,30,FALSE) -> -69 | Q10: =VLOOKUP($A10,'RECAP DIRCOM'!$G$6:$DC$12,31,FALSE) -> -0.53 | R10: =VLOOKUP($A10,'RECAP DIRCOM'!$G$6:$DC$12,32,FALSE) -> 0% | S10: =VLOOKUP($A10,'RECAP DIRCOM'!$G$6:$DC$12,33,FALSE) -> 1 | T10: =VLOOKUP($A10,'RECAP DIRCOM'!$G$6:$DC$12,34,FALSE) -> 38% | U10: =VLOOKUP($A10,'RECAP DIRCOM'!$G$6:$DC$12,35,FALSE) -> 29% | V10: =VLOOKUP($A10,'RECAP DIRCOM'!$G$6:$DC$12,36,FALSE) -> 5
A11: 262 | B11: Bas-Rhin | C11: =VLOOKUP($A11,'RECAP DIRCOM'!$G$6:$DC$12,3,FALSE) -> 254 | D11: =VLOOKUP($A11,'RECAP DIRCOM'!$G$6:$DC$12,18,FALSE) -> 7,453 | E11: =VLOOKUP($A11,'RECAP DIRCOM'!$G$6:$DC$12,19,FALSE) -> 29.36 | F11: =VLOOKUP($A11,'RECAP DIRCOM'!$G$6:$DC$12,20,FALSE) -> 0% | G11: =VLOOKUP($A11,'RECAP DIRCOM'!$G$6:$DC$12,21,FALSE) -> 1 | H11: =VLOOKUP($A11,'RECAP DIRCOM'!$G$6:$DC$12,22,FALSE) -> 3,309 | I11: =VLOOKUP($A11,'RECAP DIRCOM'!$G$6:$DC$12,23,FALSE) -> 13.03 | J11: =VLOOKUP($A11,'RECAP DIRCOM'!$G$6:$DC$12,24,FALSE) -> 14% | K11: =VLOOKUP($A11,'RECAP DIRCOM'!$G$6:$DC$12,25,FALSE) -> 3 | L11: =VLOOKUP($A11,'RECAP DIRCOM'!$G$6:$DC$12,26,FALSE) -> 590 | M11: =VLOOKUP($A11,'RECAP DIRCOM'!$G$6:$DC$12,27,FALSE) -> 2.32 | N11: =VLOOKUP($A11,'RECAP DIRCOM'!$G$6:$DC$12,28,FALSE) -> 46% | O11: =VLOOKUP($A11,'RECAP DIRCOM'!$G$6:$DC$12,29,FALSE) -> 3 | P11: =VLOOKUP($A11,'RECAP DIRCOM'!$G$6:$DC$12,30,FALSE) -> -185 | Q11: =VLOOKUP($A11,'RECAP DIRCOM'!$G$6:$DC$12,31,FALSE) -> -0.73 | R11: =VLOOKUP($A11,'RECAP DIRCOM'!$G$6:$DC$12,32,FALSE) -> 36% | S11: =VLOOKUP($A11,'RECAP DIRCOM'!$G$6:$DC$12,33,FALSE) -> 7 | T11: =VLOOKUP($A11,'RECAP DIRCOM'!$G$6:$DC$12,34,FALSE) -> 15% | U11: =VLOOKUP($A11,'RECAP DIRCOM'!$G$6:$DC$12,35,FALSE) -> 6% | V11: =VLOOKUP($A11,'RECAP DIRCOM'!$G$6:$DC$12,36,FALSE) -> 2
A12: 264 | B12: Haut-Rhin | C12: =VLOOKUP($A12,'RECAP DIRCOM'!$G$6:$DC$12,3,FALSE) -> 155 | D12: =VLOOKUP($A12,'RECAP DIRCOM'!$G$6:$DC$12,18,FALSE) -> 1,442 | E12: =VLOOKUP($A12,'RECAP DIRCOM'!$G$6:$DC$12,19,FALSE) -> 9.29 | F12: =VLOOKUP($A12,'RECAP DIRCOM'!$G$6:$DC$12,20,FALSE) -> 68% | G12: =VLOOKUP($A12,'RECAP DIRCOM'!$G$6:$DC$12,21,FALSE) -> 7 | H12: =VLOOKUP($A12,'RECAP DIRCOM'!$G$6:$DC$12,22,FALSE) -> 1,574 | I12: =VLOOKUP($A12,'RECAP DIRCOM'!$G$6:$DC$12,23,FALSE) -> 10.15 | J12: =VLOOKUP($A12,'RECAP DIRCOM'!$G$6:$DC$12,24,FALSE) -> 33% | K12: =VLOOKUP($A12,'RECAP DIRCOM'!$G$6:$DC$12,25,FALSE) -> 7 | L12: =VLOOKUP($A12,'RECAP DIRCOM'!$G$6:$DC$12,26,FALSE) -> 163 | M12: =VLOOKUP($A12,'RECAP DIRCOM'!$G$6:$DC$12,27,FALSE) -> 1.05 | N12: =VLOOKUP($A12,'RECAP DIRCOM'!$G$6:$DC$12,28,FALSE) -> 75% | O12: =VLOOKUP($A12,'RECAP DIRCOM'!$G$6:$DC$12,29,FALSE) -> 7 | P12: =VLOOKUP($A12,'RECAP DIRCOM'!$G$6:$DC$12,30,FALSE) -> -97 | Q12: =VLOOKUP($A12,'RECAP DIRCOM'!$G$6:$DC$12,31,FALSE) -> -0.62 | R12: =VLOOKUP($A12,'RECAP DIRCOM'!$G$6:$DC$12,32,FALSE) -> 17% | S12: =VLOOKUP($A12,'RECAP DIRCOM'!$G$6:$DC$12,33,FALSE) -> 4 | T12: =VLOOKUP($A12,'RECAP DIRCOM'!$G$6:$DC$12,34,FALSE) -> 55% | U12: =VLOOKUP($A12,'RECAP DIRCOM'!$G$6:$DC$12,35,FALSE) -> 45% | V12: =VLOOKUP($A12,'RECAP DIRCOM'!$G$6:$DC$12,36,FALSE) -> 7
A13: 30 | B13: Marne-Ardennes | C13: =VLOOKUP($A13,'RECAP DIRCOM'!$G$6:$DC$12,3,FALSE) -> 228 | D13: =VLOOKUP($A13,'RECAP DIRCOM'!$G$6:$DC$12,18,FALSE) -> 3,507 | E13: =VLOOKUP($A13,'RECAP DIRCOM'!$G$6:$DC$12,19,FALSE) -> 15.39 | F13: =VLOOKUP($A13,'RECAP DIRCOM'!$G$6:$DC$12,20,FALSE) -> 48% | G13: =VLOOKUP($A13,'RECAP DIRCOM'!$G$6:$DC$12,21,FALSE) -> 4 | H13: =VLOOKUP($A13,'RECAP DIRCOM'!$G$6:$DC$12,22,FALSE) -> 3,159 | I13: =VLOOKUP($A13,'RECAP DIRCOM'!$G$6:$DC$12,23,FALSE) -> 13.87 | J13: =VLOOKUP($A13,'RECAP DIRCOM'!$G$6:$DC$12,24,FALSE) -> 9% | K13: =VLOOKUP($A13,'RECAP DIRCOM'!$G$6:$DC$12,25,FALSE) -> 2 | L13: =VLOOKUP($A13,'RECAP DIRCOM'!$G$6:$DC$12,26,FALSE) -> 913 | M13: =VLOOKUP($A13,'RECAP DIRCOM'!$G$6:$DC$12,27,FALSE) -> 4.01 | N13: =VLOOKUP($A13,'RECAP DIRCOM'!$G$6:$DC$12,28,FALSE) -> 6% | O13: =VLOOKUP($A13,'RECAP DIRCOM'!$G$6:$DC$12,29,FALSE) -> 2 | P13: =VLOOKUP($A13,'RECAP DIRCOM'!$G$6:$DC$12,30,FALSE) -> -143 | Q13: =VLOOKUP($A13,'RECAP DIRCOM'!$G$6:$DC$12,31,FALSE) -> -0.63 | R13: =VLOOKUP($A13,'RECAP DIRCOM'!$G$6:$DC$12,32,FALSE) -> 18% | S13: =VLOOKUP($A13,'RECAP DIRCOM'!$G$6:$DC$12,33,FALSE) -> 5 | T13: =VLOOKUP($A13,'RECAP DIRCOM'!$G$6:$DC$12,34,FALSE) -> 29% | U13: =VLOOKUP($A13,'RECAP DIRCOM'!$G$6:$DC$12,35,FALSE) -> 20% | V13: =VLOOKUP($A13,'RECAP DIRCOM'!$G$6:$DC$12,36,FALSE) -> 4
A14: 110 | B14: Meurthe et Moselle Meuse | C14: =VLOOKUP($A14,'RECAP DIRCOM'!$G$6:$DC$12,3,FALSE) -> 245 | D14: =VLOOKUP($A14,'RECAP DIRCOM'!$G$6:$DC$12,18,FALSE) -> 6,192 | E14: =VLOOKUP($A14,'RECAP DIRCOM'!$G$6:$DC$12,19,FALSE) -> 25.33 | F14: =VLOOKUP($A14,'RECAP DIRCOM'!$G$6:$DC$12,20,FALSE) -> 14% | G14: =VLOOKUP($A14,'RECAP DIRCOM'!$G$6:$DC$12,21,FALSE) -> 2 | H14: =VLOOKUP($A14,'RECAP DIRCOM'!$G$6:$DC$12,22,FALSE) -> 3,709 | I14: =VLOOKUP($A14,'RECAP DIRCOM'!$G$6:$DC$12,23,FALSE) -> 15.17 | J14: =VLOOKUP($A14,'RECAP DIRCOM'!$G$6:$DC$12,24,FALSE) -> 0% | K14: =VLOOKUP($A14,'RECAP DIRCOM'!$G$6:$DC$12,25,FALSE) -> 1 | L14: =VLOOKUP($A14,'RECAP DIRCOM'!$G$6:$DC$12,26,FALSE) -> 1,043 | M14: =VLOOKUP($A14,'RECAP DIRCOM'!$G$6:$DC$12,27,FALSE) -> 4.27 | N14: =VLOOKUP($A14,'RECAP DIRCOM'!$G$6:$DC$12,28,FALSE) -> 0% | O14: =VLOOKUP($A14,'RECAP DIRCOM'!$G$6:$DC$12,29,FALSE) -> 1 | P14: =VLOOKUP($A14,'RECAP DIRCOM'!$G$6:$DC$12,30,FALSE) -> -150 | Q14: =VLOOKUP($A14,'RECAP DIRCOM'!$G$6:$DC$12,31,FALSE) -> -0.61 | R14: =VLOOKUP($A14,'RECAP DIRCOM'!$G$6:$DC$12,32,FALSE) -> 15% | S14: =VLOOKUP($A14,'RECAP DIRCOM'!$G$6:$DC$12,33,FALSE) -> 3 | T14: =VLOOKUP($A14,'RECAP DIRCOM'!$G$6:$DC$12,34,FALSE) -> 9% | U14: =VLOOKUP($A14,'RECAP DIRCOM'!$G$6:$DC$12,35,FALSE) -> 0% | V14: =VLOOKUP($A14,'RECAP DIRCOM'!$G$6:$DC$12,36,FALSE) -> 1
A15: 160 | B15: Moselle | C15: =VLOOKUP($A15,'RECAP DIRCOM'!$G$6:$DC$12,3,FALSE) -> 271 | D15: =VLOOKUP($A15,'RECAP DIRCOM'!$G$6:$DC$12,18,FALSE) -> 6,011 | E15: =VLOOKUP($A15,'RECAP DIRCOM'!$G$6:$DC$12,19,FALSE) -> 22.20 | F15: =VLOOKUP($A15,'RECAP DIRCOM'!$G$6:$DC$12,20,FALSE) -> 24% | G15: =VLOOKUP($A15,'RECAP DIRCOM'!$G$6:$DC$12,21,FALSE) -> 3 | H15: =VLOOKUP($A15,'RECAP DIRCOM'!$G$6:$DC$12,22,FALSE) -> 3,351 | I15: =VLOOKUP($A15,'RECAP DIRCOM'!$G$6:$DC$12,23,FALSE) -> 12.38 | J15: =VLOOKUP($A15,'RECAP DIRCOM'!$G$6:$DC$12,24,FALSE) -> 18% | K15: =VLOOKUP($A15,'RECAP DIRCOM'!$G$6:$DC$12,25,FALSE) -> 4 | L15: =VLOOKUP($A15,'RECAP DIRCOM'!$G$6:$DC$12,26,FALSE) -> 512 | M15: =VLOOKUP($A15,'RECAP DIRCOM'!$G$6:$DC$12,27,FALSE) -> 1.89 | N15: =VLOOKUP($A15,'RECAP DIRCOM'!$G$6:$DC$12,28,FALSE) -> 56% | O15: =VLOOKUP($A15,'RECAP DIRCOM'!$G$6:$DC$12,29,FALSE) -> 4 | P15: =VLOOKUP($A15,'RECAP DIRCOM'!$G$6:$DC$12,30,FALSE) -> -154 | Q15: =VLOOKUP($A15,'RECAP DIRCOM'!$G$6:$DC$12,31,FALSE) -> -0.57 | R15: =VLOOKUP($A15,'RECAP DIRCOM'!$G$6:$DC$12,32,FALSE) -> 7% | S15: =VLOOKUP($A15,'RECAP DIRCOM'!$G$6:$DC$12,33,FALSE) -> 2 | T15: =VLOOKUP($A15,'RECAP DIRCOM'!$G$6:$DC$12,34,FALSE) -> 25% | U15: =VLOOKUP($A15,'RECAP DIRCOM'!$G$6:$DC$12,35,FALSE) -> 16% | V15: =VLOOKUP($A15,'RECAP DIRCOM'!$G$6:$DC$12,36,FALSE) -> 3
A16: 80 | B16: Vosges | C16: =VLOOKUP($A16,'RECAP DIRCOM'!$G$6:$DC$12,3,FALSE) -> 134 | D16: =VLOOKUP($A16,'RECAP DIRCOM'!$G$6:$DC$12,18,FALSE) -> 2,005 | E16: =VLOOKUP($A16,'RECAP DIRCOM'!$G$6:$DC$12,19,FALSE) -> 14.98 | F16: =VLOOKUP($A16,'RECAP DIRCOM'!$G$6:$DC$12,20,FALSE) -> 49% | G16: =VLOOKUP($A16,'RECAP DIRCOM'!$G$6:$DC$12,21,FALSE) -> 5 | H16: =VLOOKUP($A16,'RECAP DIRCOM'!$G$6:$DC$12,22,FALSE) -> 1,582 | I16: =VLOOKUP($A16,'RECAP DIRCOM'!$G$6:$DC$12,23,FALSE) -> 11.82 | J16: =VLOOKUP($A16,'RECAP DIRCOM'!$G$6:$DC$12,24,FALSE) -> 22% | K16: =VLOOKUP($A16,'RECAP DIRCOM'!$G$6:$DC$12,25,FALSE) -> 6 | L16: =VLOOKUP($A16,'RECAP DIRCOM'!$G$6:$DC$12,26,FALSE) -> 250 | M16: =VLOOKUP($A16,'RECAP DIRCOM'!$G$6:$DC$12,27,FALSE) -> 1.87 | N16: =VLOOKUP($A16,'RECAP DIRCOM'!$G$6:$DC$12,28,FALSE) -> 56% | O16: =VLOOKUP($A16,'RECAP DIRCOM'!$G$6:$DC$12,29,FALSE) -> 5 | P16: =VLOOKUP($A16,'RECAP DIRCOM'!$G$6:$DC$12,30,FALSE) -> -93 | Q16: =VLOOKUP($A16,'RECAP DIRCOM'!$G$6:$DC$12,31,FALSE) -> -0.69 | R16: =VLOOKUP($A16,'RECAP DIRCOM'!$G$6:$DC$12,32,FALSE) -> 29% | S16: =VLOOKUP($A16,'RECAP DIRCOM'!$G$6:$DC$12,33,FALSE) -> 6 | T16: =VLOOKUP($A16,'RECAP DIRCOM'!$G$6:$DC$12,34,FALSE) -> 42% | U16: =VLOOKUP($A16,'RECAP DIRCOM'!$G$6:$DC$12,35,FALSE) -> 33% | V16: =VLOOKUP($A16,'RECAP DIRCOM'!$G$6:$DC$12,36,FALSE) -> 6
B17: Total CEGEE Directions Régionales | C17: =SUM(C10:C16) -> 1414

Sheet DC_EPARGNE
B1: Accueil | D1: BAROMETRE BDD - DIRECTIONS REGIONALES
D2: EPARGNE
D3: =ACCUEIL!F7 -> 2021-04-11
D7: Excédent Epargne y/c DAV pondéré | H7: Ventes sur client non détenteur de l’univers | L7: Total Epargne
D8: =DATEMAJ!C14 -> au 11/04 | F8: coef | G8: ='RECAP DIRCOM'!AX4 -> 14% | H8: =DATEMAJ!C15 -> au 11/04 | J8: coef | K8: ='RECAP DIRCOM'!BB4 -> 6% | M8: coef | N8: ='RECAP DIRCOM'!BE4 -> 20%
B9: Direction | C9: ="ETP perf "&DATEMAJ!$C$28 -> ETP perf 28-févr | D9: Excédent | E9: Excédent / ETP | F9: % Ecart au 1er | G9: Rang | H9: VB | I9: VB / ETP | J9: % Ecart au 1er | K9: Rang | L9: Moyenne ecart au 1er | M9: % Ecart au 1er | N9: Rang CEGEE
A10: 50 | B10: Aube Haute Marne | C10: =VLOOKUP($A10,'RECAP DIRCOM'!$G$6:$DC$12,3,FALSE) -> 128 | D10: =VLOOKUP($A10,'RECAP DIRCOM'!$G$6:$DC$12,41,FALSE) -> 13,937 | E10: =VLOOKUP($A10,'RECAP DIRCOM'!$G$6:$DC$12,42,FALSE) -> 108.47 | F10: =VLOOKUP($A10,'RECAP DIRCOM'!$G$6:$DC$12,43,FALSE) -> 55% | G10: =VLOOKUP($A10,'RECAP DIRCOM'!$G$6:$DC$12,44,FALSE) -> 6 | H10: =VLOOKUP($A10,'RECAP DIRCOM'!$G$6:$DC$12,45,FALSE) -> 935 | I10: =VLOOKUP($A10,'RECAP DIRCOM'!$G$6:$DC$12,46,FALSE) -> 7.28 | J10: =VLOOKUP($A10,'RECAP DIRCOM'!$G$6:$DC$12,47,FALSE) -> 19% | K10: =VLOOKUP($A10,'RECAP DIRCOM'!$G$6:$DC$12,48,FALSE) -> 5 | L10: =VLOOKUP($A10,'RECAP DIRCOM'!$G$6:$DC$12,49,FALSE) -> 44% | M10: =VLOOKUP($A10,'RECAP DIRCOM'!$G$6:$DC$12,50,FALSE) -> 42% | N10: =VLOOKUP($A10,'RECAP DIRCOM'!$G$6:$DC$12,51,FALSE) -> 6
A11: 262 | B11: Bas-Rhin | C11: =VLOOKUP($A11,'RECAP DIRCOM'!$G$6:$DC$12,3,FALSE) -> 254 | D11: =VLOOKUP($A11,'RECAP DIRCOM'!$G$6:$DC$12,41,FALSE) -> 60,858 | E11: =VLOOKUP($A11,'RECAP DIRCOM'!$G$6:$DC$12,42,FALSE) -> 239.70 | F11: =VLOOKUP($A11,'RECAP DIRCOM'!$G$6:$DC$12,43,FALSE) -> 0% | G11: =VLOOKUP($A11,'RECAP DIRCOM'!$G$6:$DC$12,44,FALSE) -> 1 | H11: =VLOOKUP($A11,'RECAP DIRCOM'!$G$6:$DC$12,45,FALSE) -> 2,122 | I11: =VLOOKUP($A11,'RECAP DIRCOM'!$G$6:$DC$12,46,FALSE) -> 8.36 | J11: =VLOOKUP($A11,'RECAP DIRCOM'!$G$6:$DC$12,47,FALSE) -> 7% | K11: =VLOOKUP($A11,'RECAP DIRCOM'!$G$6:$DC$12,48,FALSE) -> 2 | L11: =VLOOKUP($A11,'RECAP DIRCOM'!$G$6:$DC$12,49,FALSE) -> 2% | M11: =VLOOKUP($A11,'RECAP DIRCOM'!$G$6:$DC$12,50,FALSE) -> 0% | N11: =VLOOKUP($A11,'RECAP DIRCOM'!$G$6:$DC$12,51,FALSE) -> 1
A12: 264 | B12: Haut-Rhin | C12: =VLOOKUP($A12,'RECAP DIRCOM'!$G$6:$DC$12,3,FALSE) -> 155 | D12: =VLOOKUP($A12,'RECAP DIRCOM'!$G$6:$DC$12,41,FALSE) -> 15,616 | E12: =VLOOKUP($A12,'RECAP DIRCOM'!$G$6:$DC$12,42,FALSE) -> 100.68 | F12: =VLOOKUP($A12,'RECAP DIRCOM'!$G$6:$DC$12,43,FALSE) -> 58% | G12: =VLOOKUP($A12,'RECAP DIRCOM'!$G$6:$DC$12,44,FALSE) -> 7 | H12: =VLOOKUP($A12,'RECAP DIRCOM'!$G$6:$DC$12,45,FALSE) -> 1,047 | I12: =VLOOKUP($A12,'RECAP DIRCOM'!$G$6:$DC$12,46,FALSE) -> 6.75 | J12: =VLOOKUP($A12,'RECAP DIRCOM'!$G$6:$DC$12,47,FALSE) -> 25% | K12: =VLOOKUP($A12,'RECAP DIRCOM'!$G$6:$DC$12,48,FALSE) -> 6 | L12: =VLOOKUP($A12,'RECAP DIRCOM'!$G$6:$DC$12,49,FALSE) -> 48% | M12: =VLOOKUP($A12,'RECAP DIRCOM'!$G$6:$DC$12,50,FALSE) -> 46% | N12: =VLOOKUP($A12,'RECAP DIRCOM'!$G$6:$DC$12,51,FALSE) -> 7
A13: 30 | B13: Marne-Ardennes | C13: =VLOOKUP($A13,'RECAP DIRCOM'!$G$6:$DC$12,3,FALSE) -> 228 | D13: =VLOOKUP($A13,'RECAP DIRCOM'!$G$6:$DC$12,41,FALSE) -> 36,997 | E13: =VLOOKUP($A13,'RECAP DIRCOM'!$G$6:$DC$12,42,FALSE) -> 162.41 | F13: =VLOOKUP($A13,'RECAP DIRCOM'!$G$6:$DC$12,43,FALSE) -> 32% | G13: =VLOOKUP($A13,'RECAP DIRCOM'!$G$6:$DC$12,44,FALSE) -> 5 | H13: =VLOOKUP($A13,'RECAP DIRCOM'!$G$6:$DC$12,45,FALSE) -> 2,046 | I13: =VLOOKUP($A13,'RECAP DIRCOM'!$G$6:$DC$12,46,FALSE) -> 8.98 | J13: =VLOOKUP($A13,'RECAP DIRCOM'!$G$6:$DC$12,47,FALSE) -> 0% | K13: =VLOOKUP($A13,'RECAP DIRCOM'!$G$6:$DC$12,48,FALSE) -> 1 | L13: =VLOOKUP($A13,'RECAP DIRCOM'!$G$6:$DC$12,49,FALSE) -> 23% | M13: =VLOOKUP($A13,'RECAP DIRCOM'!$G$6:$DC$12,50,FALSE) -> 20% | N13: =VLOOKUP($A13,'RECAP DIRCOM'!$G$6:$DC$12,51,FALSE) -> 5
A14: 110 | B14: Meurthe et Moselle Meuse | C14: =VLOOKUP($A14,'RECAP DIRCOM'!$G$6:$DC$12,3,FALSE) -> 245 | D14: =VLOOKUP($A14,'RECAP DIRCOM'!$G$6:$DC$12,41,FALSE) -> 49,912 | E14: =VLOOKUP($A14,'RECAP DIRCOM'!$G$6:$DC$12,42,FALSE) -> 204.14 | F14: =VLOOKUP($A14,'RECAP DIRCOM'!$G$6:$DC$12,43,FALSE) -> 15% | G14: =VLOOKUP($A14,'RECAP DIRCOM'!$G$6:$DC$12,44,FALSE) -> 3 | H14: =VLOOKUP($A14,'RECAP DIRCOM'!$G$6:$DC$12,45,FALSE) -> 1,914 | I14: =VLOOKUP($A14,'RECAP DIRCOM'!$G$6:$DC$12,46,FALSE) -> 7.83 | J14: =VLOOKUP($A14,'RECAP DIRCOM'!$G$6:$DC$12,47,FALSE) -> 13% | K14: =VLOOKUP($A14,'RECAP DIRCOM'!$G$6:$DC$12,48,FALSE) -> 3 | L14: =VLOOKUP($A14,'RECAP DIRCOM'!$G$6:$DC$12,49,FALSE) -> 14% | M14: =VLOOKUP($A14,'RECAP DIRCOM'!$G$6:$DC$12,50,FALSE) -> 12% | N14: =VLOOKUP($A14,'RECAP DIRCOM'!$G$6:$DC$12,51,FALSE) -> 3
A15: 160 | B15: Moselle | C15: =VLOOKUP($A15,'RECAP DIRCOM'!$G$6:$DC$12,3,FALSE) -> 271 | D15: =VLOOKUP($A15,'RECAP DIRCOM'!$G$6:$DC$12,41,FALSE) -> 50,314 | E15: =VLOOKUP($A15,'RECAP DIRCOM'!$G$6:$DC$12,42,FALSE) -> 185.84 | F15: =VLOOKUP($A15,'RECAP DIRCOM'!$G$6:$DC$12,43,FALSE) -> 22% | G15: =VLOOKUP($A15,'RECAP DIRCOM'!$G$6:$DC$12,44,FALSE) -> 4 | H15: =VLOOKUP($A15,'RECAP DIRCOM'!$G$6:$DC$12,45,FALSE) -> 1,973 | I15: =VLOOKUP($A15,'RECAP DIRCOM'!$G$6:$DC$12,46,FALSE) -> 7.29 | J15: =VLOOKUP($A15,'RECAP DIRCOM'!$G$6:$DC$12,47,FALSE) -> 19% | K15: =VLOOKUP($A15,'RECAP DIRCOM'!$G$6:$DC$12,48,FALSE) -> 4 | L15: =VLOOKUP($A15,'RECAP DIRCOM'!$G$6:$DC$12,49,FALSE) -> 21% | M15: =VLOOKUP($A15,'RECAP DIRCOM'!$G$6:$DC$12,50,FALSE) -> 19% | N15: =VLOOKUP($A15,'RECAP DIRCOM'!$G$6:$DC$12,51,FALSE) -> 4
A16: 80 | B16: Vosges | C16: =VLOOKUP($A16,'RECAP DIRCOM'!$G$6:$DC$12,3,FALSE) -> 134 | D16: =VLOOKUP($A16,'RECAP DIRCOM'!$G$6:$DC$12,41,FALSE) -> 31,857 | E16: =VLOOKUP($A16,'RECAP DIRCOM'!$G$6:$DC$12,42,FALSE) -> 237.99 | F16: =VLOOKUP($A16,'RECAP DIRCOM'!$G$6:$DC$12,43,FALSE) -> 1% | G16: =VLOOKUP($A16,'RECAP DIRCOM'!$G$6:$DC$12,44,FALSE) -> 2 | H16: =VLOOKUP($A16,'RECAP DIRCOM'!$G$6:$DC$12,45,FALSE) -> 719 | I16: =VLOOKUP($A16,'RECAP DIRCOM'!$G$6:$DC$12,46,FALSE) -> 5.37 | J16: =VLOOKUP($A16,'RECAP DIRCOM'!$G$6:$DC$12,47,FALSE) -> 40% | K16: =VLOOKUP($A16,'RECAP DIRCOM'!$G$6:$DC$12,48,FALSE) -> 7 | L16: =VLOOKUP($A16,'RECAP DIRCOM'!$G$6:$DC$12,49,FALSE) -> 13% | M16: =VLOOKUP($A16,'RECAP DIRCOM'!$G$6:$DC$12,50,FALSE) -> 10% | N16: =VLOOKUP($A16,'RECAP DIRCOM'!$G$6:$DC$12,51,FALSE) -> 2
B17: Total CEGEE Directions Régionales | C17: =SUM(C10:C16) -> 1414

Sheet DC_CREDIT
B1: Accueil | D1: BAROMETRE BDD - DIRECTIONS REGIONALES
D2: CREDITS
D3: =ACCUEIL!F7 -> 2021-04-11
D7: Engagements et ventes accessoires pondérés Immo | H7: Engagements et ventes accessoires pondérés Conso | L7: Ventes sur client non détenteur de l’univers | P7: Total Crédits
D8: =DATEMAJ!C18 -> au 11/04 | F8: coef | G8: ='RECAP DIRCOM'!BM4 -> 8% | H8: =DATEMAJ!C19 -> au 11/04 | J8: coef | K8: ='RECAP DIRCOM'!BQ4 -> 6% | L8: =DATEMAJ!C20 -> au 11/04 | N8: coef | O8: ='RECAP DIRCOM'!BU4 -> 6% | Q8: coef | R8: ='RECAP DIRCOM'!BX4 -> 20%
B9: Direction | C9: ="ETP perf "&DATEMAJ!$C$28 -> ETP perf 28-févr | D9: PNB | E9: PNB / ETP | F9: % Ecart au 1er | G9: Rang | H9: PNB | I9: PNB / ETP | J9: % Ecart au 1er | K9: Rang | L9: VB | M9: VB / ETP | N9: % Ecart au 1er | O9: Rang | P9: Moyenne ecart au 1er | Q9: % Ecart au 1er | R9: Rang CEGEE
A10: 50 | B10: Aube Haute Marne | C10: =VLOOKUP($A10,'RECAP DIRCOM'!$G$6:$DC$12,3,FALSE) -> 128 | D10: =VLOOKUP($A10,'RECAP DIRCOM'!$G$6:$DC$12,56,FALSE) -> 4,098 | E10: =VLOOKUP($A10,'RECAP DIRCOM'!$G$6:$DC$12,57,FALSE) -> 31.89 | F10: =VLOOKUP($A10,'RECAP DIRCOM'!$G$6:$DC$12,58,FALSE) -> 56% | G10: =VLOOKUP($A10,'RECAP DIRCOM'!$G$6:$DC$12,59,FALSE) -> 6 | H10: =VLOOKUP($A10,'RECAP DIRCOM'!$G$6:$DC$12,60,FALSE) -> 2,208 | I10: =VLOOKUP($A10,'RECAP DIRCOM'!$G$6:$DC$12,61,FALSE) -> 17.18 | J10: =VLOOKUP($A10,'RECAP DIRCOM'!$G$6:$DC$12,62,FALSE) -> 4% | K10: =VLOOKUP($A10,'RECAP DIRCOM'!$G$6:$DC$12,63,FALSE) -> 3 | L10: =VLOOKUP($A10,'RECAP DIRCOM'!$G$6:$DC$12,64,FALSE) -> 602 | M10: =VLOOKUP($A10,'RECAP DIRCOM'!$G$6:$DC$12,65,FALSE) -> 4.69 | N10: =VLOOKUP($A10,'RECAP DIRCOM'!$G$6:$DC$12,66,FALSE) -> 29% | O10: =VLOOKUP($A10,'RECAP DIRCOM'!$G$6:$DC$12,67,FALSE) -> 4 | P10: =VLOOKUP($A10,'RECAP DIRCOM'!$G$6:$DC$12,68,FALSE) -> 32% | Q10: =VLOOKUP($A10,'RECAP DIRCOM'!$G$6:$DC$12,69,FALSE) -> 32% | R10: =VLOOKUP($A10,'RECAP DIRCOM'!$G$6:$DC$12,70,FALSE) -> 4
A11: 262 | B11: Bas-Rhin | C11: =VLOOKUP($A11,'RECAP DIRCOM'!$G$6:$DC$12,3,FALSE) -> 254 | D11: =VLOOKUP($A11,'RECAP DIRCOM'!$G$6:$DC$12,56,FALSE) -> 8,914 | E11: =VLOOKUP($A11,'RECAP DIRCOM'!$G$6:$DC$12,57,FALSE) -> 35.11 | F11: =VLOOKUP($A11,'RECAP DIRCOM'!$G$6:$DC$12,58,FALSE) -> 51% | G11: =VLOOKUP($A11,'RECAP DIRCOM'!$G$6:$DC$12,59,FALSE) -> 5 | H11: =VLOOKUP($A11,'RECAP DIRCOM'!$G$6:$DC$12,60,FALSE) -> 4,117 | I11: =VLOOKUP($A11,'RECAP DIRCOM'!$G$6:$DC$12,61,FALSE) -> 16.22 | J11: =VLOOKUP($A11,'RECAP DIRCOM'!$G$6:$DC$12,62,FALSE) -> 9% | K11: =VLOOKUP($A11,'RECAP DIRCOM'!$G$6:$DC$12,63,FALSE) -> 4 | L11: =VLOOKUP($A11,'RECAP DIRCOM'!$G$6:$DC$12,64,FALSE) -> 1,082 | M11: =VLOOKUP($A11,'RECAP DIRCOM'!$G$6:$DC$12,65,FALSE) -> 4.26 | N11: =VLOOKUP($A11,'RECAP DIRCOM'!$G$6:$DC$12,66,FALSE) -> 36% | O11: =VLOOKUP($A11,'RECAP DIRCOM'!$G$6:$DC$12,67,FALSE) -> 6 | P11: =VLOOKUP($A11,'RECAP DIRCOM'!$G$6:$DC$12,68,FALSE) -> 34% | Q11: =VLOOKUP($A11,'RECAP DIRCOM'!$G$6:$DC$12,69,FALSE) -> 34% | R11: =VLOOKUP($A11,'RECAP DIRCOM'!$G$6:$DC$12,70,FALSE) -> 6
A12: 264 | B12: Haut-Rhin | C12: =VLOOKUP($A12,'RECAP DIRCOM'!$G$6:$DC$12,3,FALSE) -> 155 | D12: =VLOOKUP($A12,'RECAP DIRCOM'!$G$6:$DC$12,56,FALSE) -> 3,766 | E12: =VLOOKUP($A12,'RECAP DIRCOM'!$G$6:$DC$12,57,FALSE) -> 24.28 | F12: =VLOOKUP($A12,'RECAP DIRCOM'!$G$6:$DC$12,58,FALSE) -> 66% | G12: =VLOOKUP($A12,'RECAP DIRCOM'!$G$6:$DC$12,59,FALSE) -> 7 | H12: =VLOOKUP($A12,'RECAP DIRCOM'!$G$6:$DC$12,60,FALSE) -> 2,095 | I12: =VLOOKUP($A12,'RECAP DIRCOM'!$G$6:$DC$12,61,FALSE) -> 13.50 | J12: =VLOOKUP($A12,'RECAP DIRCOM'!$G$6:$DC$12,62,FALSE) -> 24% | K12: =VLOOKUP($A12,'RECAP DIRCOM'!$G$6:$DC$12,63,FALSE) -> 7 | L12: =VLOOKUP($A12,'RECAP DIRCOM'!$G$6:$DC$12,64,FALSE) -> 494 | M12: =VLOOKUP($A12,'RECAP DIRCOM'!$G$6:$DC$12,65,FALSE) -> 3.18 | N12: =VLOOKUP($A12,'RECAP DIRCOM'!$G$6:$DC$12,66,FALSE) -> 52% | O12: =VLOOKUP($A12,'RECAP DIRCOM'!$G$6:$DC$12,67,FALSE) -> 7 | P12: =VLOOKUP($A12,'RECAP DIRCOM'!$G$6:$DC$12,68,FALSE) -> 49% | Q12: =VLOOKUP($A12,'RECAP DIRCOM'!$G$6:$DC$12,69,FALSE) -> 49% | R12: =VLOOKUP($A12,'RECAP DIRCOM'!$G$6:$DC$12,70,FALSE) -> 7
A13: 30 | B13: Marne-Ardennes | C13: =VLOOKUP($A13,'RECAP DIRCOM'!$G$6:$DC$12,3,FALSE) -> 228 | D13: =VLOOKUP($A13,'RECAP DIRCOM'!$G$6:$DC$12,56,FALSE) -> 13,458 | E13: =VLOOKUP($A13,'RECAP DIRCOM'!$G$6:$DC$12,57,FALSE) -> 59.08 | F13: =VLOOKUP($A13,'RECAP DIRCOM'!$G$6:$DC$12,58,FALSE) -> 18% | G13: =VLOOKUP($A13,'RECAP DIRCOM'!$G$6:$DC$12,59,FALSE) -> 2 | H13: =VLOOKUP($A13,'RECAP DIRCOM'!$G$6:$DC$12,60,FALSE) -> 3,498 | I13: =VLOOKUP($A13,'RECAP DIRCOM'!$G$6:$DC$12,61,FALSE) -> 15.36 | J13: =VLOOKUP($A13,'RECAP DIRCOM'!$G$6:$DC$12,62,FALSE) -> 14% | K13: =VLOOKUP($A13,'RECAP DIRCOM'!$G$6:$DC$12,63,FALSE) -> 5 | L13: =VLOOKUP($A13,'RECAP DIRCOM'!$G$6:$DC$12,64,FALSE) -> 1,267 | M13: =VLOOKUP($A13,'RECAP DIRCOM'!$G$6:$DC$12,65,FALSE) -> 5.56 | N13: =VLOOKUP($A13,'RECAP DIRCOM'!$G$6:$DC$12,66,FALSE) -> 16% | O13: =VLOOKUP($A13,'RECAP DIRCOM'!$G$6:$DC$12,67,FALSE) -> 2 | P13: =VLOOKUP($A13,'RECAP DIRCOM'!$G$6:$DC$12,68,FALSE) -> 16% | Q13: =VLOOKUP($A13,'RECAP DIRCOM'!$G$6:$DC$12,69,FALSE) -> 16% | R13: =VLOOKUP($A13,'RECAP DIRCOM'!$G$6:$DC$12,70,FALSE) -> 2
A14: 110 | B14: Meurthe et Moselle Meuse | C14: =VLOOKUP($A14,'RECAP DIRCOM'!$G$6:$DC$12,3,FALSE) -> 245 | D14: =VLOOKUP($A14,'RECAP DIRCOM'!$G$6:$DC$12,56,FALSE) -> 17,642 | E14: =VLOOKUP($A14,'RECAP DIRCOM'!$G$6:$DC$12,57,FALSE) -> 72.16 | F14: =VLOOKUP($A14,'RECAP DIRCOM'!$G$6:$DC$12,58,FALSE) -> 0% | G14: =VLOOKUP($A14,'RECAP DIRCOM'!$G$6:$DC$12,59,FALSE) -> 1 | H14: =VLOOKUP($A14,'RECAP DIRCOM'!$G$6:$DC$12,60,FALSE) -> 4,312 | I14: =VLOOKUP($A14,'RECAP DIRCOM'!$G$6:$DC$12,61,FALSE) -> 17.63 | J14: =VLOOKUP($A14,'RECAP DIRCOM'!$G$6:$DC$12,62,FALSE) -> 1% | K14: =VLOOKUP($A14,'RECAP DIRCOM'!$G$6:$DC$12,63,FALSE) -> 2 | L14: =VLOOKUP($A14,'RECAP DIRCOM'!$G$6:$DC$12,64,FALSE) -> 1,622 | M14: =VLOOKUP($A14,'RECAP DIRCOM'!$G$6:$DC$12,65,FALSE) -> 6.63 | N14: =VLOOKUP($A14,'RECAP DIRCOM'!$G$6:$DC$12,66,FALSE) -> 0% | O14: =VLOOKUP($A14,'RECAP DIRCOM'!$G$6:$DC$12,67,FALSE) -> 1 | P14: =VLOOKUP($A14,'RECAP DIRCOM'!$G$6:$DC$12,68,FALSE) -> 0% | Q14: =VLOOKUP($A14,'RECAP DIRCOM'!$G$6:$DC$12,69,FALSE) -> 0% | R14: =VLOOKUP($A14,'RECAP DIRCOM'!$G$6:$DC$12,70,FALSE) -> 1
A15: 160 | B15: Moselle | C15: =VLOOKUP($A15,'RECAP DIRCOM'!$G$6:$DC$12,3,FALSE) -> 271 | D15: =VLOOKUP($A15,'RECAP DIRCOM'!$G$6:$DC$12,56,FALSE) -> 10,566 | E15: =VLOOKUP($A15,'RECAP DIRCOM'!$G$6:$DC$12,57,FALSE) -> 39.03 | F15: =VLOOKUP($A15,'RECAP DIRCOM'!$G$6:$DC$12,58,FALSE) -> 46% | G15: =VLOOKUP($A15,'RECAP DIRCOM'!$G$6:$DC$12,59,FALSE) -> 3 | H15: =VLOOKUP($A15,'RECAP DIRCOM'!$G$6:$DC$12,60,FALSE) -> 4,840 | I15: =VLOOKUP($A15,'RECAP DIRCOM'!$G$6:$DC$12,61,FALSE) -> 17.88 | J15: =VLOOKUP($A15,'RECAP DIRCOM'!$G$6:$DC$12,62,FALSE) -> 0% | K15: =VLOOKUP($A15,'RECAP DIRCOM'!$G$6:$DC$12,63,FALSE) -> 1 | L15: =VLOOKUP($A15,'RECAP DIRCOM'!$G$6:$DC$12,64,FALSE) -> 1,196 | M15: =VLOOKUP($A15,'RECAP DIRCOM'!$G$6:$DC$12,65,FALSE) -> 4.42 | N15: =VLOOKUP($A15,'RECAP DIRCOM'!$G$6:$DC$12,66,FALSE) -> 33% | O15: =VLOOKUP($A15,'RECAP DIRCOM'!$G$6:$DC$12,67,FALSE) -> 5 | P15: =VLOOKUP($A15,'RECAP DIRCOM'!$G$6:$DC$12,68,FALSE) -> 28% | Q15: =VLOOKUP($A15,'RECAP DIRCOM'!$G$6:$DC$12,69,FALSE) -> 28% | R15: =VLOOKUP($A15,'RECAP DIRCOM'!$G$6:$DC$12,70,FALSE) -> 3
A16: 80 | B16: Vosges | C16: =VLOOKUP($A16,'RECAP DIRCOM'!$G$6:$DC$12,3,FALSE) -> 134 | D16: =VLOOKUP($A16,'RECAP DIRCOM'!$G$6:$DC$12,56,FALSE) -> 4,841 | E16: =VLOOKUP($A16,'RECAP DIRCOM'!$G$6:$DC$12,57,FALSE) -> 36.16 | F16: =VLOOKUP($A16,'RECAP DIRCOM'!$G$6:$DC$12,58,FALSE) -> 50% | G16: =VLOOKUP($A16,'RECAP DIRCOM'!$G$6:$DC$12,59,FALSE) -> 4 | H16: =VLOOKUP($A16,'RECAP DIRCOM'!$G$6:$DC$12,60,FALSE) -> 1,999 | I16: =VLOOKUP($A16,'RECAP DIRCOM'!$G$6:$DC$12,61,FALSE) -> 14.94 | J16: =VLOOKUP($A16,'RECAP DIRCOM'!$G$6:$DC$12,62,FALSE) -> 16% | K16: =VLOOKUP($A16,'RECAP DIRCOM'!$G$6:$DC$12,63,FALSE) -> 6 | L16: =VLOOKUP($A16,'RECAP DIRCOM'!$G$6:$DC$12,64,FALSE) -> 632 | M16: =VLOOKUP($A16,'RECAP DIRCOM'!$G$6:$DC$12,65,FALSE) -> 4.72 | N16: =VLOOKUP($A16,'RECAP DIRCOM'!$G$6:$DC$12,66,FALSE) -> 29% | O16: =VLOOKUP($A16,'RECAP DIRCOM'!$G$6:$DC$12,67,FALSE) -> 3 | P16: =VLOOKUP($A16,'RECAP DIRCOM'!$G$6:$DC$12,68,FALSE) -> 34% | Q16: =VLOOKUP($A16,'RECAP DIRCOM'!$G$6:$DC$12,69,FALSE) -> 33% | R16: =VLOOKUP($A16,'RECAP DIRCOM'!$G$6:$DC$12,70,FALSE) -> 5
B17: Total CEGEE Directions Régionales | C17: =SUM(C10:C16) -> 1414

Sheet DC_IARD
B1: Accueil | D1: BAROMETRE BDD - DIRECTIONS REGIONALES
D2: IARD ET PREVOYANCE
D3: =ACCUEIL!F7 -> 2021-04-11
D7: Ventes Nettes produits pondérés | H7: Ventes sur client non détenteur de l’univers | L7: Total IARD Prévoyance
D8: =DATEMAJ!C23 -> au 11/04 | F8: coef | G8: ='RECAP DIRCOM'!CF4 -> 14% | H8: =DATEMAJ!C24 -> au 11/04 | J8: coef | K8: ='RECAP DIRCOM'!CJ4 -> 6% | M8: coef | N8: ='RECAP DIRCOM'!CM4 -> 20%
B9: Direction | C9: ="ETP perf "&DATEMAJ!$C$28 -> ETP perf 28-févr | D9: VN | E9: VN / ETP | F9: % Ecart au 1er | G9: Rang | H9: VB | I9: VB / ETP | J9: % Ecart au 1er | K9: Rang | L9: Moyenne ecart au 1er | M9: % Ecart au 1er | N9: Rang CEGEE
A10: 50 | B10: Aube Haute Marne | C10: =VLOOKUP($A10,'RECAP DIRCOM'!$G$6:$DC$12,3,FALSE) -> 128 | D10: =VLOOKUP($A10,'RECAP DIRCOM'!$G$6:$DC$12,75,FALSE) -> 6,803 | E10: =VLOOKUP($A10,'RECAP DIRCOM'!$G$6:$DC$12,76,FALSE) -> 52.95 | F10: =VLOOKUP($A10,'RECAP DIRCOM'!$G$6:$DC$12,77,FALSE) -> 35% | G10: =VLOOKUP($A10,'RECAP DIRCOM'!$G$6:$DC$12,78,FALSE) -> 6 | H10: =VLOOKUP($A10,'RECAP DIRCOM'!$G$6:$DC$12,79,FALSE) -> 1,502 | I10: =VLOOKUP($A10,'RECAP DIRCOM'!$G$6:$DC$12,80,FALSE) -> 11.69 | J10: =VLOOKUP($A10,'RECAP DIRCOM'!$G$6:$DC$12,81,FALSE) -> 18% | K10: =VLOOKUP($A10,'RECAP DIRCOM'!$G$6:$DC$12,82,FALSE) -> 4 | L10: =VLOOKUP($A10,'RECAP DIRCOM'!$G$6:$DC$12,83,FALSE) -> 30% | M10: =VLOOKUP($A10,'RECAP DIRCOM'!$G$6:$DC$12,84,FALSE) -> 22% | N10: =VLOOKUP($A10,'RECAP DIRCOM'!$G$6:$DC$12,85,FALSE) -> 6
A11: 262 | B11: Bas-Rhin | C11: =VLOOKUP($A11,'RECAP DIRCOM'!$G$6:$DC$12,3,FALSE) -> 254 | D11: =VLOOKUP($A11,'RECAP DIRCOM'!$G$6:$DC$12,75,FALSE) -> 17,418 | E11: =VLOOKUP($A11,'RECAP DIRCOM'!$G$6:$DC$12,76,FALSE) -> 68.61 | F11: =VLOOKUP($A11,'RECAP DIRCOM'!$G$6:$DC$12,77,FALSE) -> 16% | G11: =VLOOKUP($A11,'RECAP DIRCOM'!$G$6:$DC$12,78,FALSE) -> 5 | H11: =VLOOKUP($A11,'RECAP DIRCOM'!$G$6:$DC$12,79,FALSE) -> 3,016 | I11: =VLOOKUP($A11,'RECAP DIRCOM'!$G$6:$DC$12,80,FALSE) -> 11.88 | J11: =VLOOKUP($A11,'RECAP DIRCOM'!$G$6:$DC$12,81,FALSE) -> 17% | K11: =VLOOKUP($A11,'RECAP DIRCOM'!$G$6:$DC$12,82,FALSE) -> 3 | L11: =VLOOKUP($A11,'RECAP DIRCOM'!$G$6:$DC$12,83,FALSE) -> 16% | M11: =VLOOKUP($A11,'RECAP DIRCOM'!$G$6:$DC$12,84,FALSE) -> 9% | N11: =VLOOKUP($A11,'RECAP DIRCOM'!$G$6:$DC$12,85,FALSE) -> 4
A12: 264 | B12: Haut-Rhin | C12: =VLOOKUP($A12,'RECAP DIRCOM'!$G$6:$DC$12,3,FALSE) -> 155 | D12: =VLOOKUP($A12,'RECAP DIRCOM'!$G$6:$DC$12,75,FALSE) -> 6,918 | E12: =VLOOKUP($A12,'RECAP DIRCOM'!$G$6:$DC$12,76,FALSE) -> 44.60 | F12: =VLOOKUP($A12,'RECAP DIRCOM'!$G$6:$DC$12,77,FALSE) -> 45% | G12: =VLOOKUP($A12,'RECAP DIRCOM'!$G$6:$DC$12,78,FALSE) -> 7 | H12: =VLOOKUP($A12,'RECAP DIRCOM'!$G$6:$DC$12,79,FALSE) -> 1,464 | I12: =VLOOKUP($A12,'RECAP DIRCOM'!$G$6:$DC$12,80,FALSE) -> 9.44 | J12: =VLOOKUP($A12,'RECAP DIRCOM'!$G$6:$DC$12,81,FALSE) -> 34% | K12: =VLOOKUP($A12,'RECAP DIRCOM'!$G$6:$DC$12,82,FALSE) -> 7 | L12: =VLOOKUP($A12,'RECAP DIRCOM'!$G$6:$DC$12,83,FALSE) -> 42% | M12: =VLOOKUP($A12,'RECAP DIRCOM'!$G$6:$DC$12,84,FALSE) -> 34% | N12: =VLOOKUP($A12,'RECAP DIRCOM'!$G$6:$DC$12,85,FALSE) -> 7
A13: 30 | B13: Marne-Ardennes | C13: =VLOOKUP($A13,'RECAP DIRCOM'!$G$6:$DC$12,3,FALSE) -> 228 | D13: =VLOOKUP($A13,'RECAP DIRCOM'!$G$6:$DC$12,75,FALSE) -> 15,663 | E13: =VLOOKUP($A13,'RECAP DIRCOM'!$G$6:$DC$12,76,FALSE) -> 68.76 | F13: =VLOOKUP($A13,'RECAP DIRCOM'!$G$6:$DC$12,77,FALSE) -> 16% | G13: =VLOOKUP($A13,'RECAP DIRCOM'!$G$6:$DC$12,78,FALSE) -> 4 | H13: =VLOOKUP($A13,'RECAP DIRCOM'!$G$6:$DC$12,79,FALSE) -> 2,639 | I13: =VLOOKUP($A13,'RECAP DIRCOM'!$G$6:$DC$12,80,FALSE) -> 11.58 | J13: =VLOOKUP($A13,'RECAP DIRCOM'!$G$6:$DC$12,81,FALSE) -> 19% | K13: =VLOOKUP($A13,'RECAP DIRCOM'!$G$6:$DC$12,82,FALSE) -> 5 | L13: =VLOOKUP($A13,'RECAP DIRCOM'!$G$6:$DC$12,83,FALSE) -> 17% | M13: =VLOOKUP($A13,'RECAP DIRCOM'!$G$6:$DC$12,84,FALSE) -> 9% | N13: =VLOOKUP($A13,'RECAP DIRCOM'!$G$6:$DC$12,85,FALSE) -> 5
A14: 110 | B14: Meurthe et Moselle Meuse | C14: =VLOOKUP($A14,'RECAP DIRCOM'!$G$6:$DC$12,3,FALSE) -> 245 | D14: =VLOOKUP($A14,'RECAP DIRCOM'!$G$6:$DC$12,75,FALSE) -> 17,491 | E14: =VLOOKUP($A14,'RECAP DIRCOM'!$G$6:$DC$12,76,FALSE) -> 71.54 | F14: =VLOOKUP($A14,'RECAP DIRCOM'!$G$6:$DC$12,77,FALSE) -> 12% | G14: =VLOOKUP($A14,'RECAP DIRCOM'!$G$6:$DC$12,78,FALSE) -> 2 | H14: =VLOOKUP($A14,'RECAP DIRCOM'!$G$6:$DC$12,79,FALSE) -> 3,497 | I14: =VLOOKUP($A14,'RECAP DIRCOM'!$G$6:$DC$12,80,FALSE) -> 14.30 | J14: =VLOOKUP($A14,'RECAP DIRCOM'!$G$6:$DC$12,81,FALSE) -> 0% | K14: =VLOOKUP($A14,'RECAP DIRCOM'!$G$6:$DC$12,82,FALSE) -> 1 | L14: =VLOOKUP($A14,'RECAP DIRCOM'!$G$6:$DC$12,83,FALSE) -> 9% | M14: =VLOOKUP($A14,'RECAP DIRCOM'!$G$6:$DC$12,84,FALSE) -> 1% | N14: =VLOOKUP($A14,'RECAP DIRCOM'!$G$6:$DC$12,85,FALSE) -> 2
A15: 160 | B15: Moselle | C15: =VLOOKUP($A15,'RECAP DIRCOM'!$G$6:$DC$12,3,FALSE) -> 271 | D15: =VLOOKUP($A15,'RECAP DIRCOM'!$G$6:$DC$12,75,FALSE) -> 19,146 | E15: =VLOOKUP($A15,'RECAP DIRCOM'!$G$6:$DC$12,76,FALSE) -> 70.72 | F15: =VLOOKUP($A15,'RECAP DIRCOM'!$G$6:$DC$12,77,FALSE) -> 13% | G15: =VLOOKUP($A15,'RECAP DIRCOM'!$G$6:$DC$12,78,FALSE) -> 3 | H15: =VLOOKUP($A15,'RECAP DIRCOM'!$G$6:$DC$12,79,FALSE) -> 3,263 | I15: =VLOOKUP($A15,'RECAP DIRCOM'!$G$6:$DC$12,80,FALSE) -> 12.05 | J15: =VLOOKUP($A15,'RECAP DIRCOM'!$G$6:$DC$12,81,FALSE) -> 16% | K15: =VLOOKUP($A15,'RECAP DIRCOM'!$G$6:$DC$12,82,FALSE) -> 2 | L15: =VLOOKUP($A15,'RECAP DIRCOM'!$G$6:$DC$12,83,FALSE) -> 14% | M15: =VLOOKUP($A15,'RECAP DIRCOM'!$G$6:$DC$12,84,FALSE) -> 6% | N15: =VLOOKUP($A15,'RECAP DIRCOM'!$G$6:$DC$12,85,FALSE) -> 3
A16: 80 | B16: Vosges | C16: =VLOOKUP($A16,'RECAP DIRCOM'!$G$6:$DC$12,3,FALSE) -> 134 | D16: =VLOOKUP($A16,'RECAP DIRCOM'!$G$6:$DC$12,75,FALSE) -> 10,926 | E16: =VLOOKUP($A16,'RECAP DIRCOM'!$G$6:$DC$12,76,FALSE) -> 81.62 | F16: =VLOOKUP($A16,'RECAP DIRCOM'!$G$6:$DC$12,77,FALSE) -> 0% | G16: =VLOOKUP($A16,'RECAP DIRCOM'!$G$6:$DC$12,78,FALSE) -> 1 | H16: =VLOOKUP($A16,'RECAP DIRCOM'!$G$6:$DC$12,79,FALSE) -> 1,426 | I16: =VLOOKUP($A16,'RECAP DIRCOM'!$G$6:$DC$12,80,FALSE) -> 10.65 | J16: =VLOOKUP($A16,'RECAP DIRCOM'!$G$6:$DC$12,81,FALSE) -> 26% | K16: =VLOOKUP($A16,'RECAP DIRCOM'!$G$6:$DC$12,82,FALSE) -> 6 | L16: =VLOOKUP($A16,'RECAP DIRCOM'!$G$6:$DC$12,83,FALSE) -> 8% | M16: =VLOOKUP($A16,'RECAP DIRCOM'!$G$6:$DC$12,84,FALSE) -> 0% | N16: =VLOOKUP($A16,'RECAP DIRCOM'!$G$6:$DC$12,85,FALSE) -> 1
B17: Total CEGEE Directions Régionales | C17: =SUM(C10:C16) -> 1414

Sheet DC_SATISFACTION
B1: Accueil | D1: BAROMETRE BDD - DIRECTIONS REGIONALES
D2: SATISFACTION
D3: =ACCUEIL!F7 -> 2021-04-11
D7: NPS à froid (SAE) | G7: NPS à chaud (QHD) | J7: Total Satisfaction Clients
D8: =DATEMAJ!E4 -> au 31/03 | E8: coef | F8: ='RECAP DIRCOM'!M4 -> 10% | G8: =DATEMAJ!C5 -> au 28/02 | H8: coef | I8: ='RECAP DIRCOM'!P4 -> 10% | K8: coef | L8: ='RECAP DIRCOM'!S4 -> 20%
B9: Direction | C9: ="ETP perf "&DATEMAJ!$C$28 -> ETP perf 28-févr | E9: % Ecart au 1er | F9: Rang | H9: % Ecart au 1er | I9: Rang | J9: Moyenne ecart au 1er | K9: % Ecart au 1er | L9: Rang CEGEE
A10: 50 | B10: Aube Haute Marne | C10: =VLOOKUP($A10,'RECAP DIRCOM'!$G$6:$DC$12,3,FALSE) -> 128 | D10: =VLOOKUP($A10,'RECAP DIRCOM'!$G$6:$DC$12,5,FALSE) -> 16 | E10: =VLOOKUP($A10,'RECAP DIRCOM'!$G$6:$DC$12,6,FALSE) -> 16% | F10: =VLOOKUP($A10,'RECAP DIRCOM'!$G$6:$DC$12,7,FALSE) -> 2 | G10: =VLOOKUP($A10,'RECAP DIRCOM'!$G$6:$DC$12,8,FALSE) -> 54% | H10: =VLOOKUP($A10,'RECAP DIRCOM'!$G$6:$DC$12,9,FALSE) -> 17% | I10: =VLOOKUP($A10,'RECAP DIRCOM'!$G$6:$DC$12,10,FALSE) -> 3 | J10: =VLOOKUP($A10,'RECAP DIRCOM'!$G$6:$DC$12,11,FALSE) -> 17% | K10: =VLOOKUP($A10,'RECAP DIRCOM'!$G$6:$DC$12,12,FALSE) -> 17% | L10: =VLOOKUP($A10,'RECAP DIRCOM'!$G$6:$DC$12,13,FALSE) -> 3
A11: 262 | B11: Bas-Rhin | C11: =VLOOKUP($A11,'RECAP DIRCOM'!$G$6:$DC$12,3,FALSE) -> 254 | D11: =VLOOKUP($A11,'RECAP DIRCOM'!$G$6:$DC$12,5,FALSE) -> 9 | E11: =VLOOKUP($A11,'RECAP DIRCOM'!$G$6:$DC$12,6,FALSE) -> 53% | F11: =VLOOKUP($A11,'RECAP DIRCOM'!$G$6:$DC$12,7,FALSE) -> 6 | G11: =VLOOKUP($A11,'RECAP DIRCOM'!$G$6:$DC$12,8,FALSE) -> 47% | H11: =VLOOKUP($A11,'RECAP DIRCOM'!$G$6:$DC$12,9,FALSE) -> 28% | I11: =VLOOKUP($A11,'RECAP DIRCOM'!$G$6:$DC$12,10,FALSE) -> 6 | J11: =VLOOKUP($A11,'RECAP DIRCOM'!$G$6:$DC$12,11,FALSE) -> 41% | K11: =VLOOKUP($A11,'RECAP DIRCOM'!$G$6:$DC$12,12,FALSE) -> 41% | L11: =VLOOKUP($A11,'RECAP DIRCOM'!$G$6:$DC$12,13,FALSE) -> 6
A12: 264 | B12: Haut-Rhin | C12: =VLOOKUP($A12,'RECAP DIRCOM'!$G$6:$DC$12,3,FALSE) -> 155 | D12: =VLOOKUP($A12,'RECAP DIRCOM'!$G$6:$DC$12,5,FALSE) -> 5 | E12: =VLOOKUP($A12,'RECAP DIRCOM'!$G$6:$DC$12,6,FALSE) -> 74% | F12: =VLOOKUP($A12,'RECAP DIRCOM'!$G$6:$DC$12,7,FALSE) -> 7 | G12: =VLOOKUP($A12,'RECAP DIRCOM'!$G$6:$DC$12,8,FALSE) -> 33% | H12: =VLOOKUP($A12,'RECAP DIRCOM'!$G$6:$DC$12,9,FALSE) -> 50% | I12: =VLOOKUP($A12,'RECAP DIRCOM'!$G$6:$DC$12,10,FALSE) -> 7 | J12: =VLOOKUP($A12,'RECAP DIRCOM'!$G$6:$DC$12,11,FALSE) -> 62% | K12: =VLOOKUP($A12,'RECAP DIRCOM'!$G$6:$DC$12,12,FALSE) -> 62% | L12: =VLOOKUP($A12,'RECAP DIRCOM'!$G$6:$DC$12,13,FALSE) -> 7
A13: 30 | B13: Marne-Ardennes | C13: =VLOOKUP($A13,'RECAP DIRCOM'!$G$6:$DC$12,3,FALSE) -> 228 | D13: =VLOOKUP($A13,'RECAP DIRCOM'!$G$6:$DC$12,5,FALSE) -> 15 | E13: =VLOOKUP($A13,'RECAP DIRCOM'!$G$6:$DC$12,6,FALSE) -> 21% | F13: =VLOOKUP($A13,'RECAP DIRCOM'!$G$6:$DC$12,7,FALSE) -> 3 | G13: =VLOOKUP($A13,'RECAP DIRCOM'!$G$6:$DC$12,8,FALSE) -> 61% | H13: =VLOOKUP($A13,'RECAP DIRCOM'!$G$6:$DC$12,9,FALSE) -> 8% | I13: =VLOOKUP($A13,'RECAP DIRCOM'!$G$6:$DC$12,10,FALSE) -> 2 | J13: =VLOOKUP($A13,'RECAP DIRCOM'!$G$6:$DC$12,11,FALSE) -> 14% | K13: =VLOOKUP($A13,'RECAP DIRCOM'!$G$6:$DC$12,12,FALSE) -> 14% | L13: =VLOOKUP($A13,'RECAP DIRCOM'!$G$6:$DC$12,13,FALSE) -> 2
A14: 110 | B14: Meurthe et Moselle Meuse | C14: =VLOOKUP($A14,'RECAP DIRCOM'!$G$6:$DC$12,3,FALSE) -> 245 | D14: =VLOOKUP($A14,'RECAP DIRCOM'!$G$6:$DC$12,5,FALSE) -> 10 | E14: =VLOOKUP($A14,'RECAP DIRCOM'!$G$6:$DC$12,6,FALSE) -> 47% | F14: =VLOOKUP($A14,'RECAP DIRCOM'!$G$6:$DC$12,7,FALSE) -> 5 | G14: =VLOOKUP($A14,'RECAP DIRCOM'!$G$6:$DC$12,8,FALSE) -> 52% | H14: =VLOOKUP($A14,'RECAP DIRCOM'!$G$6:$DC$12,9,FALSE) -> 21% | I14: =VLOOKUP($A14,'RECAP DIRCOM'!$G$6:$DC$12,10,FALSE) -> 4 | J14: =VLOOKUP($A14,'RECAP DIRCOM'!$G$6:$DC$12,11,FALSE) -> 34% | K14: =VLOOKUP($A14,'RECAP DIRCOM'!$G$6:$DC$12,12,FALSE) -> 34% | L14: =VLOOKUP($A14,'RECAP DIRCOM'!$G$6:$DC$12,13,FALSE) -> 5
A15: 160 | B15: Moselle | C15: =VLOOKUP($A15,'RECAP DIRCOM'!$G$6:$DC$12,3,FALSE) -> 271 | D15: =VLOOKUP($A15,'RECAP DIRCOM'!$G$6:$DC$12,5,FALSE) -> 13 | E15: =VLOOKUP($A15,'RECAP DIRCOM'!$G$6:$DC$12,6,FALSE) -> 32% | F15: =VLOOKUP($A15,'RECAP DIRCOM'!$G$6:$DC$12,7,FALSE) -> 4 | G15: =VLOOKUP($A15,'RECAP DIRCOM'!$G$6:$DC$12,8,FALSE) -> 52% | H15: =VLOOKUP($A15,'RECAP DIRCOM'!$G$6:$DC$12,9,FALSE) -> 21% | I15: =VLOOKUP($A15,'RECAP DIRCOM'!$G$6:$DC$12,10,FALSE) -> 5 | J15: =VLOOKUP($A15,'RECAP DIRCOM'!$G$6:$DC$12,11,FALSE) -> 26% | K15: =VLOOKUP($A15,'RECAP DIRCOM'!$G$6:$DC$12,12,FALSE) -> 26% | L15: =VLOOKUP($A15,'RECAP DIRCOM'!$G$6:$DC$12,13,FALSE) -> 4
A16: 80 | B16: Vosges | C16: =VLOOKUP($A16,'RECAP DIRCOM'!$G$6:$DC$12,3,FALSE) -> 134 | D16: =VLOOKUP($A16,'RECAP DIRCOM'!$G$6:$DC$12,5,FALSE) -> 19 | E16: =VLOOKUP($A16,'RECAP DIRCOM'!$G$6:$DC$12,6,FALSE) -> 0% | F16: =VLOOKUP($A16,'RECAP DIRCOM'!$G$6:$DC$12,7,FALSE) -> 1 | G16: =VLOOKUP($A16,'RECAP DIRCOM'!$G$6:$DC$12,8,FALSE) -> 66% | H16: =VLOOKUP($A16,'RECAP DIRCOM'!$G$6:$DC$12,9,FALSE) -> 0% | I16: =VLOOKUP($A16,'RECAP DIRCOM'!$G$6:$DC$12,10,FALSE) -> 1 | J16: =VLOOKUP($A16,'RECAP DIRCOM'!$G$6:$DC$12,11,FALSE) -> 0% | K16: =VLOOKUP($A16,'RECAP DIRCOM'!$G$6:$DC$12,12,FALSE) -> 0% | L16: =VLOOKUP($A16,'RECAP DIRCOM'!$G$6:$DC$12,13,FALSE) -> 1
B17: Total CEGEE Directions Régionales | C17: =SUM(C10:C16) -> 1414

Sheet SE_FICHE
A1: Accueil
A2: BAROMETRE BDD
A4: UNITE: | B4: TERRITOIRE | E4: ETP perf : | F4: =VLOOKUP(A5,'RECAP SECT'!$G$6:$I$23,3,FALSE) -> 61.06
A5: =VLOOKUP(B5,LISTES!$H$6:$I$23,2,FALSE) -> 5130 | B5: COLMAR
C6: Coefficient du critére | E6: Résultats | I6: Ecart au 1ier | M6: Evolution | O6: Rang
E7: du 1ier | G7: du territoire | I7: Du mois | K7: Au 31/12/2019
A9: RANG au CLASSEMENT GENERAL | K9: =VLOOKUP($A$5,#REF!,168,FALSE) ->  | M9: =+K9-O9 ->  | O9: =VLOOKUP($A$5,'RECAP SECT'!$G$6:$DG$312,168,FALSE) ->  | S9: =VLOOKUP($A$5,#REF!,154,FALSE) ->  | U9: =+S9-O9 -> 
A11: CRITERE CONQUETE | C11: 15% | O11: =VLOOKUP($A$5,'RECAP SECT'!$G$6:$DG$312,23,FALSE) -> 13.16842116
B12: PNB Evolution nette Clients BP | C12: 4% | E12: ='RECAP SECT'!#REF! ->  | G12: =VLOOKUP($A$5,'RECAP SECT'!$G$6:$DG$312,6,FALSE) -> 0.6 | I12: =VLOOKUP($A$5,'RECAP SECT'!$G$6:$DG$312,7,FALSE) -> 1300% | K12: =VLOOKUP($A$5,#REF!,7,FALSE) ->  | M12: =+K12-I12 ->  | O12: =VLOOKUP($A$5,'RECAP SECT'!$G$6:$DG$312,8,FALSE) -> 0.4437827313 | S12: =VLOOKUP($A$5,#REF!,6,FALSE) ->  | U12: =+S12-I12 -> 
B13: PNB Evolution nette Clients PREMIUM | C13: 5% | E13: ='RECAP SECT'!#REF! ->  | G13: =VLOOKUP($A$5,'RECAP SECT'!$G$6:$DG$312,10,FALSE) -> 15.0 | I13: =VLOOKUP($A$5,'RECAP SECT'!$G$6:$DG$312,11,FALSE) -> 47% | K13: =VLOOKUP($A$5,#REF!,11,FALSE) ->  | M13: =+K13-I13 ->  | O13: =VLOOKUP($A$5,'RECAP SECT'!$G$6:$DG$312,12,FALSE) -> 0.4180436541 | S13: =VLOOKUP($A$5,#REF!,9,FALSE) ->  | U13: =+S13-I13 -> 
B14: PNB Evolution nette Clients Jeunes Equipés | C14: 3% | E14: ='RECAP SECT'!#REF! ->  | G14: =VLOOKUP($A$5,'RECAP SECT'!$G$6:$DG$312,14,FALSE) -> 0.0 | I14: =VLOOKUP($A$5,'RECAP SECT'!$G$6:$DG$312,15,FALSE) -> 0% | K14: =VLOOKUP($A$5,#REF!,15,FALSE) ->  | M14: =+K14-I14 ->  | O14: =VLOOKUP($A$5,'RECAP SECT'!$G$6:$DG$312,16,FALSE) -> 0 | S14: =VLOOKUP($A$5,#REF!,12,FALSE) ->  | U14: =+S14-I14 -> 
B15: PNB Evolution nette Clients Pro Actifs Equipés | C15: 3% | E15: ='RECAP SECT'!W4 -> 0.0 | G15: =VLOOKUP($A$5,'RECAP SECT'!$G$6:$DG$312,18,FALSE) -> 1055.6 | I15: =VLOOKUP($A$5,'RECAP SECT'!$G$6:$DG$312,19,FALSE) -> 1729% | K15: =VLOOKUP($A$5,#REF!,19,FALSE) ->  | M15: =+K15-I15 ->  | O15: =VLOOKUP($A$5,'RECAP SECT'!$G$6:$DG$312,20,FALSE) -> 0.5664730155 | S15: =VLOOKUP($A$5,#REF!,15,FALSE) ->  | U15: =+S15-I15 -> 
A17: CRITERE BANCARISATION | C17: 15% | O17: =VLOOKUP($A$5,'RECAP SECT'!$G$6:$DG$312,48,FALSE) -> 14
B18: PNB Ventes nettes forfaits | C18: 4% | E18: ='RECAP SECT'!X4 -> 39.9 | G18: =VLOOKUP($A$5,'RECAP SECT'!$G$6:$DG$312,31,FALSE) -> -0.7 | I18: =VLOOKUP($A$5,'RECAP SECT'!$G$6:$DG$312,32,FALSE) -> 18% | K18: =VLOOKUP($A$5,#REF!,32,FALSE) ->  | M18: =+K18-I18 ->  | O18: =VLOOKUP($A$5,'RECAP SECT'!$G$6:$DG$312,33,FALSE) -> 6 | S18: =VLOOKUP($A$5,#REF!,27,FALSE) ->  | U18: =+S18-I18 -> 
B19: PNB Ventes nettes IZICARTES Débit Différé | C19: 4% | E19: ='RECAP SECT'!AB4 -> 21.1 | G19: =VLOOKUP($A$5,'RECAP SECT'!$G$6:$DG$312,35,FALSE) -> 0.4 | I19: =VLOOKUP($A$5,'RECAP SECT'!$G$6:$DG$312,36,FALSE) -> 1600% | K19: =VLOOKUP($A$5,#REF!,36,FALSE) ->  | M19: =+K19-I19 ->  | O19: =VLOOKUP($A$5,'RECAP SECT'!$G$6:$DG$312,37,FALSE) -> 0 | S19: =VLOOKUP($A$5,#REF!,30,FALSE) ->  | U19: =+S19-I19 -> 
B20: PNB Ventes nettes cartes HDG Débit Différé | C20: 4% | E20: ='RECAP SECT'!AF4 -> 7.4 | G20: =VLOOKUP($A$5,'RECAP SECT'!$G$6:$DG$312,39,FALSE) -> 0.0 | I20: =VLOOKUP($A$5,'RECAP SECT'!$G$6:$DG$312,40,FALSE) -> 0% | K20: =VLOOKUP($A$5,#REF!,40,FALSE) ->  | M20: =+K20-I20 ->  | O20: =VLOOKUP($A$5,'RECAP SECT'!$G$6:$DG$312,41,FALSE) -> 9115.87341 | S20: =VLOOKUP($A$5,#REF!,33,FALSE) ->  | U20: =+S20-I20 -> 
B21: PNB Ventes nettes Forfaits Pro, Carte pro | C21: 3% | E21: ='RECAP SECT'!AJ4 -> -0.6 | G21: =VLOOKUP($A$5,'RECAP SECT'!$G$6:$DG$312,43,FALSE) -> 0.5 | I21: =VLOOKUP($A$5,'RECAP SECT'!$G$6:$DG$312,44,FALSE) -> 1500% | K21: =VLOOKUP($A$5,#REF!,44,FALSE) ->  | M21: =+K21-I21 ->  | O21: =VLOOKUP($A$5,'RECAP SECT'!$G$6:$DG$312,45,FALSE) -> 473 | S21: =VLOOKUP($A$5,#REF!,39,FALSE) ->  | U21: =+S21-I21 -> 
A23: CRITERE EPARGNE | C23: 10% | O23: =VLOOKUP($A$5,'RECAP SECT'!$G$6:$DG$312,69,FALSE) -> 0.5206204635
B24: PNB Epargne Liquide | C24: 3% | E24: ='RECAP SECT'!AU4 -> 331.1 | G24: =VLOOKUP($A$5,'RECAP SECT'!$G$6:$DG$312,56,FALSE) -> 1334.8 | I24: =VLOOKUP($A$5,'RECAP SECT'!$G$6:$DG$312,57,FALSE) -> 2186% | K24: =VLOOKUP($A$5,#REF!,57,FALSE) ->  | M24: =+K24-I24 ->  | O24: =VLOOKUP($A$5,'RECAP SECT'!$G$6:$DG$312,58,FALSE) -> 0.7859468571 | S24: =VLOOKUP($A$5,#REF!,51,FALSE) ->  | U24: =+S24-I24 -> 
B25: PNB CA UC + arbitrage | C25: 4% | E25: ='RECAP SECT'!AY4 -> 13.7 | G25: =VLOOKUP($A$5,'RECAP SECT'!$G$6:$DG$312,60,FALSE) -> 1063.7 | I25: =VLOOKUP($A$5,'RECAP SECT'!$G$6:$DG$312,61,FALSE) -> 1742% | K25: =VLOOKUP($A$5,#REF!,61,FALSE) ->  | M25: =+K25-I25 ->  | O25: =VLOOKUP($A$5,'RECAP SECT'!$G$6:$DG$312,62,FALSE) -> 0.3555168949 | S25: =VLOOKUP($A$5,#REF!,57,FALSE) ->  | U25: =+S25-I25 -> 
B26: PNB Excédent assurance vie | C26: 3% | E26: ='RECAP SECT'!#REF! ->  | G26: =VLOOKUP($A$5,'RECAP SECT'!$G$6:$DG$312,64,FALSE) -> 245.0 | I26: =VLOOKUP($A$5,'RECAP SECT'!$G$6:$DG$312,65,FALSE) -> 401% | K26: =VLOOKUP($A$5,#REF!,65,FALSE) ->  | M26: =+K26-I26 ->  | O26: =VLOOKUP($A$5,'RECAP SECT'!$G$6:$DG$312,66,FALSE) -> 0.5762102691 | S26: =VLOOKUP($A$5,#REF!,60,FALSE) ->  | U26: =+S26-I26 -> 
A28: CRITERE CREDITS | C28: 15% | O28: =VLOOKUP($A$5,'RECAP SECT'!$G$6:$DG$312,102,FALSE) -> 0.4054094128
B29: PNB crédit conso | C29: 4% | E29: ='RECAP SECT'!BJ4 -> 102.1 | G29: =VLOOKUP($A$5,'RECAP SECT'!$G$6:$DG$312,77,FALSE) -> 0.3 | I29: =VLOOKUP($A$5,'RECAP SECT'!$G$6:$DG$312,78,FALSE) -> 1300% | K29: =VLOOKUP($A$5,#REF!,78,FALSE) ->  | M29: =+K29-I29 ->  | O29: =VLOOKUP($A$5,'RECAP SECT'!$G$6:$DG$312,79,FALSE) -> 696 | S29: =VLOOKUP($A$5,#REF!,75,FALSE) ->  | U29: =+S29-I29 -> 
B30: PNB ADE crédit conso | C30: 1% | E30: ='RECAP SECT'!#REF! ->  | G30: =VLOOKUP($A$5,'RECAP SECT'!$G$6:$DG$312,81,FALSE) -> 0.4 | I30: =VLOOKUP($A$5,'RECAP SECT'!$G$6:$DG$312,82,FALSE) -> 1800% | K30: =VLOOKUP($A$5,#REF!,82,FALSE) ->  | O30: =VLOOKUP($A$5,'RECAP SECT'!$G$6:$DG$312,83,FALSE) -> 0.3365307177 | S30: =VLOOKUP($A$5,#REF!,78,FALSE) -> 
B31: PNB crédit immo | C31: 4% | E31: ='RECAP SECT'!BN4 -> 27.0 | G31: =VLOOKUP($A$5,'RECAP SECT'!$G$6:$DG$312,85,FALSE) -> 15.0 | I31: =VLOOKUP($A$5,'RECAP SECT'!$G$6:$DG$312,86,FALSE) -> 0% | K31: =VLOOKUP($A$5,#REF!,86,FALSE) ->  | O31: =VLOOKUP($A$5,'RECAP SECT'!$G$6:$DG$312,87,FALSE) -> 0 | S31: =VLOOKUP($A$5,#REF!,81,FALSE) -> 
B32: PNB ADE crédit immo | C32: 2% | E32: ='RECAP SECT'!#REF! ->  | G32: =VLOOKUP($A$5,'RECAP SECT'!$G$6:$DG$312,89,FALSE) -> 0.0 | I32: =VLOOKUP($A$5,'RECAP SECT'!$G$6:$DG$312,90,FALSE) -> 0% | K32: =VLOOKUP($A$5,#REF!,90,FALSE) ->  | O32: =VLOOKUP($A$5,'RECAP SECT'!$G$6:$DG$312,91,FALSE) -> 0 | S32: =VLOOKUP($A$5,#REF!,84,FALSE) -> 
B33: PNB SACCEF | C33: 2% | E33: ='RECAP SECT'!#REF! ->  | G33: =VLOOKUP($A$5,'RECAP SECT'!$G$6:$DG$312,93,FALSE) -> 0.0 | I33: =VLOOKUP($A$5,'RECAP SECT'!$G$6:$DG$312,94,FALSE) -> 0% | K33: =VLOOKUP($A$5,#REF!,94,FALSE) ->  | O33: =VLOOKUP($A$5,'RECAP SECT'!$G$6:$DG$312,95,FALSE) -> 0 | S33: =VLOOKUP($A$5,#REF!,87,FALSE) -> 
B34: PNB Crédit MLT + Crédit Bail | C34: 2% | E34: ='RECAP SECT'!BR4 -> 9.5 | G34: =VLOOKUP($A$5,'RECAP SECT'!$G$6:$DG$312,97,FALSE) -> 0.0 | I34: =VLOOKUP($A$5,'RECAP SECT'!$G$6:$DG$312,98,FALSE) -> 0% | K34: =VLOOKUP($A$5,#REF!,98,FALSE) ->  | O34: =VLOOKUP($A$5,'RECAP SECT'!$G$6:$DG$312,99,FALSE) -> 0 | S34: =VLOOKUP($A$5,#REF!,90,FALSE) -> 
A36: CRITERE IARD PREVOYANCE | C36: 15% | O36: =VLOOKUP($A$5,'RECAP SECT'!$G$6:$DG$312,119,FALSE) -> 
B37: PNB Ventes nettes IARD | C37: 9% | E37: ='RECAP SECT'!CC4 -> 106.6 | G37: =VLOOKUP($A$5,'RECAP SECT'!$G$6:$DG$312,110,FALSE) ->  | I37: =VLOOKUP($A$5,'RECAP SECT'!$G$6:$DG$312,111,FALSE) ->  | K37: =VLOOKUP($A$5,#REF!,111,FALSE) ->  | M37: =+K37-I37 ->  | O37: =VLOOKUP($A$5,'RECAP SECT'!$G$6:$DG$312,112,FALSE) ->  | S37: =VLOOKUP($A$5,#REF!,102,FALSE) ->  | U37: =+S37-I37 -> 
B38: PNB Ventes nettes Prévoyance | C38: 6% | E38: ='RECAP SECT'!CG4 -> 19.4 | G38: =VLOOKUP($A$5,'RECAP SECT'!$G$6:$DG$312,114,FALSE) ->  | I38: =VLOOKUP($A$5,'RECAP SECT'!$G$6:$DG$312,115,FALSE) ->  | K38: =VLOOKUP($A$5,#REF!,115,FALSE) ->  | M38: =+K38-I38 ->  | O38: =VLOOKUP($A$5,'RECAP SECT'!$G$6:$DG$312,116,FALSE) ->  | S38: =VLOOKUP($A$5,#REF!,105,FALSE) ->  | U38: =+S38-I38 -> 
A40: CRITERE ACCELERATEURS PNB | C40: 15% | O40: =VLOOKUP($A$5,'RECAP SECT'!$G$6:$DG$312,144,FALSE) -> 
B41: PNB Ventes brutes SED Finalisées | C41: 6% | E41: ='RECAP SECT'!#REF! ->  | G41: =VLOOKUP($A$5,'RECAP SECT'!$G$6:$DG$312,127,FALSE) ->  | I41: =VLOOKUP($A$5,'RECAP SECT'!$G$6:$DG$312,128,FALSE) ->  | K41: =VLOOKUP($A$5,#REF!,128,FALSE) ->  | M41: =+K41-I41 ->  | O41: =VLOOKUP($A$5,'RECAP SECT'!$G$6:$DG$312,129,FALSE) ->  | S41: =VLOOKUP($A$5,#REF!,120,FALSE) ->  | U41: =+S41-I41 -> 
B42: PNB clients équipés E documents | C42: 3% | E42: ='RECAP SECT'!#REF! ->  | G42: =VLOOKUP($A$5,'RECAP SECT'!$G$6:$DG$312,131,FALSE) ->  | I42: =VLOOKUP($A$5,'RECAP SECT'!$G$6:$DG$312,132,FALSE) ->  | K42: =VLOOKUP($A$5,#REF!,132,FALSE) ->  | M42: =+K42-I42 ->  | O42: =VLOOKUP($A$5,'RECAP SECT'!$G$6:$DG$312,133,FALSE) ->  | S42: =VLOOKUP($A$5,#REF!,123,FALSE) ->  | U42: =+S42-I42 -> 
B43: Economie opt'in | C43: 3% | E43: ='RECAP SECT'!#REF! ->  | G43: =VLOOKUP($A$5,'RECAP SECT'!$G$6:$DG$312,135,FALSE) ->  | I43: =VLOOKUP($A$5,'RECAP SECT'!$G$6:$DG$312,136,FALSE) ->  | K43: =VLOOKUP($A$5,#REF!,136,FALSE) ->  | M43: =+K43-I43 ->  | O43: =VLOOKUP($A$5,'RECAP SECT'!$G$6:$DG$312,137,FALSE) -> 
B44: Remises commerciales | C44: 3% | E44: ='RECAP SECT'!#REF! ->  | G44: =VLOOKUP($A$5,'RECAP SECT'!$G$6:$DG$312,139,FALSE) ->  | I44: =VLOOKUP($A$5,'RECAP SECT'!$G$6:$DG$312,140,FALSE) ->  | K44: =VLOOKUP($A$5,#REF!,140,FALSE) ->  | M44: =+K44-I44 ->  | O44: =VLOOKUP($A$5,'RECAP SECT'!$G$6:$DG$312,141,FALSE) ->  | S44: =VLOOKUP($A$5,#REF!,126,FALSE) ->  | U44: =+S44-I44 -> 
A46: CRITERE Satisfaction Clients | C46: 15% | O46: =VLOOKUP($A$5,'RECAP SECT'!$G$6:$DG$312,159,FALSE) -> 
B47: Objectifs NPS* | C47: 8% | E47: ='RECAP SECT'!K4 -> 22 | G47: =VLOOKUP($A$5,'RECAP SECT'!$G$6:$DG$312,151,FALSE) ->  | I47: =VLOOKUP($A$5,'RECAP SECT'!$G$6:$DG$312,152,FALSE) ->  | K47: =VLOOKUP($A$5,#REF!,152,FALSE) ->  | M47: =+K47-I47 ->  | O47: =VLOOKUP($A$5,'RECAP SECT'!$G$6:$DG$312,153,FALSE) ->  | S47: =VLOOKUP($A$5,#REF!,138,FALSE) ->  | U47: =+S47-I47 -> 
B48: Enquête Qualité Haute Définition | C48: 7% | E48: ='RECAP SECT'!N4 -> 68% | G48: =VLOOKUP($A$5,'RECAP SECT'!$G$6:$DG$312,154,FALSE) ->  | I48: =VLOOKUP($A$5,'RECAP SECT'!$G$6:$DG$312,155,FALSE) ->  | K48: =VLOOKUP($A$5,#REF!,155,FALSE) ->  | M48: =+K48-I48 ->  | O48: =VLOOKUP($A$5,'RECAP SECT'!$G$6:$DG$312,156,FALSE) ->  | S48: =VLOOKUP($A$5,#REF!,141,FALSE) ->  | U48: =+S48-I48 -> 

Sheet SE_TOTAL
B1: Accueil | F1: BAROMETRE BDD - TERRITOIRES
F2: TOTAL GENERAL
F3: =ACCUEIL!F7 -> 2021-04-11
F7: TOTAL GENERAL | I7: Total Satisfaction Clients | L7: Total Bancarisation | O7: Total Epargne | R7: Total IARD Prévoyance | U7: Total Crédits
G8: coef | H8: 100% | J8: coef | K8: =SE_SATISFACTION!N8 -> 20% | M8: coef | N8: =SE_BANCA!X8 -> 20% | P8: coef | Q8: =SE_EPARGNE!P8 -> 20% | S8: coef | T8: =SE_IARD!P8 -> 20% | V8: coef | W8: =SE_CREDIT!T8 -> 20%
B9: Direction | C9: eds | D9: Territoire | E9: ="ETP perf "&DATEMAJ!$C$28 -> ETP perf 28-févr | F9: Moyenne ecart au 1er | G9: % Ecart au 1er | H9: Rang CEGEE | I9: Moyenne ecart au 1er | J9: % Ecart au 1er | K9: Rang CEGEE | L9: Moyenne ecart au 1er | M9: % Ecart au 1er | N9: Rang CEGEE | O9: Moyenne ecart au 1er | P9: % Ecart au 1er | Q9: Rang CEGEE | R9: Moyenne ecart au 1er | S9: % Ecart au 1er | T9: Rang CEGEE | U9: Moyenne ecart au 1er | V9: % Ecart au 1er | W9: Rang CEGEE
A10: 50 | B10: MEURTHE ET MOSELLE MEUSE | C10: 26 | D10: NANCY | E10: 65.8 | F10: 8% | G10: 0% | H10: 1 | I10: 37% | J10: 32% | K10: 10 | L10: 14% | M10: 0% | N10: 1 | O10: 15% | P10: 6% | Q10: 4 | R10: 3% | S10: 0% | T10: 1 | U10: 7% | V10: 0% | W10: 1
A11: 50 | B11: MARNE-ARDENNES | C11: 2 | D11: CHARLEVILLE MEZIERES | E11: 55.4 | F11: 14% | G11: 7% | H11: 2 | I11: 5% | J11: 0% | K11: 1 | L11: 41% | M11: 27% | N11: 12 | O11: 25% | P11: 16% | Q11: 6 | R11: 14% | S11: 10% | T11: 5 | U11: 25% | V11: 17% | W11: 3
A12: 262 | B12: MEURTHE ET MOSELLE MEUSE | C12: 27 | D12: PONT A MOUSSON | E12: 77.0 | F12: 16% | G12: 9% | H12: 3 | I12: 51% | J12: 46% | K12: 16 | L12: 21% | M12: 7% | N12: 3 | O12: 22% | P12: 13% | Q12: 5 | R12: 16% | S12: 12% | T12: 7 | U12: 12% | V12: 4% | W12: 2
A13: 262 | B13: BAS-RHIN | C13: 5006 | D13: STRASBOURG | E13: 75.4 | F13: 18% | G13: 10% | H13: 4 | I13: 49% | J13: 44% | K13: 15 | L13: 21% | M13: 6% | N13: 2 | O13: 9% | P13: 0% | Q13: 1 | R13: 13% | S13: 9% | T13: 4 | U13: 38% | V13: 30% | W13: 9
A14: 262 | B14: VOSGES | C14: 55 | D14: SAINT DIE | E14: 48.3 | F14: 20% | G14: 12% | H14: 5 | I14: 9% | J14: 4% | K14: 4 | L14: 48% | M14: 34% | N14: 15 | O14: 15% | P14: 6% | Q14: 3 | R14: 21% | S14: 18% | T14: 10 | U14: 46% | V14: 39% | W14: 13
A15: 264 | B15: VOSGES | C15: 57 | D15: EPINAL | E15: 60.9 | F15: 20% | G15: 13% | H15: 6 | I15: 7% | J15: 2% | K15: 2 | L15: 51% | M15: 37% | N15: 17 | O15: 31% | P15: 22% | Q15: 9 | R15: 9% | S15: 5% | T15: 2 | U15: 42% | V15: 35% | W15: 11
A16: 264 | B16: MARNE-ARDENNES | C16: 11 | D16: REIMS | E16: 81.6 | F16: 22% | G16: 15% | H16: 7 | I16: 40% | J16: 35% | K16: 12 | L16: 38% | M16: 23% | N16: 10 | O16: 28% | P16: 19% | Q16: 8 | R16: 19% | S16: 16% | T16: 9 | U16: 25% | V16: 18% | W16: 4
A17: 30 | B17: BAS-RHIN | C17: 5101 | D17: SELESTAT | E17: 60.3 | F17: 22% | G17: 15% | H17: 8 | I17: 52% | J17: 47% | K17: 17 | L17: 23% | M17: 8% | N17: 4 | O17: 10% | P17: 1% | Q17: 2 | R17: 18% | S17: 15% | T17: 8 | U17: 48% | V17: 41% | W17: 15
A18: 30 | B18: MOSELLE | C18: 42 | D18: MOSELLE EST | E18: 69.0 | F18: 23% | G18: 16% | H18: 9 | I18: 17% | J18: 12% | K18: 5 | L18: 35% | M18: 20% | N18: 6 | O18: 32% | P18: 23% | Q18: 10 | R18: 24% | S18: 20% | T18: 11 | U18: 47% | V18: 40% | W18: 14
A19: 30 | B19: MEURTHE ET MOSELLE MEUSE | C19: 31 | D19: VERDUN | E19: 56.3 | F19: 23% | G19: 16% | H19: 10 | I19: 23% | J19: 18% | K19: 7 | L19: 30% | M19: 16% | N19: 5 | O19: 43% | P19: 34% | Q19: 13 | R19: 28% | S19: 25% | T19: 13 | U19: 30% | V19: 23% | W19: 5
A20: 110 | B20: MARNE-ARDENNES | C20: 6 | D20: CHALONS EN CHAMPAGNE | E20: 44.2 | F20: 24% | G20: 17% | H20: 11 | I20: 9% | J20: 4% | K20: 3 | L20: 38% | M20: 24% | N20: 11 | O20: 48% | P20: 39% | Q20: 15 | R20: 32% | S20: 29% | T20: 14 | U20: 34% | V20: 27% | W20: 6
A21: 110 | B21: AUBE HAUTE MARNE | C21: 21 | D21: CHAUMONT | E21: 33.9 | F21: 25% | G21: 17% | H21: 12 | I21: 24% | J21: 19% | K21: 8 | L21: 46% | M21: 31% | N21: 14 | O21: 46% | P21: 37% | Q21: 14 | R21: 12% | S21: 8% | T21: 3 | U21: 35% | V21: 28% | W21: 7
A22: 110 | B22: MOSELLE | C22: 44 | D22: MOSELLE NORD | E22: 68.4 | F22: 25% | G22: 17% | H22: 13 | I22: 43% | J22: 37% | K22: 13 | L22: 35% | M22: 21% | N22: 8 | O22: 35% | P22: 26% | Q22: 11 | R22: 15% | S22: 12% | T22: 6 | U22: 36% | V22: 29% | W22: 8
A23: 160 | B23: MOSELLE | C23: 45 | D23: METZ | E23: 90.9 | F23: 28% | G23: 20% | H23: 14 | I23: 38% | J23: 33% | K23: 11 | L23: 36% | M23: 22% | N23: 9 | O23: 35% | P23: 27% | Q23: 12 | R23: 28% | S23: 25% | T23: 12 | U23: 42% | V23: 35% | W23: 10
A24: 160 | B24: BAS-RHIN | C24: 5060 | D24: HAGUENAU | E24: 71.0 | F24: 28% | G24: 21% | H24: 15 | I24: 36% | J24: 31% | K24: 9 | L24: 35% | M24: 20% | N24: 7 | O24: 26% | P24: 17% | Q24: 7 | R24: 35% | S24: 32% | T24: 16 | U24: 48% | V24: 41% | W24: 16
A25: 160 | B25: AUBE HAUTE MARNE | C25: 14 | D25: TROYES | E25: 66.8 | F25: 33% | G25: 26% | H25: 16 | I25: 23% | J25: 17% | K25: 6 | L25: 44% | M25: 29% | N25: 13 | O25: 52% | P25: 43% | Q25: 17 | R25: 43% | S25: 40% | T25: 17 | U25: 44% | V25: 36% | W25: 12
A26: 80 | B26: HAUT-RHIN | C26: 5130 | D26: COLMAR | E26: 61.1 | F26: 41% | G26: 33% | H26: 17 | I26: 47% | J26: 42% | K26: 14 | L26: 51% | M26: 36% | N26: 16 | O26: 51% | P26: 42% | Q26: 16 | R26: 34% | S26: 30% | T26: 15 | U26: 59% | V26: 52% | W26: 18
A27: 80 | B27: HAUT-RHIN | C27: 5169 | D27: MULHOUSE | E27: 59.9 | F27: 55% | G27: 47% | H27: 18 | I27: 82% | J27: 77% | K27: 18 | L27: 70% | M27: 55% | N27: 18 | O27: 56% | P27: 47% | Q27: 18 | R27: 54% | S27: 51% | T27: 18 | U27: 52% | V27: 45% | W27: 17
A28: Total CEGEE Directions Régionales | E28: =SUM(E10:E27) -> 1146

Sheet SE_BANCA
B1: Accueil | F1: BAROMETRE BDD - TERRITOIRES
F2: BANCARISATION
F3: =ACCUEIL!F7 -> 2021-04-11
F7: Ventes Nettes produits pondérés | J7: Ventes sur client non détenteur de l’univers | N7: Mobilité Macron | R7: Remises commerciales | V7: Total Bancarisation
F8: =DATEMAJ!C8 -> au 11/04 | H8: coef | I8: ='RECAP DIRCOM'!AA4 -> 10% | J8: =DATEMAJ!C9 -> au 11/04 | L8: coef | M8: ='RECAP DIRCOM'!AE4 -> 4% | N8: =DATEMAJ!C10 -> au 11/04 | P8: coef | Q8: ='RECAP DIRCOM'!AI4 -> 3% | R8: =DATEMAJ!C11 -> au 28/02 | T8: coef | U8: ='RECAP DIRCOM'!AM4 -> 3% | W8: coef | X8: ='RECAP DIRCOM'!AP4 -> 20%
B9: Direction | C9: eds | D9: Territoire | E9: ="ETP perf "&DATEMAJ!$C$28 -> ETP perf 28-févr | F9: VN | G9: VN / ETP | H9: % Ecart au 1er | I9: Rang | J9: VB | K9: VB / ETP | L9: % Ecart au 1er | M9: Rang | N9: Nb | O9: Nb / ETP | P9: % Ecart au 1er | Q9: Rang | R9: Montant | S9: Montant / ETP | T9: % Ecart au 1er | U9: Rang | V9: Moyenne ecart au 1er | W9: % Ecart au 1er | X9: Rang CEGEE
A10: 50 | B10: AUBE HAUTE MARNE | C10: 21 | D10: CHAUMONT | E10: =VLOOKUP($C10,'RECAP SECT'!$G$6:$DC$253,3,FALSE) -> 33.9 | F10: =VLOOKUP($C10,'RECAP SECT'!$G$6:$DC$253,18,FALSE) -> 592 | G10: =VLOOKUP($C10,'RECAP SECT'!$G$6:$DC$253,19,FALSE) -> 17.49 | H10: =VLOOKUP($C10,'RECAP SECT'!$G$6:$DC$253,20,FALSE) -> 56% | I10: =VLOOKUP($C10,'RECAP SECT'!$G$6:$DC$253,21,FALSE) -> 15 | J10: =VLOOKUP($C10,'RECAP SECT'!$G$6:$DC$253,22,FALSE) -> 542 | K10: =VLOOKUP($C10,'RECAP SECT'!$G$6:$DC$253,23,FALSE) -> 16.00 | L10: =VLOOKUP($C10,'RECAP SECT'!$G$6:$DC$253,24,FALSE) -> 24% | M10: =VLOOKUP($C10,'RECAP SECT'!$G$6:$DC$253,25,FALSE) -> 8 | N10: =VLOOKUP($C10,'RECAP SECT'!$G$6:$DC$253,26,FALSE) -> 81 | O10: =VLOOKUP($C10,'RECAP SECT'!$G$6:$DC$253,27,FALSE) -> 2.39 | P10: =VLOOKUP($C10,'RECAP SECT'!$G$6:$DC$253,28,FALSE) -> 68% | Q10: =VLOOKUP($C10,'RECAP SECT'!$G$6:$DC$253,29,FALSE) -> 11 | R10: =VLOOKUP($C10,'RECAP SECT'!$G$6:$DC$253,30,FALSE) -> -24.0 | S10: =VLOOKUP($C10,'RECAP SECT'!$G$6:$DC$253,31,FALSE) -> -0.71 | T10: =VLOOKUP($C10,'RECAP SECT'!$G$6:$DC$253,32,FALSE) -> 18% | U10: =VLOOKUP($C10,'RECAP SECT'!$G$6:$DC$253,33,FALSE) -> 7 | V10: =VLOOKUP($C10,'RECAP SECT'!$G$6:$DC$253,34,FALSE) -> 46% | W10: =VLOOKUP($C10,'RECAP SECT'!$G$6:$DC$253,35,FALSE) -> 31% | X10: =VLOOKUP($C10,'RECAP SECT'!$G$6:$DC$253,36,FALSE) -> 14
A11: 50 | B11: AUBE HAUTE MARNE | C11: 14 | D11: TROYES | E11: =VLOOKUP($C11,'RECAP SECT'!$G$6:$DC$253,3,FALSE) -> 66.8 | F11: =VLOOKUP($C11,'RECAP SECT'!$G$6:$DC$253,18,FALSE) -> 1,301 | G11: =VLOOKUP($C11,'RECAP SECT'!$G$6:$DC$253,19,FALSE) -> 19.47 | H11: =VLOOKUP($C11,'RECAP SECT'!$G$6:$DC$253,20,FALSE) -> 51% | I11: =VLOOKUP($C11,'RECAP SECT'!$G$6:$DC$253,21,FALSE) -> 12 | J11: =VLOOKUP($C11,'RECAP SECT'!$G$6:$DC$253,22,FALSE) -> 1,002 | K11: =VLOOKUP($C11,'RECAP SECT'!$G$6:$DC$253,23,FALSE) -> 14.99 | L11: =VLOOKUP($C11,'RECAP SECT'!$G$6:$DC$253,24,FALSE) -> 29% | M11: =VLOOKUP($C11,'RECAP SECT'!$G$6:$DC$253,25,FALSE) -> 10 | N11: =VLOOKUP($C11,'RECAP SECT'!$G$6:$DC$253,26,FALSE) -> 152 | O11: =VLOOKUP($C11,'RECAP SECT'!$G$6:$DC$253,27,FALSE) -> 2.27 | P11: =VLOOKUP($C11,'RECAP SECT'!$G$6:$DC$253,28,FALSE) -> 69% | Q11: =VLOOKUP($C11,'RECAP SECT'!$G$6:$DC$253,29,FALSE) -> 13 | R11: =VLOOKUP($C11,'RECAP SECT'!$G$6:$DC$253,30,FALSE) -> -44.8 | S11: =VLOOKUP($C11,'RECAP SECT'!$G$6:$DC$253,31,FALSE) -> -0.67 | T11: =VLOOKUP($C11,'RECAP SECT'!$G$6:$DC$253,32,FALSE) -> 12% | U11: =VLOOKUP($C11,'RECAP SECT'!$G$6:$DC$253,33,FALSE) -> 4 | V11: =VLOOKUP($C11,'RECAP SECT'!$G$6:$DC$253,34,FALSE) -> 44% | W11: =VLOOKUP($C11,'RECAP SECT'!$G$6:$DC$253,35,FALSE) -> 29% | X11: =VLOOKUP($C11,'RECAP SECT'!$G$6:$DC$253,36,FALSE) -> 13
A12: 262 | B12: BAS-RHIN | C12: 5060 | D12: HAGUENAU | E12: =VLOOKUP($C12,'RECAP SECT'!$G$6:$DC$253,3,FALSE) -> 71.0 | F12: =VLOOKUP($C12,'RECAP SECT'!$G$6:$DC$253,18,FALSE) -> 2,259 | G12: =VLOOKUP($C12,'RECAP SECT'!$G$6:$DC$253,19,FALSE) -> 31.83 | H12: =VLOOKUP($C12,'RECAP SECT'!$G$6:$DC$253,20,FALSE) -> 20% | I12: =VLOOKUP($C12,'RECAP SECT'!$G$6:$DC$253,21,FALSE) -> 5 | J12: =VLOOKUP($C12,'RECAP SECT'!$G$6:$DC$253,22,FALSE) -> 933 | K12: =VLOOKUP($C12,'RECAP SECT'!$G$6:$DC$253,23,FALSE) -> 13.14 | L12: =VLOOKUP($C12,'RECAP SECT'!$G$6:$DC$253,24,FALSE) -> 38% | M12: =VLOOKUP($C12,'RECAP SECT'!$G$6:$DC$253,25,FALSE) -> 17 | N12: =VLOOKUP($C12,'RECAP SECT'!$G$6:$DC$253,26,FALSE) -> 136 | O12: =VLOOKUP($C12,'RECAP SECT'!$G$6:$DC$253,27,FALSE) -> 1.92 | P12: =VLOOKUP($C12,'RECAP SECT'!$G$6:$DC$253,28,FALSE) -> 74% | Q12: =VLOOKUP($C12,'RECAP SECT'!$G$6:$DC$253,29,FALSE) -> 15 | R12: =VLOOKUP($C12,'RECAP SECT'!$G$6:$DC$253,30,FALSE) -> -59.7 | S12: =VLOOKUP($C12,'RECAP SECT'!$G$6:$DC$253,31,FALSE) -> -0.84 | T12: =VLOOKUP($C12,'RECAP SECT'!$G$6:$DC$253,32,FALSE) -> 41% | U12: =VLOOKUP($C12,'RECAP SECT'!$G$6:$DC$253,33,FALSE) -> 13 | V12: =VLOOKUP($C12,'RECAP SECT'!$G$6:$DC$253,34,FALSE) -> 35% | W12: =VLOOKUP($C12,'RECAP SECT'!$G$6:$DC$253,35,FALSE) -> 20% | X12: =VLOOKUP($C12,'RECAP SECT'!$G$6:$DC$253,36,FALSE) -> 7
A13: 262 | B13: BAS-RHIN | C13: 5101 | D13: SELESTAT | E13: =VLOOKUP($C13,'RECAP SECT'!$G$6:$DC$253,3,FALSE) -> 60.3 | F13: =VLOOKUP($C13,'RECAP SECT'!$G$6:$DC$253,18,FALSE) -> 2,404 | G13: =VLOOKUP($C13,'RECAP SECT'!$G$6:$DC$253,19,FALSE) -> 39.88 | H13: =VLOOKUP($C13,'RECAP SECT'!$G$6:$DC$253,20,FALSE) -> 0% | I13: =VLOOKUP($C13,'RECAP SECT'!$G$6:$DC$253,21,FALSE) -> 1 | J13: =VLOOKUP($C13,'RECAP SECT'!$G$6:$DC$253,22,FALSE) -> 871 | K13: =VLOOKUP($C13,'RECAP SECT'!$G$6:$DC$253,23,FALSE) -> 14.45 | L13: =VLOOKUP($C13,'RECAP SECT'!$G$6:$DC$253,24,FALSE) -> 31% | M13: =VLOOKUP($C13,'RECAP SECT'!$G$6:$DC$253,25,FALSE) -> 14 | N13: =VLOOKUP($C13,'RECAP SECT'!$G$6:$DC$253,26,FALSE) -> 145 | O13: =VLOOKUP($C13,'RECAP SECT'!$G$6:$DC$253,27,FALSE) -> 2.41 | P13: =VLOOKUP($C13,'RECAP SECT'!$G$6:$DC$253,28,FALSE) -> 68% | Q13: =VLOOKUP($C13,'RECAP SECT'!$G$6:$DC$253,29,FALSE) -> 9 | R13: =VLOOKUP($C13,'RECAP SECT'!$G$6:$DC$253,30,FALSE) -> -51.7 | S13: =VLOOKUP($C13,'RECAP SECT'!$G$6:$DC$253,31,FALSE) -> -0.86 | T13: =VLOOKUP($C13,'RECAP SECT'!$G$6:$DC$253,32,FALSE) -> 43% | U13: =VLOOKUP($C13,'RECAP SECT'!$G$6:$DC$253,33,FALSE) -> 14 | V13: =VLOOKUP($C13,'RECAP SECT'!$G$6:$DC$253,34,FALSE) -> 23% | W13: =VLOOKUP($C13,'RECAP SECT'!$G$6:$DC$253,35,FALSE) -> 8% | X13: =VLOOKUP($C13,'RECAP SECT'!$G$6:$DC$253,36,FALSE) -> 4
A14: 262 | B14: BAS-RHIN | C14: 5006 | D14: STRASBOURG | E14: =VLOOKUP($C14,'RECAP SECT'!$G$6:$DC$253,3,FALSE) -> 75.4 | F14: =VLOOKUP($C14,'RECAP SECT'!$G$6:$DC$253,18,FALSE) -> 2,790 | G14: =VLOOKUP($C14,'RECAP SECT'!$G$6:$DC$253,19,FALSE) -> 37.00 | H14: =VLOOKUP($C14,'RECAP SECT'!$G$6:$DC$253,20,FALSE) -> 7% | I14: =VLOOKUP($C14,'RECAP SECT'!$G$6:$DC$253,21,FALSE) -> 2 | J14: =VLOOKUP($C14,'RECAP SECT'!$G$6:$DC$253,22,FALSE) -> 1,505 | K14: =VLOOKUP($C14,'RECAP SECT'!$G$6:$DC$253,23,FALSE) -> 19.96 | L14: =VLOOKUP($C14,'RECAP SECT'!$G$6:$DC$253,24,FALSE) -> 5% | M14: =VLOOKUP($C14,'RECAP SECT'!$G$6:$DC$253,25,FALSE) -> 2 | N14: =VLOOKUP($C14,'RECAP SECT'!$G$6:$DC$253,26,FALSE) -> 309 | O14: =VLOOKUP($C14,'RECAP SECT'!$G$6:$DC$253,27,FALSE) -> 4.10 | P14: =VLOOKUP($C14,'RECAP SECT'!$G$6:$DC$253,28,FALSE) -> 45% | Q14: =VLOOKUP($C14,'RECAP SECT'!$G$6:$DC$253,29,FALSE) -> 6 | R14: =VLOOKUP($C14,'RECAP SECT'!$G$6:$DC$253,30,FALSE) -> -73.5 | S14: =VLOOKUP($C14,'RECAP SECT'!$G$6:$DC$253,31,FALSE) -> -0.97 | T14: =VLOOKUP($C14,'RECAP SECT'!$G$6:$DC$253,32,FALSE) -> 63% | U14: =VLOOKUP($C14,'RECAP SECT'!$G$6:$DC$253,33,FALSE) -> 18 | V14: =VLOOKUP($C14,'RECAP SECT'!$G$6:$DC$253,34,FALSE) -> 21% | W14: =VLOOKUP($C14,'RECAP SECT'!$G$6:$DC$253,35,FALSE) -> 6% | X14: =VLOOKUP($C14,'RECAP SECT'!$G$6:$DC$253,36,FALSE) -> 2
A15: 264 | B15: HAUT-RHIN | C15: 5130 | D15: COLMAR | E15: =VLOOKUP($C15,'RECAP SECT'!$G$6:$DC$253,3,FALSE) -> 61.1 | F15: =VLOOKUP($C15,'RECAP SECT'!$G$6:$DC$253,18,FALSE) -> 1,056 | G15: =VLOOKUP($C15,'RECAP SECT'!$G$6:$DC$253,19,FALSE) -> 17.29 | H15: =VLOOKUP($C15,'RECAP SECT'!$G$6:$DC$253,20,FALSE) -> 57% | I15: =VLOOKUP($C15,'RECAP SECT'!$G$6:$DC$253,21,FALSE) -> 16 | J15: =VLOOKUP($C15,'RECAP SECT'!$G$6:$DC$253,22,FALSE) -> 804 | K15: =VLOOKUP($C15,'RECAP SECT'!$G$6:$DC$253,23,FALSE) -> 13.17 | L15: =VLOOKUP($C15,'RECAP SECT'!$G$6:$DC$253,24,FALSE) -> 38% | M15: =VLOOKUP($C15,'RECAP SECT'!$G$6:$DC$253,25,FALSE) -> 16 | N15: =VLOOKUP($C15,'RECAP SECT'!$G$6:$DC$253,26,FALSE) -> 87 | O15: =VLOOKUP($C15,'RECAP SECT'!$G$6:$DC$253,27,FALSE) -> 1.42 | P15: =VLOOKUP($C15,'RECAP SECT'!$G$6:$DC$253,28,FALSE) -> 81% | Q15: =VLOOKUP($C15,'RECAP SECT'!$G$6:$DC$253,29,FALSE) -> 17 | R15: =VLOOKUP($C15,'RECAP SECT'!$G$6:$DC$253,30,FALSE) -> -43.0 | S15: =VLOOKUP($C15,'RECAP SECT'!$G$6:$DC$253,31,FALSE) -> -0.70 | T15: =VLOOKUP($C15,'RECAP SECT'!$G$6:$DC$253,32,FALSE) -> 18% | U15: =VLOOKUP($C15,'RECAP SECT'!$G$6:$DC$253,33,FALSE) -> 6 | V15: =VLOOKUP($C15,'RECAP SECT'!$G$6:$DC$253,34,FALSE) -> 51% | W15: =VLOOKUP($C15,'RECAP SECT'!$G$6:$DC$253,35,FALSE) -> 36% | X15: =VLOOKUP($C15,'RECAP SECT'!$G$6:$DC$253,36,FALSE) -> 16
A16: 264 | B16: HAUT-RHIN | C16: 5169 | D16: MULHOUSE | E16: =VLOOKUP($C16,'RECAP SECT'!$G$6:$DC$253,3,FALSE) -> 59.9 | F16: =VLOOKUP($C16,'RECAP SECT'!$G$6:$DC$253,18,FALSE) -> 386 | G16: =VLOOKUP($C16,'RECAP SECT'!$G$6:$DC$253,19,FALSE) -> 6.44 | H16: =VLOOKUP($C16,'RECAP SECT'!$G$6:$DC$253,20,FALSE) -> 84% | I16: =VLOOKUP($C16,'RECAP SECT'!$G$6:$DC$253,21,FALSE) -> 18 | J16: =VLOOKUP($C16,'RECAP SECT'!$G$6:$DC$253,22,FALSE) -> 770 | K16: =VLOOKUP($C16,'RECAP SECT'!$G$6:$DC$253,23,FALSE) -> 12.85 | L16: =VLOOKUP($C16,'RECAP SECT'!$G$6:$DC$253,24,FALSE) -> 39% | M16: =VLOOKUP($C16,'RECAP SECT'!$G$6:$DC$253,25,FALSE) -> 18 | N16: =VLOOKUP($C16,'RECAP SECT'!$G$6:$DC$253,26,FALSE) -> 76 | O16: =VLOOKUP($C16,'RECAP SECT'!$G$6:$DC$253,27,FALSE) -> 1.27 | P16: =VLOOKUP($C16,'RECAP SECT'!$G$6:$DC$253,28,FALSE) -> 83% | Q16: =VLOOKUP($C16,'RECAP SECT'!$G$6:$DC$253,29,FALSE) -> 18 | R16: =VLOOKUP($C16,'RECAP SECT'!$G$6:$DC$253,30,FALSE) -> -53.7 | S16: =VLOOKUP($C16,'RECAP SECT'!$G$6:$DC$253,31,FALSE) -> -0.90 | T16: =VLOOKUP($C16,'RECAP SECT'!$G$6:$DC$253,32,FALSE) -> 50% | U16: =VLOOKUP($C16,'RECAP SECT'!$G$6:$DC$253,33,FALSE) -> 15 | V16: =VLOOKUP($C16,'RECAP SECT'!$G$6:$DC$253,34,FALSE) -> 70% | W16: =VLOOKUP($C16,'RECAP SECT'!$G$6:$DC$253,35,FALSE) -> 55% | X16: =VLOOKUP($C16,'RECAP SECT'!$G$6:$DC$253,36,FALSE) -> 18
A17: 30 | B17: MARNE-ARDENNES | C17: 6 | D17: CHALONS EN CHAMPAGNE | E17: =VLOOKUP($C17,'RECAP SECT'!$G$6:$DC$253,3,FALSE) -> 44.2 | F17: =VLOOKUP($C17,'RECAP SECT'!$G$6:$DC$253,18,FALSE) -> 861 | G17: =VLOOKUP($C17,'RECAP SECT'!$G$6:$DC$253,19,FALSE) -> 19.48 | H17: =VLOOKUP($C17,'RECAP SECT'!$G$6:$DC$253,20,FALSE) -> 51% | I17: =VLOOKUP($C17,'RECAP SECT'!$G$6:$DC$253,21,FALSE) -> 11 | J17: =VLOOKUP($C17,'RECAP SECT'!$G$6:$DC$253,22,FALSE) -> 713 | K17: =VLOOKUP($C17,'RECAP SECT'!$G$6:$DC$253,23,FALSE) -> 16.13 | L17: =VLOOKUP($C17,'RECAP SECT'!$G$6:$DC$253,24,FALSE) -> 23% | M17: =VLOOKUP($C17,'RECAP SECT'!$G$6:$DC$253,25,FALSE) -> 6 | N17: =VLOOKUP($C17,'RECAP SECT'!$G$6:$DC$253,26,FALSE) -> 227 | O17: =VLOOKUP($C17,'RECAP SECT'!$G$6:$DC$253,27,FALSE) -> 5.14 | P17: =VLOOKUP($C17,'RECAP SECT'!$G$6:$DC$253,28,FALSE) -> 31% | Q17: =VLOOKUP($C17,'RECAP SECT'!$G$6:$DC$253,29,FALSE) -> 3 | R17: =VLOOKUP($C17,'RECAP SECT'!$G$6:$DC$253,30,FALSE) -> -32.0 | S17: =VLOOKUP($C17,'RECAP SECT'!$G$6:$DC$253,31,FALSE) -> -0.72 | T17: =VLOOKUP($C17,'RECAP SECT'!$G$6:$DC$253,32,FALSE) -> 21% | U17: =VLOOKUP($C17,'RECAP SECT'!$G$6:$DC$253,33,FALSE) -> 8 | V17: =VLOOKUP($C17,'RECAP SECT'!$G$6:$DC$253,34,FALSE) -> 38% | W17: =VLOOKUP($C17,'RECAP SECT'!$G$6:$DC$253,35,FALSE) -> 24% | X17: =VLOOKUP($C17,'RECAP SECT'!$G$6:$DC$253,36,FALSE) -> 11
A18: 30 | B18: MARNE-ARDENNES | C18: 2 | D18: CHARLEVILLE MEZIERES | E18: =VLOOKUP($C18,'RECAP SECT'!$G$6:$DC$253,3,FALSE) -> 55.4 | F18: =VLOOKUP($C18,'RECAP SECT'!$G$6:$DC$253,18,FALSE) -> 845 | G18: =VLOOKUP($C18,'RECAP SECT'!$G$6:$DC$253,19,FALSE) -> 15.25 | H18: =VLOOKUP($C18,'RECAP SECT'!$G$6:$DC$253,20,FALSE) -> 62% | I18: =VLOOKUP($C18,'RECAP SECT'!$G$6:$DC$253,21,FALSE) -> 17 | J18: =VLOOKUP($C18,'RECAP SECT'!$G$6:$DC$253,22,FALSE) -> 979 | K18: =VLOOKUP($C18,'RECAP SECT'!$G$6:$DC$253,23,FALSE) -> 17.68 | L18: =VLOOKUP($C18,'RECAP SECT'!$G$6:$DC$253,24,FALSE) -> 16% | M18: =VLOOKUP($C18,'RECAP SECT'!$G$6:$DC$253,25,FALSE) -> 5 | N18: =VLOOKUP($C18,'RECAP SECT'!$G$6:$DC$253,26,FALSE) -> 245 | O18: =VLOOKUP($C18,'RECAP SECT'!$G$6:$DC$253,27,FALSE) -> 4.42 | P18: =VLOOKUP($C18,'RECAP SECT'!$G$6:$DC$253,28,FALSE) -> 40% | Q18: =VLOOKUP($C18,'RECAP SECT'!$G$6:$DC$253,29,FALSE) -> 5 | R18: =VLOOKUP($C18,'RECAP SECT'!$G$6:$DC$253,30,FALSE) -> -35.4 | S18: =VLOOKUP($C18,'RECAP SECT'!$G$6:$DC$253,31,FALSE) -> -0.64 | T18: =VLOOKUP($C18,'RECAP SECT'!$G$6:$DC$253,32,FALSE) -> 7% | U18: =VLOOKUP($C18,'RECAP SECT'!$G$6:$DC$253,33,FALSE) -> 3 | V18: =VLOOKUP($C18,'RECAP SECT'!$G$6:$DC$253,34,FALSE) -> 41% | W18: =VLOOKUP($C18,'RECAP SECT'!$G$6:$DC$253,35,FALSE) -> 27% | X18: =VLOOKUP($C18,'RECAP SECT'!$G$6:$DC$253,36,FALSE) -> 12
A19: 30 | B19: MARNE-ARDENNES | C19: 11 | D19: REIMS | E19: =VLOOKUP($C19,'RECAP SECT'!$G$6:$DC$253,3,FALSE) -> 81.6 | F19: =VLOOKUP($C19,'RECAP SECT'!$G$6:$DC$253,18,FALSE) -> 1,801 | G19: =VLOOKUP($C19,'RECAP SECT'!$G$6:$DC$253,19,FALSE) -> 22.06 | H19: =VLOOKUP($C19,'RECAP SECT'!$G$6:$DC$253,20,FALSE) -> 45% | I19: =VLOOKUP($C19,'RECAP SECT'!$G$6:$DC$253,21,FALSE) -> 10 | J19: =VLOOKUP($C19,'RECAP SECT'!$G$6:$DC$253,22,FALSE) -> 1,467 | K19: =VLOOKUP($C19,'RECAP SECT'!$G$6:$DC$253,23,FALSE) -> 17.97 | L19: =VLOOKUP($C19,'RECAP SECT'!$G$6:$DC$253,24,FALSE) -> 15% | M19: =VLOOKUP($C19,'RECAP SECT'!$G$6:$DC$253,25,FALSE) -> 4 | N19: =VLOOKUP($C19,'RECAP SECT'!$G$6:$DC$253,26,FALSE) -> 441 | O19: =VLOOKUP($C19,'RECAP SECT'!$G$6:$DC$253,27,FALSE) -> 5.40 | P19: =VLOOKUP($C19,'RECAP SECT'!$G$6:$DC$253,28,FALSE) -> 27% | Q19: =VLOOKUP($C19,'RECAP SECT'!$G$6:$DC$253,29,FALSE) -> 2 | R19: =VLOOKUP($C19,'RECAP SECT'!$G$6:$DC$253,30,FALSE) -> -76.1 | S19: =VLOOKUP($C19,'RECAP SECT'!$G$6:$DC$253,31,FALSE) -> -0.93 | T19: =VLOOKUP($C19,'RECAP SECT'!$G$6:$DC$253,32,FALSE) -> 56% | U19: =VLOOKUP($C19,'RECAP SECT'!$G$6:$DC$253,33,FALSE) -> 17 | V19: =VLOOKUP($C19,'RECAP SECT'!$G$6:$DC$253,34,FALSE) -> 38% | W19: =VLOOKUP($C19,'RECAP SECT'!$G$6:$DC$253,35,FALSE) -> 23% | X19: =VLOOKUP($C19,'RECAP SECT'!$G$6:$DC$253,36,FALSE) -> 10
A20: 110 | B20: MEURTHE ET MOSELLE MEUSE | C20: 26 | D20: NANCY | E20: =VLOOKUP($C20,'RECAP SECT'!$G$6:$DC$253,3,FALSE) -> 65.8 | F20: =VLOOKUP($C20,'RECAP SECT'!$G$6:$DC$253,18,FALSE) -> 2,178 | G20: =VLOOKUP($C20,'RECAP SECT'!$G$6:$DC$253,19,FALSE) -> 33.10 | H20: =VLOOKUP($C20,'RECAP SECT'!$G$6:$DC$253,20,FALSE) -> 17% | I20: =VLOOKUP($C20,'RECAP SECT'!$G$6:$DC$253,21,FALSE) -> 3 | J20: =VLOOKUP($C20,'RECAP SECT'!$G$6:$DC$253,22,FALSE) -> 1,387 | K20: =VLOOKUP($C20,'RECAP SECT'!$G$6:$DC$253,23,FALSE) -> 21.08 | L20: =VLOOKUP($C20,'RECAP SECT'!$G$6:$DC$253,24,FALSE) -> 0% | M20: =VLOOKUP($C20,'RECAP SECT'!$G$6:$DC$253,25,FALSE) -> 1 | N20: =VLOOKUP($C20,'RECAP SECT'!$G$6:$DC$253,26,FALSE) -> 488 | O20: =VLOOKUP($C20,'RECAP SECT'!$G$6:$DC$253,27,FALSE) -> 7.42 | P20: =VLOOKUP($C20,'RECAP SECT'!$G$6:$DC$253,28,FALSE) -> 0% | Q20: =VLOOKUP($C20,'RECAP SECT'!$G$6:$DC$253,29,FALSE) -> 1 | R20: =VLOOKUP($C20,'RECAP SECT'!$G$6:$DC$253,30,FALSE) -> -55.0 | S20: =VLOOKUP($C20,'RECAP SECT'!$G$6:$DC$253,31,FALSE) -> -0.84 | T20: =VLOOKUP($C20,'RECAP SECT'!$G$6:$DC$253,32,FALSE) -> 40% | U20: =VLOOKUP($C20,'RECAP SECT'!$G$6:$DC$253,33,FALSE) -> 12 | V20: =VLOOKUP($C20,'RECAP SECT'!$G$6:$DC$253,34,FALSE) -> 14% | W20: =VLOOKUP($C20,'RECAP SECT'!$G$6:$DC$253,35,FALSE) -> 0% | X20: =VLOOKUP($C20,'RECAP SECT'!$G$6:$DC$253,36,FALSE) -> 1
A21: 110 | B21: MEURTHE ET MOSELLE MEUSE | C21: 27 | D21: PONT A MOUSSON | E21: =VLOOKUP($C21,'RECAP SECT'!$G$6:$DC$253,3,FALSE) -> 77.0 | F21: =VLOOKUP($C21,'RECAP SECT'!$G$6:$DC$253,18,FALSE) -> 2,490 | G21: =VLOOKUP($C21,'RECAP SECT'!$G$6:$DC$253,19,FALSE) -> 32.32 | H21: =VLOOKUP($C21,'RECAP SECT'!$G$6:$DC$253,20,FALSE) -> 19% | I21: =VLOOKUP($C21,'RECAP SECT'!$G$6:$DC$253,21,FALSE) -> 4 | J21: =VLOOKUP($C21,'RECAP SECT'!$G$6:$DC$253,22,FALSE) -> 1,419 | K21: =VLOOKUP($C21,'RECAP SECT'!$G$6:$DC$253,23,FALSE) -> 18.42 | L21: =VLOOKUP($C21,'RECAP SECT'!$G$6:$DC$253,24,FALSE) -> 13% | M21: =VLOOKUP($C21,'RECAP SECT'!$G$6:$DC$253,25,FALSE) -> 3 | N21: =VLOOKUP($C21,'RECAP SECT'!$G$6:$DC$253,26,FALSE) -> 378 | O21: =VLOOKUP($C21,'RECAP SECT'!$G$6:$DC$253,27,FALSE) -> 4.91 | P21: =VLOOKUP($C21,'RECAP SECT'!$G$6:$DC$253,28,FALSE) -> 34% | Q21: =VLOOKUP($C21,'RECAP SECT'!$G$6:$DC$253,29,FALSE) -> 4 | R21: =VLOOKUP($C21,'RECAP SECT'!$G$6:$DC$253,30,FALSE) -> -59.5 | S21: =VLOOKUP($C21,'RECAP SECT'!$G$6:$DC$253,31,FALSE) -> -0.77 | T21: =VLOOKUP($C21,'RECAP SECT'!$G$6:$DC$253,32,FALSE) -> 29% | U21: =VLOOKUP($C21,'RECAP SECT'!$G$6:$DC$253,33,FALSE) -> 11 | V21: =VLOOKUP($C21,'RECAP SECT'!$G$6:$DC$253,34,FALSE) -> 21% | W21: =VLOOKUP($C21,'RECAP SECT'!$G$6:$DC$253,35,FALSE) -> 7% | X21: =VLOOKUP($C21,'RECAP SECT'!$G$6:$DC$253,36,FALSE) -> 3
A22: 110 | B22: MEURTHE ET MOSELLE MEUSE | C22: 31 | D22: VERDUN | E22: =VLOOKUP($C22,'RECAP SECT'!$G$6:$DC$253,3,FALSE) -> 56.3 | F22: =VLOOKUP($C22,'RECAP SECT'!$G$6:$DC$253,18,FALSE) -> 1,524 | G22: =VLOOKUP($C22,'RECAP SECT'!$G$6:$DC$253,19,FALSE) -> 27.06 | H22: =VLOOKUP($C22,'RECAP SECT'!$G$6:$DC$253,20,FALSE) -> 32% | I22: =VLOOKUP($C22,'RECAP SECT'!$G$6:$DC$253,21,FALSE) -> 6 | J22: =VLOOKUP($C22,'RECAP SECT'!$G$6:$DC$253,22,FALSE) -> 903 | K22: =VLOOKUP($C22,'RECAP SECT'!$G$6:$DC$253,23,FALSE) -> 16.03 | L22: =VLOOKUP($C22,'RECAP SECT'!$G$6:$DC$253,24,FALSE) -> 24% | M22: =VLOOKUP($C22,'RECAP SECT'!$G$6:$DC$253,25,FALSE) -> 7 | N22: =VLOOKUP($C22,'RECAP SECT'!$G$6:$DC$253,26,FALSE) -> 177 | O22: =VLOOKUP($C22,'RECAP SECT'!$G$6:$DC$253,27,FALSE) -> 3.14 | P22: =VLOOKUP($C22,'RECAP SECT'!$G$6:$DC$253,28,FALSE) -> 58% | Q22: =VLOOKUP($C22,'RECAP SECT'!$G$6:$DC$253,29,FALSE) -> 7 | R22: =VLOOKUP($C22,'RECAP SECT'!$G$6:$DC$253,30,FALSE) -> -35.8 | S22: =VLOOKUP($C22,'RECAP SECT'!$G$6:$DC$253,31,FALSE) -> -0.63 | T22: =VLOOKUP($C22,'RECAP SECT'!$G$6:$DC$253,32,FALSE) -> 6% | U22: =VLOOKUP($C22,'RECAP SECT'!$G$6:$DC$253,33,FALSE) -> 2 | V22: =VLOOKUP($C22,'RECAP SECT'!$G$6:$DC$253,34,FALSE) -> 30% | W22: =VLOOKUP($C22,'RECAP SECT'!$G$6:$DC$253,35,FALSE) -> 16% | X22: =VLOOKUP($C22,'RECAP SECT'!$G$6:$DC$253,36,FALSE) -> 5
A23: 160 | B23: MOSELLE | C23: 45 | D23: METZ | E23: =VLOOKUP($C23,'RECAP SECT'!$G$6:$DC$253,3,FALSE) -> 90.9 | F23: =VLOOKUP($C23,'RECAP SECT'!$G$6:$DC$253,18,FALSE) -> 2,414 | G23: =VLOOKUP($C23,'RECAP SECT'!$G$6:$DC$253,19,FALSE) -> 26.56 | H23: =VLOOKUP($C23,'RECAP SECT'!$G$6:$DC$253,20,FALSE) -> 33% | I23: =VLOOKUP($C23,'RECAP SECT'!$G$6:$DC$253,21,FALSE) -> 8 | J23: =VLOOKUP($C23,'RECAP SECT'!$G$6:$DC$253,22,FALSE) -> 1,351 | K23: =VLOOKUP($C23,'RECAP SECT'!$G$6:$DC$253,23,FALSE) -> 14.86 | L23: =VLOOKUP($C23,'RECAP SECT'!$G$6:$DC$253,24,FALSE) -> 29% | M23: =VLOOKUP($C23,'RECAP SECT'!$G$6:$DC$253,25,FALSE) -> 11 | N23: =VLOOKUP($C23,'RECAP SECT'!$G$6:$DC$253,26,FALSE) -> 218 | O23: =VLOOKUP($C23,'RECAP SECT'!$G$6:$DC$253,27,FALSE) -> 2.40 | P23: =VLOOKUP($C23,'RECAP SECT'!$G$6:$DC$253,28,FALSE) -> 68% | Q23: =VLOOKUP($C23,'RECAP SECT'!$G$6:$DC$253,29,FALSE) -> 10 | R23: =VLOOKUP($C23,'RECAP SECT'!$G$6:$DC$253,30,FALSE) -> -66.9 | S23: =VLOOKUP($C23,'RECAP SECT'!$G$6:$DC$253,31,FALSE) -> -0.74 | T23: =VLOOKUP($C23,'RECAP SECT'!$G$6:$DC$253,32,FALSE) -> 23% | U23: =VLOOKUP($C23,'RECAP SECT'!$G$6:$DC$253,33,FALSE) -> 9 | V23: =VLOOKUP($C23,'RECAP SECT'!$G$6:$DC$253,34,FALSE) -> 36% | W23: =VLOOKUP($C23,'RECAP SECT'!$G$6:$DC$253,35,FALSE) -> 22% | X23: =VLOOKUP($C23,'RECAP SECT'!$G$6:$DC$253,36,FALSE) -> 9
A24: 160 | B24: MOSELLE | C24: 42 | D24: MOSELLE EST | E24: =VLOOKUP($C24,'RECAP SECT'!$G$6:$DC$253,3,FALSE) -> 69.0 | F24: =VLOOKUP($C24,'RECAP SECT'!$G$6:$DC$253,18,FALSE) -> 1,843 | G24: =VLOOKUP($C24,'RECAP SECT'!$G$6:$DC$253,19,FALSE) -> 26.72 | H24: =VLOOKUP($C24,'RECAP SECT'!$G$6:$DC$253,20,FALSE) -> 33% | I24: =VLOOKUP($C24,'RECAP SECT'!$G$6:$DC$253,21,FALSE) -> 7 | J24: =VLOOKUP($C24,'RECAP SECT'!$G$6:$DC$253,22,FALSE) -> 1,008 | K24: =VLOOKUP($C24,'RECAP SECT'!$G$6:$DC$253,23,FALSE) -> 14.61 | L24: =VLOOKUP($C24,'RECAP SECT'!$G$6:$DC$253,24,FALSE) -> 31% | M24: =VLOOKUP($C24,'RECAP SECT'!$G$6:$DC$253,25,FALSE) -> 12 | N24: =VLOOKUP($C24,'RECAP SECT'!$G$6:$DC$253,26,FALSE) -> 162 | O24: =VLOOKUP($C24,'RECAP SECT'!$G$6:$DC$253,27,FALSE) -> 2.35 | P24: =VLOOKUP($C24,'RECAP SECT'!$G$6:$DC$253,28,FALSE) -> 68% | Q24: =VLOOKUP($C24,'RECAP SECT'!$G$6:$DC$253,29,FALSE) -> 12 | R24: =VLOOKUP($C24,'RECAP SECT'!$G$6:$DC$253,30,FALSE) -> -46.5 | S24: =VLOOKUP($C24,'RECAP SECT'!$G$6:$DC$253,31,FALSE) -> -0.67 | T24: =VLOOKUP($C24,'RECAP SECT'!$G$6:$DC$253,32,FALSE) -> 13% | U24: =VLOOKUP($C24,'RECAP SECT'!$G$6:$DC$253,33,FALSE) -> 5 | V24: =VLOOKUP($C24,'RECAP SECT'!$G$6:$DC$253,34,FALSE) -> 35% | W24: =VLOOKUP($C24,'RECAP SECT'!$G$6:$DC$253,35,FALSE) -> 20% | X24: =VLOOKUP($C24,'RECAP SECT'!$G$6:$DC$253,36,FALSE) -> 6
A25: 160 | B25: MOSELLE | C25: 44 | D25: MOSELLE NORD | E25: =VLOOKUP($C25,'RECAP SECT'!$G$6:$DC$253,3,FALSE) -> 68.4 | F25: =VLOOKUP($C25,'RECAP SECT'!$G$6:$DC$253,18,FALSE) -> 1,754 | G25: =VLOOKUP($C25,'RECAP SECT'!$G$6:$DC$253,19,FALSE) -> 25.63 | H25: =VLOOKUP($C25,'RECAP SECT'!$G$6:$DC$253,20,FALSE) -> 36% | I25: =VLOOKUP($C25,'RECAP SECT'!$G$6:$DC$253,21,FALSE) -> 9 | J25: =VLOOKUP($C25,'RECAP SECT'!$G$6:$DC$253,22,FALSE) -> 992 | K25: =VLOOKUP($C25,'RECAP SECT'!$G$6:$DC$253,23,FALSE) -> 14.50 | L25: =VLOOKUP($C25,'RECAP SECT'!$G$6:$DC$253,24,FALSE) -> 31% | M25: =VLOOKUP($C25,'RECAP SECT'!$G$6:$DC$253,25,FALSE) -> 13 | N25: =VLOOKUP($C25,'RECAP SECT'!$G$6:$DC$253,26,FALSE) -> 132 | O25: =VLOOKUP($C25,'RECAP SECT'!$G$6:$DC$253,27,FALSE) -> 1.93 | P25: =VLOOKUP($C25,'RECAP SECT'!$G$6:$DC$253,28,FALSE) -> 74% | Q25: =VLOOKUP($C25,'RECAP SECT'!$G$6:$DC$253,29,FALSE) -> 14 | R25: =VLOOKUP($C25,'RECAP SECT'!$G$6:$DC$253,30,FALSE) -> -40.9 | S25: =VLOOKUP($C25,'RECAP SECT'!$G$6:$DC$253,31,FALSE) -> -0.60 | T25: =VLOOKUP($C25,'RECAP SECT'!$G$6:$DC$253,32,FALSE) -> 0% | U25: =VLOOKUP($C25,'RECAP SECT'!$G$6:$DC$253,33,FALSE) -> 1 | V25: =VLOOKUP($C25,'RECAP SECT'!$G$6:$DC$253,34,FALSE) -> 35% | W25: =VLOOKUP($C25,'RECAP SECT'!$G$6:$DC$253,35,FALSE) -> 21% | X25: =VLOOKUP($C25,'RECAP SECT'!$G$6:$DC$253,36,FALSE) -> 8
A26: 80 | B26: VOSGES | C26: 57 | D26: EPINAL | E26: =VLOOKUP($C26,'RECAP SECT'!$G$6:$DC$253,3,FALSE) -> 60.9 | F26: =VLOOKUP($C26,'RECAP SECT'!$G$6:$DC$253,18,FALSE) -> 1,068 | G26: =VLOOKUP($C26,'RECAP SECT'!$G$6:$DC$253,19,FALSE) -> 17.54 | H26: =VLOOKUP($C26,'RECAP SECT'!$G$6:$DC$253,20,FALSE) -> 56% | I26: =VLOOKUP($C26,'RECAP SECT'!$G$6:$DC$253,21,FALSE) -> 14 | J26: =VLOOKUP($C26,'RECAP SECT'!$G$6:$DC$253,22,FALSE) -> 938 | K26: =VLOOKUP($C26,'RECAP SECT'!$G$6:$DC$253,23,FALSE) -> 15.40 | L26: =VLOOKUP($C26,'RECAP SECT'!$G$6:$DC$253,24,FALSE) -> 27% | M26: =VLOOKUP($C26,'RECAP SECT'!$G$6:$DC$253,25,FALSE) -> 9 | N26: =VLOOKUP($C26,'RECAP SECT'!$G$6:$DC$253,26,FALSE) -> 168 | O26: =VLOOKUP($C26,'RECAP SECT'!$G$6:$DC$253,27,FALSE) -> 2.76 | P26: =VLOOKUP($C26,'RECAP SECT'!$G$6:$DC$253,28,FALSE) -> 63% | Q26: =VLOOKUP($C26,'RECAP SECT'!$G$6:$DC$253,29,FALSE) -> 8 | R26: =VLOOKUP($C26,'RECAP SECT'!$G$6:$DC$253,30,FALSE) -> -56.5 | S26: =VLOOKUP($C26,'RECAP SECT'!$G$6:$DC$253,31,FALSE) -> -0.93 | T26: =VLOOKUP($C26,'RECAP SECT'!$G$6:$DC$253,32,FALSE) -> 55% | U26: =VLOOKUP($C26,'RECAP SECT'!$G$6:$DC$253,33,FALSE) -> 16 | V26: =VLOOKUP($C26,'RECAP SECT'!$G$6:$DC$253,34,FALSE) -> 51% | W26: =VLOOKUP($C26,'RECAP SECT'!$G$6:$DC$253,35,FALSE) -> 37% | X26: =VLOOKUP($C26,'RECAP SECT'!$G$6:$DC$253,36,FALSE) -> 17
A27: 80 | B27: VOSGES | C27: 55 | D27: SAINT DIE | E27: =VLOOKUP($C27,'RECAP SECT'!$G$6:$DC$253,3,FALSE) -> 48.3 | F27: =VLOOKUP($C27,'RECAP SECT'!$G$6:$DC$253,18,FALSE) -> 937 | G27: =VLOOKUP($C27,'RECAP SECT'!$G$6:$DC$253,19,FALSE) -> 19.39 | H27: =VLOOKUP($C27,'RECAP SECT'!$G$6:$DC$253,20,FALSE) -> 51% | I27: =VLOOKUP($C27,'RECAP SECT'!$G$6:$DC$253,21,FALSE) -> 13 | J27: =VLOOKUP($C27,'RECAP SECT'!$G$6:$DC$253,22,FALSE) -> 644 | K27: =VLOOKUP($C27,'RECAP SECT'!$G$6:$DC$253,23,FALSE) -> 13.33 | L27: =VLOOKUP($C27,'RECAP SECT'!$G$6:$DC$253,24,FALSE) -> 37% | M27: =VLOOKUP($C27,'RECAP SECT'!$G$6:$DC$253,25,FALSE) -> 15 | N27: =VLOOKUP($C27,'RECAP SECT'!$G$6:$DC$253,26,FALSE) -> 82 | O27: =VLOOKUP($C27,'RECAP SECT'!$G$6:$DC$253,27,FALSE) -> 1.70 | P27: =VLOOKUP($C27,'RECAP SECT'!$G$6:$DC$253,28,FALSE) -> 77% | Q27: =VLOOKUP($C27,'RECAP SECT'!$G$6:$DC$253,29,FALSE) -> 16 | R27: =VLOOKUP($C27,'RECAP SECT'!$G$6:$DC$253,30,FALSE) -> -36.2 | S27: =VLOOKUP($C27,'RECAP SECT'!$G$6:$DC$253,31,FALSE) -> -0.75 | T27: =VLOOKUP($C27,'RECAP SECT'!$G$6:$DC$253,32,FALSE) -> 25% | U27: =VLOOKUP($C27,'RECAP SECT'!$G$6:$DC$253,33,FALSE) -> 10 | V27: =VLOOKUP($C27,'RECAP SECT'!$G$6:$DC$253,34,FALSE) -> 48% | W27: =VLOOKUP($C27,'RECAP SECT'!$G$6:$DC$253,35,FALSE) -> 34% | X27: =VLOOKUP($C27,'RECAP SECT'!$G$6:$DC$253,36,FALSE) -> 15
A28: Total CEGEE Directions Régionales | E28: =SUM(E10:E27) -> 1146

Sheet SE_EPARGNE
B1: Accueil | F1: BAROMETRE BDD - TERRITOIRES
F2: EPARGNE
F3: =ACCUEIL!F7 -> 2021-04-11
F7: Excédent Epargne y/c DAV pondéré | J7: Ventes sur client non détenteur de l’univers | N7: Total Epargne
F8: =DATEMAJ!C14 -> au 11/04 | H8: coef | I8: ='RECAP DIRCOM'!AX4 -> 14% | J8: =DATEMAJ!C15 -> au 11/04 | L8: coef | M8: ='RECAP DIRCOM'!BB4 -> 6% | O8: coef | P8: ='RECAP DIRCOM'!BE4 -> 20%
A9: eds | B9: Direction | C9: eds | D9: Territoire | E9: ="ETP perf "&DATEMAJ!$C$28 -> ETP perf 28-févr | F9: Excédent | G9: Excédent / ETP | H9: % Ecart au 1er | I9: Rang | J9: VB | K9: VB / ETP | L9: % Ecart au 1er | M9: Rang | N9: Moyenne ecart au 1er | O9: % Ecart au 1er | P9: Rang CEGEE
A10: 50 | B10: AUBE HAUTE MARNE | C10: 21 | D10: CHAUMONT | E10: =VLOOKUP($C10,'RECAP SECT'!$G$6:$DC$253,3,FALSE) -> 33.9 | F10: =VLOOKUP($C10,'RECAP SECT'!$G$6:$DC$253,41,FALSE) -> 5,373 | G10: =VLOOKUP($C10,'RECAP SECT'!$G$6:$DC$253,42,FALSE) -> 158.60 | H10: =VLOOKUP($C10,'RECAP SECT'!$G$6:$DC$253,43,FALSE) -> 52% | I10: =VLOOKUP($C10,'RECAP SECT'!$G$6:$DC$253,44,FALSE) -> 14 | J10: =VLOOKUP($C10,'RECAP SECT'!$G$6:$DC$253,45,FALSE) -> 311 | K10: =VLOOKUP($C10,'RECAP SECT'!$G$6:$DC$253,46,FALSE) -> 9.18 | L10: =VLOOKUP($C10,'RECAP SECT'!$G$6:$DC$253,47,FALSE) -> 33% | M10: =VLOOKUP($C10,'RECAP SECT'!$G$6:$DC$253,48,FALSE) -> 10 | N10: =VLOOKUP($C10,'RECAP SECT'!$G$6:$DC$253,49,FALSE) -> 46% | O10: =VLOOKUP($C10,'RECAP SECT'!$G$6:$DC$253,50,FALSE) -> 37% | P10: =VLOOKUP($C10,'RECAP SECT'!$G$6:$DC$253,51,FALSE) -> 14
A11: 50 | B11: AUBE HAUTE MARNE | C11: 14 | D11: TROYES | E11: =VLOOKUP($C11,'RECAP SECT'!$G$6:$DC$253,3,FALSE) -> 66.8 | F11: =VLOOKUP($C11,'RECAP SECT'!$G$6:$DC$253,41,FALSE) -> 8,564 | G11: =VLOOKUP($C11,'RECAP SECT'!$G$6:$DC$253,42,FALSE) -> 128.14 | H11: =VLOOKUP($C11,'RECAP SECT'!$G$6:$DC$253,43,FALSE) -> 61% | I11: =VLOOKUP($C11,'RECAP SECT'!$G$6:$DC$253,44,FALSE) -> 16 | J11: =VLOOKUP($C11,'RECAP SECT'!$G$6:$DC$253,45,FALSE) -> 624 | K11: =VLOOKUP($C11,'RECAP SECT'!$G$6:$DC$253,46,FALSE) -> 9.34 | L11: =VLOOKUP($C11,'RECAP SECT'!$G$6:$DC$253,47,FALSE) -> 32% | M11: =VLOOKUP($C11,'RECAP SECT'!$G$6:$DC$253,48,FALSE) -> 8 | N11: =VLOOKUP($C11,'RECAP SECT'!$G$6:$DC$253,49,FALSE) -> 52% | O11: =VLOOKUP($C11,'RECAP SECT'!$G$6:$DC$253,50,FALSE) -> 43% | P11: =VLOOKUP($C11,'RECAP SECT'!$G$6:$DC$253,51,FALSE) -> 17
A12: 262 | B12: BAS-RHIN | C12: 5060 | D12: HAGUENAU | E12: =VLOOKUP($C12,'RECAP SECT'!$G$6:$DC$253,3,FALSE) -> 71.0 | F12: =VLOOKUP($C12,'RECAP SECT'!$G$6:$DC$253,41,FALSE) -> 19,063 | G12: =VLOOKUP($C12,'RECAP SECT'!$G$6:$DC$253,42,FALSE) -> 268.56 | H12: =VLOOKUP($C12,'RECAP SECT'!$G$6:$DC$253,43,FALSE) -> 19% | I12: =VLOOKUP($C12,'RECAP SECT'!$G$6:$DC$253,44,FALSE) -> 6 | J12: =VLOOKUP($C12,'RECAP SECT'!$G$6:$DC$253,45,FALSE) -> 555 | K12: =VLOOKUP($C12,'RECAP SECT'!$G$6:$DC$253,46,FALSE) -> 7.82 | L12: =VLOOKUP($C12,'RECAP SECT'!$G$6:$DC$253,47,FALSE) -> 43% | M12: =VLOOKUP($C12,'RECAP SECT'!$G$6:$DC$253,48,FALSE) -> 13 | N12: =VLOOKUP($C12,'RECAP SECT'!$G$6:$DC$253,49,FALSE) -> 26% | O12: =VLOOKUP($C12,'RECAP SECT'!$G$6:$DC$253,50,FALSE) -> 17% | P12: =VLOOKUP($C12,'RECAP SECT'!$G$6:$DC$253,51,FALSE) -> 7
A13: 262 | B13: BAS-RHIN | C13: 5101 | D13: SELESTAT | E13: =VLOOKUP($C13,'RECAP SECT'!$G$6:$DC$253,3,FALSE) -> 60.3 | F13: =VLOOKUP($C13,'RECAP SECT'!$G$6:$DC$253,41,FALSE) -> 18,071 | G13: =VLOOKUP($C13,'RECAP SECT'!$G$6:$DC$253,42,FALSE) -> 299.82 | H13: =VLOOKUP($C13,'RECAP SECT'!$G$6:$DC$253,43,FALSE) -> 9% | I13: =VLOOKUP($C13,'RECAP SECT'!$G$6:$DC$253,44,FALSE) -> 3 | J13: =VLOOKUP($C13,'RECAP SECT'!$G$6:$DC$253,45,FALSE) -> 723 | K13: =VLOOKUP($C13,'RECAP SECT'!$G$6:$DC$253,46,FALSE) -> 12.00 | L13: =VLOOKUP($C13,'RECAP SECT'!$G$6:$DC$253,47,FALSE) -> 12% | M13: =VLOOKUP($C13,'RECAP SECT'!$G$6:$DC$253,48,FALSE) -> 3 | N13: =VLOOKUP($C13,'RECAP SECT'!$G$6:$DC$253,49,FALSE) -> 10% | O13: =VLOOKUP($C13,'RECAP SECT'!$G$6:$DC$253,50,FALSE) -> 1% | P13: =VLOOKUP($C13,'RECAP SECT'!$G$6:$DC$253,51,FALSE) -> 2
A14: 262 | B14: BAS-RHIN | C14: 5006 | D14: STRASBOURG | E14: =VLOOKUP($C14,'RECAP SECT'!$G$6:$DC$253,3,FALSE) -> 75.4 | F14: =VLOOKUP($C14,'RECAP SECT'!$G$6:$DC$253,41,FALSE) -> 23,724 | G14: =VLOOKUP($C14,'RECAP SECT'!$G$6:$DC$253,42,FALSE) -> 314.59 | H14: =VLOOKUP($C14,'RECAP SECT'!$G$6:$DC$253,43,FALSE) -> 5% | I14: =VLOOKUP($C14,'RECAP SECT'!$G$6:$DC$253,44,FALSE) -> 2 | J14: =VLOOKUP($C14,'RECAP SECT'!$G$6:$DC$253,45,FALSE) -> 844 | K14: =VLOOKUP($C14,'RECAP SECT'!$G$6:$DC$253,46,FALSE) -> 11.19 | L14: =VLOOKUP($C14,'RECAP SECT'!$G$6:$DC$253,47,FALSE) -> 18% | M14: =VLOOKUP($C14,'RECAP SECT'!$G$6:$DC$253,48,FALSE) -> 5 | N14: =VLOOKUP($C14,'RECAP SECT'!$G$6:$DC$253,49,FALSE) -> 9% | O14: =VLOOKUP($C14,'RECAP SECT'!$G$6:$DC$253,50,FALSE) -> 0% | P14: =VLOOKUP($C14,'RECAP SECT'!$G$6:$DC$253,51,FALSE) -> 1
A15: 264 | B15: HAUT-RHIN | C15: 5130 | D15: COLMAR | E15: =VLOOKUP($C15,'RECAP SECT'!$G$6:$DC$253,3,FALSE) -> 61.1 | F15: =VLOOKUP($C15,'RECAP SECT'!$G$6:$DC$253,41,FALSE) -> 9,116 | G15: =VLOOKUP($C15,'RECAP SECT'!$G$6:$DC$253,42,FALSE) -> 149.31 | H15: =VLOOKUP($C15,'RECAP SECT'!$G$6:$DC$253,43,FALSE) -> 55% | I15: =VLOOKUP($C15,'RECAP SECT'!$G$6:$DC$253,44,FALSE) -> 15 | J15: =VLOOKUP($C15,'RECAP SECT'!$G$6:$DC$253,45,FALSE) -> 473 | K15: =VLOOKUP($C15,'RECAP SECT'!$G$6:$DC$253,46,FALSE) -> 7.75 | L15: =VLOOKUP($C15,'RECAP SECT'!$G$6:$DC$253,47,FALSE) -> 43% | M15: =VLOOKUP($C15,'RECAP SECT'!$G$6:$DC$253,48,FALSE) -> 14 | N15: =VLOOKUP($C15,'RECAP SECT'!$G$6:$DC$253,49,FALSE) -> 51% | O15: =VLOOKUP($C15,'RECAP SECT'!$G$6:$DC$253,50,FALSE) -> 42% | P15: =VLOOKUP($C15,'RECAP SECT'!$G$6:$DC$253,51,FALSE) -> 16
A16: 264 | B16: HAUT-RHIN | C16: 5169 | D16: MULHOUSE | E16: =VLOOKUP($C16,'RECAP SECT'!$G$6:$DC$253,3,FALSE) -> 59.9 | F16: =VLOOKUP($C16,'RECAP SECT'!$G$6:$DC$253,41,FALSE) -> 6,500 | G16: =VLOOKUP($C16,'RECAP SECT'!$G$6:$DC$253,42,FALSE) -> 108.45 | H16: =VLOOKUP($C16,'RECAP SECT'!$G$6:$DC$253,43,FALSE) -> 67% | I16: =VLOOKUP($C16,'RECAP SECT'!$G$6:$DC$253,44,FALSE) -> 17 | J16: =VLOOKUP($C16,'RECAP SECT'!$G$6:$DC$253,45,FALSE) -> 574 | K16: =VLOOKUP($C16,'RECAP SECT'!$G$6:$DC$253,46,FALSE) -> 9.58 | L16: =VLOOKUP($C16,'RECAP SECT'!$G$6:$DC$253,47,FALSE) -> 30% | M16: =VLOOKUP($C16,'RECAP SECT'!$G$6:$DC$253,48,FALSE) -> 7 | N16: =VLOOKUP($C16,'RECAP SECT'!$G$6:$DC$253,49,FALSE) -> 56% | O16: =VLOOKUP($C16,'RECAP SECT'!$G$6:$DC$253,50,FALSE) -> 47% | P16: =VLOOKUP($C16,'RECAP SECT'!$G$6:$DC$253,51,FALSE) -> 18
A17: 30 | B17: MARNE-ARDENNES | C17: 6 | D17: CHALONS EN CHAMPAGNE | E17: =VLOOKUP($C17,'RECAP SECT'!$G$6:$DC$253,3,FALSE) -> 44.2 | F17: =VLOOKUP($C17,'RECAP SECT'!$G$6:$DC$253,41,FALSE) -> 4,655 | G17: =VLOOKUP($C17,'RECAP SECT'!$G$6:$DC$253,42,FALSE) -> 105.34 | H17: =VLOOKUP($C17,'RECAP SECT'!$G$6:$DC$253,43,FALSE) -> 68% | I17: =VLOOKUP($C17,'RECAP SECT'!$G$6:$DC$253,44,FALSE) -> 18 | J17: =VLOOKUP($C17,'RECAP SECT'!$G$6:$DC$253,45,FALSE) -> 605 | K17: =VLOOKUP($C17,'RECAP SECT'!$G$6:$DC$253,46,FALSE) -> 13.69 | L17: =VLOOKUP($C17,'RECAP SECT'!$G$6:$DC$253,47,FALSE) -> 0% | M17: =VLOOKUP($C17,'RECAP SECT'!$G$6:$DC$253,48,FALSE) -> 1 | N17: =VLOOKUP($C17,'RECAP SECT'!$G$6:$DC$253,49,FALSE) -> 48% | O17: =VLOOKUP($C17,'RECAP SECT'!$G$6:$DC$253,50,FALSE) -> 39% | P17: =VLOOKUP($C17,'RECAP SECT'!$G$6:$DC$253,51,FALSE) -> 15
A18: 30 | B18: MARNE-ARDENNES | C18: 2 | D18: CHARLEVILLE MEZIERES | E18: =VLOOKUP($C18,'RECAP SECT'!$G$6:$DC$253,3,FALSE) -> 55.4 | F18: =VLOOKUP($C18,'RECAP SECT'!$G$6:$DC$253,41,FALSE) -> 12,349 | G18: =VLOOKUP($C18,'RECAP SECT'!$G$6:$DC$253,42,FALSE) -> 222.98 | H18: =VLOOKUP($C18,'RECAP SECT'!$G$6:$DC$253,43,FALSE) -> 33% | I18: =VLOOKUP($C18,'RECAP SECT'!$G$6:$DC$253,44,FALSE) -> 10 | J18: =VLOOKUP($C18,'RECAP SECT'!$G$6:$DC$253,45,FALSE) -> 699 | K18: =VLOOKUP($C18,'RECAP SECT'!$G$6:$DC$253,46,FALSE) -> 12.62 | L18: =VLOOKUP($C18,'RECAP SECT'!$G$6:$DC$253,47,FALSE) -> 8% | M18: =VLOOKUP($C18,'RECAP SECT'!$G$6:$DC$253,48,FALSE) -> 2 | N18: =VLOOKUP($C18,'RECAP SECT'!$G$6:$DC$253,49,FALSE) -> 25% | O18: =VLOOKUP($C18,'RECAP SECT'!$G$6:$DC$253,50,FALSE) -> 16% | P18: =VLOOKUP($C18,'RECAP SECT'!$G$6:$DC$253,51,FALSE) -> 6
A19: 30 | B19: MARNE-ARDENNES | C19: 11 | D19: REIMS | E19: =VLOOKUP($C19,'RECAP SECT'!$G$6:$DC$253,3,FALSE) -> 81.6 | F19: =VLOOKUP($C19,'RECAP SECT'!$G$6:$DC$253,41,FALSE) -> 19,992 | G19: =VLOOKUP($C19,'RECAP SECT'!$G$6:$DC$253,42,FALSE) -> 244.88 | H19: =VLOOKUP($C19,'RECAP SECT'!$G$6:$DC$253,43,FALSE) -> 26% | I19: =VLOOKUP($C19,'RECAP SECT'!$G$6:$DC$253,44,FALSE) -> 8 | J19: =VLOOKUP($C19,'RECAP SECT'!$G$6:$DC$253,45,FALSE) -> 742 | K19: =VLOOKUP($C19,'RECAP SECT'!$G$6:$DC$253,46,FALSE) -> 9.09 | L19: =VLOOKUP($C19,'RECAP SECT'!$G$6:$DC$253,47,FALSE) -> 34% | M19: =VLOOKUP($C19,'RECAP SECT'!$G$6:$DC$253,48,FALSE) -> 11 | N19: =VLOOKUP($C19,'RECAP SECT'!$G$6:$DC$253,49,FALSE) -> 28% | O19: =VLOOKUP($C19,'RECAP SECT'!$G$6:$DC$253,50,FALSE) -> 19% | P19: =VLOOKUP($C19,'RECAP SECT'!$G$6:$DC$253,51,FALSE) -> 8
A20: 110 | B20: MEURTHE ET MOSELLE MEUSE | C20: 26 | D20: NANCY | E20: =VLOOKUP($C20,'RECAP SECT'!$G$6:$DC$253,3,FALSE) -> 65.8 | F20: =VLOOKUP($C20,'RECAP SECT'!$G$6:$DC$253,41,FALSE) -> 18,293 | G20: =VLOOKUP($C20,'RECAP SECT'!$G$6:$DC$253,42,FALSE) -> 278.02 | H20: =VLOOKUP($C20,'RECAP SECT'!$G$6:$DC$253,43,FALSE) -> 16% | I20: =VLOOKUP($C20,'RECAP SECT'!$G$6:$DC$253,44,FALSE) -> 4 | J20: =VLOOKUP($C20,'RECAP SECT'!$G$6:$DC$253,45,FALSE) -> 775 | K20: =VLOOKUP($C20,'RECAP SECT'!$G$6:$DC$253,46,FALSE) -> 11.78 | L20: =VLOOKUP($C20,'RECAP SECT'!$G$6:$DC$253,47,FALSE) -> 14% | M20: =VLOOKUP($C20,'RECAP SECT'!$G$6:$DC$253,48,FALSE) -> 4 | N20: =VLOOKUP($C20,'RECAP SECT'!$G$6:$DC$253,49,FALSE) -> 15% | O20: =VLOOKUP($C20,'RECAP SECT'!$G$6:$DC$253,50,FALSE) -> 6% | P20: =VLOOKUP($C20,'RECAP SECT'!$G$6:$DC$253,51,FALSE) -> 4
A21: 110 | B21: MEURTHE ET MOSELLE MEUSE | C21: 27 | D21: PONT A MOUSSON | E21: =VLOOKUP($C21,'RECAP SECT'!$G$6:$DC$253,3,FALSE) -> 77.0 | F21: =VLOOKUP($C21,'RECAP SECT'!$G$6:$DC$253,41,FALSE) -> 20,919 | G21: =VLOOKUP($C21,'RECAP SECT'!$G$6:$DC$253,42,FALSE) -> 271.53 | H21: =VLOOKUP($C21,'RECAP SECT'!$G$6:$DC$253,43,FALSE) -> 18% | I21: =VLOOKUP($C21,'RECAP SECT'!$G$6:$DC$253,44,FALSE) -> 5 | J21: =VLOOKUP($C21,'RECAP SECT'!$G$6:$DC$253,45,FALSE) -> 716 | K21: =VLOOKUP($C21,'RECAP SECT'!$G$6:$DC$253,46,FALSE) -> 9.29 | L21: =VLOOKUP($C21,'RECAP SECT'!$G$6:$DC$253,47,FALSE) -> 32% | M21: =VLOOKUP($C21,'RECAP SECT'!$G$6:$DC$253,48,FALSE) -> 9 | N21: =VLOOKUP($C21,'RECAP SECT'!$G$6:$DC$253,49,FALSE) -> 22% | O21: =VLOOKUP($C21,'RECAP SECT'!$G$6:$DC$253,50,FALSE) -> 13% | P21: =VLOOKUP($C21,'RECAP SECT'!$G$6:$DC$253,51,FALSE) -> 5
A22: 110 | B22: MEURTHE ET MOSELLE MEUSE | C22: 31 | D22: VERDUN | E22: =VLOOKUP($C22,'RECAP SECT'!$G$6:$DC$253,3,FALSE) -> 56.3 | F22: =VLOOKUP($C22,'RECAP SECT'!$G$6:$DC$253,41,FALSE) -> 10,701 | G22: =VLOOKUP($C22,'RECAP SECT'!$G$6:$DC$253,42,FALSE) -> 189.94 | H22: =VLOOKUP($C22,'RECAP SECT'!$G$6:$DC$253,43,FALSE) -> 43% | I22: =VLOOKUP($C22,'RECAP SECT'!$G$6:$DC$253,44,FALSE) -> 13 | J22: =VLOOKUP($C22,'RECAP SECT'!$G$6:$DC$253,45,FALSE) -> 423 | K22: =VLOOKUP($C22,'RECAP SECT'!$G$6:$DC$253,46,FALSE) -> 7.51 | L22: =VLOOKUP($C22,'RECAP SECT'!$G$6:$DC$253,47,FALSE) -> 45% | M22: =VLOOKUP($C22,'RECAP SECT'!$G$6:$DC$253,48,FALSE) -> 16 | N22: =VLOOKUP($C22,'RECAP SECT'!$G$6:$DC$253,49,FALSE) -> 43% | O22: =VLOOKUP($C22,'RECAP SECT'!$G$6:$DC$253,50,FALSE) -> 34% | P22: =VLOOKUP($C22,'RECAP SECT'!$G$6:$DC$253,51,FALSE) -> 13
A23: 160 | B23: MOSELLE | C23: 45 | D23: METZ | E23: =VLOOKUP($C23,'RECAP SECT'!$G$6:$DC$253,3,FALSE) -> 90.9 | F23: =VLOOKUP($C23,'RECAP SECT'!$G$6:$DC$253,41,FALSE) -> 20,460 | G23: =VLOOKUP($C23,'RECAP SECT'!$G$6:$DC$253,42,FALSE) -> 225.11 | H23: =VLOOKUP($C23,'RECAP SECT'!$G$6:$DC$253,43,FALSE) -> 32% | I23: =VLOOKUP($C23,'RECAP SECT'!$G$6:$DC$253,44,FALSE) -> 9 | J23: =VLOOKUP($C23,'RECAP SECT'!$G$6:$DC$253,45,FALSE) -> 702 | K23: =VLOOKUP($C23,'RECAP SECT'!$G$6:$DC$253,46,FALSE) -> 7.72 | L23: =VLOOKUP($C23,'RECAP SECT'!$G$6:$DC$253,47,FALSE) -> 44% | M23: =VLOOKUP($C23,'RECAP SECT'!$G$6:$DC$253,48,FALSE) -> 15 | N23: =VLOOKUP($C23,'RECAP SECT'!$G$6:$DC$253,49,FALSE) -> 35% | O23: =VLOOKUP($C23,'RECAP SECT'!$G$6:$DC$253,50,FALSE) -> 27% | P23: =VLOOKUP($C23,'RECAP SECT'!$G$6:$DC$253,51,FALSE) -> 12
A24: 160 | B24: MOSELLE | C24: 42 | D24: MOSELLE EST | E24: =VLOOKUP($C24,'RECAP SECT'!$G$6:$DC$253,3,FALSE) -> 69.0 | F24: =VLOOKUP($C24,'RECAP SECT'!$G$6:$DC$253,41,FALSE) -> 14,945 | G24: =VLOOKUP($C24,'RECAP SECT'!$G$6:$DC$253,42,FALSE) -> 216.68 | H24: =VLOOKUP($C24,'RECAP SECT'!$G$6:$DC$253,43,FALSE) -> 35% | I24: =VLOOKUP($C24,'RECAP SECT'!$G$6:$DC$253,44,FALSE) -> 12 | J24: =VLOOKUP($C24,'RECAP SECT'!$G$6:$DC$253,45,FALSE) -> 690 | K24: =VLOOKUP($C24,'RECAP SECT'!$G$6:$DC$253,46,FALSE) -> 10.00 | L24: =VLOOKUP($C24,'RECAP SECT'!$G$6:$DC$253,47,FALSE) -> 27% | M24: =VLOOKUP($C24,'RECAP SECT'!$G$6:$DC$253,48,FALSE) -> 6 | N24: =VLOOKUP($C24,'RECAP SECT'!$G$6:$DC$253,49,FALSE) -> 32% | O24: =VLOOKUP($C24,'RECAP SECT'!$G$6:$DC$253,50,FALSE) -> 23% | P24: =VLOOKUP($C24,'RECAP SECT'!$G$6:$DC$253,51,FALSE) -> 10
A25: 160 | B25: MOSELLE | C25: 44 | D25: MOSELLE NORD | E25: =VLOOKUP($C25,'RECAP SECT'!$G$6:$DC$253,3,FALSE) -> 68.4 | F25: =VLOOKUP($C25,'RECAP SECT'!$G$6:$DC$253,41,FALSE) -> 14,909 | G25: =VLOOKUP($C25,'RECAP SECT'!$G$6:$DC$253,42,FALSE) -> 217.89 | H25: =VLOOKUP($C25,'RECAP SECT'!$G$6:$DC$253,43,FALSE) -> 34% | I25: =VLOOKUP($C25,'RECAP SECT'!$G$6:$DC$253,44,FALSE) -> 11 | J25: =VLOOKUP($C25,'RECAP SECT'!$G$6:$DC$253,45,FALSE) -> 581 | K25: =VLOOKUP($C25,'RECAP SECT'!$G$6:$DC$253,46,FALSE) -> 8.49 | L25: =VLOOKUP($C25,'RECAP SECT'!$G$6:$DC$253,47,FALSE) -> 38% | M25: =VLOOKUP($C25,'RECAP SECT'!$G$6:$DC$253,48,FALSE) -> 12 | N25: =VLOOKUP($C25,'RECAP SECT'!$G$6:$DC$253,49,FALSE) -> 35% | O25: =VLOOKUP($C25,'RECAP SECT'!$G$6:$DC$253,50,FALSE) -> 26% | P25: =VLOOKUP($C25,'RECAP SECT'!$G$6:$DC$253,51,FALSE) -> 11
A26: 80 | B26: VOSGES | C26: 57 | D26: EPINAL | E26: =VLOOKUP($C26,'RECAP SECT'!$G$6:$DC$253,3,FALSE) -> 60.9 | F26: =VLOOKUP($C26,'RECAP SECT'!$G$6:$DC$253,41,FALSE) -> 15,868 | G26: =VLOOKUP($C26,'RECAP SECT'!$G$6:$DC$253,42,FALSE) -> 260.54 | H26: =VLOOKUP($C26,'RECAP SECT'!$G$6:$DC$253,43,FALSE) -> 21% | I26: =VLOOKUP($C26,'RECAP SECT'!$G$6:$DC$253,44,FALSE) -> 7 | J26: =VLOOKUP($C26,'RECAP SECT'!$G$6:$DC$253,45,FALSE) -> 380 | K26: =VLOOKUP($C26,'RECAP SECT'!$G$6:$DC$253,46,FALSE) -> 6.24 | L26: =VLOOKUP($C26,'RECAP SECT'!$G$6:$DC$253,47,FALSE) -> 54% | M26: =VLOOKUP($C26,'RECAP SECT'!$G$6:$DC$253,48,FALSE) -> 18 | N26: =VLOOKUP($C26,'RECAP SECT'!$G$6:$DC$253,49,FALSE) -> 31% | O26: =VLOOKUP($C26,'RECAP SECT'!$G$6:$DC$253,50,FALSE) -> 22% | P26: =VLOOKUP($C26,'RECAP SECT'!$G$6:$DC$253,51,FALSE) -> 9
A27: 80 | B27: VOSGES | C27: 55 | D27: SAINT DIE | E27: =VLOOKUP($C27,'RECAP SECT'!$G$6:$DC$253,3,FALSE) -> 48.3 | F27: =VLOOKUP($C27,'RECAP SECT'!$G$6:$DC$253,41,FALSE) -> 15,989 | G27: =VLOOKUP($C27,'RECAP SECT'!$G$6:$DC$253,42,FALSE) -> 331.07 | H27: =VLOOKUP($C27,'RECAP SECT'!$G$6:$DC$253,43,FALSE) -> 0% | I27: =VLOOKUP($C27,'RECAP SECT'!$G$6:$DC$253,44,FALSE) -> 1 | J27: =VLOOKUP($C27,'RECAP SECT'!$G$6:$DC$253,45,FALSE) -> 339 | K27: =VLOOKUP($C27,'RECAP SECT'!$G$6:$DC$253,46,FALSE) -> 7.02 | L27: =VLOOKUP($C27,'RECAP SECT'!$G$6:$DC$253,47,FALSE) -> 49% | M27: =VLOOKUP($C27,'RECAP SECT'!$G$6:$DC$253,48,FALSE) -> 17 | N27: =VLOOKUP($C27,'RECAP SECT'!$G$6:$DC$253,49,FALSE) -> 15% | O27: =VLOOKUP($C27,'RECAP SECT'!$G$6:$DC$253,50,FALSE) -> 6% | P27: =VLOOKUP($C27,'RECAP SECT'!$G$6:$DC$253,51,FALSE) -> 3
A28: Total CEGEE Directions Régionales | E28: =SUM(E10:E27) -> 1146

Sheet SE_CREDIT
B1: Accueil | F1: BAROMETRE BDD - TERRITOIRES
F2: CREDITS
F3: =ACCUEIL!F7 -> 2021-04-11
F7: Engagements et ventes accessoires pondérés Immo | J7: Engagements et ventes accessoires pondérés Conso | N7: Ventes sur client non détenteur de l’univers | R7: Total Crédits
F8: =DATEMAJ!C18 -> au 11/04 | H8: coef | I8: ='RECAP DIRCOM'!BM4 -> 8% | J8: =DATEMAJ!C19 -> au 11/04 | L8: coef | M8: ='RECAP DIRCOM'!BQ4 -> 6% | N8: =DATEMAJ!C20 -> au 11/04 | P8: coef | Q8: ='RECAP DIRCOM'!BU4 -> 6% | S8: coef | T8: ='RECAP DIRCOM'!BX4 -> 20%
B9: Direction | C9: eds | D9: Territoire | E9: ="ETP perf "&DATEMAJ!$C$28 -> ETP perf 28-févr | F9: PNB | G9: PNB / ETP | H9: % Ecart au 1er | I9: Rang | J9: PNB | K9: PNB / ETP | L9: % Ecart au 1er | M9: Rang | N9: VB | O9: VB / ETP | P9: % Ecart au 1er | Q9: Rang | R9: Moyenne ecart au 1er | S9: % Ecart au 1er | T9: Rang CEGEE
A10: 50 | B10: AUBE HAUTE MARNE | C10: 21 | D10: CHAUMONT | E10: =VLOOKUP($C10,'RECAP SECT'!$G$6:$DC$253,3,FALSE) -> 33.9 | F10: =VLOOKUP($C10,'RECAP SECT'!$G$6:$DC$253,56,FALSE) -> 1,260 | G10: =VLOOKUP($C10,'RECAP SECT'!$G$6:$DC$253,57,FALSE) -> 37.19 | H10: =VLOOKUP($C10,'RECAP SECT'!$G$6:$DC$253,58,FALSE) -> 64% | I10: =VLOOKUP($C10,'RECAP SECT'!$G$6:$DC$253,59,FALSE) -> 14 | J10: =VLOOKUP($C10,'RECAP SECT'!$G$6:$DC$253,60,FALSE) -> 916 | K10: =VLOOKUP($C10,'RECAP SECT'!$G$6:$DC$253,61,FALSE) -> 27.03 | L10: =VLOOKUP($C10,'RECAP SECT'!$G$6:$DC$253,62,FALSE) -> 0% | M10: =VLOOKUP($C10,'RECAP SECT'!$G$6:$DC$253,63,FALSE) -> 1 | N10: =VLOOKUP($C10,'RECAP SECT'!$G$6:$DC$253,64,FALSE) -> 219 | O10: =VLOOKUP($C10,'RECAP SECT'!$G$6:$DC$253,65,FALSE) -> 6.46 | P10: =VLOOKUP($C10,'RECAP SECT'!$G$6:$DC$253,66,FALSE) -> 32% | Q10: =VLOOKUP($C10,'RECAP SECT'!$G$6:$DC$253,67,FALSE) -> 7 | R10: =VLOOKUP($C10,'RECAP SECT'!$G$6:$DC$253,68,FALSE) -> 35% | S10: =VLOOKUP($C10,'RECAP SECT'!$G$6:$DC$253,69,FALSE) -> 28% | T10: =VLOOKUP($C10,'RECAP SECT'!$G$6:$DC$253,70,FALSE) -> 7
A11: 50 | B11: AUBE HAUTE MARNE | C11: 14 | D11: TROYES | E11: =VLOOKUP($C11,'RECAP SECT'!$G$6:$DC$253,3,FALSE) -> 66.8 | F11: =VLOOKUP($C11,'RECAP SECT'!$G$6:$DC$253,56,FALSE) -> 2,838 | G11: =VLOOKUP($C11,'RECAP SECT'!$G$6:$DC$253,57,FALSE) -> 42.46 | H11: =VLOOKUP($C11,'RECAP SECT'!$G$6:$DC$253,58,FALSE) -> 58% | I11: =VLOOKUP($C11,'RECAP SECT'!$G$6:$DC$253,59,FALSE) -> 11 | J11: =VLOOKUP($C11,'RECAP SECT'!$G$6:$DC$253,60,FALSE) -> 1,292 | K11: =VLOOKUP($C11,'RECAP SECT'!$G$6:$DC$253,61,FALSE) -> 19.33 | L11: =VLOOKUP($C11,'RECAP SECT'!$G$6:$DC$253,62,FALSE) -> 28% | M11: =VLOOKUP($C11,'RECAP SECT'!$G$6:$DC$253,63,FALSE) -> 12 | N11: =VLOOKUP($C11,'RECAP SECT'!$G$6:$DC$253,64,FALSE) -> 383 | O11: =VLOOKUP($C11,'RECAP SECT'!$G$6:$DC$253,65,FALSE) -> 5.73 | P11: =VLOOKUP($C11,'RECAP SECT'!$G$6:$DC$253,66,FALSE) -> 39% | Q11: =VLOOKUP($C11,'RECAP SECT'!$G$6:$DC$253,67,FALSE) -> 10 | R11: =VLOOKUP($C11,'RECAP SECT'!$G$6:$DC$253,68,FALSE) -> 44% | S11: =VLOOKUP($C11,'RECAP SECT'!$G$6:$DC$253,69,FALSE) -> 36% | T11: =VLOOKUP($C11,'RECAP SECT'!$G$6:$DC$253,70,FALSE) -> 12
A12: 262 | B12: BAS-RHIN | C12: 5060 | D12: HAGUENAU | E12: =VLOOKUP($C12,'RECAP SECT'!$G$6:$DC$253,3,FALSE) -> 71.0 | F12: =VLOOKUP($C12,'RECAP SECT'!$G$6:$DC$253,56,FALSE) -> 2,547 | G12: =VLOOKUP($C12,'RECAP SECT'!$G$6:$DC$253,57,FALSE) -> 35.88 | H12: =VLOOKUP($C12,'RECAP SECT'!$G$6:$DC$253,58,FALSE) -> 65% | I12: =VLOOKUP($C12,'RECAP SECT'!$G$6:$DC$253,59,FALSE) -> 15 | J12: =VLOOKUP($C12,'RECAP SECT'!$G$6:$DC$253,60,FALSE) -> 1,495 | K12: =VLOOKUP($C12,'RECAP SECT'!$G$6:$DC$253,61,FALSE) -> 21.06 | L12: =VLOOKUP($C12,'RECAP SECT'!$G$6:$DC$253,62,FALSE) -> 22% | M12: =VLOOKUP($C12,'RECAP SECT'!$G$6:$DC$253,63,FALSE) -> 5 | N12: =VLOOKUP($C12,'RECAP SECT'!$G$6:$DC$253,64,FALSE) -> 318 | O12: =VLOOKUP($C12,'RECAP SECT'!$G$6:$DC$253,65,FALSE) -> 4.48 | P12: =VLOOKUP($C12,'RECAP SECT'!$G$6:$DC$253,66,FALSE) -> 53% | Q12: =VLOOKUP($C12,'RECAP SECT'!$G$6:$DC$253,67,FALSE) -> 16 | R12: =VLOOKUP($C12,'RECAP SECT'!$G$6:$DC$253,68,FALSE) -> 48% | S12: =VLOOKUP($C12,'RECAP SECT'!$G$6:$DC$253,69,FALSE) -> 41% | T12: =VLOOKUP($C12,'RECAP SECT'!$G$6:$DC$253,70,FALSE) -> 16
A13: 262 | B13: BAS-RHIN | C13: 5101 | D13: SELESTAT | E13: =VLOOKUP($C13,'RECAP SECT'!$G$6:$DC$253,3,FALSE) -> 60.3 | F13: =VLOOKUP($C13,'RECAP SECT'!$G$6:$DC$253,56,FALSE) -> 1,926 | G13: =VLOOKUP($C13,'RECAP SECT'!$G$6:$DC$253,57,FALSE) -> 31.96 | H13: =VLOOKUP($C13,'RECAP SECT'!$G$6:$DC$253,58,FALSE) -> 69% | I13: =VLOOKUP($C13,'RECAP SECT'!$G$6:$DC$253,59,FALSE) -> 16 | J13: =VLOOKUP($C13,'RECAP SECT'!$G$6:$DC$253,60,FALSE) -> 1,243 | K13: =VLOOKUP($C13,'RECAP SECT'!$G$6:$DC$253,61,FALSE) -> 20.63 | L13: =VLOOKUP($C13,'RECAP SECT'!$G$6:$DC$253,62,FALSE) -> 24% | M13: =VLOOKUP($C13,'RECAP SECT'!$G$6:$DC$253,63,FALSE) -> 7 | N13: =VLOOKUP($C13,'RECAP SECT'!$G$6:$DC$253,64,FALSE) -> 312 | O13: =VLOOKUP($C13,'RECAP SECT'!$G$6:$DC$253,65,FALSE) -> 5.18 | P13: =VLOOKUP($C13,'RECAP SECT'!$G$6:$DC$253,66,FALSE) -> 45% | Q13: =VLOOKUP($C13,'RECAP SECT'!$G$6:$DC$253,67,FALSE) -> 13 | R13: =VLOOKUP($C13,'RECAP SECT'!$G$6:$DC$253,68,FALSE) -> 48% | S13: =VLOOKUP($C13,'RECAP SECT'!$G$6:$DC$253,69,FALSE) -> 41% | T13: =VLOOKUP($C13,'RECAP SECT'!$G$6:$DC$253,70,FALSE) -> 15
A14: 262 | B14: BAS-RHIN | C14: 5006 | D14: STRASBOURG | E14: =VLOOKUP($C14,'RECAP SECT'!$G$6:$DC$253,3,FALSE) -> 75.4 | F14: =VLOOKUP($C14,'RECAP SECT'!$G$6:$DC$253,56,FALSE) -> 4,441 | G14: =VLOOKUP($C14,'RECAP SECT'!$G$6:$DC$253,57,FALSE) -> 58.89 | H14: =VLOOKUP($C14,'RECAP SECT'!$G$6:$DC$253,58,FALSE) -> 42% | I14: =VLOOKUP($C14,'RECAP SECT'!$G$6:$DC$253,59,FALSE) -> 6 | J14: =VLOOKUP($C14,'RECAP SECT'!$G$6:$DC$253,60,FALSE) -> 1,379 | K14: =VLOOKUP($C14,'RECAP SECT'!$G$6:$DC$253,61,FALSE) -> 18.28 | L14: =VLOOKUP($C14,'RECAP SECT'!$G$6:$DC$253,62,FALSE) -> 32% | M14: =VLOOKUP($C14,'RECAP SECT'!$G$6:$DC$253,63,FALSE) -> 15 | N14: =VLOOKUP($C14,'RECAP SECT'!$G$6:$DC$253,64,FALSE) -> 452 | O14: =VLOOKUP($C14,'RECAP SECT'!$G$6:$DC$253,65,FALSE) -> 5.99 | P14: =VLOOKUP($C14,'RECAP SECT'!$G$6:$DC$253,66,FALSE) -> 37% | Q14: =VLOOKUP($C14,'RECAP SECT'!$G$6:$DC$253,67,FALSE) -> 9 | R14: =VLOOKUP($C14,'RECAP SECT'!$G$6:$DC$253,68,FALSE) -> 38% | S14: =VLOOKUP($C14,'RECAP SECT'!$G$6:$DC$253,69,FALSE) -> 30% | T14: =VLOOKUP($C14,'RECAP SECT'!$G$6:$DC$253,70,FALSE) -> 9
A15: 264 | B15: HAUT-RHIN | C15: 5130 | D15: COLMAR | E15: =VLOOKUP($C15,'RECAP SECT'!$G$6:$DC$253,3,FALSE) -> 61.1 | F15: =VLOOKUP($C15,'RECAP SECT'!$G$6:$DC$253,56,FALSE) -> 1,335 | G15: =VLOOKUP($C15,'RECAP SECT'!$G$6:$DC$253,57,FALSE) -> 21.86 | H15: =VLOOKUP($C15,'RECAP SECT'!$G$6:$DC$253,58,FALSE) -> 79% | I15: =VLOOKUP($C15,'RECAP SECT'!$G$6:$DC$253,59,FALSE) -> 18 | J15: =VLOOKUP($C15,'RECAP SECT'!$G$6:$DC$253,60,FALSE) -> 1,064 | K15: =VLOOKUP($C15,'RECAP SECT'!$G$6:$DC$253,61,FALSE) -> 17.42 | L15: =VLOOKUP($C15,'RECAP SECT'!$G$6:$DC$253,62,FALSE) -> 36% | M15: =VLOOKUP($C15,'RECAP SECT'!$G$6:$DC$253,63,FALSE) -> 16 | N15: =VLOOKUP($C15,'RECAP SECT'!$G$6:$DC$253,64,FALSE) -> 245 | O15: =VLOOKUP($C15,'RECAP SECT'!$G$6:$DC$253,65,FALSE) -> 4.01 | P15: =VLOOKUP($C15,'RECAP SECT'!$G$6:$DC$253,66,FALSE) -> 58% | Q15: =VLOOKUP($C15,'RECAP SECT'!$G$6:$DC$253,67,FALSE) -> 18 | R15: =VLOOKUP($C15,'RECAP SECT'!$G$6:$DC$253,68,FALSE) -> 59% | S15: =VLOOKUP($C15,'RECAP SECT'!$G$6:$DC$253,69,FALSE) -> 52% | T15: =VLOOKUP($C15,'RECAP SECT'!$G$6:$DC$253,70,FALSE) -> 18
A16: 264 | B16: HAUT-RHIN | C16: 5169 | D16: MULHOUSE | E16: =VLOOKUP($C16,'RECAP SECT'!$G$6:$DC$253,3,FALSE) -> 59.9 | F16: =VLOOKUP($C16,'RECAP SECT'!$G$6:$DC$253,56,FALSE) -> 2,431 | G16: =VLOOKUP($C16,'RECAP SECT'!$G$6:$DC$253,57,FALSE) -> 40.55 | H16: =VLOOKUP($C16,'RECAP SECT'!$G$6:$DC$253,58,FALSE) -> 60% | I16: =VLOOKUP($C16,'RECAP SECT'!$G$6:$DC$253,59,FALSE) -> 12 | J16: =VLOOKUP($C16,'RECAP SECT'!$G$6:$DC$253,60,FALSE) -> 1,031 | K16: =VLOOKUP($C16,'RECAP SECT'!$G$6:$DC$253,61,FALSE) -> 17.20 | L16: =VLOOKUP($C16,'RECAP SECT'!$G$6:$DC$253,62,FALSE) -> 36% | M16: =VLOOKUP($C16,'RECAP SECT'!$G$6:$DC$253,63,FALSE) -> 17 | N16: =VLOOKUP($C16,'RECAP SECT'!$G$6:$DC$253,64,FALSE) -> 249 | O16: =VLOOKUP($C16,'RECAP SECT'!$G$6:$DC$253,65,FALSE) -> 4.15 | P16: =VLOOKUP($C16,'RECAP SECT'!$G$6:$DC$253,66,FALSE) -> 56% | Q16: =VLOOKUP($C16,'RECAP SECT'!$G$6:$DC$253,67,FALSE) -> 17 | R16: =VLOOKUP($C16,'RECAP SECT'!$G$6:$DC$253,68,FALSE) -> 52% | S16: =VLOOKUP($C16,'RECAP SECT'!$G$6:$DC$253,69,FALSE) -> 45% | T16: =VLOOKUP($C16,'RECAP SECT'!$G$6:$DC$253,70,FALSE) -> 17
A17: 30 | B17: MARNE-ARDENNES | C17: 6 | D17: CHALONS EN CHAMPAGNE | E17: =VLOOKUP($C17,'RECAP SECT'!$G$6:$DC$253,3,FALSE) -> 44.2 | F17: =VLOOKUP($C17,'RECAP SECT'!$G$6:$DC$253,56,FALSE) -> 2,548 | G17: =VLOOKUP($C17,'RECAP SECT'!$G$6:$DC$253,57,FALSE) -> 57.66 | H17: =VLOOKUP($C17,'RECAP SECT'!$G$6:$DC$253,58,FALSE) -> 44% | I17: =VLOOKUP($C17,'RECAP SECT'!$G$6:$DC$253,59,FALSE) -> 7 | J17: =VLOOKUP($C17,'RECAP SECT'!$G$6:$DC$253,60,FALSE) -> 845 | K17: =VLOOKUP($C17,'RECAP SECT'!$G$6:$DC$253,61,FALSE) -> 19.12 | L17: =VLOOKUP($C17,'RECAP SECT'!$G$6:$DC$253,62,FALSE) -> 29% | M17: =VLOOKUP($C17,'RECAP SECT'!$G$6:$DC$253,63,FALSE) -> 14 | N17: =VLOOKUP($C17,'RECAP SECT'!$G$6:$DC$253,64,FALSE) -> 306 | O17: =VLOOKUP($C17,'RECAP SECT'!$G$6:$DC$253,65,FALSE) -> 6.92 | P17: =VLOOKUP($C17,'RECAP SECT'!$G$6:$DC$253,66,FALSE) -> 27% | Q17: =VLOOKUP($C17,'RECAP SECT'!$G$6:$DC$253,67,FALSE) -> 4 | R17: =VLOOKUP($C17,'RECAP SECT'!$G$6:$DC$253,68,FALSE) -> 34% | S17: =VLOOKUP($C17,'RECAP SECT'!$G$6:$DC$253,69,FALSE) -> 27% | T17: =VLOOKUP($C17,'RECAP SECT'!$G$6:$DC$253,70,FALSE) -> 6
A18: 30 | B18: MARNE-ARDENNES | C18: 2 | D18: CHARLEVILLE MEZIERES | E18: =VLOOKUP($C18,'RECAP SECT'!$G$6:$DC$253,3,FALSE) -> 55.4 | F18: =VLOOKUP($C18,'RECAP SECT'!$G$6:$DC$253,56,FALSE) -> 4,311 | G18: =VLOOKUP($C18,'RECAP SECT'!$G$6:$DC$253,57,FALSE) -> 77.83 | H18: =VLOOKUP($C18,'RECAP SECT'!$G$6:$DC$253,58,FALSE) -> 24% | I18: =VLOOKUP($C18,'RECAP SECT'!$G$6:$DC$253,59,FALSE) -> 4 | J18: =VLOOKUP($C18,'RECAP SECT'!$G$6:$DC$253,60,FALSE) -> 1,092 | K18: =VLOOKUP($C18,'RECAP SECT'!$G$6:$DC$253,61,FALSE) -> 19.71 | L18: =VLOOKUP($C18,'RECAP SECT'!$G$6:$DC$253,62,FALSE) -> 27% | M18: =VLOOKUP($C18,'RECAP SECT'!$G$6:$DC$253,63,FALSE) -> 10 | N18: =VLOOKUP($C18,'RECAP SECT'!$G$6:$DC$253,64,FALSE) -> 400 | O18: =VLOOKUP($C18,'RECAP SECT'!$G$6:$DC$253,65,FALSE) -> 7.22 | P18: =VLOOKUP($C18,'RECAP SECT'!$G$6:$DC$253,66,FALSE) -> 24% | Q18: =VLOOKUP($C18,'RECAP SECT'!$G$6:$DC$253,67,FALSE) -> 3 | R18: =VLOOKUP($C18,'RECAP SECT'!$G$6:$DC$253,68,FALSE) -> 25% | S18: =VLOOKUP($C18,'RECAP SECT'!$G$6:$DC$253,69,FALSE) -> 17% | T18: =VLOOKUP($C18,'RECAP SECT'!$G$6:$DC$253,70,FALSE) -> 3
A19: 30 | B19: MARNE-ARDENNES | C19: 11 | D19: REIMS | E19: =VLOOKUP($C19,'RECAP SECT'!$G$6:$DC$253,3,FALSE) -> 81.6 | F19: =VLOOKUP($C19,'RECAP SECT'!$G$6:$DC$253,56,FALSE) -> 6,600 | G19: =VLOOKUP($C19,'RECAP SECT'!$G$6:$DC$253,57,FALSE) -> 80.84 | H19: =VLOOKUP($C19,'RECAP SECT'!$G$6:$DC$253,58,FALSE) -> 21% | I19: =VLOOKUP($C19,'RECAP SECT'!$G$6:$DC$253,59,FALSE) -> 3 | J19: =VLOOKUP($C19,'RECAP SECT'!$G$6:$DC$253,60,FALSE) -> 1,562 | K19: =VLOOKUP($C19,'RECAP SECT'!$G$6:$DC$253,61,FALSE) -> 19.13 | L19: =VLOOKUP($C19,'RECAP SECT'!$G$6:$DC$253,62,FALSE) -> 29% | M19: =VLOOKUP($C19,'RECAP SECT'!$G$6:$DC$253,63,FALSE) -> 13 | N19: =VLOOKUP($C19,'RECAP SECT'!$G$6:$DC$253,64,FALSE) -> 561 | O19: =VLOOKUP($C19,'RECAP SECT'!$G$6:$DC$253,65,FALSE) -> 6.87 | P19: =VLOOKUP($C19,'RECAP SECT'!$G$6:$DC$253,66,FALSE) -> 27% | Q19: =VLOOKUP($C19,'RECAP SECT'!$G$6:$DC$253,67,FALSE) -> 5 | R19: =VLOOKUP($C19,'RECAP SECT'!$G$6:$DC$253,68,FALSE) -> 25% | S19: =VLOOKUP($C19,'RECAP SECT'!$G$6:$DC$253,69,FALSE) -> 18% | T19: =VLOOKUP($C19,'RECAP SECT'!$G$6:$DC$253,70,FALSE) -> 4
A20: 110 | B20: MEURTHE ET MOSELLE MEUSE | C20: 26 | D20: NANCY | E20: =VLOOKUP($C20,'RECAP SECT'!$G$6:$DC$253,3,FALSE) -> 65.8 | F20: =VLOOKUP($C20,'RECAP SECT'!$G$6:$DC$253,56,FALSE) -> 6,720 | G20: =VLOOKUP($C20,'RECAP SECT'!$G$6:$DC$253,57,FALSE) -> 102.14 | H20: =VLOOKUP($C20,'RECAP SECT'!$G$6:$DC$253,58,FALSE) -> 0% | I20: =VLOOKUP($C20,'RECAP SECT'!$G$6:$DC$253,59,FALSE) -> 1 | J20: =VLOOKUP($C20,'RECAP SECT'!$G$6:$DC$253,60,FALSE) -> 1,344 | K20: =VLOOKUP($C20,'RECAP SECT'!$G$6:$DC$253,61,FALSE) -> 20.43 | L20: =VLOOKUP($C20,'RECAP SECT'!$G$6:$DC$253,62,FALSE) -> 24% | M20: =VLOOKUP($C20,'RECAP SECT'!$G$6:$DC$253,63,FALSE) -> 8 | N20: =VLOOKUP($C20,'RECAP SECT'!$G$6:$DC$253,64,FALSE) -> 623 | O20: =VLOOKUP($C20,'RECAP SECT'!$G$6:$DC$253,65,FALSE) -> 9.47 | P20: =VLOOKUP($C20,'RECAP SECT'!$G$6:$DC$253,66,FALSE) -> 0% | Q20: =VLOOKUP($C20,'RECAP SECT'!$G$6:$DC$253,67,FALSE) -> 1 | R20: =VLOOKUP($C20,'RECAP SECT'!$G$6:$DC$253,68,FALSE) -> 7% | S20: =VLOOKUP($C20,'RECAP SECT'!$G$6:$DC$253,69,FALSE) -> 0% | T20: =VLOOKUP($C20,'RECAP SECT'!$G$6:$DC$253,70,FALSE) -> 1
A21: 110 | B21: MEURTHE ET MOSELLE MEUSE | C21: 27 | D21: PONT A MOUSSON | E21: =VLOOKUP($C21,'RECAP SECT'!$G$6:$DC$253,3,FALSE) -> 77.0 | F21: =VLOOKUP($C21,'RECAP SECT'!$G$6:$DC$253,56,FALSE) -> 7,678 | G21: =VLOOKUP($C21,'RECAP SECT'!$G$6:$DC$253,57,FALSE) -> 99.66 | H21: =VLOOKUP($C21,'RECAP SECT'!$G$6:$DC$253,58,FALSE) -> 2% | I21: =VLOOKUP($C21,'RECAP SECT'!$G$6:$DC$253,59,FALSE) -> 2 | J21: =VLOOKUP($C21,'RECAP SECT'!$G$6:$DC$253,60,FALSE) -> 1,635 | K21: =VLOOKUP($C21,'RECAP SECT'!$G$6:$DC$253,61,FALSE) -> 21.22 | L21: =VLOOKUP($C21,'RECAP SECT'!$G$6:$DC$253,62,FALSE) -> 22% | M21: =VLOOKUP($C21,'RECAP SECT'!$G$6:$DC$253,63,FALSE) -> 4 | N21: =VLOOKUP($C21,'RECAP SECT'!$G$6:$DC$253,64,FALSE) -> 630 | O21: =VLOOKUP($C21,'RECAP SECT'!$G$6:$DC$253,65,FALSE) -> 8.18 | P21: =VLOOKUP($C21,'RECAP SECT'!$G$6:$DC$253,66,FALSE) -> 14% | Q21: =VLOOKUP($C21,'RECAP SECT'!$G$6:$DC$253,67,FALSE) -> 2 | R21: =VLOOKUP($C21,'RECAP SECT'!$G$6:$DC$253,68,FALSE) -> 12% | S21: =VLOOKUP($C21,'RECAP SECT'!$G$6:$DC$253,69,FALSE) -> 4% | T21: =VLOOKUP($C21,'RECAP SECT'!$G$6:$DC$253,70,FALSE) -> 2
A22: 110 | B22: MEURTHE ET MOSELLE MEUSE | C22: 31 | D22: VERDUN | E22: =VLOOKUP($C22,'RECAP SECT'!$G$6:$DC$253,3,FALSE) -> 56.3 | F22: =VLOOKUP($C22,'RECAP SECT'!$G$6:$DC$253,56,FALSE) -> 3,245 | G22: =VLOOKUP($C22,'RECAP SECT'!$G$6:$DC$253,57,FALSE) -> 57.59 | H22: =VLOOKUP($C22,'RECAP SECT'!$G$6:$DC$253,58,FALSE) -> 44% | I22: =VLOOKUP($C22,'RECAP SECT'!$G$6:$DC$253,59,FALSE) -> 8 | J22: =VLOOKUP($C22,'RECAP SECT'!$G$6:$DC$253,60,FALSE) -> 1,333 | K22: =VLOOKUP($C22,'RECAP SECT'!$G$6:$DC$253,61,FALSE) -> 23.66 | L22: =VLOOKUP($C22,'RECAP SECT'!$G$6:$DC$253,62,FALSE) -> 12% | M22: =VLOOKUP($C22,'RECAP SECT'!$G$6:$DC$253,63,FALSE) -> 3 | N22: =VLOOKUP($C22,'RECAP SECT'!$G$6:$DC$253,64,FALSE) -> 369 | O22: =VLOOKUP($C22,'RECAP SECT'!$G$6:$DC$253,65,FALSE) -> 6.55 | P22: =VLOOKUP($C22,'RECAP SECT'!$G$6:$DC$253,66,FALSE) -> 31% | Q22: =VLOOKUP($C22,'RECAP SECT'!$G$6:$DC$253,67,FALSE) -> 6 | R22: =VLOOKUP($C22,'RECAP SECT'!$G$6:$DC$253,68,FALSE) -> 30% | S22: =VLOOKUP($C22,'RECAP SECT'!$G$6:$DC$253,69,FALSE) -> 23% | T22: =VLOOKUP($C22,'RECAP SECT'!$G$6:$DC$253,70,FALSE) -> 5
A23: 160 | B23: MOSELLE | C23: 45 | D23: METZ | E23: =VLOOKUP($C23,'RECAP SECT'!$G$6:$DC$253,3,FALSE) -> 90.9 | F23: =VLOOKUP($C23,'RECAP SECT'!$G$6:$DC$253,56,FALSE) -> 4,607 | G23: =VLOOKUP($C23,'RECAP SECT'!$G$6:$DC$253,57,FALSE) -> 50.69 | H23: =VLOOKUP($C23,'RECAP SECT'!$G$6:$DC$253,58,FALSE) -> 50% | I23: =VLOOKUP($C23,'RECAP SECT'!$G$6:$DC$253,59,FALSE) -> 9 | J23: =VLOOKUP($C23,'RECAP SECT'!$G$6:$DC$253,60,FALSE) -> 1,769 | K23: =VLOOKUP($C23,'RECAP SECT'!$G$6:$DC$253,61,FALSE) -> 19.47 | L23: =VLOOKUP($C23,'RECAP SECT'!$G$6:$DC$253,62,FALSE) -> 28% | M23: =VLOOKUP($C23,'RECAP SECT'!$G$6:$DC$253,63,FALSE) -> 11 | N23: =VLOOKUP($C23,'RECAP SECT'!$G$6:$DC$253,64,FALSE) -> 476 | O23: =VLOOKUP($C23,'RECAP SECT'!$G$6:$DC$253,65,FALSE) -> 5.24 | P23: =VLOOKUP($C23,'RECAP SECT'!$G$6:$DC$253,66,FALSE) -> 45% | Q23: =VLOOKUP($C23,'RECAP SECT'!$G$6:$DC$253,67,FALSE) -> 12 | R23: =VLOOKUP($C23,'RECAP SECT'!$G$6:$DC$253,68,FALSE) -> 42% | S23: =VLOOKUP($C23,'RECAP SECT'!$G$6:$DC$253,69,FALSE) -> 35% | T23: =VLOOKUP($C23,'RECAP SECT'!$G$6:$DC$253,70,FALSE) -> 10
A24: 160 | B24: MOSELLE | C24: 42 | D24: MOSELLE EST | E24: =VLOOKUP($C24,'RECAP SECT'!$G$6:$DC$253,3,FALSE) -> 69.0 | F24: =VLOOKUP($C24,'RECAP SECT'!$G$6:$DC$253,56,FALSE) -> 1,856 | G24: =VLOOKUP($C24,'RECAP SECT'!$G$6:$DC$253,57,FALSE) -> 26.91 | H24: =VLOOKUP($C24,'RECAP SECT'!$G$6:$DC$253,58,FALSE) -> 74% | I24: =VLOOKUP($C24,'RECAP SECT'!$G$6:$DC$253,59,FALSE) -> 17 | J24: =VLOOKUP($C24,'RECAP SECT'!$G$6:$DC$253,60,FALSE) -> 1,632 | K24: =VLOOKUP($C24,'RECAP SECT'!$G$6:$DC$253,61,FALSE) -> 23.66 | L24: =VLOOKUP($C24,'RECAP SECT'!$G$6:$DC$253,62,FALSE) -> 12% | M24: =VLOOKUP($C24,'RECAP SECT'!$G$6:$DC$253,63,FALSE) -> 2 | N24: =VLOOKUP($C24,'RECAP SECT'!$G$6:$DC$253,64,FALSE) -> 354 | O24: =VLOOKUP($C24,'RECAP SECT'!$G$6:$DC$253,65,FALSE) -> 5.13 | P24: =VLOOKUP($C24,'RECAP SECT'!$G$6:$DC$253,66,FALSE) -> 46% | Q24: =VLOOKUP($C24,'RECAP SECT'!$G$6:$DC$253,67,FALSE) -> 15 | R24: =VLOOKUP($C24,'RECAP SECT'!$G$6:$DC$253,68,FALSE) -> 47% | S24: =VLOOKUP($C24,'RECAP SECT'!$G$6:$DC$253,69,FALSE) -> 40% | T24: =VLOOKUP($C24,'RECAP SECT'!$G$6:$DC$253,70,FALSE) -> 14
A25: 160 | B25: MOSELLE | C25: 44 | D25: MOSELLE NORD | E25: =VLOOKUP($C25,'RECAP SECT'!$G$6:$DC$253,3,FALSE) -> 68.4 | F25: =VLOOKUP($C25,'RECAP SECT'!$G$6:$DC$253,56,FALSE) -> 4,103 | G25: =VLOOKUP($C25,'RECAP SECT'!$G$6:$DC$253,57,FALSE) -> 59.95 | H25: =VLOOKUP($C25,'RECAP SECT'!$G$6:$DC$253,58,FALSE) -> 41% | I25: =VLOOKUP($C25,'RECAP SECT'!$G$6:$DC$253,59,FALSE) -> 5 | J25: =VLOOKUP($C25,'RECAP SECT'!$G$6:$DC$253,60,FALSE) -> 1,438 | K25: =VLOOKUP($C25,'RECAP SECT'!$G$6:$DC$253,61,FALSE) -> 21.02 | L25: =VLOOKUP($C25,'RECAP SECT'!$G$6:$DC$253,62,FALSE) -> 22% | M25: =VLOOKUP($C25,'RECAP SECT'!$G$6:$DC$253,63,FALSE) -> 6 | N25: =VLOOKUP($C25,'RECAP SECT'!$G$6:$DC$253,64,FALSE) -> 366 | O25: =VLOOKUP($C25,'RECAP SECT'!$G$6:$DC$253,65,FALSE) -> 5.35 | P25: =VLOOKUP($C25,'RECAP SECT'!$G$6:$DC$253,66,FALSE) -> 44% | Q25: =VLOOKUP($C25,'RECAP SECT'!$G$6:$DC$253,67,FALSE) -> 11 | R25: =VLOOKUP($C25,'RECAP SECT'!$G$6:$DC$253,68,FALSE) -> 36% | S25: =VLOOKUP($C25,'RECAP SECT'!$G$6:$DC$253,69,FALSE) -> 29% | T25: =VLOOKUP($C25,'RECAP SECT'!$G$6:$DC$253,70,FALSE) -> 8
A26: 80 | B26: VOSGES | C26: 57 | D26: EPINAL | E26: =VLOOKUP($C26,'RECAP SECT'!$G$6:$DC$253,3,FALSE) -> 60.9 | F26: =VLOOKUP($C26,'RECAP SECT'!$G$6:$DC$253,56,FALSE) -> 2,888 | G26: =VLOOKUP($C26,'RECAP SECT'!$G$6:$DC$253,57,FALSE) -> 47.43 | H26: =VLOOKUP($C26,'RECAP SECT'!$G$6:$DC$253,58,FALSE) -> 54% | I26: =VLOOKUP($C26,'RECAP SECT'!$G$6:$DC$253,59,FALSE) -> 10 | J26: =VLOOKUP($C26,'RECAP SECT'!$G$6:$DC$253,60,FALSE) -> 1,047 | K26: =VLOOKUP($C26,'RECAP SECT'!$G$6:$DC$253,61,FALSE) -> 17.19 | L26: =VLOOKUP($C26,'RECAP SECT'!$G$6:$DC$253,62,FALSE) -> 36% | M26: =VLOOKUP($C26,'RECAP SECT'!$G$6:$DC$253,63,FALSE) -> 18 | N26: =VLOOKUP($C26,'RECAP SECT'!$G$6:$DC$253,64,FALSE) -> 384 | O26: =VLOOKUP($C26,'RECAP SECT'!$G$6:$DC$253,65,FALSE) -> 6.31 | P26: =VLOOKUP($C26,'RECAP SECT'!$G$6:$DC$253,66,FALSE) -> 33% | Q26: =VLOOKUP($C26,'RECAP SECT'!$G$6:$DC$253,67,FALSE) -> 8 | R26: =VLOOKUP($C26,'RECAP SECT'!$G$6:$DC$253,68,FALSE) -> 42% | S26: =VLOOKUP($C26,'RECAP SECT'!$G$6:$DC$253,69,FALSE) -> 35% | T26: =VLOOKUP($C26,'RECAP SECT'!$G$6:$DC$253,70,FALSE) -> 11
A27: 80 | B27: VOSGES | C27: 55 | D27: SAINT DIE | E27: =VLOOKUP($C27,'RECAP SECT'!$G$6:$DC$253,3,FALSE) -> 48.3 | F27: =VLOOKUP($C27,'RECAP SECT'!$G$6:$DC$253,56,FALSE) -> 1,952 | G27: =VLOOKUP($C27,'RECAP SECT'!$G$6:$DC$253,57,FALSE) -> 40.43 | H27: =VLOOKUP($C27,'RECAP SECT'!$G$6:$DC$253,58,FALSE) -> 60% | I27: =VLOOKUP($C27,'RECAP SECT'!$G$6:$DC$253,59,FALSE) -> 13 | J27: =VLOOKUP($C27,'RECAP SECT'!$G$6:$DC$253,60,FALSE) -> 952 | K27: =VLOOKUP($C27,'RECAP SECT'!$G$6:$DC$253,61,FALSE) -> 19.72 | L27: =VLOOKUP($C27,'RECAP SECT'!$G$6:$DC$253,62,FALSE) -> 27% | M27: =VLOOKUP($C27,'RECAP SECT'!$G$6:$DC$253,63,FALSE) -> 9 | N27: =VLOOKUP($C27,'RECAP SECT'!$G$6:$DC$253,64,FALSE) -> 248 | O27: =VLOOKUP($C27,'RECAP SECT'!$G$6:$DC$253,65,FALSE) -> 5.13 | P27: =VLOOKUP($C27,'RECAP SECT'!$G$6:$DC$253,66,FALSE) -> 46% | Q27: =VLOOKUP($C27,'RECAP SECT'!$G$6:$DC$253,67,FALSE) -> 14 | R27: =VLOOKUP($C27,'RECAP SECT'!$G$6:$DC$253,68,FALSE) -> 46% | S27: =VLOOKUP($C27,'RECAP SECT'!$G$6:$DC$253,69,FALSE) -> 39% | T27: =VLOOKUP($C27,'RECAP SECT'!$G$6:$DC$253,70,FALSE) -> 13
A28: Total CEGEE Directions Régionales | E28: =SUM(E10:E27) -> 1146

Sheet SE_IARD
B1: Accueil | F1: BAROMETRE BDD - TERRITOIRES
F2: IARD ET PREVOYANCE
F3: =ACCUEIL!F7 -> 2021-04-11
F7: Ventes Nettes produits pondérés | J7: Ventes sur client non détenteur de l’univers | N7: Total IARD Prévoyance
F8: =DATEMAJ!C23 -> au 11/04 | H8: coef | I8: ='RECAP DIRCOM'!CF4 -> 14% | J8: =DATEMAJ!C24 -> au 11/04 | L8: coef | M8: ='RECAP DIRCOM'!CJ4 -> 6% | O8: coef | P8: ='RECAP DIRCOM'!CM4 -> 20%
B9: Direction | C9: eds | D9: Territoire | E9: ="ETP perf "&DATEMAJ!$C$28 -> ETP perf 28-févr | F9: VN | G9: VN / ETP | H9: % Ecart au 1er | I9: Rang | J9: VB | K9: VB / ETP | L9: % Ecart au 1er | M9: Rang | N9: Moyenne ecart au 1er | O9: % Ecart au 1er | P9: Rang CEGEE
A10: 50 | B10: AUBE HAUTE MARNE | C10: 21 | D10: CHAUMONT | E10: =VLOOKUP($C10,'RECAP SECT'!$G$6:$DC$253,3,FALSE) -> 33.9 | F10: =VLOOKUP($C10,'RECAP SECT'!$G$6:$DC$253,75,FALSE) -> 3,180 | G10: =VLOOKUP($C10,'RECAP SECT'!$G$6:$DC$253,76,FALSE) -> 93.85 | H10: =VLOOKUP($C10,'RECAP SECT'!$G$6:$DC$253,77,FALSE) -> 12% | I10: =VLOOKUP($C10,'RECAP SECT'!$G$6:$DC$253,78,FALSE) -> 5 | J10: =VLOOKUP($C10,'RECAP SECT'!$G$6:$DC$253,79,FALSE) -> 586 | K10: =VLOOKUP($C10,'RECAP SECT'!$G$6:$DC$253,80,FALSE) -> 17.30 | L10: =VLOOKUP($C10,'RECAP SECT'!$G$6:$DC$253,81,FALSE) -> 11% | M10: =VLOOKUP($C10,'RECAP SECT'!$G$6:$DC$253,82,FALSE) -> 3 | N10: =VLOOKUP($C10,'RECAP SECT'!$G$6:$DC$253,83,FALSE) -> 12% | O10: =VLOOKUP($C10,'RECAP SECT'!$G$6:$DC$253,84,FALSE) -> 8% | P10: =VLOOKUP($C10,'RECAP SECT'!$G$6:$DC$253,85,FALSE) -> 3
A11: 50 | B11: AUBE HAUTE MARNE | C11: 14 | D11: TROYES | E11: =VLOOKUP($C11,'RECAP SECT'!$G$6:$DC$253,3,FALSE) -> 66.8 | F11: =VLOOKUP($C11,'RECAP SECT'!$G$6:$DC$253,75,FALSE) -> 3,624 | G11: =VLOOKUP($C11,'RECAP SECT'!$G$6:$DC$253,76,FALSE) -> 54.22 | H11: =VLOOKUP($C11,'RECAP SECT'!$G$6:$DC$253,77,FALSE) -> 49% | I11: =VLOOKUP($C11,'RECAP SECT'!$G$6:$DC$253,78,FALSE) -> 17 | J11: =VLOOKUP($C11,'RECAP SECT'!$G$6:$DC$253,79,FALSE) -> 916 | K11: =VLOOKUP($C11,'RECAP SECT'!$G$6:$DC$253,80,FALSE) -> 13.71 | L11: =VLOOKUP($C11,'RECAP SECT'!$G$6:$DC$253,81,FALSE) -> 29% | M11: =VLOOKUP($C11,'RECAP SECT'!$G$6:$DC$253,82,FALSE) -> 13 | N11: =VLOOKUP($C11,'RECAP SECT'!$G$6:$DC$253,83,FALSE) -> 43% | O11: =VLOOKUP($C11,'RECAP SECT'!$G$6:$DC$253,84,FALSE) -> 40% | P11: =VLOOKUP($C11,'RECAP SECT'!$G$6:$DC$253,85,FALSE) -> 17
A12: 262 | B12: BAS-RHIN | C12: 5060 | D12: HAGUENAU | E12: =VLOOKUP($C12,'RECAP SECT'!$G$6:$DC$253,3,FALSE) -> 71.0 | F12: =VLOOKUP($C12,'RECAP SECT'!$G$6:$DC$253,75,FALSE) -> 4,837 | G12: =VLOOKUP($C12,'RECAP SECT'!$G$6:$DC$253,76,FALSE) -> 68.15 | H12: =VLOOKUP($C12,'RECAP SECT'!$G$6:$DC$253,77,FALSE) -> 36% | I12: =VLOOKUP($C12,'RECAP SECT'!$G$6:$DC$253,78,FALSE) -> 16 | J12: =VLOOKUP($C12,'RECAP SECT'!$G$6:$DC$253,79,FALSE) -> 910 | K12: =VLOOKUP($C12,'RECAP SECT'!$G$6:$DC$253,80,FALSE) -> 12.82 | L12: =VLOOKUP($C12,'RECAP SECT'!$G$6:$DC$253,81,FALSE) -> 34% | M12: =VLOOKUP($C12,'RECAP SECT'!$G$6:$DC$253,82,FALSE) -> 15 | N12: =VLOOKUP($C12,'RECAP SECT'!$G$6:$DC$253,83,FALSE) -> 35% | O12: =VLOOKUP($C12,'RECAP SECT'!$G$6:$DC$253,84,FALSE) -> 32% | P12: =VLOOKUP($C12,'RECAP SECT'!$G$6:$DC$253,85,FALSE) -> 16
A13: 262 | B13: BAS-RHIN | C13: 5101 | D13: SELESTAT | E13: =VLOOKUP($C13,'RECAP SECT'!$G$6:$DC$253,3,FALSE) -> 60.3 | F13: =VLOOKUP($C13,'RECAP SECT'!$G$6:$DC$253,75,FALSE) -> 5,501 | G13: =VLOOKUP($C13,'RECAP SECT'!$G$6:$DC$253,76,FALSE) -> 91.28 | H13: =VLOOKUP($C13,'RECAP SECT'!$G$6:$DC$253,77,FALSE) -> 14% | I13: =VLOOKUP($C13,'RECAP SECT'!$G$6:$DC$253,78,FALSE) -> 8 | J13: =VLOOKUP($C13,'RECAP SECT'!$G$6:$DC$253,79,FALSE) -> 862 | K13: =VLOOKUP($C13,'RECAP SECT'!$G$6:$DC$253,80,FALSE) -> 14.30 | L13: =VLOOKUP($C13,'RECAP SECT'!$G$6:$DC$253,81,FALSE) -> 26% | M13: =VLOOKUP($C13,'RECAP SECT'!$G$6:$DC$253,82,FALSE) -> 9 | N13: =VLOOKUP($C13,'RECAP SECT'!$G$6:$DC$253,83,FALSE) -> 18% | O13: =VLOOKUP($C13,'RECAP SECT'!$G$6:$DC$253,84,FALSE) -> 15% | P13: =VLOOKUP($C13,'RECAP SECT'!$G$6:$DC$253,85,FALSE) -> 8
A14: 262 | B14: BAS-RHIN | C14: 5006 | D14: STRASBOURG | E14: =VLOOKUP($C14,'RECAP SECT'!$G$6:$DC$253,3,FALSE) -> 75.4 | F14: =VLOOKUP($C14,'RECAP SECT'!$G$6:$DC$253,75,FALSE) -> 7,080 | G14: =VLOOKUP($C14,'RECAP SECT'!$G$6:$DC$253,76,FALSE) -> 93.88 | H14: =VLOOKUP($C14,'RECAP SECT'!$G$6:$DC$253,77,FALSE) -> 12% | I14: =VLOOKUP($C14,'RECAP SECT'!$G$6:$DC$253,78,FALSE) -> 4 | J14: =VLOOKUP($C14,'RECAP SECT'!$G$6:$DC$253,79,FALSE) -> 1,244 | K14: =VLOOKUP($C14,'RECAP SECT'!$G$6:$DC$253,80,FALSE) -> 16.50 | L14: =VLOOKUP($C14,'RECAP SECT'!$G$6:$DC$253,81,FALSE) -> 15% | M14: =VLOOKUP($C14,'RECAP SECT'!$G$6:$DC$253,82,FALSE) -> 4 | N14: =VLOOKUP($C14,'RECAP SECT'!$G$6:$DC$253,83,FALSE) -> 13% | O14: =VLOOKUP($C14,'RECAP SECT'!$G$6:$DC$253,84,FALSE) -> 9% | P14: =VLOOKUP($C14,'RECAP SECT'!$G$6:$DC$253,85,FALSE) -> 4
A15: 264 | B15: HAUT-RHIN | C15: 5130 | D15: COLMAR | E15: =VLOOKUP($C15,'RECAP SECT'!$G$6:$DC$253,3,FALSE) -> 61.1 | F15: =VLOOKUP($C15,'RECAP SECT'!$G$6:$DC$253,75,FALSE) -> 4,531 | G15: =VLOOKUP($C15,'RECAP SECT'!$G$6:$DC$253,76,FALSE) -> 74.22 | H15: =VLOOKUP($C15,'RECAP SECT'!$G$6:$DC$253,77,FALSE) -> 30% | I15: =VLOOKUP($C15,'RECAP SECT'!$G$6:$DC$253,78,FALSE) -> 13 | J15: =VLOOKUP($C15,'RECAP SECT'!$G$6:$DC$253,79,FALSE) -> 696 | K15: =VLOOKUP($C15,'RECAP SECT'!$G$6:$DC$253,80,FALSE) -> 11.40 | L15: =VLOOKUP($C15,'RECAP SECT'!$G$6:$DC$253,81,FALSE) -> 41% | M15: =VLOOKUP($C15,'RECAP SECT'!$G$6:$DC$253,82,FALSE) -> 18 | N15: =VLOOKUP($C15,'RECAP SECT'!$G$6:$DC$253,83,FALSE) -> 34% | O15: =VLOOKUP($C15,'RECAP SECT'!$G$6:$DC$253,84,FALSE) -> 30% | P15: =VLOOKUP($C15,'RECAP SECT'!$G$6:$DC$253,85,FALSE) -> 15
A16: 264 | B16: HAUT-RHIN | C16: 5169 | D16: MULHOUSE | E16: =VLOOKUP($C16,'RECAP SECT'!$G$6:$DC$253,3,FALSE) -> 59.9 | F16: =VLOOKUP($C16,'RECAP SECT'!$G$6:$DC$253,75,FALSE) -> 2,387 | G16: =VLOOKUP($C16,'RECAP SECT'!$G$6:$DC$253,76,FALSE) -> 39.82 | H16: =VLOOKUP($C16,'RECAP SECT'!$G$6:$DC$253,77,FALSE) -> 63% | I16: =VLOOKUP($C16,'RECAP SECT'!$G$6:$DC$253,78,FALSE) -> 18 | J16: =VLOOKUP($C16,'RECAP SECT'!$G$6:$DC$253,79,FALSE) -> 768 | K16: =VLOOKUP($C16,'RECAP SECT'!$G$6:$DC$253,80,FALSE) -> 12.81 | L16: =VLOOKUP($C16,'RECAP SECT'!$G$6:$DC$253,81,FALSE) -> 34% | M16: =VLOOKUP($C16,'RECAP SECT'!$G$6:$DC$253,82,FALSE) -> 16 | N16: =VLOOKUP($C16,'RECAP SECT'!$G$6:$DC$253,83,FALSE) -> 54% | O16: =VLOOKUP($C16,'RECAP SECT'!$G$6:$DC$253,84,FALSE) -> 51% | P16: =VLOOKUP($C16,'RECAP SECT'!$G$6:$DC$253,85,FALSE) -> 18
A17: 30 | B17: MARNE-ARDENNES | C17: 6 | D17: CHALONS EN CHAMPAGNE | E17: =VLOOKUP($C17,'RECAP SECT'!$G$6:$DC$253,3,FALSE) -> 44.2 | F17: =VLOOKUP($C17,'RECAP SECT'!$G$6:$DC$253,75,FALSE) -> 3,027 | G17: =VLOOKUP($C17,'RECAP SECT'!$G$6:$DC$253,76,FALSE) -> 68.50 | H17: =VLOOKUP($C17,'RECAP SECT'!$G$6:$DC$253,77,FALSE) -> 36% | I17: =VLOOKUP($C17,'RECAP SECT'!$G$6:$DC$253,78,FALSE) -> 15 | J17: =VLOOKUP($C17,'RECAP SECT'!$G$6:$DC$253,79,FALSE) -> 652 | K17: =VLOOKUP($C17,'RECAP SECT'!$G$6:$DC$253,80,FALSE) -> 14.75 | L17: =VLOOKUP($C17,'RECAP SECT'!$G$6:$DC$253,81,FALSE) -> 24% | M17: =VLOOKUP($C17,'RECAP SECT'!$G$6:$DC$253,82,FALSE) -> 8 | N17: =VLOOKUP($C17,'RECAP SECT'!$G$6:$DC$253,83,FALSE) -> 32% | O17: =VLOOKUP($C17,'RECAP SECT'!$G$6:$DC$253,84,FALSE) -> 29% | P17: =VLOOKUP($C17,'RECAP SECT'!$G$6:$DC$253,85,FALSE) -> 14
A18: 30 | B18: MARNE-ARDENNES | C18: 2 | D18: CHARLEVILLE MEZIERES | E18: =VLOOKUP($C18,'RECAP SECT'!$G$6:$DC$253,3,FALSE) -> 55.4 | F18: =VLOOKUP($C18,'RECAP SECT'!$G$6:$DC$253,75,FALSE) -> 5,469 | G18: =VLOOKUP($C18,'RECAP SECT'!$G$6:$DC$253,76,FALSE) -> 98.76 | H18: =VLOOKUP($C18,'RECAP SECT'!$G$6:$DC$253,77,FALSE) -> 7% | I18: =VLOOKUP($C18,'RECAP SECT'!$G$6:$DC$253,78,FALSE) -> 3 | J18: =VLOOKUP($C18,'RECAP SECT'!$G$6:$DC$253,79,FALSE) -> 773 | K18: =VLOOKUP($C18,'RECAP SECT'!$G$6:$DC$253,80,FALSE) -> 13.96 | L18: =VLOOKUP($C18,'RECAP SECT'!$G$6:$DC$253,81,FALSE) -> 28% | M18: =VLOOKUP($C18,'RECAP SECT'!$G$6:$DC$253,82,FALSE) -> 11 | N18: =VLOOKUP($C18,'RECAP SECT'!$G$6:$DC$253,83,FALSE) -> 14% | O18: =VLOOKUP($C18,'RECAP SECT'!$G$6:$DC$253,84,FALSE) -> 10% | P18: =VLOOKUP($C18,'RECAP SECT'!$G$6:$DC$253,85,FALSE) -> 5
A19: 30 | B19: MARNE-ARDENNES | C19: 11 | D19: REIMS | E19: =VLOOKUP($C19,'RECAP SECT'!$G$6:$DC$253,3,FALSE) -> 81.6 | F19: =VLOOKUP($C19,'RECAP SECT'!$G$6:$DC$253,75,FALSE) -> 7,166 | G19: =VLOOKUP($C19,'RECAP SECT'!$G$6:$DC$253,76,FALSE) -> 87.78 | H19: =VLOOKUP($C19,'RECAP SECT'!$G$6:$DC$253,77,FALSE) -> 18% | I19: =VLOOKUP($C19,'RECAP SECT'!$G$6:$DC$253,78,FALSE) -> 9 | J19: =VLOOKUP($C19,'RECAP SECT'!$G$6:$DC$253,79,FALSE) -> 1,214 | K19: =VLOOKUP($C19,'RECAP SECT'!$G$6:$DC$253,80,FALSE) -> 14.87 | L19: =VLOOKUP($C19,'RECAP SECT'!$G$6:$DC$253,81,FALSE) -> 24% | M19: =VLOOKUP($C19,'RECAP SECT'!$G$6:$DC$253,82,FALSE) -> 6 | N19: =VLOOKUP($C19,'RECAP SECT'!$G$6:$DC$253,83,FALSE) -> 19% | O19: =VLOOKUP($C19,'RECAP SECT'!$G$6:$DC$253,84,FALSE) -> 16% | P19: =VLOOKUP($C19,'RECAP SECT'!$G$6:$DC$253,85,FALSE) -> 9
A20: 110 | B20: MEURTHE ET MOSELLE MEUSE | C20: 26 | D20: NANCY | E20: =VLOOKUP($C20,'RECAP SECT'!$G$6:$DC$253,3,FALSE) -> 65.8 | F20: =VLOOKUP($C20,'RECAP SECT'!$G$6:$DC$253,75,FALSE) -> 6,664 | G20: =VLOOKUP($C20,'RECAP SECT'!$G$6:$DC$253,76,FALSE) -> 101.28 | H20: =VLOOKUP($C20,'RECAP SECT'!$G$6:$DC$253,77,FALSE) -> 5% | I20: =VLOOKUP($C20,'RECAP SECT'!$G$6:$DC$253,78,FALSE) -> 2 | J20: =VLOOKUP($C20,'RECAP SECT'!$G$6:$DC$253,79,FALSE) -> 1,279 | K20: =VLOOKUP($C20,'RECAP SECT'!$G$6:$DC$253,80,FALSE) -> 19.44 | L20: =VLOOKUP($C20,'RECAP SECT'!$G$6:$DC$253,81,FALSE) -> 0% | M20: =VLOOKUP($C20,'RECAP SECT'!$G$6:$DC$253,82,FALSE) -> 1 | N20: =VLOOKUP($C20,'RECAP SECT'!$G$6:$DC$253,83,FALSE) -> 3% | O20: =VLOOKUP($C20,'RECAP SECT'!$G$6:$DC$253,84,FALSE) -> 0% | P20: =VLOOKUP($C20,'RECAP SECT'!$G$6:$DC$253,85,FALSE) -> 1
A21: 110 | B21: MEURTHE ET MOSELLE MEUSE | C21: 27 | D21: PONT A MOUSSON | E21: =VLOOKUP($C21,'RECAP SECT'!$G$6:$DC$253,3,FALSE) -> 77.0 | F21: =VLOOKUP($C21,'RECAP SECT'!$G$6:$DC$253,75,FALSE) -> 6,659 | G21: =VLOOKUP($C21,'RECAP SECT'!$G$6:$DC$253,76,FALSE) -> 86.43 | H21: =VLOOKUP($C21,'RECAP SECT'!$G$6:$DC$253,77,FALSE) -> 19% | I21: =VLOOKUP($C21,'RECAP SECT'!$G$6:$DC$253,78,FALSE) -> 10 | J21: =VLOOKUP($C21,'RECAP SECT'!$G$6:$DC$253,79,FALSE) -> 1,382 | K21: =VLOOKUP($C21,'RECAP SECT'!$G$6:$DC$253,80,FALSE) -> 17.94 | L21: =VLOOKUP($C21,'RECAP SECT'!$G$6:$DC$253,81,FALSE) -> 8% | M21: =VLOOKUP($C21,'RECAP SECT'!$G$6:$DC$253,82,FALSE) -> 2 | N21: =VLOOKUP($C21,'RECAP SECT'!$G$6:$DC$253,83,FALSE) -> 16% | O21: =VLOOKUP($C21,'RECAP SECT'!$G$6:$DC$253,84,FALSE) -> 12% | P21: =VLOOKUP($C21,'RECAP SECT'!$G$6:$DC$253,85,FALSE) -> 7
A22: 110 | B22: MEURTHE ET MOSELLE MEUSE | C22: 31 | D22: VERDUN | E22: =VLOOKUP($C22,'RECAP SECT'!$G$6:$DC$253,3,FALSE) -> 56.3 | F22: =VLOOKUP($C22,'RECAP SECT'!$G$6:$DC$253,75,FALSE) -> 4,169 | G22: =VLOOKUP($C22,'RECAP SECT'!$G$6:$DC$253,76,FALSE) -> 74.00 | H22: =VLOOKUP($C22,'RECAP SECT'!$G$6:$DC$253,77,FALSE) -> 31% | I22: =VLOOKUP($C22,'RECAP SECT'!$G$6:$DC$253,78,FALSE) -> 14 | J22: =VLOOKUP($C22,'RECAP SECT'!$G$6:$DC$253,79,FALSE) -> 836 | K22: =VLOOKUP($C22,'RECAP SECT'!$G$6:$DC$253,80,FALSE) -> 14.84 | L22: =VLOOKUP($C22,'RECAP SECT'!$G$6:$DC$253,81,FALSE) -> 24% | M22: =VLOOKUP($C22,'RECAP SECT'!$G$6:$DC$253,82,FALSE) -> 7 | N22: =VLOOKUP($C22,'RECAP SECT'!$G$6:$DC$253,83,FALSE) -> 28% | O22: =VLOOKUP($C22,'RECAP SECT'!$G$6:$DC$253,84,FALSE) -> 25% | P22: =VLOOKUP($C22,'RECAP SECT'!$G$6:$DC$253,85,FALSE) -> 13
A23: 160 | B23: MOSELLE | C23: 45 | D23: METZ | E23: =VLOOKUP($C23,'RECAP SECT'!$G$6:$DC$253,3,FALSE) -> 90.9 | F23: =VLOOKUP($C23,'RECAP SECT'!$G$6:$DC$253,75,FALSE) -> 6,909 | G23: =VLOOKUP($C23,'RECAP SECT'!$G$6:$DC$253,76,FALSE) -> 76.02 | H23: =VLOOKUP($C23,'RECAP SECT'!$G$6:$DC$253,77,FALSE) -> 29% | I23: =VLOOKUP($C23,'RECAP SECT'!$G$6:$DC$253,78,FALSE) -> 12 | J23: =VLOOKUP($C23,'RECAP SECT'!$G$6:$DC$253,79,FALSE) -> 1,296 | K23: =VLOOKUP($C23,'RECAP SECT'!$G$6:$DC$253,80,FALSE) -> 14.26 | L23: =VLOOKUP($C23,'RECAP SECT'!$G$6:$DC$253,81,FALSE) -> 27% | M23: =VLOOKUP($C23,'RECAP SECT'!$G$6:$DC$253,82,FALSE) -> 10 | N23: =VLOOKUP($C23,'RECAP SECT'!$G$6:$DC$253,83,FALSE) -> 28% | O23: =VLOOKUP($C23,'RECAP SECT'!$G$6:$DC$253,84,FALSE) -> 25% | P23: =VLOOKUP($C23,'RECAP SECT'!$G$6:$DC$253,85,FALSE) -> 12
A24: 160 | B24: MOSELLE | C24: 42 | D24: MOSELLE EST | E24: =VLOOKUP($C24,'RECAP SECT'!$G$6:$DC$253,3,FALSE) -> 69.0 | F24: =VLOOKUP($C24,'RECAP SECT'!$G$6:$DC$253,75,FALSE) -> 5,816 | G24: =VLOOKUP($C24,'RECAP SECT'!$G$6:$DC$253,76,FALSE) -> 84.32 | H24: =VLOOKUP($C24,'RECAP SECT'!$G$6:$DC$253,77,FALSE) -> 21% | I24: =VLOOKUP($C24,'RECAP SECT'!$G$6:$DC$253,78,FALSE) -> 11 | J24: =VLOOKUP($C24,'RECAP SECT'!$G$6:$DC$253,79,FALSE) -> 935 | K24: =VLOOKUP($C24,'RECAP SECT'!$G$6:$DC$253,80,FALSE) -> 13.56 | L24: =VLOOKUP($C24,'RECAP SECT'!$G$6:$DC$253,81,FALSE) -> 30% | M24: =VLOOKUP($C24,'RECAP SECT'!$G$6:$DC$253,82,FALSE) -> 14 | N24: =VLOOKUP($C24,'RECAP SECT'!$G$6:$DC$253,83,FALSE) -> 24% | O24: =VLOOKUP($C24,'RECAP SECT'!$G$6:$DC$253,84,FALSE) -> 20% | P24: =VLOOKUP($C24,'RECAP SECT'!$G$6:$DC$253,85,FALSE) -> 11
A25: 160 | B25: MOSELLE | C25: 44 | D25: MOSELLE NORD | E25: =VLOOKUP($C25,'RECAP SECT'!$G$6:$DC$253,3,FALSE) -> 68.4 | F25: =VLOOKUP($C25,'RECAP SECT'!$G$6:$DC$253,75,FALSE) -> 6,421 | G25: =VLOOKUP($C25,'RECAP SECT'!$G$6:$DC$253,76,FALSE) -> 93.83 | H25: =VLOOKUP($C25,'RECAP SECT'!$G$6:$DC$253,77,FALSE) -> 12% | I25: =VLOOKUP($C25,'RECAP SECT'!$G$6:$DC$253,78,FALSE) -> 6 | J25: =VLOOKUP($C25,'RECAP SECT'!$G$6:$DC$253,79,FALSE) -> 1,032 | K25: =VLOOKUP($C25,'RECAP SECT'!$G$6:$DC$253,80,FALSE) -> 15.08 | L25: =VLOOKUP($C25,'RECAP SECT'!$G$6:$DC$253,81,FALSE) -> 22% | M25: =VLOOKUP($C25,'RECAP SECT'!$G$6:$DC$253,82,FALSE) -> 5 | N25: =VLOOKUP($C25,'RECAP SECT'!$G$6:$DC$253,83,FALSE) -> 15% | O25: =VLOOKUP($C25,'RECAP SECT'!$G$6:$DC$253,84,FALSE) -> 12% | P25: =VLOOKUP($C25,'RECAP SECT'!$G$6:$DC$253,85,FALSE) -> 6
A26: 80 | B26: VOSGES | C26: 57 | D26: EPINAL | E26: =VLOOKUP($C26,'RECAP SECT'!$G$6:$DC$253,3,FALSE) -> 60.9 | F26: =VLOOKUP($C26,'RECAP SECT'!$G$6:$DC$253,75,FALSE) -> 6,490 | G26: =VLOOKUP($C26,'RECAP SECT'!$G$6:$DC$253,76,FALSE) -> 106.56 | H26: =VLOOKUP($C26,'RECAP SECT'!$G$6:$DC$253,77,FALSE) -> 0% | I26: =VLOOKUP($C26,'RECAP SECT'!$G$6:$DC$253,78,FALSE) -> 1 | J26: =VLOOKUP($C26,'RECAP SECT'!$G$6:$DC$253,79,FALSE) -> 847 | K26: =VLOOKUP($C26,'RECAP SECT'!$G$6:$DC$253,80,FALSE) -> 13.91 | L26: =VLOOKUP($C26,'RECAP SECT'!$G$6:$DC$253,81,FALSE) -> 28% | M26: =VLOOKUP($C26,'RECAP SECT'!$G$6:$DC$253,82,FALSE) -> 12 | N26: =VLOOKUP($C26,'RECAP SECT'!$G$6:$DC$253,83,FALSE) -> 9% | O26: =VLOOKUP($C26,'RECAP SECT'!$G$6:$DC$253,84,FALSE) -> 5% | P26: =VLOOKUP($C26,'RECAP SECT'!$G$6:$DC$253,85,FALSE) -> 2
A27: 80 | B27: VOSGES | C27: 55 | D27: SAINT DIE | E27: =VLOOKUP($C27,'RECAP SECT'!$G$6:$DC$253,3,FALSE) -> 48.3 | F27: =VLOOKUP($C27,'RECAP SECT'!$G$6:$DC$253,75,FALSE) -> 4,436 | G27: =VLOOKUP($C27,'RECAP SECT'!$G$6:$DC$253,76,FALSE) -> 91.85 | H27: =VLOOKUP($C27,'RECAP SECT'!$G$6:$DC$253,77,FALSE) -> 14% | I27: =VLOOKUP($C27,'RECAP SECT'!$G$6:$DC$253,78,FALSE) -> 7 | J27: =VLOOKUP($C27,'RECAP SECT'!$G$6:$DC$253,79,FALSE) -> 579 | K27: =VLOOKUP($C27,'RECAP SECT'!$G$6:$DC$253,80,FALSE) -> 11.99 | L27: =VLOOKUP($C27,'RECAP SECT'!$G$6:$DC$253,81,FALSE) -> 38% | M27: =VLOOKUP($C27,'RECAP SECT'!$G$6:$DC$253,82,FALSE) -> 17 | N27: =VLOOKUP($C27,'RECAP SECT'!$G$6:$DC$253,83,FALSE) -> 21% | O27: =VLOOKUP($C27,'RECAP SECT'!$G$6:$DC$253,84,FALSE) -> 18% | P27: =VLOOKUP($C27,'RECAP SECT'!$G$6:$DC$253,85,FALSE) -> 10
A28: Total CEGEE Directions Régionales | E28: =SUM(E10:E27) -> 1146

Sheet SE_SATISFACTION
B1: Accueil | F1: BAROMETRE BDD - TERRITOIRES
F2: SATISFACTION
F3: =ACCUEIL!F7 -> 2021-04-11
F7: NPS à froid (SAE) | I7: NPS à chaud (QHD) | L7: Total Satisfaction Clients
F8: =DATEMAJ!E4 -> au 31/03 | G8: coef | H8: ='RECAP DIRCOM'!M4 -> 10% | I8: =DATEMAJ!C5 -> au 28/02 | J8: coef | K8: ='RECAP DIRCOM'!P4 -> 10% | M8: coef | N8: ='RECAP DIRCOM'!S4 -> 20%
B9: Direction | C9: eds | D9: Territoire | E9: ="ETP perf "&DATEMAJ!$C$28 -> ETP perf 28-févr | G9: % Ecart au 1er | H9: Rang | J9: % Ecart au 1er | K9: Rang | L9: Moyenne ecart au 1er | M9: % Ecart au 1er | N9: Rang CEGEE
A10: 50 | B10: AUBE HAUTE MARNE | C10: 21 | D10: CHAUMONT | E10: =VLOOKUP($C10,'RECAP SECT'!$G$6:$DC$253,3,FALSE) -> 33.9 | F10: =VLOOKUP($C10,'RECAP SECT'!$G$6:$DC$253,5,FALSE) -> 13 | G10: =VLOOKUP($C10,'RECAP SECT'!$G$6:$DC$253,6,FALSE) -> 41% | H10: =VLOOKUP($C10,'RECAP SECT'!$G$6:$DC$253,7,FALSE) -> 8 | I10: =VLOOKUP($C10,'RECAP SECT'!$G$6:$DC$253,8,FALSE) -> 64% | J10: =VLOOKUP($C10,'RECAP SECT'!$G$6:$DC$253,9,FALSE) -> 7% | K10: =VLOOKUP($C10,'RECAP SECT'!$G$6:$DC$253,10,FALSE) -> 4 | L10: =VLOOKUP($C10,'RECAP SECT'!$G$6:$DC$253,11,FALSE) -> 24% | M10: =VLOOKUP($C10,'RECAP SECT'!$G$6:$DC$253,12,FALSE) -> 19% | N10: =VLOOKUP($C10,'RECAP SECT'!$G$6:$DC$253,13,FALSE) -> 8
A11: 50 | B11: AUBE HAUTE MARNE | C11: 14 | D11: TROYES | E11: =VLOOKUP($C11,'RECAP SECT'!$G$6:$DC$253,3,FALSE) -> 66.8 | F11: =VLOOKUP($C11,'RECAP SECT'!$G$6:$DC$253,5,FALSE) -> 18 | G11: =VLOOKUP($C11,'RECAP SECT'!$G$6:$DC$253,6,FALSE) -> 18% | H11: =VLOOKUP($C11,'RECAP SECT'!$G$6:$DC$253,7,FALSE) -> 3 | I11: =VLOOKUP($C11,'RECAP SECT'!$G$6:$DC$253,8,FALSE) -> 50% | J11: =VLOOKUP($C11,'RECAP SECT'!$G$6:$DC$253,9,FALSE) -> 27% | K11: =VLOOKUP($C11,'RECAP SECT'!$G$6:$DC$253,10,FALSE) -> 12 | L11: =VLOOKUP($C11,'RECAP SECT'!$G$6:$DC$253,11,FALSE) -> 23% | M11: =VLOOKUP($C11,'RECAP SECT'!$G$6:$DC$253,12,FALSE) -> 17% | N11: =VLOOKUP($C11,'RECAP SECT'!$G$6:$DC$253,13,FALSE) -> 6
A12: 262 | B12: BAS-RHIN | C12: 5060 | D12: HAGUENAU | E12: =VLOOKUP($C12,'RECAP SECT'!$G$6:$DC$253,3,FALSE) -> 71.0 | F12: =VLOOKUP($C12,'RECAP SECT'!$G$6:$DC$253,5,FALSE) -> 11 | G12: =VLOOKUP($C12,'RECAP SECT'!$G$6:$DC$253,6,FALSE) -> 50% | H12: =VLOOKUP($C12,'RECAP SECT'!$G$6:$DC$253,7,FALSE) -> 9 | I12: =VLOOKUP($C12,'RECAP SECT'!$G$6:$DC$253,8,FALSE) -> 53% | J12: =VLOOKUP($C12,'RECAP SECT'!$G$6:$DC$253,9,FALSE) -> 22% | K12: =VLOOKUP($C12,'RECAP SECT'!$G$6:$DC$253,10,FALSE) -> 10 | L12: =VLOOKUP($C12,'RECAP SECT'!$G$6:$DC$253,11,FALSE) -> 36% | M12: =VLOOKUP($C12,'RECAP SECT'!$G$6:$DC$253,12,FALSE) -> 31% | N12: =VLOOKUP($C12,'RECAP SECT'!$G$6:$DC$253,13,FALSE) -> 9
A13: 262 | B13: BAS-RHIN | C13: 5101 | D13: SELESTAT | E13: =VLOOKUP($C13,'RECAP SECT'!$G$6:$DC$253,3,FALSE) -> 60.3 | F13: =VLOOKUP($C13,'RECAP SECT'!$G$6:$DC$253,5,FALSE) -> 6 | G13: =VLOOKUP($C13,'RECAP SECT'!$G$6:$DC$253,6,FALSE) -> 73% | H13: =VLOOKUP($C13,'RECAP SECT'!$G$6:$DC$253,7,FALSE) -> 17 | I13: =VLOOKUP($C13,'RECAP SECT'!$G$6:$DC$253,8,FALSE) -> 47% | J13: =VLOOKUP($C13,'RECAP SECT'!$G$6:$DC$253,9,FALSE) -> 31% | K13: =VLOOKUP($C13,'RECAP SECT'!$G$6:$DC$253,10,FALSE) -> 13 | L13: =VLOOKUP($C13,'RECAP SECT'!$G$6:$DC$253,11,FALSE) -> 52% | M13: =VLOOKUP($C13,'RECAP SECT'!$G$6:$DC$253,12,FALSE) -> 47% | N13: =VLOOKUP($C13,'RECAP SECT'!$G$6:$DC$253,13,FALSE) -> 17
A14: 262 | B14: BAS-RHIN | C14: 5006 | D14: STRASBOURG | E14: =VLOOKUP($C14,'RECAP SECT'!$G$6:$DC$253,3,FALSE) -> 75.4 | F14: =VLOOKUP($C14,'RECAP SECT'!$G$6:$DC$253,5,FALSE) -> 8 | G14: =VLOOKUP($C14,'RECAP SECT'!$G$6:$DC$253,6,FALSE) -> 64% | H14: =VLOOKUP($C14,'RECAP SECT'!$G$6:$DC$253,7,FALSE) -> 14 | I14: =VLOOKUP($C14,'RECAP SECT'!$G$6:$DC$253,8,FALSE) -> 44% | J14: =VLOOKUP($C14,'RECAP SECT'!$G$6:$DC$253,9,FALSE) -> 35% | K14: =VLOOKUP($C14,'RECAP SECT'!$G$6:$DC$253,10,FALSE) -> 17 | L14: =VLOOKUP($C14,'RECAP SECT'!$G$6:$DC$253,11,FALSE) -> 49% | M14: =VLOOKUP($C14,'RECAP SECT'!$G$6:$DC$253,12,FALSE) -> 44% | N14: =VLOOKUP($C14,'RECAP SECT'!$G$6:$DC$253,13,FALSE) -> 15
A15: 264 | B15: HAUT-RHIN | C15: 5130 | D15: COLMAR | E15: =VLOOKUP($C15,'RECAP SECT'!$G$6:$DC$253,3,FALSE) -> 61.1 | F15: =VLOOKUP($C15,'RECAP SECT'!$G$6:$DC$253,5,FALSE) -> 9 | G15: =VLOOKUP($C15,'RECAP SECT'!$G$6:$DC$253,6,FALSE) -> 59% | H15: =VLOOKUP($C15,'RECAP SECT'!$G$6:$DC$253,7,FALSE) -> 13 | I15: =VLOOKUP($C15,'RECAP SECT'!$G$6:$DC$253,8,FALSE) -> 44% | J15: =VLOOKUP($C15,'RECAP SECT'!$G$6:$DC$253,9,FALSE) -> 35% | K15: =VLOOKUP($C15,'RECAP SECT'!$G$6:$DC$253,10,FALSE) -> 15 | L15: =VLOOKUP($C15,'RECAP SECT'!$G$6:$DC$253,11,FALSE) -> 47% | M15: =VLOOKUP($C15,'RECAP SECT'!$G$6:$DC$253,12,FALSE) -> 42% | N15: =VLOOKUP($C15,'RECAP SECT'!$G$6:$DC$253,13,FALSE) -> 14
A16: 264 | B16: HAUT-RHIN | C16: 5169 | D16: MULHOUSE | E16: =VLOOKUP($C16,'RECAP SECT'!$G$6:$DC$253,3,FALSE) -> 59.9 | F16: =VLOOKUP($C16,'RECAP SECT'!$G$6:$DC$253,5,FALSE) -> 1 | G16: =VLOOKUP($C16,'RECAP SECT'!$G$6:$DC$253,6,FALSE) -> 95% | H16: =VLOOKUP($C16,'RECAP SECT'!$G$6:$DC$253,7,FALSE) -> 18 | I16: =VLOOKUP($C16,'RECAP SECT'!$G$6:$DC$253,8,FALSE) -> 22% | J16: =VLOOKUP($C16,'RECAP SECT'!$G$6:$DC$253,9,FALSE) -> 68% | K16: =VLOOKUP($C16,'RECAP SECT'!$G$6:$DC$253,10,FALSE) -> 18 | L16: =VLOOKUP($C16,'RECAP SECT'!$G$6:$DC$253,11,FALSE) -> 82% | M16: =VLOOKUP($C16,'RECAP SECT'!$G$6:$DC$253,12,FALSE) -> 77% | N16: =VLOOKUP($C16,'RECAP SECT'!$G$6:$DC$253,13,FALSE) -> 18
A17: 30 | B17: MARNE-ARDENNES | C17: 6 | D17: CHALONS EN CHAMPAGNE | E17: =VLOOKUP($C17,'RECAP SECT'!$G$6:$DC$253,3,FALSE) -> 44.2 | F17: =VLOOKUP($C17,'RECAP SECT'!$G$6:$DC$253,5,FALSE) -> 18 | G17: =VLOOKUP($C17,'RECAP SECT'!$G$6:$DC$253,6,FALSE) -> 18% | H17: =VLOOKUP($C17,'RECAP SECT'!$G$6:$DC$253,7,FALSE) -> 3 | I17: =VLOOKUP($C17,'RECAP SECT'!$G$6:$DC$253,8,FALSE) -> 68% | J17: =VLOOKUP($C17,'RECAP SECT'!$G$6:$DC$253,9,FALSE) -> 0% | K17: =VLOOKUP($C17,'RECAP SECT'!$G$6:$DC$253,10,FALSE) -> 1 | L17: =VLOOKUP($C17,'RECAP SECT'!$G$6:$DC$253,11,FALSE) -> 9% | M17: =VLOOKUP($C17,'RECAP SECT'!$G$6:$DC$253,12,FALSE) -> 4% | N17: =VLOOKUP($C17,'RECAP SECT'!$G$6:$DC$253,13,FALSE) -> 3
A18: 30 | B18: MARNE-ARDENNES | C18: 2 | D18: CHARLEVILLE MEZIERES | E18: =VLOOKUP($C18,'RECAP SECT'!$G$6:$DC$253,3,FALSE) -> 55.4 | F18: =VLOOKUP($C18,'RECAP SECT'!$G$6:$DC$253,5,FALSE) -> 22 | G18: =VLOOKUP($C18,'RECAP SECT'!$G$6:$DC$253,6,FALSE) -> 0% | H18: =VLOOKUP($C18,'RECAP SECT'!$G$6:$DC$253,7,FALSE) -> 1 | I18: =VLOOKUP($C18,'RECAP SECT'!$G$6:$DC$253,8,FALSE) -> 61% | J18: =VLOOKUP($C18,'RECAP SECT'!$G$6:$DC$253,9,FALSE) -> 10% | K18: =VLOOKUP($C18,'RECAP SECT'!$G$6:$DC$253,10,FALSE) -> 6 | L18: =VLOOKUP($C18,'RECAP SECT'!$G$6:$DC$253,11,FALSE) -> 5% | M18: =VLOOKUP($C18,'RECAP SECT'!$G$6:$DC$253,12,FALSE) -> 0% | N18: =VLOOKUP($C18,'RECAP SECT'!$G$6:$DC$253,13,FALSE) -> 1
A19: 30 | B19: MARNE-ARDENNES | C19: 11 | D19: REIMS | E19: =VLOOKUP($C19,'RECAP SECT'!$G$6:$DC$253,3,FALSE) -> 81.6 | F19: =VLOOKUP($C19,'RECAP SECT'!$G$6:$DC$253,5,FALSE) -> 8 | G19: =VLOOKUP($C19,'RECAP SECT'!$G$6:$DC$253,6,FALSE) -> 64% | H19: =VLOOKUP($C19,'RECAP SECT'!$G$6:$DC$253,7,FALSE) -> 14 | I19: =VLOOKUP($C19,'RECAP SECT'!$G$6:$DC$253,8,FALSE) -> 56% | J19: =VLOOKUP($C19,'RECAP SECT'!$G$6:$DC$253,9,FALSE) -> 17% | K19: =VLOOKUP($C19,'RECAP SECT'!$G$6:$DC$253,10,FALSE) -> 8 | L19: =VLOOKUP($C19,'RECAP SECT'!$G$6:$DC$253,11,FALSE) -> 40% | M19: =VLOOKUP($C19,'RECAP SECT'!$G$6:$DC$253,12,FALSE) -> 35% | N19: =VLOOKUP($C19,'RECAP SECT'!$G$6:$DC$253,13,FALSE) -> 12
A20: 110 | B20: MEURTHE ET MOSELLE MEUSE | C20: 26 | D20: NANCY | E20: =VLOOKUP($C20,'RECAP SECT'!$G$6:$DC$253,3,FALSE) -> 65.8 | F20: =VLOOKUP($C20,'RECAP SECT'!$G$6:$DC$253,5,FALSE) -> 11 | G20: =VLOOKUP($C20,'RECAP SECT'!$G$6:$DC$253,6,FALSE) -> 50% | H20: =VLOOKUP($C20,'RECAP SECT'!$G$6:$DC$253,7,FALSE) -> 9 | I20: =VLOOKUP($C20,'RECAP SECT'!$G$6:$DC$253,8,FALSE) -> 52% | J20: =VLOOKUP($C20,'RECAP SECT'!$G$6:$DC$253,9,FALSE) -> 23% | K20: =VLOOKUP($C20,'RECAP SECT'!$G$6:$DC$253,10,FALSE) -> 11 | L20: =VLOOKUP($C20,'RECAP SECT'!$G$6:$DC$253,11,FALSE) -> 37% | M20: =VLOOKUP($C20,'RECAP SECT'!$G$6:$DC$253,12,FALSE) -> 32% | N20: =VLOOKUP($C20,'RECAP SECT'!$G$6:$DC$253,13,FALSE) -> 10
A21: 110 | B21: MEURTHE ET MOSELLE MEUSE | C21: 27 | D21: PONT A MOUSSON | E21: =VLOOKUP($C21,'RECAP SECT'!$G$6:$DC$253,3,FALSE) -> 77.0 | F21: =VLOOKUP($C21,'RECAP SECT'!$G$6:$DC$253,5,FALSE) -> 7 | G21: =VLOOKUP($C21,'RECAP SECT'!$G$6:$DC$253,6,FALSE) -> 68% | H21: =VLOOKUP($C21,'RECAP SECT'!$G$6:$DC$253,7,FALSE) -> 16 | I21: =VLOOKUP($C21,'RECAP SECT'!$G$6:$DC$253,8,FALSE) -> 45% | J21: =VLOOKUP($C21,'RECAP SECT'!$G$6:$DC$253,9,FALSE) -> 34% | K21: =VLOOKUP($C21,'RECAP SECT'!$G$6:$DC$253,10,FALSE) -> 14 | L21: =VLOOKUP($C21,'RECAP SECT'!$G$6:$DC$253,11,FALSE) -> 51% | M21: =VLOOKUP($C21,'RECAP SECT'!$G$6:$DC$253,12,FALSE) -> 46% | N21: =VLOOKUP($C21,'RECAP SECT'!$G$6:$DC$253,13,FALSE) -> 16
A22: 110 | B22: MEURTHE ET MOSELLE MEUSE | C22: 31 | D22: VERDUN | E22: =VLOOKUP($C22,'RECAP SECT'!$G$6:$DC$253,3,FALSE) -> 56.3 | F22: =VLOOKUP($C22,'RECAP SECT'!$G$6:$DC$253,5,FALSE) -> 14 | G22: =VLOOKUP($C22,'RECAP SECT'!$G$6:$DC$253,6,FALSE) -> 36% | H22: =VLOOKUP($C22,'RECAP SECT'!$G$6:$DC$253,7,FALSE) -> 7 | I22: =VLOOKUP($C22,'RECAP SECT'!$G$6:$DC$253,8,FALSE) -> 61% | J22: =VLOOKUP($C22,'RECAP SECT'!$G$6:$DC$253,9,FALSE) -> 10% | K22: =VLOOKUP($C22,'RECAP SECT'!$G$6:$DC$253,10,FALSE) -> 5 | L22: =VLOOKUP($C22,'RECAP SECT'!$G$6:$DC$253,11,FALSE) -> 23% | M22: =VLOOKUP($C22,'RECAP SECT'!$G$6:$DC$253,12,FALSE) -> 18% | N22: =VLOOKUP($C22,'RECAP SECT'!$G$6:$DC$253,13,FALSE) -> 7
A23: 160 | B23: MOSELLE | C23: 45 | D23: METZ | E23: =VLOOKUP($C23,'RECAP SECT'!$G$6:$DC$253,3,FALSE) -> 90.9 | F23: =VLOOKUP($C23,'RECAP SECT'!$G$6:$DC$253,5,FALSE) -> 10 | G23: =VLOOKUP($C23,'RECAP SECT'!$G$6:$DC$253,6,FALSE) -> 55% | H23: =VLOOKUP($C23,'RECAP SECT'!$G$6:$DC$253,7,FALSE) -> 12 | I23: =VLOOKUP($C23,'RECAP SECT'!$G$6:$DC$253,8,FALSE) -> 54% | J23: =VLOOKUP($C23,'RECAP SECT'!$G$6:$DC$253,9,FALSE) -> 21% | K23: =VLOOKUP($C23,'RECAP SECT'!$G$6:$DC$253,10,FALSE) -> 9 | L23: =VLOOKUP($C23,'RECAP SECT'!$G$6:$DC$253,11,FALSE) -> 38% | M23: =VLOOKUP($C23,'RECAP SECT'!$G$6:$DC$253,12,FALSE) -> 33% | N23: =VLOOKUP($C23,'RECAP SECT'!$G$6:$DC$253,13,FALSE) -> 11
A24: 160 | B24: MOSELLE | C24: 42 | D24: MOSELLE EST | E24: =VLOOKUP($C24,'RECAP SECT'!$G$6:$DC$253,3,FALSE) -> 69.0 | F24: =VLOOKUP($C24,'RECAP SECT'!$G$6:$DC$253,5,FALSE) -> 18 | G24: =VLOOKUP($C24,'RECAP SECT'!$G$6:$DC$253,6,FALSE) -> 18% | H24: =VLOOKUP($C24,'RECAP SECT'!$G$6:$DC$253,7,FALSE) -> 3 | I24: =VLOOKUP($C24,'RECAP SECT'!$G$6:$DC$253,8,FALSE) -> 57% | J24: =VLOOKUP($C24,'RECAP SECT'!$G$6:$DC$253,9,FALSE) -> 17% | K24: =VLOOKUP($C24,'RECAP SECT'!$G$6:$DC$253,10,FALSE) -> 7 | L24: =VLOOKUP($C24,'RECAP SECT'!$G$6:$DC$253,11,FALSE) -> 17% | M24: =VLOOKUP($C24,'RECAP SECT'!$G$6:$DC$253,12,FALSE) -> 12% | N24: =VLOOKUP($C24,'RECAP SECT'!$G$6:$DC$253,13,FALSE) -> 5
A25: 160 | B25: MOSELLE | C25: 44 | D25: MOSELLE NORD | E25: =VLOOKUP($C25,'RECAP SECT'!$G$6:$DC$253,3,FALSE) -> 68.4 | F25: =VLOOKUP($C25,'RECAP SECT'!$G$6:$DC$253,5,FALSE) -> 11 | G25: =VLOOKUP($C25,'RECAP SECT'!$G$6:$DC$253,6,FALSE) -> 50% | H25: =VLOOKUP($C25,'RECAP SECT'!$G$6:$DC$253,7,FALSE) -> 9 | I25: =VLOOKUP($C25,'RECAP SECT'!$G$6:$DC$253,8,FALSE) -> 44% | J25: =VLOOKUP($C25,'RECAP SECT'!$G$6:$DC$253,9,FALSE) -> 35% | K25: =VLOOKUP($C25,'RECAP SECT'!$G$6:$DC$253,10,FALSE) -> 16 | L25: =VLOOKUP($C25,'RECAP SECT'!$G$6:$DC$253,11,FALSE) -> 43% | M25: =VLOOKUP($C25,'RECAP SECT'!$G$6:$DC$253,12,FALSE) -> 37% | N25: =VLOOKUP($C25,'RECAP SECT'!$G$6:$DC$253,13,FALSE) -> 13
A26: 80 | B26: VOSGES | C26: 57 | D26: EPINAL | E26: =VLOOKUP($C26,'RECAP SECT'!$G$6:$DC$253,3,FALSE) -> 60.9 | F26: =VLOOKUP($C26,'RECAP SECT'!$G$6:$DC$253,5,FALSE) -> 20 | G26: =VLOOKUP($C26,'RECAP SECT'!$G$6:$DC$253,6,FALSE) -> 9% | H26: =VLOOKUP($C26,'RECAP SECT'!$G$6:$DC$253,7,FALSE) -> 2 | I26: =VLOOKUP($C26,'RECAP SECT'!$G$6:$DC$253,8,FALSE) -> 65% | J26: =VLOOKUP($C26,'RECAP SECT'!$G$6:$DC$253,9,FALSE) -> 5% | K26: =VLOOKUP($C26,'RECAP SECT'!$G$6:$DC$253,10,FALSE) -> 3 | L26: =VLOOKUP($C26,'RECAP SECT'!$G$6:$DC$253,11,FALSE) -> 7% | M26: =VLOOKUP($C26,'RECAP SECT'!$G$6:$DC$253,12,FALSE) -> 2% | N26: =VLOOKUP($C26,'RECAP SECT'!$G$6:$DC$253,13,FALSE) -> 2
A27: 80 | B27: VOSGES | C27: 55 | D27: SAINT DIE | E27: =VLOOKUP($C27,'RECAP SECT'!$G$6:$DC$253,3,FALSE) -> 48.3 | F27: =VLOOKUP($C27,'RECAP SECT'!$G$6:$DC$253,5,FALSE) -> 18 | G27: =VLOOKUP($C27,'RECAP SECT'!$G$6:$DC$253,6,FALSE) -> 18% | H27: =VLOOKUP($C27,'RECAP SECT'!$G$6:$DC$253,7,FALSE) -> 3 | I27: =VLOOKUP($C27,'RECAP SECT'!$G$6:$DC$253,8,FALSE) -> 68% | J27: =VLOOKUP($C27,'RECAP SECT'!$G$6:$DC$253,9,FALSE) -> 0% | K27: =VLOOKUP($C27,'RECAP SECT'!$G$6:$DC$253,10,FALSE) -> 2 | L27: =VLOOKUP($C27,'RECAP SECT'!$G$6:$DC$253,11,FALSE) -> 9% | M27: =VLOOKUP($C27,'RECAP SECT'!$G$6:$DC$253,12,FALSE) -> 4% | N27: =VLOOKUP($C27,'RECAP SECT'!$G$6:$DC$253,13,FALSE) -> 4
A28: Total CEGEE Directions Régionales | E28: =SUM(E10:E27) -> 1146

Sheet AG_CLASS
B1: Accueil | H1: BAROMETRE BDD - AGENCES
H2: CLASSEMENTS
H3: =ACCUEIL!F7 -> 2021-04-11
H8: CLASSEMENT GENERAL | I8: CRITERE Satisfaction Clients | J8: NPS à froid (SAE) | K8: NPS à chaud (QHD) | L8: CRITERE BANCARISATION | M8: Ventes Nettes produits pondérés | N8: Ventes sur client non détenteur de l’univers | O8: Mobilité Macron | P8: Remises commerciales | Q8: CRITERE EPARGNE | R8: Excédent Epargne y/c DAV pondéré | S8: Ventes sur client non détenteur de l’univers | T8: CRITERE IARD PREVOYANCE | U8: Ventes Nettes produits pondérés | V8: Ventes sur client non détenteur de l’univers | W8: CRITERE CREDITS | X8: Engagements et ventes accessoires pondérés Immo | Y8: Engagements et ventes accessoires pondérés Conso | Z8: Ventes sur client non détenteur de l’univers
B9: Direction | C9: eds | D9: Territoire | E9: eds | F9: Agence | G9: ="ETP perf "&DATEMAJ!$C$28 -> ETP perf 28-févr | H9: Rang | I9: Rang | J9: Rang | K9: Rang | L9: Rang | M9: Rang | N9: Rang | O9: Rang | P9: Rang | Q9: Rang | R9: Rang | S9: Rang | T9: Rang | U9: Rang | V9: Rang | W9: Rang | X9: Rang | Y9: Rang | Z9: Rang
A10: 50 | B10: MEURTHE ET MOSELLE MEUSE | C10: 26 | D10: NANCY | E10: 454481 | F10: NANCY PLACE DOMBASLE | G10: 12.1 | H10: 1 | I10: 76 | J10: 62 | K10: 116 | L10: 1 | M10: 7 | N10: 1 | O10: 1 | P10: 182 | Q10: 12 | R10: 58 | S10: 3 | T10: 4 | U10: 4 | V10: 5 | W10: 3 | X10: 3 | Y10: 63 | Z10: 2
A11: 50 | B11: MEURTHE ET MOSELLE MEUSE | C11: 27 | D11: PONT A MOUSSON | E11: 554531 | F11: POMPEY | G11: 3.0 | H11: 2 | I11: 102 | J11: 118 | K11: 90 | L11: 2 | M11: 3 | N11: 6 | O11: 6 | P11: 23 | Q11: 8 | R11: 20 | S11: 8 | T11: 19 | U11: 20 | V11: 18 | W11: 7 | X11: 9 | Y11: 8 | Z11: 23
A12: 50 | B12: MEURTHE ET MOSELLE MEUSE | C12: 26 | D12: NANCY | E12: 554356 | F12: JARVILLE LA MALGRANGE | G12: 3.6 | H12: 3 | I12: 80 | J12: 47 | K12: 152 | L12: 4 | M12: 15 | N12: 4 | O12: 2 | P12: 187 | Q12: 60 | R12: 50 | S12: 111 | T12: 8 | U12: 10 | V12: 8 | W12: 4 | X12: 2 | Y12: 147 | Z12: 3
A13: 50 | B13: MARNE-ARDENNES | C13: 2 | D13: CHARLEVILLE MEZIERES | E13: 508820 | F13: VOUZIERS | G13: 2.9 | H13: 4 | I13: 62 | J13: 34 | K13: 140 | L13: 117 | M13: 133 | N13: 12 | O13: 34 | P13: 218 | Q13: 38 | R13: 33 | S13: 88 | T13: 1 | U13: 1 | V13: 12 | W13: 8 | X13: 28 | Y13: 22 | Z13: 5
A14: 50 | B14: MEURTHE ET MOSELLE MEUSE | C14: 27 | D14: PONT A MOUSSON | E14: 454651 | F14: TOUL | G14: 9.4 | H14: 5 | I14: 216 | J14: 77 | K14: 261 | L14: 3 | M14: 6 | N14: 2 | O14: 3 | P14: 237 | Q14: 95 | R14: 124 | S14: 64 | T14: 18 | U14: 30 | V14: 7 | W14: 1 | X14: 1 | Y14: 3 | Z14: 1
A15: 50 | B15: BAS-RHIN | C15: 5101 | D15: SELESTAT | E15: 4113 | F15: BARR | G15: 3.0 | H15: 6 | I15: 71 | J15: 137 | K15: 11 | L15: 10 | M15: 13 | N15: 103 | O15: 17 | P15: 48 | Q15: 2 | R15: 2 | S15: 7 | T15: 11 | U15: 6 | V15: 80 | W15: 192 | X15: 166 | Y15: 198 | Z15: 149
A16: 50 | B16: MARNE-ARDENNES | C16: 2 | D16: CHARLEVILLE MEZIERES | E16: 408822 | F16: CHARLEVILLE MEZIERES | G16: 4.3 | H16: 7 | I16: 112 | J16: 132 | K16: 89 | L16: 60 | M16: 137 | N16: 21 | O16: 11 | P16: 128 | Q16: 3 | R16: 7 | S16: 4 | T16: 13 | U16: 12 | V16: 27 | W16: 41 | X16: 13 | Y16: 214 | Z16: 30
A17: 50 | B17: MARNE-ARDENNES | C17: 2 | D17: CHARLEVILLE MEZIERES | E17: 408862 | F17: REVIN | G17: 3.8 | H17: 8 | I17: 2 | J17: 1 | K17: 49 | L17: 25 | M17: 63 | N17: 11 | O17: 73 | P17: 38 | Q17: 9 | R17: 13 | S17: 18 | T17: 115 | U17: 101 | V17: 169 | W17: 72 | X17: 51 | Y17: 182 | Z17: 35
A18: 50 | B18: VOSGES | C18: 57 | D18: EPINAL | E18: 488288 | F18: EPINAL LEOPOLD BOURG | G18: 1.9 | H18: 9 | I18: 98 | J18: 144 | K18: 45 | L18: 11 | M18: 12 | N18: 31 | O18: 15 | P18: 195 | Q18: 21 | R18: 10 | S18: 216 | T18: 94 | U18: 81 | V18: 123 | W18: 5 | X18: 6 | Y18: 2 | Z18: 6
A19: 50 | B19: BAS-RHIN | C19: 5060 | D19: HAGUENAU | E19: 4092 | F19: HOCHFELDEN | G19: 1.6 | H19: 10 | I19: 115 | J19: 118 | K19: 122 | L19: 6 | M19: 2 | N19: 20 | O19: 38 | P19: 219 | Q19: 206 | R19: 240 | S19: 36 | T19: 22 | U19: 41 | V19: 4 | W19: 6 | X19: 10 | Y19: 10 | Z19: 7
A20: 50 | B20: MEURTHE ET MOSELLE MEUSE | C20: 31 | D20: VERDUN | E20: 554413 | F20: LONGWY BAS | G20: 3.0 | H20: 11 | I20: 7 | J20: 12 | K20: 28 | L20: 15 | M20: 16 | N20: 84 | O20: 191 | P20: 52 | Q20: 13 | R20: 18 | S20: 14 | T20: 187 | U20: 200 | V20: 129 | W20: 12 | X20: 12 | Y20: 24 | Z20: 114
A21: 50 | B21: MARNE-ARDENNES | C21: 11 | D21: REIMS | E21: 451336 | F21: TINQUEUX | G21: 5.6 | H21: 12 | I21: 100 | J21: 115 | K21: 92 | L21: 141 | M21: 128 | N21: 50 | O21: 29 | P21: 222 | Q21: 1 | R21: 1 | S21: 168 | T21: 82 | U21: 73 | V21: 100 | W21: 92 | X21: 34 | Y21: 209 | Z21: 69
A22: 50 | B22: MOSELLE | C22: 44 | D22: MOSELLE NORD | E22: 557508 | F22: NILVANGE | G22: 2.5 | H22: 13 | I22: 158 | J22: 183 | K22: 111 | L22: 27 | M22: 30 | N22: 42 | O22: 40 | P22: 173 | Q22: 25 | R22: 74 | S22: 10 | T22: 6 | U22: 5 | V22: 13 | W22: 28 | X22: 18 | Y22: 128 | Z22: 31
A23: 50 | B23: MARNE-ARDENNES | C23: 11 | D23: REIMS | E23: 551349 | F23: REIMS SAINT REMI | G23: 2.9 | H23: 14 | I23: 113 | J23: 86 | K23: 171 | L23: 13 | M23: 17 | N23: 16 | O23: 8 | P23: 216 | Q23: 10 | R23: 15 | S23: 11 | T23: 49 | U23: 70 | V23: 21 | W23: 27 | X23: 27 | Y23: 120 | Z23: 16
A24: 50 | B24: MARNE-ARDENNES | C24: 6 | D24: CHALONS EN CHAMPAGNE | E24: 451115 | F24: MOURMELON LE GRAND | G24: 2.9 | H24: 15 | I24: 34 | J24: 73 | K24: 14 | L24: 191 | M24: 186 | N24: 51 | O24: 7 | P24: 252 | Q24: 15 | R24: 180 | S24: 1 | T24: 32 | U24: 38 | V24: 24 | W24: 14 | X24: 46 | Y24: 34 | Z24: 19
A25: 50 | B25: VOSGES | C25: 55 | D25: SAINT DIE | E25: 488246 | F25: CORNIMONT LA BRESSE | G25: 2.7 | H25: 16 | I25: 3 | J25: 8 | K25: 3 | L25: 156 | M25: 130 | N25: 96 | O25: 219 | P25: 140 | Q25: 145 | R25: 155 | S25: 119 | T25: 26 | U25: 17 | V25: 115 | W25: 74 | X25: 150 | Y25: 45 | Z25: 71
A26: 50 | B26: MARNE-ARDENNES | C26: 11 | D26: REIMS | E26: 551305 | F26: REIMS HIPPODROME | G26: 3.6 | H26: 17 | I26: 16 | J26: 54 | K26: 9 | L26: 116 | M26: 173 | N26: 22 | O26: 4 | P26: 230 | Q26: 209 | R26: 238 | S26: 45 | T26: 14 | U26: 13 | V26: 33 | W26: 23 | X26: 19 | Y26: 160 | Z26: 15
A27: 50 | B27: MOSELLE | C27: 45 | D27: METZ | E27: 557444 | F27: SAINT JULIEN LES METZ | G27: 5.0 | H27: 18 | I27: 101 | J27: 128 | K27: 73 | L27: 87 | M27: 81 | N27: 125 | O27: 124 | P27: 132 | Q27: 30 | R27: 17 | S27: 126 | T27: 21 | U27: 23 | V27: 15 | W27: 37 | X27: 64 | Y27: 20 | Z27: 107
A28: 50 | B28: MEURTHE ET MOSELLE MEUSE | C28: 26 | D28: NANCY | E28: 554636 | F28: TOMBLAINE | G28: 1.9 | H28: 19 | I28: 15 | J28: 62 | K28: 5 | L28: 243 | M28: 253 | N28: 18 | O28: 125 | P28: 243 | Q28: 51 | R28: 65 | S28: 62 | T28: 10 | U28: 31 | V28: 1 | W28: 50 | X28: 172 | Y28: 82 | Z28: 8
A29: 50 | B29: MOSELLE | C29: 42 | D29: MOSELLE EST | E29: 557250 | F29: CREUTZWALD | G29: 2.5 | H29: 20 | I29: 124 | J29: 144 | K29: 83 | L29: 174 | M29: 198 | N29: 104 | O29: 163 | P29: 64 | Q29: 4 | R29: 12 | S29: 2 | T29: 33 | U29: 34 | V29: 48 | W29: 38 | X29: 55 | Y29: 31 | Z29: 75
A30: 50 | B30: VOSGES | C30: 57 | D30: EPINAL | E30: 488706 | F30: VITTEL | G30: 3.6 | H30: 21 | I30: 9 | J30: 25 | K30: 13 | L30: 242 | M30: 226 | N30: 178 | O30: 75 | P30: 236 | Q30: 48 | R30: 23 | S30: 206 | T30: 17 | U30: 7 | V30: 145 | W30: 106 | X30: 211 | Y30: 108 | Z30: 34
A31: 262 | B31: MARNE-ARDENNES | C31: 11 | D31: REIMS | E31: 551340 | F31: BETHENY | G31: 2.9 | H31: 22 | I31: 26 | J31: 27 | K31: 57 | L31: 56 | M31: 88 | N31: 8 | O31: 5 | P31: 254 | Q31: 16 | R31: 22 | S31: 25 | T31: 189 | U31: 208 | V31: 107 | W31: 15 | X31: 30 | Y31: 52 | Z31: 14
A32: 262 | B32: AUBE HAUTE MARNE | C32: 21 | D32: CHAUMONT | E32: 510590 | F32: CHAUMONT REPUBLIQUE | G32: 4.2 | H32: 23 | I32: 82 | J32: 86 | K32: 93 | L32: 120 | M32: 196 | N32: 46 | O32: 122 | P32: 28 | Q32: 88 | R32: 95 | S32: 90 | T32: 24 | U32: 21 | V32: 31 | W32: 16 | X32: 107 | Y32: 5 | Z32: 48
A33: 262 | B33: BAS-RHIN | C33: 5101 | D33: SELESTAT | E33: 4126 | F33: MUTZIG | G33: 2.0 | H33: 24 | I33: 205 | J33: 228 | K33: 86 | L33: 32 | M33: 61 | N33: 13 | O33: 9 | P33: 183 | Q33: 187 | R33: 257 | S33: 6 | T33: 34 | U33: 53 | V33: 11 | W33: 2 | X33: 5 | Y33: 1 | Z33: 4
A34: 262 | B34: VOSGES | C34: 57 | D34: EPINAL | E34: 588716 | F34: XERTIGNY | G34: 3.0 | H34: 25 | I34: 79 | J34: 77 | K34: 98 | L34: 161 | M34: 117 | N34: 194 | O34: 245 | P34: 133 | Q34: 86 | R34: 75 | S34: 129 | T34: 2 | U34: 3 | V34: 59 | W34: 242 | X34: 223 | Y34: 234 | Z34: 193
A35: 262 | B35: MOSELLE | C35: 42 | D35: MOSELLE EST | E35: 457308 | F35: FORBACH CENTRALE | G35: 10.9 | H35: 26 | I35: 33 | J35: 12 | K35: 107 | L35: 44 | M35: 47 | N35: 123 | O35: 151 | P35: 88 | Q35: 109 | R35: 111 | S35: 110 | T35: 57 | U35: 44 | V35: 150 | W35: 65 | X35: 125 | Y35: 32 | Z35: 141
A36: 262 | B36: BAS-RHIN | C36: 5101 | D36: SELESTAT | E36: 4119 | F36: OBERNAI | G36: 3.2 | H36: 27 | I36: 223 | J36: 178 | K36: 236 | L36: 5 | M36: 1 | N36: 41 | O36: 155 | P36: 223 | Q36: 28 | R36: 135 | S36: 5 | T36: 23 | U36: 18 | V36: 58 | W36: 161 | X36: 245 | Y36: 62 | Z36: 165
A37: 262 | B37: BAS-RHIN | C37: 5006 | D37: STRASBOURG | E37: 4037 | F37: MUNDOLSHEIM | G37: 4.2 | H37: 28 | I37: 145 | J37: 144 | K37: 143 | L37: 9 | M37: 4 | N37: 60 | O37: 65 | P37: 190 | Q37: 27 | R37: 28 | S37: 66 | T37: 51 | U37: 49 | V37: 66 | W37: 195 | X37: 218 | Y37: 179 | Z37: 125
A38: 262 | B38: MARNE-ARDENNES | C38: 6 | D38: CHALONS EN CHAMPAGNE | E38: 551330 | F38: MONTMIRAIL | G38: 3.0 | H38: 29 | I38: 19 | J38: 41 | K38: 20 | L38: 201 | M38: 241 | N38: 229 | O38: 59 | P38: 35 | Q38: 39 | R38: 66 | S38: 23 | T38: 67 | U38: 77 | V38: 42 | W38: 53 | X38: 29 | Y38: 138 | Z38: 64
A39: 262 | B39: MARNE-ARDENNES | C39: 2 | D39: CHARLEVILLE MEZIERES | E39: 508839 | F39: GIVET | G39: 3.5 | H39: 30 | I39: 123 | J39: 128 | K39: 119 | L39: 165 | M39: 218 | N39: 105 | O39: 186 | P39: 13 | Q39: 144 | R39: 186 | S39: 74 | T39: 3 | U39: 2 | V39: 65 | W39: 170 | X39: 126 | Y39: 170 | Z39: 157
A40: 262 | B40: MEURTHE ET MOSELLE MEUSE | C40: 26 | D40: NANCY | E40: 454426 | F40: LUNEVILLE CARNOT | G40: 9.7 | H40: 31 | I40: 122 | J40: 124 | K40: 128 | L40: 30 | M40: 25 | N40: 86 | O40: 66 | P40: 164 | Q40: 110 | R40: 102 | S40: 139 | T40: 35 | U40: 37 | V40: 39 | W40: 61 | X40: 39 | Y40: 117 | Z40: 67
A41: 262 | B41: VOSGES | C41: 55 | D41: SAINT DIE | E41: 588186 | F41: BRUYERES | G41: 3.7 | H41: 32 | I41: 109 | J41: 137 | K41: 67 | L41: 43 | M41: 54 | N41: 113 | O41: 208 | P41: 27 | Q41: 135 | R41: 136 | S41: 170 | T41: 30 | U41: 25 | V41: 62 | W41: 51 | X41: 99 | Y41: 44 | Z41: 55
A42: 262 | B42: MEURTHE ET MOSELLE MEUSE | C42: 31 | D42: VERDUN | E42: 554412 | F42: LONGUYON | G42: 2.5 | H42: 33 | I42: 68 | J42: 108 | K42: 52 | L42: 133 | M42: 179 | N42: 64 | O42: 21 | P42: 136 | Q42: 125 | R42: 93 | S42: 212 | T42: 44 | U42: 58 | V42: 25 | W42: 26 | X42: 50 | Y42: 29 | Z42: 57
A43: 262 | B43: MEURTHE ET MOSELLE MEUSE | C43: 31 | D43: VERDUN | E43: 555679 | F43: VERDUN MAZEL | G43: 4.0 | H43: 34 | I43: 40 | J43: 47 | K43: 59 | L43: 62 | M43: 108 | N43: 89 | O43: 67 | P43: 39 | Q43: 67 | R43: 61 | S43: 117 | T43: 98 | U43: 87 | V43: 112 | W43: 105 | X43: 119 | Y43: 116 | Z43: 70
A44: 262 | B44: MEURTHE ET MOSELLE MEUSE | C44: 27 | D44: PONT A MOUSSON | E44: 454535 | F44: PONT A MOUSSON CENTRALE | G44: 8.1 | H44: 35 | I44: 147 | J44: 132 | K44: 176 | L44: 16 | M44: 19 | N44: 55 | O44: 35 | P44: 90 | Q44: 61 | R44: 47 | S44: 136 | T44: 61 | U44: 68 | V44: 51 | W44: 87 | X44: 20 | Y44: 244 | Z44: 79
A45: 262 | B45: MARNE-ARDENNES | C45: 11 | D45: REIMS | E45: 551310 | F45: REIMS CHATILLONS | G45: 3.7 | H45: 36 | I45: 141 | J45: 159 | K45: 112 | L45: 46 | M45: 75 | N45: 74 | O45: 31 | P45: 109 | Q45: 62 | R45: 70 | S45: 76 | T45: 68 | U45: 56 | V45: 120 | W45: 17 | X45: 22 | Y45: 60 | Z45: 38
A46: 262 | B46: BAS-RHIN | C46: 5006 | D46: STRASBOURG | E46: 4047 | F46: STRASBOURG CRONENBOURG | G46: 5.7 | H46: 37 | I46: 49 | J46: 86 | K46: 36 | L46: 82 | M46: 104 | N46: 98 | O46: 23 | P46: 143 | Q46: 65 | R46: 118 | S46: 30 | T46: 72 | U46: 55 | V46: 142 | W46: 110 | X46: 33 | Y46: 227 | Z46: 83
A47: 262 | B47: MARNE-ARDENNES | C47: 6 | D47: CHALONS EN CHAMPAGNE | E47: 551110 | F47: CHALONS ROOSEVELT | G47: 4.9 | H47: 38 | I47: 27 | J47: 47 | K47: 24 | L47: 155 | M47: 185 | N47: 100 | O47: 39 | P47: 113 | Q47: 34 | R47: 73 | S47: 15 | T47: 99 | U47: 79 | V47: 148 | W47: 116 | X47: 78 | Y47: 181 | Z47: 89
A48: 262 | B48: VOSGES | C48: 57 | D48: EPINAL | E48: 488451 | F48: MIRECOURT | G48: 4.9 | H48: 39 | I48: 57 | J48: 94 | K48: 51 | L48: 115 | M48: 131 | N48: 52 | O48: 87 | P48: 137 | Q48: 46 | R48: 41 | S48: 120 | T48: 39 | U48: 35 | V48: 93 | W48: 177 | X48: 168 | Y48: 213 | Z48: 89
A49: 262 | B49: MARNE-ARDENNES | C49: 2 | D49: CHARLEVILLE MEZIERES | E49: 408801 | F49: CHARLEVILLE JEAN JAURES | G49: 9.4 | H49: 40 | I49: 35 | J49: 25 | K49: 80 | L49: 112 | M49: 171 | N49: 56 | O49: 10 | P49: 147 | Q49: 94 | R49: 183 | S49: 12 | T49: 144 | U49: 145 | V49: 136 | W49: 20 | X49: 15 | Y49: 148 | Z49: 12
A50: 262 | B50: VOSGES | C50: 55 | D50: SAINT DIE | E50: 488586 | F50: SAINT DIE | G50: 11.6 | H50: 41 | I50: 4 | J50: 4 | K50: 29 | L50: 180 | M50: 141 | N50: 171 | O50: 203 | P50: 153 | Q50: 44 | R50: 38 | S50: 104 | T50: 138 | U50: 112 | V50: 213 | W50: 188 | X50: 136 | Y50: 205 | Z50: 144
A51: 262 | B51: MEURTHE ET MOSELLE MEUSE | C51: 26 | D51: NANCY | E51: 554476 | F51: NANCY ARTEM | G51: 2.7 | H51: 42 | I51: 60 | J51: 118 | K51: 25 | L51: 137 | M51: 93 | N51: 80 | O51: 54 | P51: 235 | Q51: 52 | R51: 43 | S51: 140 | T51: 69 | U51: 76 | V51: 52 | W51: 75 | X51: 112 | Y51: 115 | Z51: 40
A52: 262 | B52: VOSGES | C52: 57 | D52: EPINAL | E52: 588206 | F52: CHARMES | G52: 2.8 | H52: 43 | I52: 64 | J52: 86 | K52: 66 | L52: 195 | M52: 172 | N52: 120 | O52: 156 | P52: 180 | Q52: 142 | R52: 115 | S52: 229 | T52: 25 | U52: 19 | V52: 54 | W52: 80 | X52: 121 | Y52: 58 | Z52: 92
A53: 262 | B53: MOSELLE | C53: 45 | D53: METZ | E53: 557105 | F53: ARS SUR MOSELLE | G53: 4.0 | H53: 44 | I53: 54 | J53: 34 | K53: 109 | L53: 73 | M53: 53 | N53: 116 | O53: 91 | P53: 176 | Q53: 162 | R53: 129 | S53: 227 | T53: 103 | U53: 83 | V53: 165 | W53: 31 | X53: 16 | Y53: 70 | Z53: 74
A54: 262 | B54: MARNE-ARDENNES | C54: 6 | D54: CHALONS EN CHAMPAGNE | E54: 451120 | F54: SARRY | G54: 2.5 | H54: 45 | I54: 13 | J54: 34 | K54: 10 | L54: 143 | M54: 189 | N54: 191 | O54: 58 | P54: 33 | Q54: 32 | R54: 52 | S54: 27 | T54: 135 | U54: 130 | V54: 164 | W54: 191 | X54: 200 | Y54: 167 | Z54: 154
A55: 262 | B55: BAS-RHIN | C55: 5060 | D55: HAGUENAU | E55: 4066 | F55: NIEDERBRONN LES BAINS | G55: 6.3 | H55: 46 | I55: 5 | J55: 27 | K55: 2 | L55: 145 | M55: 154 | N55: 174 | O55: 129 | P55: 71 | Q55: 161 | R55: 97 | S55: 260 | T55: 90 | U55: 62 | V55: 197 | W55: 156 | X55: 179 | Y55: 79 | Z55: 196
A56: 262 | B56: MOSELLE | C56: 44 | D56: MOSELLE NORD | E56: 457348 | F56: HAGONDANGE | G56: 9.3 | H56: 47 | I56: 152 | J56: 137 | K56: 175 | L56: 42 | M56: 34 | N56: 181 | O56: 112 | P56: 105 | Q56: 79 | R56: 62 | S56: 151 | T56: 46 | U56: 36 | V56: 139 | W56: 78 | X56: 56 | Y56: 97 | Z56: 101
A57: 262 | B57: VOSGES | C57: 57 | D57: EPINAL | E57: 588396 | F57: LE VAL D AJOL | G57: 3.0 | H57: 48 | I57: 1 | J57: 2 | K57: 7 | L57: 207 | M57: 184 | N57: 257 | O57: 227 | P57: 60 | Q57: 147 | R57: 94 | S57: 252 | T57: 78 | U57: 43 | V57: 235 | W57: 256 | X57: 196 | Y57: 253 | Z57: 256
A58: 262 | B58: MARNE-ARDENNES | C58: 11 | D58: REIMS | E58: 451361 | F58: PIERRY LECLERC | G58: 2.0 | H58: 49 | I58: 25 | J58: 34 | K58: 33 | L58: 47 | M58: 158 | N58: 44 | O58: 49 | P58: 2 | Q58: 236 | R58: 207 | S58: 239 | T58: 73 | U58: 74 | V58: 72 | W58: 146 | X58: 36 | Y58: 217 | Z58: 205
A59: 262 | B59: MEURTHE ET MOSELLE MEUSE | C59: 31 | D59: VERDUN | E59: 455456 | F59: MONTMEDY | G59: 1.8 | H59: 50 | I59: 143 | J59: 204 | K59: 46 | L59: 40 | M59: 64 | N59: 23 | O59: 189 | P59: 77 | Q59: 118 | R59: 92 | S59: 187 | T59: 58 | U59: 50 | V59: 103 | W59: 47 | X59: 57 | Y59: 59 | Z59: 63
A60: 262 | B60: VOSGES | C60: 57 | D60: EPINAL | E60: 588631 | F60: THAON LES VOSGES | G60: 5.5 | H60: 51 | I60: 53 | J60: 112 | K60: 21 | L60: 107 | M60: 82 | N60: 81 | O60: 76 | P60: 206 | Q60: 158 | R60: 126 | S60: 226 | T60: 48 | U60: 45 | V60: 92 | W60: 137 | X60: 130 | Y60: 110 | Z60: 150
A61: 262 | B61: BAS-RHIN | C61: 5101 | D61: SELESTAT | E61: 4121 | F61: SCHIRMECK | G61: 3.5 | H61: 52 | I61: 121 | J61: 174 | K61: 48 | L61: 89 | M61: 100 | N61: 195 | O61: 81 | P61: 72 | Q61: 56 | R61: 86 | S61: 39 | T61: 81 | U61: 61 | V61: 143 | W61: 67 | X61: 156 | Y61: 96 | Z61: 26
A62: 262 | B62: MARNE-ARDENNES | C62: 2 | D62: CHARLEVILLE MEZIERES | E62: 508815 | F62: CARIGNAN | G62: 2.9 | H62: 53 | I62: 83 | J62: 41 | K62: 168 | L62: 135 | M62: 216 | N62: 36 | O62: 68 | P62: 55 | Q62: 22 | R62: 49 | S62: 19 | T62: 109 | U62: 96 | V62: 161 | W62: 124 | X62: 69 | Y62: 141 | Z62: 160
A63: 262 | B63: MOSELLE | C63: 45 | D63: METZ | E63: 557447 | F63: METZ SAINT MAXIMIN | G63: 3.1 | H63: 54 | I63: 140 | J63: 183 | K63: 70 | L63: 33 | M63: 181 | N63: 3 | O63: 14 | P63: 45 | Q63: 151 | R63: 150 | S63: 149 | T63: 97 | U63: 138 | V63: 30 | W63: 19 | X63: 21 | Y63: 133 | Z63: 11
A64: 262 | B64: AUBE HAUTE MARNE | C64: 14 | D64: TROYES | E64: 510511 | F64: TROYES BROSSOLETTE | G64: 2.9 | H64: 55 | I64: 37 | J64: 77 | K64: 15 | L64: 81 | M64: 107 | N64: 69 | O64: 184 | P64: 70 | Q64: 33 | R64: 24 | S64: 97 | T64: 204 | U64: 204 | V64: 193 | W64: 145 | X64: 63 | Y64: 200 | Z64: 153
A65: 262 | B65: MARNE-ARDENNES | C65: 6 | D65: CHALONS EN CHAMPAGNE | E65: 451101 | F65: CHALONS VIVIERS | G65: 8.5 | H65: 56 | I65: 12 | J65: 14 | K65: 43 | L65: 76 | M65: 90 | N65: 79 | O65: 36 | P65: 167 | Q65: 163 | R65: 233 | S65: 17 | T65: 210 | U65: 231 | V65: 105 | W65: 56 | X65: 71 | Y65: 83 | Z65: 44
A66: 262 | B66: MEURTHE ET MOSELLE MEUSE | C66: 31 | D66: VERDUN | E66: 555624 | F66: STENAY | G66: 2.9 | H66: 57 | I66: 193 | J66: 228 | K66: 55 | L66: 7 | M66: 11 | N66: 28 | O66: 140 | P66: 32 | Q66: 91 | R66: 108 | S66: 79 | T66: 105 | U66: 126 | V66: 69 | W66: 102 | X66: 182 | Y66: 50 | Z66: 108
A67: 262 | B67: BAS-RHIN | C67: 5006 | D67: STRASBOURG | E67: 4019 | F67: STRASBOURG ANVERS | G67: 3.9 | H67: 58 | I67: 95 | J67: 19 | K67: 218 | L67: 105 | M67: 31 | N67: 29 | O67: 30 | P67: 264 | Q67: 55 | R67: 81 | S67: 43 | T67: 160 | U67: 195 | V67: 77 | W67: 42 | X67: 73 | Y67: 14 | Z67: 159
A68: 262 | B68: MARNE-ARDENNES | C68: 11 | D68: REIMS | E68: 551367 | F68: AY CHAMPAGNE | G68: 2.7 | H68: 59 | I68: 185 | J68: 187 | K68: 173 | L68: 52 | M68: 120 | N68: 27 | O68: 12 | P68: 119 | Q68: 156 | R68: 162 | S68: 130 | T68: 70 | U68: 71 | V68: 64 | W68: 9 | X68: 4 | Y68: 135 | Z68: 24
A69: 262 | B69: MEURTHE ET MOSELLE MEUSE | C69: 31 | D69: VERDUN | E69: 455298 | F69: ETAIN | G69: 1.7 | H69: 60 | I69: 176 | J69: 178 | K69: 166 | L69: 228 | M69: 220 | N69: 245 | O69: 249 | P69: 118 | Q69: 138 | R69: 99 | S69: 238 | T69: 7 | U69: 8 | V69: 16 | W69: 54 | X69: 38 | Y69: 33 | Z69: 207
A70: 262 | B70: MARNE-ARDENNES | C70: 11 | D70: REIMS | E70: 451350 | F70: REIMS CENTRE VILLE | G70: 7.5 | H70: 61 | I70: 154 | J70: 155 | K70: 153 | L70: 144 | M70: 145 | N70: 37 | O70: 19 | P70: 229 | Q70: 58 | R70: 59 | S70: 75 | T70: 89 | U70: 97 | V70: 81 | W70: 13 | X70: 7 | Y70: 64 | Z70: 56
A71: 262 | B71: BAS-RHIN | C71: 5101 | D71: SELESTAT | E71: 4007 | F71: ILLKIRCH CENTRE | G71: 7.0 | H71: 62 | I71: 111 | J71: 108 | K71: 142 | L71: 18 | M71: 8 | N71: 157 | O71: 139 | P71: 209 | Q71: 178 | R71: 219 | S71: 60 | T71: 54 | U71: 47 | V71: 106 | W71: 213 | X71: 177 | Y71: 192 | Z71: 197
A72: 262 | B72: MEURTHE ET MOSELLE MEUSE | C72: 27 | D72: PONT A MOUSSON | E72: 554321 | F72: FROUARD | G72: 3.0 | H72: 63 | I72: 227 | J72: 236 | K72: 159 | L72: 69 | M72: 112 | N72: 196 | O72: 106 | P72: 9 | Q72: 17 | R72: 8 | S72: 162 | T72: 50 | U72: 63 | V72: 26 | W72: 46 | X72: 25 | Y72: 156 | Z72: 45
A73: 262 | B73: VOSGES | C73: 55 | D73: SAINT DIE | E73: 488326 | F73: GERARDMER | G73: 5.5 | H73: 64 | I73: 30 | J73: 62 | K73: 16 | L73: 173 | M73: 123 | N73: 231 | O73: 128 | P73: 144 | Q73: 18 | R73: 5 | S73: 243 | T73: 213 | U73: 186 | V73: 240 | W73: 172 | X73: 103 | Y73: 176 | Z73: 183
A74: 262 | B74: BAS-RHIN | C74: 5060 | D74: HAGUENAU | E74: 4087 | F74: SAVERNE | G74: 8.6 | H74: 65 | I74: 125 | J74: 22 | K74: 237 | L74: 55 | M74: 18 | N74: 82 | O74: 64 | P74: 260 | Q74: 97 | R74: 89 | S74: 128 | T74: 92 | U74: 90 | V74: 91 | W74: 90 | X74: 80 | Y74: 91 | Z74: 109
A75: 262 | B75: MOSELLE | C75: 42 | D75: MOSELLE EST | E75: 457165 | F75: BITCHE | G75: 1.8 | H75: 66 | I75: 191 | J75: 214 | K75: 113 | L75: 23 | M75: 22 | N75: 88 | O75: 193 | P75: 94 | Q75: 261 | R75: 263 | S75: 47 | T75: 15 | U75: 28 | V75: 6 | W75: 36 | X75: 53 | Y75: 51 | Z75: 33
A76: 262 | B76: BAS-RHIN | C76: 5006 | D76: STRASBOURG | E76: 4043 | F76: STRASBOURG HALLES | G76: 8.5 | H76: 67 | I76: 116 | J76: 56 | K76: 201 | L76: 39 | M76: 59 | N76: 7 | O76: 25 | P76: 208 | Q76: 74 | R76: 63 | S76: 135 | T76: 153 | U76: 161 | V76: 124 | W76: 69 | X76: 26 | Y76: 225 | Z76: 50
A77: 262 | B77: VOSGES | C77: 55 | D77: SAINT DIE | E77: 588386 | F77: LE THILLOT | G77: 2.6 | H77: 68 | I77: 107 | J77: 124 | K77: 99 | L77: 172 | M77: 208 | N77: 219 | O77: 103 | P77: 12 | Q77: 96 | R77: 122 | S77: 65 | T77: 28 | U77: 16 | V77: 179 | W77: 200 | X77: 254 | Y77: 69 | Z77: 222
A78: 262 | B78: MARNE-ARDENNES | C78: 2 | D78: CHARLEVILLE MEZIERES | E78: 508802 | F78: CHARLEVILLE NEVERS | G78: 3.0 | H78: 69 | I78: 29 | J78: 22 | K78: 71 | L78: 203 | M78: 228 | N78: 183 | O78: 37 | P78: 121 | Q78: 197 | R78: 239 | S78: 34 | T78: 74 | U78: 64 | V78: 113 | W78: 81 | X78: 138 | Y78: 23 | Z78: 194
A79: 264 | B79: MOSELLE | C79: 45 | D79: METZ | E79: 557712 | F79: WOIPPY | G79: 5.5 | H79: 70 | I79: 81 | J79: 41 | K79: 163 | L79: 38 | M79: 56 | N79: 32 | O79: 82 | P79: 117 | Q79: 225 | R79: 179 | S79: 254 | T79: 64 | U79: 86 | V79: 23 | W79: 149 | X79: 93 | Y79: 183 | Z79: 151
A80: 264 | B80: MARNE-ARDENNES | C80: 2 | D80: CHARLEVILLE MEZIERES | E80: 508833 | F80: VILLERS SEMEUSE CORA | G80: 3.3 | H80: 71 | I80: 104 | J80: 94 | K80: 148 | L80: 138 | M80: 240 | N80: 9 | O80: 42 | P80: 75 | Q80: 102 | R80: 191 | S80: 13 | T80: 108 | U80: 123 | V80: 88 | W80: 32 | X80: 43 | Y80: 54 | Z80: 32
A81: 264 | B81: MOSELLE | C81: 44 | D81: MOSELLE NORD | E81: 457306 | F81: FLORANGE | G81: 3.9 | H81: 72 | I81: 66 | J81: 14 | K81: 195 | L81: 80 | M81: 106 | N81: 110 | O81: 111 | P81: 65 | Q81: 77 | R81: 80 | S81: 102 | T81: 130 | U81: 128 | V81: 160 | W81: 140 | X81: 70 | Y81: 121 | Z81: 217
A82: 264 | B82: MEURTHE ET MOSELLE MEUSE | C82: 26 | D82: NANCY | E82: 554611 | F82: SAINT NICOLAS DE PORT | G82: 2.7 | H82: 73 | I82: 36 | J82: 11 | K82: 129 | L82: 51 | M82: 140 | N82: 26 | O82: 33 | P82: 30 | Q82: 29 | R82: 34 | S82: 55 | T82: 255 | U82: 259 | V82: 138 | W82: 120 | X82: 92 | Y82: 150 | Z82: 121
A83: 264 | B83: MOSELLE | C83: 42 | D83: MOSELLE EST | E83: 457617 | F83: SARREGUEMINES | G83: 8.0 | H83: 74 | I83: 61 | J83: 56 | K83: 102 | L83: 95 | M83: 99 | N83: 180 | O83: 134 | P83: 76 | Q83: 66 | R83: 85 | S83: 73 | T83: 111 | U83: 91 | V83: 170 | W83: 198 | X83: 122 | Y83: 222 | Z83: 182
A84: 264 | B84: BAS-RHIN | C84: 5006 | D84: STRASBOURG | E84: 4006 | F84: STRASBOURG NEUDORF | G84: 8.1 | H84: 75 | I84: 86 | J84: 67 | K84: 133 | L84: 22 | M84: 29 | N84: 30 | O84: 61 | P84: 150 | Q84: 196 | R84: 216 | S84: 101 | T84: 71 | U84: 80 | V84: 53 | W84: 223 | X84: 141 | Y84: 248 | Z84: 178
A85: 264 | B85: MOSELLE | C85: 45 | D85: METZ | E85: 457453 | F85: MONTIGNY LES METZ | G85: 8.2 | H85: 76 | I85: 32 | J85: 67 | K85: 17 | L85: 48 | M85: 20 | N85: 177 | O85: 95 | P85: 227 | Q85: 150 | R85: 198 | S85: 57 | T85: 209 | U85: 176 | V85: 244 | W85: 107 | X85: 95 | Y85: 127 | Z85: 95
A86: 264 | B86: BAS-RHIN | C86: 5060 | D86: HAGUENAU | E86: 4057 | F86: BISCHWILLER | G86: 6.7 | H86: 77 | I86: 42 | J86: 9 | K86: 169 | L86: 84 | M86: 65 | N86: 186 | O86: 235 | P86: 84 | Q86: 233 | R86: 222 | S86: 176 | T86: 76 | U86: 72 | V86: 86 | W86: 176 | X86: 226 | Y86: 42 | Z86: 247
A87: 264 | B87: AUBE HAUTE MARNE | C87: 21 | D87: CHAUMONT | E87: 451156 | F87: SAINT DIZIER CENTRE | G87: 9.7 | H87: 78 | I87: 72 | J87: 56 | K87: 114 | L87: 182 | M87: 193 | N87: 107 | O87: 137 | P87: 112 | Q87: 87 | R87: 76 | S87: 131 | T87: 93 | U87: 109 | V87: 60 | W87: 123 | X87: 206 | Y87: 77 | Z87: 87
A88: 264 | B88: AUBE HAUTE MARNE | C88: 14 | D88: TROYES | E88: 410550 | F88: BAR SUR AUBE | G88: 5.9 | H88: 79 | I88: 47 | J88: 29 | K88: 110 | L88: 160 | M88: 175 | N88: 128 | O88: 237 | P88: 44 | Q88: 143 | R88: 137 | S88: 177 | T88: 79 | U88: 92 | V88: 44 | W88: 166 | X88: 248 | Y88: 73 | Z88: 136
A89: 264 | B89: VOSGES | C89: 57 | D89: EPINAL | E89: 488286 | F89: EPINAL ARISTIDE BRIAND | G89: 9.1 | H89: 80 | I89: 11 | J89: 6 | K89: 74 | L89: 176 | M89: 109 | N89: 43 | O89: 70 | P89: 256 | Q89: 210 | R89: 190 | S89: 215 | T89: 80 | U89: 67 | V89: 117 | W89: 217 | X89: 144 | Y89: 256 | Z89: 130
A90: 264 | B90: MOSELLE | C90: 42 | D90: MOSELLE EST | E90: 557503 | F90: NEUNKIRCH | G90: 3.7 | H90: 81 | I90: 52 | J90: 108 | K90: 23 | L90: 90 | M90: 69 | N90: 152 | O90: 250 | P90: 106 | Q90: 75 | R90: 32 | S90: 244 | T90: 205 | U90: 198 | V90: 208 | W90: 103 | X90: 154 | Y90: 36 | Z90: 185
A91: 264 | B91: BAS-RHIN | C91: 5101 | D91: SELESTAT | E91: 4107 | F91: VILLE | G91: 3.0 | H91: 82 | I91: 239 | J91: 244 | K91: 190 | L91: 14 | M91: 14 | N91: 159 | O91: 169 | P91: 41 | Q91: 71 | R91: 79 | S91: 93 | T91: 31 | U91: 14 | V91: 218 | W91: 183 | X91: 237 | Y91: 55 | Z91: 230
A92: 264 | B92: AUBE HAUTE MARNE | C92: 21 | D92: CHAUMONT | E92: 410560 | F92: BOURBONNE LES BAINS | G92: 2.0 | H92: 83 | I92: 8 | J92: 33 | K92: 8 | L92: 185 | M92: 167 | N92: 251 | O92: 227 | P92: 51 | Q92: 180 | R92: 158 | S92: 182 | T92: 110 | U92: 121 | V92: 98 | W92: 216 | X92: 253 | Y92: 94 | Z92: 235
A93: 264 | B93: MEURTHE ET MOSELLE MEUSE | C93: 31 | D93: VERDUN | E93: 454414 | F93: LONGWY HAUT | G93: 4.0 | H93: 84 | I93: 200 | J93: 219 | K93: 120 | L93: 85 | M93: 116 | N93: 78 | O93: 90 | P93: 68 | Q93: 40 | R93: 35 | S93: 87 | T93: 47 | U93: 57 | V93: 35 | W93: 130 | X93: 128 | Y93: 220 | Z93: 45
A94: 264 | B94: BAS-RHIN | C94: 5006 | D94: STRASBOURG | E94: 4038 | F94: OBERHAUSBERGEN | G94: 4.9 | H94: 85 | I94: 103 | J94: 144 | K94: 58 | L94: 79 | M94: 43 | N94: 67 | O94: 50 | P94: 244 | Q94: 89 | R94: 133 | S94: 37 | T94: 126 | U94: 120 | V94: 167 | W94: 112 | X94: 58 | Y94: 134 | Z94: 161
A95: 264 | B95: BAS-RHIN | C95: 5060 | D95: HAGUENAU | E95: 4082 | F95: BOUXWILLER | G95: 2.3 | H95: 86 | I95: 127 | J95: 174 | K95: 61 | L95: 196 | M95: 78 | N95: 207 | O95: 236 | P95: 249 | Q95: 7 | R95: 11 | S95: 21 | T95: 150 | U95: 211 | V95: 28 | W95: 127 | X95: 173 | Y95: 39 | Z95: 233
A96: 264 | B96: BAS-RHIN | C96: 5006 | D96: STRASBOURG | E96: 4026 | F96: STRASBOURG DANUBE | G96: 4.5 | H96: 87 | I96: 215 | J96: 77 | K96: 260 | L96: 106 | M96: 45 | N96: 203 | O96: 254 | P96: 192 | Q96: 106 | R96: 104 | S96: 115 | T96: 20 | U96: 15 | V96: 40 | W96: 114 | X96: 195 | Y96: 30 | Z96: 221
A97: 264 | B97: MARNE-ARDENNES | C97: 11 | D97: REIMS | E97: 551309 | F97: REIMS EUROPE | G97: 3.0 | H97: 88 | I97: 65 | J97: 102 | K97: 56 | L97: 150 | M97: 151 | N97: 136 | O97: 84 | P97: 124 | Q97: 133 | R97: 161 | S97: 80 | T97: 84 | U97: 104 | V97: 42 | W97: 154 | X97: 124 | Y97: 187 | Z97: 117
A98: 264 | B98: MOSELLE | C98: 42 | D98: MOSELLE EST | E98: 457163 | F98: BEHREN LES FORBACH | G98: 2.7 | H98: 89 | I98: 59 | J98: 118 | K98: 22 | L98: 26 | M98: 52 | N98: 15 | O98: 44 | P98: 95 | Q98: 100 | R98: 144 | S98: 35 | T98: 95 | U98: 118 | V98: 46 | W98: 264 | X98: 264 | Y98: 18 | Z98: 27
A99: 264 | B99: MARNE-ARDENNES | C99: 11 | D99: REIMS | E99: 551365 | F99: DORMANS | G99: 2.8 | H99: 90 | I99: 22 | J99: 19 | K99: 65 | L99: 212 | M99: 231 | N99: 222 | O99: 18 | P99: 139 | Q99: 112 | R99: 130 | S99: 84 | T99: 157 | U99: 149 | V99: 166 | W99: 128 | X99: 82 | Y99: 194 | Z99: 94
A100: 264 | B100: BAS-RHIN | C100: 5006 | D100: STRASBOURG | E100: 4010 | F100: STRASBOURG MEINAU | G100: 3.3 | H100: 91 | I100: 240 | J100: 238 | K100: 196 | L100: 37 | M100: 62 | N100: 17 | O100: 41 | P100: 152 | Q100: 123 | R100: 208 | S100: 16 | T100: 16 | U100: 22 | V100: 10 | W100: 113 | X100: 235 | Y100: 46 | Z100: 100
A101: 264 | B101: AUBE HAUTE MARNE | C101: 14 | D101: TROYES | E101: 410571 | F101: ROMILLY SUR SEINE | G101: 6.2 | H101: 92 | I101: 51 | J101: 34 | K101: 103 | L101: 122 | M101: 122 | N101: 117 | O101: 108 | P101: 125 | Q101: 146 | R101: 181 | S101: 81 | T101: 163 | U101: 165 | V101: 140 | W101: 91 | X101: 111 | Y101: 112 | Z101: 59
A102: 264 | B102: MOSELLE | C102: 45 | D102: METZ | E102: 457443 | F102: METZ REPUBLIQUE | G102: 4.2 | H102: 93 | I102: 6 | J102: 9 | K102: 38 | L102: 126 | M102: 127 | N102: 216 | O102: 215 | P102: 31 | Q102: 191 | R102: 178 | S102: 184 | T102: 236 | U102: 249 | V102: 157 | W102: 73 | X102: 74 | Y102: 162 | Z102: 36
A103: 30 | B103: MEURTHE ET MOSELLE MEUSE | C103: 27 | D103: PONT A MOUSSON | E103: 554516 | F103: PAGNY SUR MOSELLE | G103: 2.7 | H103: 94 | I103: 144 | J103: 168 | K103: 105 | L103: 158 | M103: 146 | N103: 139 | O103: 201 | P103: 103 | Q103: 35 | R103: 14 | S103: 192 | T103: 75 | U103: 99 | V103: 38 | W103: 148 | X103: 88 | Y103: 196 | Z103: 134
A104: 30 | B104: MEURTHE ET MOSELLE MEUSE | C104: 27 | D104: PONT A MOUSSON | E104: 554376 | F104: LAXOU BOUFFLERS | G104: 3.0 | H104: 95 | I104: 165 | J104: 207 | K104: 77 | L104: 110 | M104: 57 | N104: 71 | O104: 69 | P104: 241 | Q104: 42 | R104: 42 | S104: 85 | T104: 101 | U104: 116 | V104: 76 | W104: 93 | X104: 75 | Y104: 109 | Z104: 98
A105: 30 | B105: MOSELLE | C105: 42 | D105: MOSELLE EST | E105: 457614 | F105: SARREBOURG | G105: 9.1 | H105: 96 | I105: 69 | J105: 29 | K105: 167 | L105: 63 | M105: 79 | N105: 175 | O105: 150 | P105: 43 | Q105: 128 | R105: 127 | S105: 148 | T105: 174 | U105: 136 | V105: 238 | W105: 135 | X105: 157 | Y105: 68 | Z105: 180
A106: 30 | B106: VOSGES | C106: 55 | D106: SAINT DIE | E106: 588666 | F106: VAGNEY | G106: 3.9 | H106: 97 | I106: 18 | J106: 14 | K106: 63 | L106: 202 | M106: 160 | N106: 232 | O106: 180 | P106: 162 | Q106: 132 | R106: 96 | S106: 232 | T106: 123 | U106: 94 | V106: 217 | W106: 194 | X106: 198 | Y106: 199 | Z106: 120
A107: 30 | B107: AUBE HAUTE MARNE | C107: 21 | D107: CHAUMONT | E107: 410566 | F107: CHAUMONT HOTEL DE VILLE | G107: 7.4 | H107: 98 | I107: 99 | J107: 128 | K107: 68 | L107: 157 | M107: 149 | N107: 66 | O107: 109 | P107: 172 | Q107: 149 | R107: 172 | S107: 89 | T107: 104 | U107: 114 | V107: 89 | W107: 58 | X107: 86 | Y107: 37 | Z107: 119
A108: 30 | B108: MARNE-ARDENNES | C108: 11 | D108: REIMS | E108: 551314 | F108: FISMES | G108: 3.0 | H108: 99 | I108: 77 | J108: 115 | K108: 54 | L108: 111 | M108: 174 | N108: 62 | O108: 13 | P108: 116 | Q108: 120 | R108: 201 | S108: 20 | T108: 164 | U108: 191 | V108: 90 | W108: 94 | X108: 84 | Y108: 144 | Z108: 64
A109: 30 | B109: BAS-RHIN | C109: 5101 | D109: SELESTAT | E109: 4120 | F109: WASSELONNE | G109: 4.6 | H109: 100 | I109: 230 | J109: 228 | K109: 181 | L109: 136 | M109: 114 | N109: 173 | O109: 221 | P109: 108 | Q109: 24 | R109: 46 | S109: 22 | T109: 38 | U109: 39 | V109: 85 | W109: 60 | X109: 191 | Y109: 26 | Z109: 84
A110: 30 | B110: MOSELLE | C110: 44 | D110: MOSELLE NORD | E110: 557113 | F110: AUDUN LE TICHE | G110: 2.0 | H110: 101 | I110: 248 | J110: 260 | K110: 184 | L110: 67 | M110: 92 | N110: 5 | O110: 253 | P110: 201 | Q110: 19 | R110: 30 | S110: 31 | T110: 62 | U110: 75 | V110: 37 | W110: 10 | X110: 8 | Y110: 75 | Z110: 10
A111: 30 | B111: MEURTHE ET MOSELLE MEUSE | C111: 27 | D111: PONT A MOUSSON | E111: 554184 | F111: BRIEY | G111: 4.8 | H111: 102 | I111: 126 | J111: 144 | K111: 91 | L111: 125 | M111: 169 | N111: 182 | O111: 99 | P111: 19 | Q111: 37 | R111: 21 | S111: 159 | T111: 181 | U111: 169 | V111: 199 | W111: 70 | X111: 134 | Y111: 35 | Z111: 115
A112: 30 | B112: VOSGES | C112: 57 | D112: EPINAL | E112: 588501 | F112: NEUFCHATEAU | G112: 5.0 | H112: 103 | I112: 48 | J112: 47 | K112: 78 | L112: 208 | M112: 230 | N112: 145 | O112: 60 | P112: 130 | Q112: 124 | R112: 106 | S112: 182 | T112: 178 | U112: 180 | V112: 163 | W112: 45 | X112: 94 | Y112: 67 | Z112: 25
A113: 30 | B113: AUBE HAUTE MARNE | C113: 21 | D113: CHAUMONT | E113: 451151 | F113: WASSY | G113: 1.9 | H113: 104 | I113: 202 | J113: 238 | K113: 53 | L113: 66 | M113: 72 | N113: 108 | O113: 125 | P113: 96 | Q113: 227 | R113: 252 | S113: 26 | T113: 37 | U113: 48 | V113: 29 | W113: 24 | X113: 161 | Y113: 4 | Z113: 66
A114: 30 | B114: MOSELLE | C114: 44 | D114: MOSELLE NORD | E114: 557660 | F114: UCKANGE | G114: 1.6 | H114: 105 | I114: 246 | J114: 217 | K114: 251 | L114: 146 | M114: 71 | N114: 130 | O114: 248 | P114: 220 | Q114: 81 | R114: 53 | S114: 181 | T114: 12 | U114: 27 | V114: 2 | W114: 30 | X114: 96 | Y114: 6 | Z114: 126
A115: 30 | B115: MEURTHE ET MOSELLE MEUSE | C115: 26 | D115: NANCY | E115: 554266 | F115: DOMBASLE SUR MEURTHE | G115: 3.7 | H115: 106 | I115: 173 | J115: 168 | K115: 172 | L115: 222 | M115: 203 | N115: 158 | O115: 28 | P115: 226 | Q115: 6 | R115: 6 | S115: 40 | T115: 179 | U115: 219 | V115: 49 | W115: 22 | X115: 47 | Y115: 28 | Z115: 53
A116: 30 | B116: HAUT-RHIN | C116: 5130 | D116: COLMAR | E116: 4144 | F116: RIBEAUVILLE | G116: 2.9 | H116: 107 | I116: 212 | J116: 246 | K116: 64 | L116: 34 | M116: 48 | N116: 129 | O116: 101 | P116: 37 | Q116: 92 | R116: 112 | S116: 77 | T116: 42 | U116: 24 | V116: 216 | W116: 165 | X116: 160 | Y116: 84 | Z116: 223
A117: 30 | B117: VOSGES | C117: 57 | D117: EPINAL | E117: 488281 | F117: ELOYES | G117: 4.8 | H117: 108 | I117: 43 | J117: 14 | K117: 141 | L117: 166 | M117: 161 | N117: 204 | O117: 176 | P117: 59 | Q117: 164 | R117: 131 | S117: 222 | T117: 140 | U117: 137 | V117: 151 | W117: 141 | X117: 113 | Y117: 123 | Z117: 172
A118: 30 | B118: BAS-RHIN | C118: 5060 | D118: HAGUENAU | E118: 4079 | F118: SOULTZ SOUS FORETS | G118: 1.8 | H118: 109 | I118: 108 | J118: 132 | K118: 81 | L118: 29 | M118: 21 | N118: 165 | O118: 116 | P118: 126 | Q118: 224 | R118: 231 | S118: 98 | T118: 156 | U118: 173 | V118: 109 | W118: 95 | X118: 109 | Y118: 139 | Z118: 52
A119: 30 | B119: MEURTHE ET MOSELLE MEUSE | C119: 27 | D119: PONT A MOUSSON | E119: 554533 | F119: PONT A MOUSSON BREUIL | G119: 2.7 | H119: 110 | I119: 217 | J119: 211 | K119: 206 | L119: 64 | M119: 74 | N119: 24 | O119: 47 | P119: 202 | Q119: 49 | R119: 16 | S119: 237 | T119: 91 | U119: 95 | V119: 82 | W119: 49 | X119: 17 | Y119: 191 | Z119: 58
A120: 30 | B120: MARNE-ARDENNES | C120: 11 | D120: REIMS | E120: 451370 | F120: EPERNAY | G120: 11.6 | H120: 111 | I120: 46 | J120: 77 | K120: 34 | L120: 124 | M120: 111 | N120: 122 | O120: 78 | P120: 163 | Q120: 190 | R120: 164 | S120: 195 | T120: 124 | U120: 93 | V120: 221 | W120: 185 | X120: 181 | Y120: 172 | Z120: 131
A121: 30 | B121: MEURTHE ET MOSELLE MEUSE | C121: 26 | D121: NANCY | E121: 554601 | F121: SAINT MAX | G121: 5.0 | H121: 112 | I121: 28 | J121: 4 | K121: 151 | L121: 213 | M121: 215 | N121: 240 | O121: 166 | P121: 74 | Q121: 105 | R121: 142 | S121: 44 | T121: 128 | U121: 132 | V121: 137 | W121: 227 | X121: 190 | Y121: 229 | Z121: 191
A122: 30 | B122: AUBE HAUTE MARNE | C122: 14 | D122: TROYES | E122: 510520 | F122: SAINT ANDRE LES VERGERS | G122: 4.6 | H122: 113 | I122: 91 | J122: 67 | K122: 139 | L122: 102 | M122: 135 | N122: 77 | O122: 89 | P122: 73 | Q122: 115 | R122: 152 | S122: 46 | T122: 216 | U122: 222 | V122: 149 | W122: 57 | X122: 148 | Y122: 25 | Z122: 105
A123: 30 | B123: VOSGES | C123: 57 | D123: EPINAL | E123: 588336 | F123: GOLBEY | G123: 3.3 | H123: 114 | I123: 67 | J123: 73 | K123: 82 | L123: 230 | M123: 222 | N123: 87 | O123: 77 | P123: 233 | Q123: 116 | R123: 87 | S123: 201 | T123: 133 | U123: 115 | V123: 196 | W123: 52 | X123: 37 | Y123: 193 | Z123: 20
A124: 30 | B124: MOSELLE | C124: 44 | D124: MOSELLE NORD | E124: 457158 | F124: YUTZ | G124: 4.7 | H124: 115 | I124: 136 | J124: 102 | K124: 197 | L124: 100 | M124: 97 | N124: 255 | O124: 210 | P124: 24 | Q124: 204 | R124: 173 | S124: 223 | T124: 53 | U124: 46 | V124: 111 | W124: 122 | X124: 117 | Y124: 95 | Z124: 156
A125: 30 | B125: VOSGES | C125: 55 | D125: SAINT DIE | E125: 588587 | F125: SAINT DIE CATHEDRALE | G125: 4.0 | H125: 116 | I125: 50 | J125: 86 | K125: 37 | L125: 210 | M125: 176 | N125: 187 | O125: 211 | P125: 170 | Q125: 50 | R125: 27 | S125: 189 | T125: 165 | U125: 167 | V125: 135 | W125: 204 | X125: 139 | Y125: 161 | Z125: 240
A126: 30 | B126: BAS-RHIN | C126: 5060 | D126: HAGUENAU | E126: 4071 | F126: WISSEMBOURG | G126: 8.4 | H126: 117 | I126: 117 | J126: 200 | K126: 12 | L126: 83 | M126: 91 | N126: 143 | O126: 232 | P126: 57 | Q126: 47 | R126: 36 | S126: 152 | T126: 146 | U126: 150 | V126: 130 | W126: 222 | X126: 234 | Y126: 168 | Z126: 213
A127: 30 | B127: MEURTHE ET MOSELLE MEUSE | C127: 27 | D127: PONT A MOUSSON | E127: 554506 | F127: CHALIGNY NEUVES MAISONS | G127: 4.0 | H127: 118 | I127: 146 | J127: 94 | K127: 215 | L127: 19 | M127: 40 | N127: 48 | O127: 16 | P127: 63 | Q127: 205 | R127: 182 | S127: 217 | T127: 206 | U127: 228 | V127: 101 | W127: 43 | X127: 14 | Y127: 259 | Z127: 9
A128: 30 | B128: BAS-RHIN | C128: 5060 | D128: HAGUENAU | E128: 4030 | F128: BRUMATH | G128: 5.4 | H128: 119 | I128: 92 | J128: 47 | K128: 177 | L128: 164 | M128: 60 | N128: 185 | O128: 97 | P128: 248 | Q128: 54 | R128: 91 | S128: 29 | T128: 214 | U128: 196 | V128: 234 | W128: 96 | X128: 118 | Y128: 85 | Z128: 85
A129: 30 | B129: AUBE HAUTE MARNE | C129: 14 | D129: TROYES | E129: 510523 | F129: LA CHAPELLE ST LUC | G129: 5.6 | H129: 120 | I129: 190 | J129: 168 | K129: 198 | L129: 77 | M129: 110 | N129: 73 | O129: 183 | P129: 53 | Q129: 117 | R129: 154 | S129: 48 | T129: 36 | U129: 52 | V129: 19 | W129: 206 | X129: 186 | Y129: 178 | Z129: 181
A130: 30 | B130: MEURTHE ET MOSELLE MEUSE | C130: 27 | D130: PONT A MOUSSON | E130: 554416 | F130: LUDRES | G130: 4.0 | H130: 121 | I130: 24 | J130: 34 | K130: 32 | L130: 190 | M130: 197 | N130: 70 | O130: 32 | P130: 197 | Q130: 174 | R130: 187 | S130: 109 | T130: 225 | U130: 217 | V130: 214 | W130: 62 | X130: 59 | Y130: 136 | Z130: 43
A131: 30 | B131: BAS-RHIN | C131: 5006 | D131: STRASBOURG | E131: 4024 | F131: STRASBOURG AUSTERLITZ | G131: 2.2 | H131: 122 | I131: 255 | J131: 256 | K131: 241 | L131: 8 | M131: 10 | N131: 38 | O131: 52 | P131: 86 | Q131: 20 | R131: 39 | S131: 24 | T131: 96 | U131: 166 | V131: 14 | W131: 59 | X131: 40 | Y131: 215 | Z131: 17
A132: 30 | B132: MOSELLE | C132: 42 | D132: MOSELLE EST | E132: 557305 | F132: FAULQUEMONT | G132: 2.1 | H132: 123 | I132: 206 | J132: 207 | K132: 183 | L132: 35 | M132: 67 | N132: 33 | O132: 45 | P132: 97 | Q132: 130 | R132: 184 | S132: 41 | T132: 52 | U132: 65 | V132: 34 | W132: 151 | X132: 209 | Y132: 88 | Z132: 152
A133: 30 | B133: MEURTHE ET MOSELLE MEUSE | C133: 31 | D133: VERDUN | E133: 455231 | F133: COMMERCY | G133: 4.7 | H133: 124 | I133: 150 | J133: 144 | K133: 158 | L133: 104 | M133: 95 | N133: 63 | O133: 107 | P133: 185 | Q133: 215 | R133: 188 | S133: 224 | T133: 87 | U133: 69 | V133: 154 | W133: 44 | X133: 68 | Y133: 41 | Z133: 62
A134: 30 | B134: MOSELLE | C134: 44 | D134: MOSELLE NORD | E134: 557347 | F134: GUENANGE | G134: 5.3 | H134: 125 | I134: 169 | J134: 86 | K134: 233 | L134: 134 | M134: 183 | N134: 138 | O134: 162 | P134: 15 | Q134: 72 | R134: 40 | S134: 218 | T134: 106 | U134: 124 | V134: 73 | W134: 89 | X134: 45 | Y134: 207 | Z134: 49
A135: 30 | B135: BAS-RHIN | C135: 5101 | D135: SELESTAT | E135: 4116 | F135: MOLSHEIM | G135: 5.1 | H135: 126 | I135: 184 | J135: 137 | K135: 217 | L135: 113 | M135: 86 | N135: 146 | O135: 182 | P135: 159 | Q135: 11 | R135: 9 | S135: 69 | T135: 172 | U135: 158 | V135: 198 | W135: 136 | X135: 146 | Y135: 146 | Z135: 104
A136: 30 | B136: MOSELLE | C136: 42 | D136: MOSELLE EST | E136: 457583 | F136: SAINT AVOLD | G136: 7.5 | H136: 127 | I136: 118 | J136: 102 | K136: 160 | L136: 189 | M136: 164 | N136: 150 | O136: 79 | P136: 184 | Q136: 83 | R136: 64 | S136: 154 | T136: 100 | U136: 102 | V136: 104 | W136: 155 | X136: 147 | Y136: 98 | Z136: 198
A137: 30 | B137: MEURTHE ET MOSELLE MEUSE | C137: 31 | D137: VERDUN | E137: 455151 | F137: BAR LE DUC | G137: 9.6 | H137: 128 | I137: 94 | J137: 94 | K137: 108 | L137: 127 | M137: 125 | N137: 201 | O137: 105 | P137: 78 | Q137: 169 | R137: 119 | S137: 248 | T137: 152 | U137: 147 | V137: 155 | W137: 109 | X137: 183 | Y137: 65 | Z137: 88
A138: 30 | B138: MEURTHE ET MOSELLE MEUSE | C138: 31 | D138: VERDUN | E138: 455566 | F138: REVIGNY SUR ORNAIN | G138: 3.8 | H138: 129 | I138: 21 | J138: 34 | K138: 27 | L138: 86 | M138: 138 | N138: 168 | O138: 159 | P138: 4 | Q138: 252 | R138: 246 | S138: 233 | T138: 176 | U138: 168 | V138: 190 | W138: 163 | X138: 151 | Y138: 145 | Z138: 164
A139: 30 | B139: VOSGES | C139: 57 | D139: EPINAL | E139: 488561 | F139: REMIREMONT | G139: 6.2 | H139: 130 | I139: 74 | J139: 118 | K139: 42 | L139: 200 | M139: 223 | N139: 209 | O139: 174 | P139: 54 | Q139: 129 | R139: 143 | S139: 112 | T139: 113 | U139: 88 | V139: 184 | W139: 167 | X139: 102 | Y139: 242 | Z139: 82
A140: 30 | B140: MEURTHE ET MOSELLE MEUSE | C140: 27 | D140: PONT A MOUSSON | E140: 554357 | F140: JOEUF | G140: 4.0 | H140: 131 | I140: 174 | J140: 196 | K140: 118 | L140: 140 | M140: 195 | N140: 35 | O140: 22 | P140: 146 | Q140: 239 | R140: 229 | S140: 169 | T140: 63 | U140: 78 | V140: 32 | W140: 29 | X140: 32 | Y140: 56 | Z140: 39
A141: 30 | B141: MARNE-ARDENNES | C141: 11 | D141: REIMS | E141: 451308 | F141: REIMS SAINT THOMAS | G141: 8.1 | H141: 132 | I141: 134 | J141: 77 | K141: 211 | L141: 188 | M141: 165 | N141: 76 | O141: 72 | P141: 205 | Q141: 103 | R141: 67 | S141: 200 | T141: 161 | U141: 157 | V141: 156 | W141: 40 | X141: 23 | Y141: 114 | Z141: 54
A142: 30 | B142: MOSELLE | C142: 45 | D142: METZ | E142: 457574 | F142: ROMBAS | G142: 3.5 | H142: 133 | I142: 175 | J142: 194 | K142: 137 | L142: 21 | M142: 39 | N142: 151 | O142: 131 | P142: 1 | Q142: 113 | R142: 128 | S142: 94 | T142: 119 | U142: 106 | V142: 175 | W142: 228 | X142: 165 | Y142: 230 | Z142: 211
A143: 30 | B143: BAS-RHIN | C143: 5006 | D143: STRASBOURG | E143: 4045 | F143: STRASBOURG FRANCS BOURGEOIS | G143: 4.7 | H143: 134 | I143: 203 | J143: 159 | K143: 228 | L143: 68 | M143: 44 | N143: 142 | O143: 117 | P143: 179 | Q143: 14 | R143: 3 | S143: 208 | T143: 194 | U143: 142 | V143: 252 | W143: 152 | X143: 116 | Y143: 163 | Z143: 163
A144: 110 | B144: AUBE HAUTE MARNE | C144: 21 | D144: CHAUMONT | E144: 451154 | F144: JOINVILLE | G144: 2.0 | H144: 135 | I144: 10 | J144: 73 | K144: 1 | L144: 235 | M144: 232 | N144: 136 | O144: 199 | P144: 193 | Q144: 255 | R144: 244 | S144: 262 | T144: 148 | U144: 184 | V144: 71 | W144: 82 | X144: 222 | Y144: 40 | Z144: 61
A145: 110 | B145: MOSELLE | C145: 45 | D145: METZ | E145: 557612 | F145: SAINTE MARIE AUX CHENES | G145: 3.6 | H145: 136 | I145: 45 | J145: 47 | K145: 72 | L145: 226 | M145: 239 | N145: 217 | O145: 206 | P145: 85 | Q145: 185 | R145: 196 | S145: 133 | T145: 102 | U145: 100 | V145: 125 | W145: 190 | X145: 171 | Y145: 185 | Z145: 139
A146: 110 | B146: MARNE-ARDENNES | C146: 6 | D146: CHALONS EN CHAMPAGNE | E146: 551354 | F146: VERTUS | G146: 2.5 | H146: 137 | I146: 17 | J146: 62 | K146: 6 | L146: 239 | M146: 194 | N146: 236 | O146: 115 | P146: 221 | Q146: 253 | R146: 259 | S146: 53 | T146: 85 | U146: 103 | V146: 57 | W146: 157 | X146: 158 | Y146: 153 | Z146: 138
A147: 110 | B147: MARNE-ARDENNES | C147: 2 | D147: CHARLEVILLE MEZIERES | E147: 408806 | F147: SEDAN | G147: 8.5 | H147: 138 | I147: 44 | J147: 94 | K147: 19 | L147: 205 | M147: 188 | N147: 208 | O147: 86 | P147: 161 | Q147: 160 | R147: 138 | S147: 205 | T147: 208 | U147: 172 | V147: 247 | W147: 97 | X147: 67 | Y147: 142 | Z147: 86
A148: 110 | B148: MARNE-ARDENNES | C148: 6 | D148: CHALONS EN CHAMPAGNE | E148: 551103 | F148: FAGNIERES LECLERC | G148: 3.0 | H148: 139 | I148: 58 | J148: 62 | K148: 88 | L148: 58 | M148: 105 | N148: 25 | O148: 27 | P148: 142 | Q148: 243 | R148: 242 | S148: 162 | T148: 199 | U148: 241 | V148: 35 | W148: 126 | X148: 174 | Y148: 81 | Z148: 117
A149: 110 | B149: MARNE-ARDENNES | C149: 6 | D149: CHALONS EN CHAMPAGNE | E149: 551128 | F149: SAINTE MENEHOULD | G149: 3.4 | H149: 140 | I149: 120 | J149: 102 | K149: 164 | L149: 114 | M149: 155 | N149: 94 | O149: 63 | P149: 61 | Q149: 99 | R149: 125 | S149: 63 | T149: 116 | U149: 133 | V149: 95 | W149: 240 | X149: 246 | Y149: 201 | Z149: 202
A150: 110 | B150: MEURTHE ET MOSELLE MEUSE | C150: 26 | D150: NANCY | E150: 554116 | F150: BACCARAT | G150: 2.0 | H150: 141 | I150: 93 | J150: 144 | K150: 30 | L150: 227 | M150: 209 | N150: 241 | O150: 199 | P150: 149 | Q150: 127 | R150: 168 | S150: 50 | T150: 195 | U150: 187 | V150: 195 | W150: 35 | X150: 81 | Y150: 21 | Z150: 72
A151: 110 | B151: HAUT-RHIN | C151: 5130 | D151: COLMAR | E151: 4153 | F151: ROUFFACH | G151: 3.7 | H151: 142 | I151: 166 | J151: 204 | K151: 85 | L151: 171 | M151: 148 | N151: 85 | O151: 194 | P151: 165 | Q151: 219 | R151: 236 | S151: 78 | T151: 29 | U151: 29 | V151: 47 | W151: 186 | X151: 197 | Y151: 131 | Z151: 169
A152: 110 | B152: AUBE HAUTE MARNE | C152: 14 | D152: TROYES | E152: 510570 | F152: NOGENT SUR SEINE | G152: 4.1 | H152: 143 | I152: 14 | J152: 19 | K152: 41 | L152: 211 | M152: 213 | N152: 155 | O152: 93 | P152: 145 | Q152: 194 | R152: 163 | S152: 221 | T152: 240 | U152: 224 | V152: 258 | W152: 88 | X152: 98 | Y152: 71 | Z152: 110
A153: 110 | B153: HAUT-RHIN | C153: 5169 | D153: MULHOUSE | E153: 4181 | F153: WITTELSHEIM | G153: 3.1 | H153: 144 | I153: 180 | J153: 187 | K153: 155 | L153: 229 | M153: 214 | N153: 72 | O153: 94 | P153: 239 | Q153: 111 | R153: 98 | S153: 150 | T153: 125 | U153: 153 | V153: 75 | W153: 11 | X153: 97 | Y153: 11 | Z153: 13
A154: 110 | B154: MARNE-ARDENNES | C154: 6 | D154: CHALONS EN CHAMPAGNE | E154: 451381 | F154: SEZANNE | G154: 6.4 | H154: 145 | I154: 73 | J154: 67 | K154: 100 | L154: 109 | M154: 147 | N154: 91 | O154: 48 | P154: 92 | Q154: 195 | R154: 202 | S154: 160 | T154: 198 | U154: 174 | V154: 230 | W154: 150 | X154: 143 | Y154: 180 | Z154: 99
A155: 110 | B155: MOSELLE | C155: 44 | D155: MOSELLE NORD | E155: 557352 | F155: HETTANGE GRANDE | G155: 4.2 | H155: 146 | I155: 249 | J155: 255 | K155: 219 | L155: 12 | M155: 9 | N155: 61 | O155: 157 | P155: 135 | Q155: 171 | R155: 139 | S155: 225 | T155: 45 | U155: 42 | V155: 87 | W155: 99 | X155: 101 | Y155: 48 | Z155: 184
A156: 110 | B156: MEURTHE ET MOSELLE MEUSE | C156: 27 | D156: PONT A MOUSSON | E156: 554381 | F156: LAXOU ARISTIDE BRIAND | G156: 4.6 | H156: 147 | I156: 110 | J156: 67 | K156: 188 | L156: 101 | M156: 38 | N156: 131 | O156: 110 | P156: 246 | Q156: 140 | R156: 148 | S156: 123 | T156: 154 | U156: 152 | V156: 152 | W156: 208 | X156: 87 | Y156: 262 | Z156: 122
A157: 110 | B157: BAS-RHIN | C157: 5006 | D157: STRASBOURG | E157: 4027 | F157: SCHILTIGHEIM CENTRE | G157: 4.0 | H157: 148 | I157: 179 | J157: 183 | K157: 161 | L157: 88 | M157: 77 | N157: 40 | O157: 20 | P157: 234 | Q157: 26 | R157: 26 | S157: 68 | T157: 227 | U157: 227 | V157: 215 | W157: 111 | X157: 44 | Y157: 216 | Z157: 96
A158: 110 | B158: MARNE-ARDENNES | C158: 11 | D158: REIMS | E158: 551369 | F158: DAMERY | G158: 3.0 | H158: 149 | I158: 129 | J158: 77 | K158: 199 | L158: 237 | M158: 227 | N158: 95 | O158: 73 | P158: 232 | Q158: 166 | R158: 141 | S158: 213 | T158: 60 | U158: 66 | V158: 50 | W158: 138 | X158: 123 | Y158: 169 | Z158: 103
A159: 110 | B159: MEURTHE ET MOSELLE MEUSE | C159: 26 | D159: NANCY | E159: 554486 | F159: NANCY POINT CENTRAL | G159: 4.8 | H159: 150 | I159: 137 | J159: 137 | K159: 130 | L159: 154 | M159: 192 | N159: 134 | O159: 57 | P159: 67 | Q159: 119 | R159: 113 | S159: 158 | T159: 190 | U159: 206 | V159: 116 | W159: 85 | X159: 62 | Y159: 177 | Z159: 45
A160: 110 | B160: BAS-RHIN | C160: 5006 | D160: STRASBOURG | E160: 4020 | F160: STRASBOURG ROBERTSAU | G160: 5.6 | H160: 151 | I160: 188 | J160: 226 | K160: 62 | L160: 103 | M160: 51 | N160: 102 | O160: 55 | P160: 238 | Q160: 85 | R160: 103 | S160: 71 | T160: 177 | U160: 163 | V160: 204 | W160: 76 | X160: 66 | Y160: 104 | Z160: 68
A161: 110 | B161: BAS-RHIN | C161: 5060 | D161: HAGUENAU | E161: 4085 | F161: INGWILLER | G161: 3.3 | H161: 152 | I161: 208 | J161: 219 | K161: 145 | L161: 20 | M161: 5 | N161: 132 | O161: 258 | P161: 225 | Q161: 168 | R161: 159 | S161: 156 | T161: 173 | U161: 210 | V161: 68 | W161: 104 | X161: 225 | Y161: 16 | Z161: 212
A162: 110 | B162: MEURTHE ET MOSELLE MEUSE | C162: 27 | D162: PONT A MOUSSON | E162: 454696 | F162: VILLERS GENERAL LECLERC | G162: 6.2 | H162: 153 | I162: 56 | J162: 41 | K162: 115 | L162: 223 | M162: 221 | N162: 246 | O162: 173 | P162: 120 | Q162: 104 | R162: 110 | S162: 96 | T162: 167 | U162: 155 | V162: 181 | W162: 225 | X162: 188 | Y162: 221 | Z162: 209
A163: 110 | B163: HAUT-RHIN | C163: 5130 | D163: COLMAR | E163: 4141 | F163: HORBOURG WIHR | G163: 5.8 | H163: 154 | I163: 131 | J163: 73 | K163: 213 | L163: 231 | M163: 159 | N163: 172 | O163: 185 | P163: 250 | Q163: 45 | R163: 25 | S163: 167 | T163: 141 | U163: 129 | V163: 191 | W163: 143 | X163: 140 | Y163: 154 | Z163: 116
A164: 110 | B164: MEURTHE ET MOSELLE MEUSE | C164: 26 | D164: NANCY | E164: 454671 | F164: VANDOEUVRE LES NANCY | G164: 4.7 | H164: 155 | I164: 195 | J164: 174 | K164: 200 | L164: 70 | M164: 87 | N164: 34 | O164: 24 | P164: 207 | Q164: 235 | R164: 199 | S164: 246 | T164: 136 | U164: 156 | V164: 94 | W164: 25 | X164: 11 | Y164: 171 | Z164: 22
A165: 110 | B165: MARNE-ARDENNES | C165: 2 | D165: CHARLEVILLE MEZIERES | E165: 508819 | F165: MOUZON | G165: 2.0 | H165: 156 | I165: 149 | J165: 155 | K165: 146 | L165: 251 | M165: 235 | N165: 115 | O165: 165 | P165: 251 | Q165: 98 | R165: 56 | S165: 211 | T165: 132 | U165: 162 | V165: 78 | W165: 21 | X165: 31 | Y165: 57 | Z165: 28
A166: 110 | B166: AUBE HAUTE MARNE | C166: 14 | D166: TROYES | E166: 510530 | F166: ARCIS SUR AUBE | G166: 4.0 | H166: 157 | I166: 41 | J166: 3 | K166: 207 | L166: 199 | M166: 202 | N166: 261 | O166: 211 | P166: 20 | Q166: 198 | R166: 221 | S166: 95 | T166: 151 | U166: 140 | V166: 174 | W166: 232 | X166: 229 | Y166: 206 | Z166: 200
A167: 110 | B167: MOSELLE | C167: 42 | D167: MOSELLE EST | E167: 557668 | F167: VALMONT | G167: 4.6 | H167: 158 | I167: 20 | J167: 29 | K167: 39 | L167: 217 | M167: 190 | N167: 248 | O167: 220 | P167: 129 | Q167: 172 | R167: 145 | S167: 202 | T167: 201 | U167: 183 | V167: 225 | W167: 230 | X167: 202 | Y167: 203 | Z167: 226
A168: 110 | B168: MOSELLE | C168: 42 | D168: MOSELLE EST | E168: 457435 | F168: MERLEBACH | G168: 3.7 | H168: 159 | I168: 151 | J168: 124 | K168: 193 | L168: 57 | M168: 49 | N168: 75 | O168: 141 | P168: 155 | Q168: 202 | R168: 220 | S168: 99 | T168: 118 | U168: 141 | V168: 79 | W168: 184 | X168: 219 | Y168: 99 | Z168: 171
A169: 110 | B169: MARNE-ARDENNES | C169: 6 | D169: CHALONS EN CHAMPAGNE | E169: 451166 | F169: VITRY LE FRANCOIS | G169: 7.2 | H169: 160 | I169: 96 | J169: 165 | K169: 18 | L169: 147 | M169: 180 | N169: 144 | O169: 26 | P169: 102 | Q169: 182 | R169: 205 | S169: 100 | T169: 207 | U169: 193 | V169: 227 | W169: 108 | X169: 52 | Y169: 219 | Z169: 60
A170: 110 | B170: MEURTHE ET MOSELLE MEUSE | C170: 27 | D170: PONT A MOUSSON | E170: 554257 | F170: DIEULOUARD | G170: 3.5 | H170: 161 | I170: 90 | J170: 144 | K170: 26 | L170: 132 | M170: 162 | N170: 147 | O170: 71 | P170: 58 | Q170: 238 | R170: 226 | S170: 180 | T170: 147 | U170: 135 | V170: 187 | W170: 153 | X170: 159 | Y170: 140 | Z170: 146
A171: 110 | B171: MEURTHE ET MOSELLE MEUSE | C171: 31 | D171: VERDUN | E171: 554700 | F171: VILLERUPT | G171: 2.8 | H171: 162 | I171: 106 | J171: 108 | K171: 135 | L171: 91 | M171: 96 | N171: 124 | O171: 204 | P171: 83 | Q171: 121 | R171: 116 | S171: 165 | T171: 235 | U171: 240 | V171: 176 | W171: 131 | X171: 259 | Y171: 19 | Z171: 229
A172: 110 | B172: BAS-RHIN | C172: 5006 | D172: STRASBOURG | E172: 4054 | F172: STRASBOURG MONTAGNE VERTE | G172: 2.6 | H172: 163 | I172: 252 | J172: 250 | K172: 243 | L172: 96 | M172: 191 | N172: 14 | O172: 120 | P172: 34 | Q172: 246 | R172: 249 | S172: 144 | T172: 5 | U172: 9 | V172: 3 | W172: 79 | X172: 132 | Y172: 102 | Z172: 41
A173: 110 | B173: MOSELLE | C173: 45 | D173: METZ | E173: 557439 | F173: METZ POMPIDOU | G173: 3.9 | H173: 164 | I173: 133 | J173: 112 | K173: 185 | L173: 163 | M173: 80 | N173: 188 | O173: 152 | P173: 224 | Q173: 80 | R173: 109 | S173: 56 | T173: 182 | U173: 188 | V173: 153 | W173: 168 | X173: 137 | Y173: 210 | Z173: 102
A174: 110 | B174: MOSELLE | C174: 44 | D174: MOSELLE NORD | E174: 457632 | F174: THIONVILLE CENTRALE | G174: 11.8 | H174: 165 | I174: 159 | J174: 94 | K174: 227 | L174: 148 | M174: 170 | N174: 140 | O174: 190 | P174: 46 | Q174: 157 | R174: 160 | S174: 134 | T174: 88 | U174: 82 | V174: 108 | W174: 181 | X174: 205 | Y174: 76 | Z174: 216
A175: 110 | B175: MOSELLE | C175: 44 | D175: MOSELLE NORD | E175: 457350 | F175: HAYANGE | G175: 8.4 | H175: 166 | I175: 88 | J175: 22 | K175: 210 | L175: 65 | M175: 94 | N175: 193 | O175: 133 | P175: 21 | Q175: 257 | R175: 254 | S175: 173 | T175: 120 | U175: 108 | V175: 177 | W175: 202 | X175: 153 | Y175: 166 | Z175: 227
A176: 110 | B176: HAUT-RHIN | C176: 5130 | D176: COLMAR | E176: 4157 | F176: NEUF BRISACH | G176: 3.8 | H176: 167 | I176: 234 | J176: 244 | K176: 156 | L176: 167 | M176: 166 | N176: 111 | O176: 240 | P176: 81 | Q176: 101 | R176: 100 | S176: 108 | T176: 41 | U176: 32 | V176: 147 | W176: 129 | X176: 216 | Y176: 38 | Z176: 201
A177: 110 | B177: AUBE HAUTE MARNE | C177: 21 | D177: CHAUMONT | E177: 410541 | F177: LANGRES | G177: 6.7 | H177: 168 | I177: 114 | J177: 137 | K177: 75 | L177: 193 | M177: 163 | N177: 199 | O177: 154 | P177: 156 | Q177: 228 | R177: 223 | S177: 161 | T177: 112 | U177: 110 | V177: 126 | W177: 134 | X177: 213 | Y177: 90 | Z177: 106
A178: 110 | B178: MOSELLE | C178: 45 | D178: METZ | E178: 557559 | F178: REMILLY | G178: 4.1 | H178: 169 | I178: 237 | J178: 238 | K178: 174 | L178: 93 | M178: 102 | N178: 166 | O178: 188 | P178: 56 | Q178: 184 | R178: 156 | S178: 210 | T178: 40 | U178: 40 | V178: 74 | W178: 121 | X178: 72 | Y178: 164 | Z178: 124
A179: 110 | B179: MOSELLE | C179: 45 | D179: METZ | E179: 457446 | F179: METZ SAINT LOUIS | G179: 7.2 | H179: 170 | I179: 157 | J179: 102 | K179: 221 | L179: 209 | M179: 177 | N179: 220 | O179: 121 | P179: 166 | Q179: 31 | R179: 19 | S179: 127 | T179: 175 | U179: 190 | V179: 128 | W179: 193 | X179: 152 | Y179: 189 | Z179: 170
A180: 110 | B180: MEURTHE ET MOSELLE MEUSE | C180: 27 | D180: PONT A MOUSSON | E180: 454355 | F180: JARNY | G180: 4.5 | H180: 171 | I180: 163 | J180: 194 | K180: 106 | L180: 99 | M180: 58 | N180: 189 | O180: 98 | P180: 188 | Q180: 176 | R180: 177 | S180: 143 | T180: 137 | U180: 182 | V180: 45 | W180: 158 | X180: 48 | Y180: 211 | Z180: 199
A181: 110 | B181: MEURTHE ET MOSELLE MEUSE | C181: 27 | D181: PONT A MOUSSON | E181: 554196 | F181: CHAMPIGNEULLES | G181: 3.4 | H181: 172 | I181: 172 | J181: 187 | K181: 136 | L181: 179 | M181: 103 | N181: 230 | O181: 146 | P181: 204 | Q181: 153 | R181: 194 | S181: 70 | T181: 86 | U181: 105 | V181: 55 | W181: 178 | X181: 110 | Y181: 212 | Z181: 148
A182: 110 | B182: VOSGES | C182: 55 | D182: SAINT DIE | E182: 488556 | F182: RAON L ETAPE | G182: 2.5 | H182: 173 | I182: 130 | J182: 77 | K182: 202 | L182: 108 | M182: 119 | N182: 133 | O182: 114 | P182: 89 | Q182: 245 | R182: 227 | S182: 235 | T182: 183 | U182: 179 | V182: 171 | W182: 77 | X182: 79 | Y182: 87 | Z182: 78
A183: 110 | B183: BAS-RHIN | C183: 5101 | D183: SELESTAT | E183: 4101 | F183: SELESTAT CENTRE | G183: 8.2 | H183: 174 | I183: 219 | J183: 196 | K183: 223 | L183: 49 | M183: 33 | N183: 90 | O183: 104 | P183: 196 | Q183: 114 | R183: 107 | S183: 141 | T183: 149 | U183: 164 | V183: 110 | W183: 139 | X183: 163 | Y183: 66 | Z183: 192
A184: 110 | B184: VOSGES | C184: 57 | D184: EPINAL | E184: 488291 | F184: EPINAL AVRINSART | G184: 1.8 | H184: 175 | I184: 138 | J184: 165 | K184: 96 | L184: 261 | M184: 248 | N184: 161 | O184: 113 | P184: 263 | Q184: 237 | R184: 195 | S184: 256 | T184: 43 | U184: 26 | V184: 206 | W184: 48 | X184: 89 | Y184: 47 | Z184: 51
A185: 110 | B185: MARNE-ARDENNES | C185: 2 | D185: CHARLEVILLE MEZIERES | E185: 508817 | F185: CHARLEVILLE MOHON | G185: 3.3 | H185: 176 | I185: 75 | J185: 56 | K185: 125 | L185: 214 | M185: 256 | N185: 153 | O185: 214 | P185: 8 | Q185: 226 | R185: 200 | S185: 231 | T185: 168 | U185: 170 | V185: 144 | W185: 162 | X185: 135 | Y185: 173 | Z185: 143
A186: 110 | B186: MEURTHE ET MOSELLE MEUSE | C186: 31 | D186: VERDUN | E186: 455678 | F186: VERDUN CENTRALE | G186: 11.3 | H186: 177 | I186: 84 | J186: 124 | K186: 47 | L186: 168 | M186: 143 | N186: 127 | O186: 56 | P186: 189 | Q186: 231 | R186: 225 | S186: 153 | T186: 234 | U186: 243 | V186: 162 | W186: 86 | X186: 54 | Y186: 151 | Z186: 76
A187: 110 | B187: BAS-RHIN | C187: 5006 | D187: STRASBOURG | E187: 4023 | F187: STRASBOURG VOSGES | G187: 3.3 | H187: 178 | I187: 258 | J187: 256 | K187: 250 | L187: 24 | M187: 26 | N187: 57 | O187: 102 | P187: 134 | Q187: 5 | R187: 4 | S187: 32 | T187: 162 | U187: 146 | V187: 188 | W187: 115 | X187: 100 | Y187: 158 | Z187: 97
A188: 110 | B188: HAUT-RHIN | C188: 5169 | D188: MULHOUSE | E188: 4195 | F188: CERNAY | G188: 2.5 | H188: 179 | I188: 201 | J188: 214 | K188: 144 | L188: 153 | M188: 217 | N188: 68 | O188: 144 | P188: 29 | Q188: 73 | R188: 69 | S188: 105 | T188: 171 | U188: 209 | V188: 61 | W188: 117 | X188: 129 | Y188: 93 | Z188: 135
A189: 110 | B189: AUBE HAUTE MARNE | C189: 14 | D189: TROYES | E189: 410510 | F189: TROYES GAMBETTA | G189: 10.6 | H189: 180 | I189: 39 | J189: 56 | K189: 44 | L189: 149 | M189: 178 | N189: 205 | O189: 123 | P189: 25 | Q189: 241 | R189: 243 | S189: 146 | T189: 229 | U189: 233 | V189: 203 | W189: 214 | X189: 175 | Y189: 232 | Z189: 145
A190: 110 | B190: MOSELLE | C190: 45 | D190: METZ | E190: 557434 | F190: MARLY | G190: 4.0 | H190: 181 | I190: 97 | J190: 118 | K190: 76 | L190: 59 | M190: 89 | N190: 192 | O190: 132 | P190: 11 | Q190: 152 | R190: 134 | S190: 193 | T190: 247 | U190: 244 | V190: 236 | W190: 233 | X190: 178 | Y190: 202 | Z190: 246
A191: 110 | B191: MOSELLE | C191: 42 | D191: MOSELLE EST | E191: 457258 | F191: DIEUZE | G191: 3.1 | H191: 182 | I191: 156 | J191: 178 | K191: 117 | L191: 128 | M191: 156 | N191: 226 | O191: 130 | P191: 18 | Q191: 167 | R191: 157 | S191: 164 | T191: 127 | U191: 117 | V191: 183 | W191: 218 | X191: 239 | Y191: 124 | Z191: 234
A192: 160 | B192: BAS-RHIN | C192: 5101 | D192: SELESTAT | E192: 4111 | F192: BENFELD | G192: 4.4 | H192: 183 | I192: 119 | J192: 54 | K192: 209 | L192: 151 | M192: 41 | N192: 202 | O192: 164 | P192: 255 | Q192: 139 | R192: 146 | S192: 132 | T192: 185 | U192: 199 | V192: 127 | W192: 241 | X192: 255 | Y192: 218 | Z192: 176
A193: 160 | B193: AUBE HAUTE MARNE | C193: 14 | D193: TROYES | E193: 510522 | F193: TROYES CHARTREUX | G193: 3.0 | H193: 184 | I193: 78 | J193: 132 | K193: 31 | L193: 198 | M193: 204 | N193: 92 | O193: 148 | P193: 151 | Q193: 183 | R193: 203 | S193: 103 | T193: 188 | U193: 194 | V193: 146 | W193: 224 | X193: 243 | Y193: 197 | Z193: 166
A194: 160 | B194: MOSELLE | C194: 45 | D194: METZ | E194: 557432 | F194: MAIZIERES LES METZ | G194: 3.8 | H194: 185 | I194: 55 | J194: 6 | K194: 212 | L194: 220 | M194: 157 | N194: 223 | O194: 179 | P194: 212 | Q194: 131 | R194: 114 | S194: 194 | T194: 221 | U194: 216 | V194: 185 | W194: 237 | X194: 189 | Y194: 240 | Z194: 188
A195: 160 | B195: AUBE HAUTE MARNE | C195: 14 | D195: TROYES | E195: 410521 | F195: SAINTE SAVINE | G195: 5.0 | H195: 186 | I195: 38 | J195: 14 | K195: 124 | L195: 246 | M195: 234 | N195: 211 | O195: 92 | P195: 214 | Q195: 107 | R195: 84 | S195: 175 | T195: 232 | U195: 230 | V195: 226 | W195: 236 | X195: 149 | Y195: 237 | Z195: 228
A196: 160 | B196: AUBE HAUTE MARNE | C196: 14 | D196: TROYES | E196: 410524 | F196: SAINT JULIEN LES VILLAS | G196: 3.7 | H196: 187 | I196: 161 | J196: 56 | K196: 244 | L196: 78 | M196: 23 | N196: 101 | O196: 119 | P196: 261 | Q196: 175 | R196: 171 | S196: 145 | T196: 233 | U196: 237 | V196: 179 | W196: 84 | X196: 60 | Y196: 111 | Z196: 91
A197: 160 | B197: MARNE-ARDENNES | C197: 2 | D197: CHARLEVILLE MEZIERES | E197: 408840 | F197: RETHEL | G197: 4.9 | H197: 188 | I197: 31 | J197: 41 | K197: 40 | L197: 178 | M197: 200 | N197: 190 | O197: 177 | P197: 36 | Q197: 208 | R197: 212 | S197: 147 | T197: 245 | U197: 236 | V197: 243 | W197: 238 | X197: 115 | Y197: 260 | Z197: 214
A198: 160 | B198: MOSELLE | C198: 44 | D198: MOSELLE NORD | E198: 457192 | F198: CATTENOM | G198: 2.9 | H198: 189 | I198: 224 | J198: 196 | K198: 229 | L198: 131 | M198: 152 | N198: 242 | O198: 243 | P198: 3 | Q198: 59 | R198: 71 | S198: 59 | T198: 145 | U198: 111 | V198: 233 | W198: 142 | X198: 41 | Y198: 186 | Z198: 204
A199: 160 | B199: HAUT-RHIN | C199: 5130 | D199: COLMAR | E199: 4135 | F199: COLMAR SAINTE MARIE | G199: 6.6 | H199: 190 | I199: 167 | J199: 165 | K199: 170 | L199: 142 | M199: 126 | N199: 167 | O199: 160 | P199: 115 | Q199: 173 | R199: 185 | S199: 118 | T199: 121 | U199: 127 | V199: 131 | W199: 209 | X199: 162 | Y199: 241 | Z199: 127
A200: 160 | B200: VOSGES | C200: 55 | D200: SAINT DIE | E200: 588551 | F200: RAMBERVILLERS | G200: 3.7 | H200: 191 | I200: 23 | J200: 86 | K200: 4 | L200: 254 | M200: 247 | N200: 235 | O200: 138 | P200: 240 | Q200: 223 | R200: 170 | S200: 257 | T200: 200 | U200: 185 | V200: 222 | W200: 173 | X200: 127 | Y200: 118 | Z200: 219
A201: 160 | B201: HAUT-RHIN | C201: 5130 | D201: COLMAR | E201: 4143 | F201: MUNSTER | G201: 5.3 | H201: 192 | I201: 105 | J201: 94 | K201: 150 | L201: 159 | M201: 136 | N201: 169 | O201: 233 | P201: 98 | Q201: 229 | R201: 211 | S201: 203 | T201: 158 | U201: 139 | V201: 202 | W201: 221 | X201: 258 | Y201: 113 | Z201: 224
A202: 160 | B202: MOSELLE | C202: 44 | D202: MOSELLE NORD | E202: 557307 | F202: FONTOY | G202: 2.1 | H202: 193 | I202: 164 | J202: 155 | K202: 180 | L202: 206 | M202: 224 | N202: 225 | O202: 260 | P202: 22 | Q202: 41 | R202: 45 | S202: 61 | T202: 222 | U202: 246 | V202: 83 | W202: 180 | X202: 187 | Y202: 122 | Z202: 173
A203: 160 | B203: MOSELLE | C203: 42 | D203: MOSELLE EST | E203: 557523 | F203: PHALSBOURG | G203: 2.3 | H203: 194 | I203: 128 | J203: 144 | K203: 97 | L203: 257 | M203: 249 | N203: 148 | O203: 187 | P203: 253 | Q203: 36 | R203: 48 | S203: 42 | T203: 196 | U203: 178 | V203: 210 | W203: 159 | X203: 215 | Y203: 92 | Z203: 158
A204: 160 | B204: MOSELLE | C204: 45 | D204: METZ | E204: 557224 | F204: CLOUANGE | G204: 3.0 | H204: 195 | I204: 198 | J204: 214 | K204: 134 | L204: 232 | M204: 199 | N204: 160 | O204: 209 | P204: 217 | Q204: 179 | R204: 140 | S204: 240 | T204: 59 | U204: 60 | V204: 63 | W204: 132 | X204: 142 | Y204: 43 | Z204: 238
... 70 more rows

Sheet AG_FICHE
A1: Accueil
A2: BAROMETRE GRAND PUBLIC
A4: UNITE: | B4: Agence | E4: ETP perf : | F4: =VLOOKUP(A5,'RECAP AG'!$G$6:$DG$271,3,FALSE) -> 8.50
A5: =VLOOKUP(B5,LISTES!$C$6:$D$271,2,FALSE) -> 4189 | B5: ALTKIRCH
C6: Coefficient du critère | E6: Résultats | I6: Ecart au 1ier | K6: =IF(OR(A5=4017,A5=4022),"Rang estimé","Rang") -> Rang
E7: du 1ier | G7: de l'Agence | I7: Du mois
A9: RANG GRAND PUBLIC | K9: =VLOOKUP($A$5,'RECAP AG'!$G$6:$DG$271,104,FALSE) -> 257
A11: SATISFACTION CLIENTS | C11: 20% | K11: =VLOOKUP($A$5,'RECAP AG'!$G$6:$DG$271,13,FALSE) -> 207
B12: NPS à froid (SAE) | C12: 10% | E12: =+'RECAP AG'!K4 -> 51 | G12: =VLOOKUP($A$5,'RECAP AG'!$G$6:$DG$271,5,FALSE) -> 5.0 | I12: =VLOOKUP($A$5,'RECAP AG'!$G$6:$DG$271,6,FALSE) -> 67% | K12: =VLOOKUP($A$5,'RECAP AG'!$G$6:$DG$271,7,FALSE) -> 136
B13: NPS à chaud (QHD) | C13: 10% | E13: =+'RECAP AG'!M4 -> 10% | G13: =VLOOKUP($A$5,'RECAP AG'!$G$6:$DG$271,8,FALSE) -> 25% | I13: =VLOOKUP($A$5,'RECAP AG'!$G$6:$DG$271,9,FALSE) -> 72% | K13: =VLOOKUP($A$5,'RECAP AG'!$G$6:$DG$271,10,FALSE) -> 238
A15: BANCARISATION | C15: 20% | K15: =VLOOKUP($A$5,'RECAP AG'!$G$6:$DG$271,36,FALSE) -> 260
B16: Ventes Nettes produits pondérés | C16: 10% | E16: ='RECAP AG'!X4 -> 79.5 | G16: =VLOOKUP($A$5,'RECAP AG'!$G$6:$DG$271,19,FALSE) -> 8.5 | I16: =VLOOKUP($A$5,'RECAP AG'!$G$6:$DG$271,20,FALSE) -> 89% | K16: =VLOOKUP($A$5,'RECAP AG'!$G$6:$DG$271,21,FALSE) -> 236
B17: Ventes sur client non détenteur de l’univers | C17: 4% | E17: ='RECAP AG'!AB4 -> 38.0 | G17: =VLOOKUP($A$5,'RECAP AG'!$G$6:$DG$271,23,FALSE) -> 8.5 | I17: =VLOOKUP($A$5,'RECAP AG'!$G$6:$DG$271,24,FALSE) -> 78% | K17: =VLOOKUP($A$5,'RECAP AG'!$G$6:$DG$271,25,FALSE) -> 254
B18: Mobilité Macron | C18: 3% | E18: ='RECAP AG'!AF4 -> 19.5 | G18: =VLOOKUP($A$5,'RECAP AG'!$G$6:$DG$271,27,FALSE) -> 0.8 | I18: =VLOOKUP($A$5,'RECAP AG'!$G$6:$DG$271,28,FALSE) -> 96% | K18: =VLOOKUP($A$5,'RECAP AG'!$G$6:$DG$271,29,FALSE) -> 238
B19: Remises commerciales | C19: 3% | E19: ='RECAP AG'!AJ4 -> -0.2 | G19: =VLOOKUP($A$5,'RECAP AG'!$G$6:$DG$271,31,FALSE) -> -1.4 | I19: =VLOOKUP($A$5,'RECAP AG'!$G$6:$DG$271,32,FALSE) -> 112% | K19: =VLOOKUP($A$5,'RECAP AG'!$G$6:$DG$271,33,FALSE) -> 257
A21: EPARGNE | C21: 20% | K21: =VLOOKUP($A$5,'RECAP AG'!$G$6:$DG$271,51,FALSE) -> 240
B22: Excédent Epargne y/c DAV pondéré | C22: 14% | E22: ='RECAP AG'!AU4 -> 1826.4 | G22: =VLOOKUP($A$5,'RECAP AG'!$G$6:$DG$271,42,FALSE) -> 71.1 | I22: =VLOOKUP($A$5,'RECAP AG'!$G$6:$DG$271,43,FALSE) -> 96% | K22: =VLOOKUP($A$5,'RECAP AG'!$G$6:$DG$271,44,FALSE) -> 204
B23: Ventes sur client non détenteur de l’univers | C23: 6% | E23: ='RECAP AG'!AY4 -> 31.6 | G23: =VLOOKUP($A$5,'RECAP AG'!$G$6:$DG$271,46,FALSE) -> 3.6 | I23: =VLOOKUP($A$5,'RECAP AG'!$G$6:$DG$271,47,FALSE) -> 88% | K23: =VLOOKUP($A$5,'RECAP AG'!$G$6:$DG$271,48,FALSE) -> 253
A25: IARD PREVOYANCE | C25: 20% | K25: =VLOOKUP($A$5,'RECAP AG'!$G$6:$DG$271,85,FALSE) -> 258
B26: Ventes Nettes produits pondérés | C26: 14% | E26: ='RECAP AG'!CC4 -> 257.9 | G26: =VLOOKUP($A$5,'RECAP AG'!$G$6:$DG$271,76,FALSE) -> 0.6 | I26: =VLOOKUP($A$5,'RECAP AG'!$G$6:$DG$271,77,FALSE) -> 100% | K26: =VLOOKUP($A$5,'RECAP AG'!$G$6:$DG$271,78,FALSE) -> 258
B27: Ventes sur client non détenteur de l’univers | C27: 6% | E27: ='RECAP AG'!CG4 -> 32.7 | G27: =VLOOKUP($A$5,'RECAP AG'!$G$6:$DG$271,80,FALSE) -> 10.2 | I27: =VLOOKUP($A$5,'RECAP AG'!$G$6:$DG$271,81,FALSE) -> 69% | K27: =VLOOKUP($A$5,'RECAP AG'!$G$6:$DG$271,82,FALSE) -> 229
A29: CREDITS | C29: 20% | K29: =VLOOKUP($A$5,'RECAP AG'!$G$6:$DG$271,70,FALSE) -> 187
B30: Engagements et ventes accessoires pondérés Immo | C30: 8% | E30: ='RECAP AG'!BJ4 -> 282.0 | G30: =VLOOKUP($A$5,'RECAP AG'!$G$6:$DG$271,57,FALSE) -> 25.8 | I30: =VLOOKUP($A$5,'RECAP AG'!$G$6:$DG$271,58,FALSE) -> 68% | K30: =VLOOKUP($A$5,'RECAP AG'!$G$6:$DG$271,59,FALSE) -> 210
B31: Engagements et ventes accessoires pondérés Conso | C31: 6% | E31: ='RECAP AG'!BN4 -> 49.7 | G31: =VLOOKUP($A$5,'RECAP AG'!$G$6:$DG$271,61,FALSE) -> 22.6 | I31: =VLOOKUP($A$5,'RECAP AG'!$G$6:$DG$271,62,FALSE) -> 55% | K31: =VLOOKUP($A$5,'RECAP AG'!$G$6:$DG$271,63,FALSE) -> 86
B32: Ventes sur client non détenteur de l’univers | C32: 6% | E32: ='RECAP AG'!BR4 -> 20.6 | G32: =VLOOKUP($A$5,'RECAP AG'!$G$6:$DG$271,65,FALSE) -> 4.0 | I32: =VLOOKUP($A$5,'RECAP AG'!$G$6:$DG$271,66,FALSE) -> 81% | K32: =VLOOKUP($A$5,'RECAP AG'!$G$6:$DG$271,67,FALSE) -> 210

Sheet AG_TOTAL
B1: Accueil | H1: BAROMETRE BDD - AGENCES
H2: TOTAL GENERAL
H3: =ACCUEIL!F7 -> 2021-04-11
H7: TOTAL GENERAL | K7: Total Satisfaction Clients | N7: Total Bancarisation | Q7: Total Epargne | T7: Total IARD Prévoyance | W7: Total Crédits
I8: coef | J8: 100% | L8: coef | M8: =AG_SATISFACTION!P8 -> 20% | O8: coef | P8: =AG_BANCA!Z8 -> 20% | R8: coef | S8: =AG_EPARGNE!R8 -> 20% | U8: coef | V8: =AG_IARD!R8 -> 20% | X8: coef | Y8: =AG_CREDIT!V8 -> 20%
B9: Direction | C9: eds | D9: Territoire | E9: eds | F9: Agence | G9: ="ETP perf "&DATEMAJ!$C$28 -> ETP perf 28-févr | H9: Moyenne ecart au 1er | I9: % Ecart au 1er | J9: Rang CEGEE | K9: Moyenne ecart au 1er | L9: % Ecart au 1er | M9: Rang CEGEE | N9: Moyenne ecart au 1er | O9: % Ecart au 1er | P9: Rang CEGEE | Q9: Moyenne ecart au 1er | R9: % Ecart au 1er | S9: Rang CEGEE | T9: Moyenne ecart au 1er | U9: % Ecart au 1er | V9: Rang CEGEE | W9: Moyenne ecart au 1er | X9: % Ecart au 1er | Y9: Rang CEGEE
A10: 50 | B10: MEURTHE ET MOSELLE MEUSE | C10: 26 | D10: NANCY | E10: 454481 | F10: NANCY PLACE DOMBASLE | G10: 12.1 | H10: 21% | I10: 0% | J10: 1 | K10: 42% | L10: 33% | M10: 76 | N10: 22% | O10: 0% | P10: 1 | Q10: 63% | R10: 40% | S10: 12 | T10: 19% | U10: 12% | V10: 4 | W10: 28% | X10: 22% | Y10: 3
A11: 50 | B11: MEURTHE ET MOSELLE MEUSE | C11: 27 | D11: PONT A MOUSSON | E11: 554531 | F11: POMPEY | G11: 3.0 | H11: 28% | I11: 7% | J11: 2 | K11: 47% | L11: 38% | M11: 102 | N11: 22% | O11: 0% | P11: 2 | Q11: 61% | R11: 38% | S11: 8 | T11: 37% | U11: 31% | V11: 19 | W11: 39% | X11: 33% | Y11: 7
A12: 50 | B12: MEURTHE ET MOSELLE MEUSE | C12: 26 | D12: NANCY | E12: 554356 | F12: JARVILLE LA MALGRANGE | G12: 3.6 | H12: 29% | I12: 8% | J12: 3 | K12: 43% | L12: 34% | M12: 80 | N12: 34% | O12: 12% | P12: 4 | Q12: 75% | R12: 52% | S12: 60 | T12: 28% | U12: 21% | V12: 8 | W12: 32% | X12: 25% | Y12: 4
A13: 50 | B13: MARNE-ARDENNES | C13: 2 | D13: CHARLEVILLE MEZIERES | E13: 508820 | F13: VOUZIERS | G13: 2.9 | H13: 32% | I13: 11% | J13: 4 | K13: 41% | L13: 31% | M13: 62 | N13: 66% | O13: 45% | P13: 117 | Q13: 72% | R13: 49% | S13: 38 | T13: 7% | U13: 0% | V13: 1 | W13: 43% | X13: 36% | Y13: 8
A14: 50 | B14: MEURTHE ET MOSELLE MEUSE | C14: 27 | D14: PONT A MOUSSON | E14: 454651 | F14: TOUL | G14: 9.4 | H14: 32% | I14: 11% | J14: 5 | K14: 73% | L14: 64% | M14: 216 | N14: 33% | O14: 11% | P14: 3 | Q14: 79% | R14: 57% | S14: 95 | T14: 37% | U14: 30% | V14: 18 | W14: 6% | X14: 0% | Y14: 1
A15: 50 | B15: BAS-RHIN | C15: 5101 | D15: SELESTAT | E15: 4113 | F15: BARR | G15: 3.0 | H15: 33% | I15: 11% | J15: 6 | K15: 41% | L15: 32% | M15: 71 | N15: 41% | O15: 20% | P15: 10 | Q15: 47% | R15: 25% | S15: 2 | T15: 33% | U15: 26% | V15: 11 | W15: 69% | X15: 62% | Y15: 192
A16: 50 | B16: MARNE-ARDENNES | C16: 2 | D16: CHARLEVILLE MEZIERES | E16: 408822 | F16: CHARLEVILLE MEZIERES | G16: 4.3 | H16: 37% | I16: 15% | J16: 7 | K16: 50% | L16: 40% | M16: 112 | N16: 60% | O16: 39% | P16: 60 | Q16: 52% | R16: 29% | S16: 3 | T16: 33% | U16: 27% | V16: 13 | W16: 55% | X16: 48% | Y16: 41
A17: 50 | B17: MARNE-ARDENNES | C17: 2 | D17: CHARLEVILLE MEZIERES | E17: 408862 | F17: REVIN | G17: 3.8 | H17: 37% | I17: 15% | J17: 8 | K17: 13% | L17: 3% | M17: 2 | N17: 52% | O17: 31% | P17: 25 | Q17: 62% | R17: 39% | S17: 9 | T17: 64% | U17: 57% | V17: 115 | W17: 59% | X17: 53% | Y17: 72
A18: 50 | B18: VOSGES | C18: 57 | D18: EPINAL | E18: 488288 | F18: EPINAL LEOPOLD BOURG | G18: 1.9 | H18: 37% | I18: 16% | J18: 9 | K18: 47% | L18: 37% | M18: 98 | N18: 44% | O18: 23% | P18: 11 | Q18: 69% | R18: 46% | S18: 21 | T18: 60% | U18: 53% | V18: 94 | W18: 32% | X18: 26% | Y18: 5
A19: 50 | B19: BAS-RHIN | C19: 5060 | D19: HAGUENAU | E19: 4092 | F19: HOCHFELDEN | G19: 1.6 | H19: 37% | I19: 16% | J19: 10 | K19: 50% | L19: 41% | M19: 115 | N19: 37% | O19: 15% | P19: 6 | Q19: 90% | R19: 67% | S19: 206 | T19: 38% | U19: 32% | V19: 22 | W19: 38% | X19: 32% | Y19: 6
A20: 50 | B20: MEURTHE ET MOSELLE MEUSE | C20: 31 | D20: VERDUN | E20: 554413 | F20: LONGWY BAS | G20: 3.0 | H20: 38% | I20: 16% | J20: 11 | K20: 24% | L20: 14% | M20: 7 | N20: 47% | O20: 26% | P20: 15 | Q20: 63% | R20: 40% | S20: 13 | T20: 72% | U20: 66% | V20: 187 | W20: 49% | X20: 42% | Y20: 12
A21: 50 | B21: MARNE-ARDENNES | C21: 11 | D21: REIMS | E21: 451336 | F21: TINQUEUX | G21: 5.6 | H21: 38% | I21: 17% | J21: 12 | K21: 47% | L21: 38% | M21: 100 | N21: 68% | O21: 47% | P21: 141 | Q21: 23% | R21: 0% | S21: 1 | T21: 58% | U21: 51% | V21: 82 | W21: 61% | X21: 55% | Y21: 92
A22: 50 | B22: MOSELLE | C22: 44 | D22: MOSELLE NORD | E22: 557508 | F22: NILVANGE | G22: 2.5 | H22: 38% | I22: 17% | J22: 13 | K22: 59% | L22: 49% | M22: 158 | N22: 53% | O22: 31% | P22: 27 | Q22: 69% | R22: 47% | S22: 25 | T22: 24% | U22: 18% | V22: 6 | W22: 52% | X22: 46% | Y22: 28
A23: 50 | B23: MARNE-ARDENNES | C23: 11 | D23: REIMS | E23: 551349 | F23: REIMS SAINT REMI | G23: 2.9 | H23: 39% | I23: 17% | J23: 14 | K23: 50% | L23: 40% | M23: 113 | N23: 46% | O23: 25% | P23: 13 | Q23: 62% | R23: 39% | S23: 10 | T23: 51% | U23: 45% | V23: 49 | W23: 52% | X23: 46% | Y23: 27
A24: 50 | B24: MARNE-ARDENNES | C24: 6 | D24: CHALONS EN CHAMPAGNE | E24: 451115 | F24: MOURMELON LE GRAND | G24: 2.9 | H24: 40% | I24: 18% | J24: 15 | K24: 32% | L24: 23% | M24: 34 | N24: 73% | O24: 52% | P24: 191 | Q24: 65% | R24: 43% | S24: 15 | T24: 45% | U24: 38% | V24: 32 | W24: 50% | X24: 43% | Y24: 14
A25: 50 | B25: VOSGES | C25: 55 | D25: SAINT DIE | E25: 488246 | F25: CORNIMONT LA BRESSE | G25: 2.7 | H25: 41% | I25: 19% | J25: 16 | K25: 14% | L25: 5% | M25: 3 | N25: 69% | O25: 48% | P25: 156 | Q25: 85% | R25: 62% | S25: 145 | T25: 42% | U25: 35% | V25: 26 | W25: 60% | X25: 53% | Y25: 74
A26: 50 | B26: MARNE-ARDENNES | C26: 11 | D26: REIMS | E26: 551305 | F26: REIMS HIPPODROME | G26: 3.6 | H26: 41% | I26: 19% | J26: 17 | K26: 28% | L26: 18% | M26: 16 | N26: 66% | O26: 45% | P26: 116 | Q26: 90% | R26: 68% | S26: 209 | T26: 35% | U26: 28% | V26: 14 | W26: 52% | X26: 46% | Y26: 23
A27: 50 | B27: MOSELLE | C27: 45 | D27: METZ | E27: 557444 | F27: SAINT JULIEN LES METZ | G27: 5.0 | H27: 41% | I27: 20% | J27: 18 | K27: 47% | L27: 38% | M27: 101 | N27: 63% | O27: 42% | P27: 87 | Q27: 70% | R27: 48% | S27: 30 | T27: 38% | U27: 31% | V27: 21 | W27: 54% | X27: 47% | Y27: 37
A28: 50 | B28: MEURTHE ET MOSELLE MEUSE | C28: 26 | D28: NANCY | E28: 554636 | F28: TOMBLAINE | G28: 1.9 | H28: 41% | I28: 20% | J28: 19 | K28: 27% | L28: 18% | M28: 15 | N28: 82% | O28: 61% | P28: 243 | Q28: 75% | R28: 52% | S28: 51 | T28: 32% | U28: 26% | V28: 10 | W28: 57% | X28: 50% | Y28: 50
A29: 50 | B29: MOSELLE | C29: 42 | D29: MOSELLE EST | E29: 557250 | F29: CREUTZWALD | G29: 2.5 | H29: 42% | I29: 20% | J29: 20 | K29: 51% | L29: 42% | M29: 124 | N29: 71% | O29: 49% | P29: 174 | Q29: 53% | R29: 30% | S29: 4 | T29: 46% | U29: 39% | V29: 33 | W29: 54% | X29: 48% | Y29: 38
A30: 50 | B30: VOSGES | C30: 57 | D30: EPINAL | E30: 488706 | F30: VITTEL | G30: 3.6 | H30: 42% | I30: 21% | J30: 21 | K30: 24% | L30: 15% | M30: 9 | N30: 82% | O30: 61% | P30: 242 | Q30: 74% | R30: 52% | S30: 48 | T30: 36% | U30: 29% | V30: 17 | W30: 62% | X30: 56% | Y30: 106
A31: 262 | B31: MARNE-ARDENNES | C31: 11 | D31: REIMS | E31: 551340 | F31: BETHENY | G31: 2.9 | H31: 42% | I31: 21% | J31: 22 | K31: 31% | L31: 21% | M31: 26 | N31: 60% | O31: 39% | P31: 56 | Q31: 66% | R31: 43% | S31: 16 | T31: 72% | U31: 66% | V31: 189 | W31: 50% | X31: 43% | Y31: 15
A32: 262 | B32: AUBE HAUTE MARNE | C32: 21 | D32: CHAUMONT | E32: 510590 | F32: CHAUMONT REPUBLIQUE | G32: 4.2 | H32: 42% | I32: 21% | J32: 23 | K32: 43% | L32: 34% | M32: 82 | N32: 67% | O32: 45% | P32: 120 | Q32: 78% | R32: 56% | S32: 88 | T32: 41% | U32: 34% | V32: 24 | W32: 50% | X32: 43% | Y32: 16
A33: 262 | B33: BAS-RHIN | C33: 5101 | D33: SELESTAT | E33: 4126 | F33: MUTZIG | G33: 2.0 | H33: 43% | I33: 21% | J33: 24 | K33: 69% | L33: 60% | M33: 205 | N33: 54% | O33: 33% | P33: 32 | Q33: 88% | R33: 66% | S33: 187 | T33: 46% | U33: 39% | V33: 34 | W33: 23% | X33: 17% | Y33: 2
A34: 262 | B34: VOSGES | C34: 57 | D34: EPINAL | E34: 588716 | F34: XERTIGNY | G34: 3.0 | H34: 43% | I34: 21% | J34: 25 | K34: 43% | L34: 34% | M34: 79 | N34: 70% | O34: 48% | P34: 161 | Q34: 78% | R34: 56% | S34: 86 | T34: 16% | U34: 10% | V34: 2 | W34: 74% | X34: 67% | Y34: 242
A35: 262 | B35: MOSELLE | C35: 42 | D35: MOSELLE EST | E35: 457308 | F35: FORBACH CENTRALE | G35: 10.9 | H35: 43% | I35: 22% | J35: 26 | K35: 32% | L35: 23% | M35: 33 | N35: 58% | O35: 37% | P35: 44 | Q35: 81% | R35: 58% | S35: 109 | T35: 54% | U35: 47% | V35: 57 | W35: 59% | X35: 52% | Y35: 65
A36: 262 | B36: BAS-RHIN | C36: 5101 | D36: SELESTAT | E36: 4119 | F36: OBERNAI | G36: 3.2 | H36: 44% | I36: 23% | J36: 27 | K36: 75% | L36: 65% | M36: 223 | N36: 35% | O36: 13% | P36: 5 | Q36: 70% | R36: 48% | S36: 28 | T36: 41% | U36: 34% | V36: 23 | W36: 66% | X36: 60% | Y36: 161
A37: 262 | B37: BAS-RHIN | C37: 5006 | D37: STRASBOURG | E37: 4037 | F37: MUNDOLSHEIM | G37: 4.2 | H37: 44% | I37: 23% | J37: 28 | K37: 56% | L37: 47% | M37: 145 | N37: 41% | O37: 19% | P37: 9 | Q37: 70% | R37: 47% | S37: 27 | T37: 52% | U37: 45% | V37: 51 | W37: 69% | X37: 63% | Y37: 195
A38: 262 | B38: MARNE-ARDENNES | C38: 6 | D38: CHALONS EN CHAMPAGNE | E38: 551330 | F38: MONTMIRAIL | G38: 3.0 | H38: 44% | I38: 23% | J38: 29 | K38: 29% | L38: 20% | M38: 19 | N38: 75% | O38: 53% | P38: 201 | Q38: 72% | R38: 49% | S38: 39 | T38: 56% | U38: 49% | V38: 67 | W38: 57% | X38: 51% | Y38: 53
A39: 262 | B39: MARNE-ARDENNES | C39: 2 | D39: CHARLEVILLE MEZIERES | E39: 508839 | F39: GIVET | G39: 3.5 | H39: 45% | I39: 23% | J39: 30 | K39: 51% | L39: 42% | M39: 123 | N39: 70% | O39: 49% | P39: 165 | Q39: 85% | R39: 62% | S39: 144 | T39: 17% | U39: 10% | V39: 3 | W39: 67% | X39: 61% | Y39: 170
A40: 262 | B40: MEURTHE ET MOSELLE MEUSE | C40: 26 | D40: NANCY | E40: 454426 | F40: LUNEVILLE CARNOT | G40: 9.7 | H40: 45% | I40: 23% | J40: 31 | K40: 51% | L40: 42% | M40: 122 | N40: 54% | O40: 32% | P40: 30 | Q40: 81% | R40: 58% | S40: 110 | T40: 46% | U40: 40% | V40: 35 | W40: 58% | X40: 52% | Y40: 61
A41: 262 | B41: VOSGES | C41: 55 | D41: SAINT DIE | E41: 588186 | F41: BRUYERES | G41: 3.7 | H41: 45% | I41: 24% | J41: 32 | K41: 49% | L41: 40% | M41: 109 | N41: 58% | O41: 36% | P41: 43 | Q41: 84% | R41: 62% | S41: 135 | T41: 44% | U41: 38% | V41: 30 | W41: 57% | X41: 50% | Y41: 51
A42: 262 | B42: MEURTHE ET MOSELLE MEUSE | C42: 31 | D42: VERDUN | E42: 554412 | F42: LONGUYON | G42: 2.5 | H42: 46% | I42: 24% | J42: 33 | K42: 41% | L42: 32% | M42: 68 | N42: 68% | O42: 46% | P42: 133 | Q42: 83% | R42: 60% | S42: 125 | T42: 51% | U42: 44% | V42: 44 | W42: 52% | X42: 46% | Y42: 26
A43: 262 | B43: MEURTHE ET MOSELLE MEUSE | C43: 31 | D43: VERDUN | E43: 555679 | F43: VERDUN MAZEL | G43: 4.0 | H43: 46% | I43: 24% | J43: 34 | K43: 34% | L43: 25% | M43: 40 | N43: 61% | O43: 39% | P43: 62 | Q43: 77% | R43: 54% | S43: 67 | T43: 60% | U43: 54% | V43: 98 | W43: 62% | X43: 56% | Y43: 105
A44: 262 | B44: MEURTHE ET MOSELLE MEUSE | C44: 27 | D44: PONT A MOUSSON | E44: 454535 | F44: PONT A MOUSSON CENTRALE | G44: 8.1 | H44: 46% | I44: 24% | J44: 35 | K44: 57% | L44: 47% | M44: 147 | N44: 48% | O44: 26% | P44: 16 | Q44: 75% | R44: 53% | S44: 61 | T44: 54% | U44: 48% | V44: 61 | W44: 61% | X44: 54% | Y44: 87
A45: 262 | B45: MARNE-ARDENNES | C45: 11 | D45: REIMS | E45: 551310 | F45: REIMS CHATILLONS | G45: 3.7 | H45: 46% | I45: 24% | J45: 36 | K45: 55% | L45: 46% | M45: 141 | N45: 59% | O45: 37% | P45: 46 | Q45: 76% | R45: 53% | S45: 62 | T45: 56% | U45: 49% | V45: 68 | W45: 50% | X45: 44% | Y45: 17
A46: 262 | B46: BAS-RHIN | C46: 5006 | D46: STRASBOURG | E46: 4047 | F46: STRASBOURG CRONENBOURG | G46: 5.7 | H46: 46% | I46: 24% | J46: 37 | K46: 37% | L46: 28% | M46: 49 | N46: 63% | O46: 41% | P46: 82 | Q46: 77% | R46: 54% | S46: 65 | T46: 56% | U46: 50% | V46: 72 | W46: 62% | X46: 56% | Y46: 110
A47: 262 | B47: MARNE-ARDENNES | C47: 6 | D47: CHALONS EN CHAMPAGNE | E47: 551110 | F47: CHALONS ROOSEVELT | G47: 4.9 | H47: 46% | I47: 24% | J47: 38 | K47: 31% | L47: 21% | M47: 27 | N47: 69% | O47: 48% | P47: 155 | Q47: 71% | R47: 49% | S47: 34 | T47: 61% | U47: 54% | V47: 99 | W47: 63% | X47: 57% | Y47: 116
A48: 262 | B48: VOSGES | C48: 57 | D48: EPINAL | E48: 488451 | F48: MIRECOURT | G48: 4.9 | H48: 46% | I48: 24% | J48: 39 | K48: 40% | L48: 30% | M48: 57 | N48: 66% | O48: 45% | P48: 115 | Q48: 74% | R48: 51% | S48: 46 | T48: 49% | U48: 42% | V48: 39 | W48: 67% | X48: 61% | Y48: 177
A49: 262 | B49: MARNE-ARDENNES | C49: 2 | D49: CHARLEVILLE MEZIERES | E49: 408801 | F49: CHARLEVILLE JEAN JAURES | G49: 9.4 | H49: 46% | I49: 24% | J49: 40 | K49: 33% | L49: 23% | M49: 35 | N49: 66% | O49: 44% | P49: 112 | Q49: 79% | R49: 57% | S49: 94 | T49: 68% | U49: 61% | V49: 144 | W49: 51% | X49: 45% | Y49: 20
A50: 262 | B50: VOSGES | C50: 55 | D50: SAINT DIE | E50: 488586 | F50: SAINT DIE | G50: 11.6 | H50: 46% | I50: 25% | J50: 41 | K50: 19% | L50: 9% | M50: 4 | N50: 72% | O50: 50% | P50: 180 | Q50: 73% | R50: 51% | S50: 44 | T50: 67% | U50: 60% | V50: 138 | W50: 68% | X50: 62% | Y50: 188
A51: 262 | B51: MEURTHE ET MOSELLE MEUSE | C51: 26 | D51: NANCY | E51: 554476 | F51: NANCY ARTEM | G51: 2.7 | H51: 46% | I51: 25% | J51: 42 | K51: 40% | L51: 31% | M51: 60 | N51: 68% | O51: 47% | P51: 137 | Q51: 75% | R51: 52% | S51: 52 | T51: 56% | U51: 49% | V51: 69 | W51: 60% | X51: 53% | Y51: 75
A52: 262 | B52: VOSGES | C52: 57 | D52: EPINAL | E52: 588206 | F52: CHARMES | G52: 2.8 | H52: 47% | I52: 25% | J52: 43 | K52: 41% | L52: 31% | M52: 64 | N52: 74% | O52: 52% | P52: 195 | Q52: 85% | R52: 62% | S52: 142 | T52: 41% | U52: 35% | V52: 25 | W52: 60% | X52: 53% | Y52: 80
A53: 262 | B53: MOSELLE | C53: 45 | D53: METZ | E53: 557105 | F53: ARS SUR MOSELLE | G53: 4.0 | H53: 47% | I53: 25% | J53: 44 | K53: 38% | L53: 29% | M53: 54 | N53: 62% | O53: 41% | P53: 73 | Q53: 86% | R53: 63% | S53: 162 | T53: 62% | U53: 55% | V53: 103 | W53: 53% | X53: 46% | Y53: 31
A54: 262 | B54: MARNE-ARDENNES | C54: 6 | D54: CHALONS EN CHAMPAGNE | E54: 451120 | F54: SARRY | G54: 2.5 | H54: 47% | I54: 25% | J54: 45 | K54: 26% | L54: 17% | M54: 13 | N54: 69% | O54: 47% | P54: 143 | Q54: 71% | R54: 48% | S54: 32 | T54: 66% | U54: 60% | V54: 135 | W54: 69% | X54: 62% | Y54: 191
A55: 262 | B55: BAS-RHIN | C55: 5060 | D55: HAGUENAU | E55: 4066 | F55: NIEDERBRONN LES BAINS | G55: 6.3 | H55: 47% | I55: 26% | J55: 46 | K55: 21% | L55: 11% | M55: 5 | N55: 69% | O55: 47% | P55: 145 | Q55: 86% | R55: 63% | S55: 161 | T55: 60% | U55: 53% | V55: 90 | W55: 66% | X55: 60% | Y55: 156
A56: 262 | B56: MOSELLE | C56: 44 | D56: MOSELLE NORD | E56: 457348 | F56: HAGONDANGE | G56: 9.3 | H56: 47% | I56: 26% | J56: 47 | K56: 58% | L56: 48% | M56: 152 | N56: 57% | O56: 36% | P56: 42 | Q56: 78% | R56: 55% | S56: 79 | T56: 51% | U56: 44% | V56: 46 | W56: 60% | X56: 53% | Y56: 78
A57: 262 | B57: VOSGES | C57: 57 | D57: EPINAL | E57: 588396 | F57: LE VAL D AJOL | G57: 3.0 | H57: 48% | I57: 26% | J57: 48 | K57: 9% | L57: 0% | M57: 1 | N57: 75% | O57: 54% | P57: 207 | Q57: 85% | R57: 62% | S57: 147 | T57: 57% | U57: 51% | V57: 78 | W57: 77% | X57: 71% | Y57: 256
A58: 262 | B58: MARNE-ARDENNES | C58: 11 | D58: REIMS | E58: 451361 | F58: PIERRY LECLERC | G58: 2.0 | H58: 48% | I58: 26% | J58: 49 | K58: 30% | L58: 21% | M58: 25 | N58: 59% | O58: 37% | P58: 47 | Q58: 93% | R58: 71% | S58: 236 | T58: 57% | U58: 50% | V58: 73 | W58: 65% | X58: 59% | Y58: 146
A59: 262 | B59: MEURTHE ET MOSELLE MEUSE | C59: 31 | D59: VERDUN | E59: 455456 | F59: MONTMEDY | G59: 1.8 | H59: 48% | I59: 26% | J59: 50 | K59: 56% | L59: 46% | M59: 143 | N59: 57% | O59: 36% | P59: 40 | Q59: 82% | R59: 59% | S59: 118 | T59: 54% | U59: 47% | V59: 58 | W59: 56% | X59: 50% | Y59: 47
A60: 262 | B60: VOSGES | C60: 57 | D60: EPINAL | E60: 588631 | F60: THAON LES VOSGES | G60: 5.5 | H60: 48% | I60: 26% | J60: 51 | K60: 38% | L60: 29% | M60: 53 | N60: 66% | O60: 44% | P60: 107 | Q60: 86% | R60: 63% | S60: 158 | T60: 51% | U60: 45% | V60: 48 | W60: 65% | X60: 58% | Y60: 137
A61: 262 | B61: BAS-RHIN | C61: 5101 | D61: SELESTAT | E61: 4121 | F61: SCHIRMECK | G61: 3.5 | H61: 48% | I61: 26% | J61: 52 | K61: 51% | L61: 42% | M61: 121 | N61: 64% | O61: 42% | P61: 89 | Q61: 75% | R61: 52% | S61: 56 | T61: 58% | U61: 51% | V61: 81 | W61: 59% | X61: 53% | Y61: 67
A62: 262 | B62: MARNE-ARDENNES | C62: 2 | D62: CHARLEVILLE MEZIERES | E62: 508815 | F62: CARIGNAN | G62: 2.9 | H62: 48% | I62: 27% | J62: 53 | K62: 43% | L62: 34% | M62: 83 | N62: 68% | O62: 46% | P62: 135 | Q62: 69% | R62: 46% | S62: 22 | T62: 63% | U62: 56% | V62: 109 | W62: 64% | X62: 57% | Y62: 124
A63: 262 | B63: MOSELLE | C63: 45 | D63: METZ | E63: 557447 | F63: METZ SAINT MAXIMIN | G63: 3.1 | H63: 48% | I63: 27% | J63: 54 | K63: 55% | L63: 46% | M63: 140 | N63: 56% | O63: 34% | P63: 33 | Q63: 85% | R63: 63% | S63: 151 | T63: 60% | U63: 54% | V63: 97 | W63: 51% | X63: 44% | Y63: 19
A64: 262 | B64: AUBE HAUTE MARNE | C64: 14 | D64: TROYES | E64: 510511 | F64: TROYES BROSSOLETTE | G64: 2.9 | H64: 48% | I64: 27% | J64: 55 | K64: 33% | L64: 24% | M64: 37 | N64: 63% | O64: 41% | P64: 81 | Q64: 71% | R64: 48% | S64: 33 | T64: 75% | U64: 68% | V64: 204 | W64: 65% | X64: 59% | Y64: 145
A65: 262 | B65: MARNE-ARDENNES | C65: 6 | D65: CHALONS EN CHAMPAGNE | E65: 451101 | F65: CHALONS VIVIERS | G65: 8.5 | H65: 48% | I65: 27% | J65: 56 | K65: 26% | L65: 17% | M65: 12 | N65: 62% | O65: 41% | P65: 76 | Q65: 86% | R65: 63% | S65: 163 | T65: 75% | U65: 69% | V65: 210 | W65: 57% | X65: 51% | Y65: 56
A66: 262 | B66: MEURTHE ET MOSELLE MEUSE | C66: 31 | D66: VERDUN | E66: 555624 | F66: STENAY | G66: 2.9 | H66: 48% | I66: 27% | J66: 57 | K66: 66% | L66: 56% | M66: 193 | N66: 40% | O66: 18% | P66: 7 | Q66: 79% | R66: 56% | S66: 91 | T66: 62% | U66: 55% | V66: 105 | W66: 62% | X66: 55% | Y66: 102
A67: 262 | B67: BAS-RHIN | C67: 5006 | D67: STRASBOURG | E67: 4019 | F67: STRASBOURG ANVERS | G67: 3.9 | H67: 49% | I67: 27% | J67: 58 | K67: 45% | L67: 36% | M67: 95 | N67: 65% | O67: 44% | P67: 105 | Q67: 75% | R67: 52% | S67: 55 | T67: 69% | U67: 63% | V67: 160 | W67: 55% | X67: 49% | Y67: 42
A68: 262 | B68: MARNE-ARDENNES | C68: 11 | D68: REIMS | E68: 551367 | F68: AY CHAMPAGNE | G68: 2.7 | H68: 49% | I68: 27% | J68: 59 | K68: 64% | L68: 55% | M68: 185 | N68: 59% | O68: 38% | P68: 52 | Q68: 86% | R68: 63% | S68: 156 | T68: 56% | U68: 49% | V68: 70 | W68: 44% | X68: 38% | Y68: 9
A69: 262 | B69: MEURTHE ET MOSELLE MEUSE | C69: 31 | D69: VERDUN | E69: 455298 | F69: ETAIN | G69: 1.7 | H69: 49% | I69: 27% | J69: 60 | K69: 62% | L69: 53% | M69: 176 | N69: 79% | O69: 58% | P69: 228 | Q69: 84% | R69: 62% | S69: 138 | T69: 27% | U69: 21% | V69: 7 | W69: 57% | X69: 51% | Y69: 54
A70: 262 | B70: MARNE-ARDENNES | C70: 11 | D70: REIMS | E70: 451350 | F70: REIMS CENTRE VILLE | G70: 7.5 | H70: 49% | I70: 27% | J70: 61 | K70: 58% | L70: 48% | M70: 154 | N70: 69% | O70: 47% | P70: 144 | Q70: 75% | R70: 52% | S70: 58 | T70: 60% | U70: 53% | V70: 89 | W70: 49% | X70: 43% | Y70: 13
A71: 262 | B71: BAS-RHIN | C71: 5101 | D71: SELESTAT | E71: 4007 | F71: ILLKIRCH CENTRE | G71: 7.0 | H71: 49% | I71: 27% | J71: 62 | K71: 49% | L71: 40% | M71: 111 | N71: 50% | O71: 29% | P71: 18 | Q71: 88% | R71: 65% | S71: 178 | T71: 53% | U71: 47% | V71: 54 | W71: 70% | X71: 64% | Y71: 213
A72: 262 | B72: MEURTHE ET MOSELLE MEUSE | C72: 27 | D72: PONT A MOUSSON | E72: 554321 | F72: FROUARD | G72: 3.0 | H72: 49% | I72: 27% | J72: 63 | K72: 76% | L72: 67% | M72: 227 | N72: 62% | O72: 40% | P72: 69 | Q72: 66% | R72: 43% | S72: 17 | T72: 51% | U72: 45% | V72: 50 | W72: 55% | X72: 49% | Y72: 46
A73: 262 | B73: VOSGES | C73: 55 | D73: SAINT DIE | E73: 488326 | F73: GERARDMER | G73: 5.5 | H73: 49% | I73: 27% | J73: 64 | K73: 31% | L73: 22% | M73: 30 | N73: 71% | O73: 49% | P73: 173 | Q73: 66% | R73: 44% | S73: 18 | T73: 76% | U73: 69% | V73: 213 | W73: 67% | X73: 61% | Y73: 172
A74: 262 | B74: BAS-RHIN | C74: 5060 | D74: HAGUENAU | E74: 4087 | F74: SAVERNE | G74: 8.6 | H74: 49% | I74: 28% | J74: 65 | K74: 52% | L74: 42% | M74: 125 | N74: 60% | O74: 38% | P74: 55 | Q74: 79% | R74: 57% | S74: 97 | T74: 60% | U74: 53% | V74: 92 | W74: 61% | X74: 54% | Y74: 90
A75: 262 | B75: MOSELLE | C75: 42 | D75: MOSELLE EST | E75: 457165 | F75: BITCHE | G75: 1.8 | H75: 49% | I75: 28% | J75: 66 | K75: 66% | L75: 56% | M75: 191 | N75: 52% | O75: 31% | P75: 23 | Q75: 106% | R75: 83% | S75: 261 | T75: 35% | U75: 28% | V75: 15 | W75: 54% | X75: 47% | Y75: 36
A76: 262 | B76: BAS-RHIN | C76: 5006 | D76: STRASBOURG | E76: 4043 | F76: STRASBOURG HALLES | G76: 8.5 | H76: 49% | I76: 28% | J76: 67 | K76: 50% | L76: 41% | M76: 116 | N76: 57% | O76: 35% | P76: 39 | Q76: 78% | R76: 55% | S76: 74 | T76: 68% | U76: 62% | V76: 153 | W76: 59% | X76: 53% | Y76: 69
A77: 262 | B77: VOSGES | C77: 55 | D77: SAINT DIE | E77: 588386 | F77: LE THILLOT | G77: 2.6 | H77: 49% | I77: 28% | J77: 68 | K77: 49% | L77: 40% | M77: 107 | N77: 71% | O77: 49% | P77: 172 | Q77: 79% | R77: 57% | S77: 96 | T77: 44% | U77: 37% | V77: 28 | W77: 69% | X77: 63% | Y77: 200
A78: 262 | B78: MARNE-ARDENNES | C78: 2 | D78: CHARLEVILLE MEZIERES | E78: 508802 | F78: CHARLEVILLE NEVERS | G78: 3.0 | H78: 49% | I78: 28% | J78: 69 | K78: 31% | L78: 22% | M78: 29 | N78: 75% | O78: 53% | P78: 203 | Q78: 90% | R78: 67% | S78: 197 | T78: 57% | U78: 50% | V78: 74 | W78: 60% | X78: 53% | Y78: 81
A79: 264 | B79: MOSELLE | C79: 45 | D79: METZ | E79: 557712 | F79: WOIPPY | G79: 5.5 | H79: 49% | I79: 28% | J79: 70 | K79: 43% | L79: 34% | M79: 81 | N79: 57% | O79: 35% | P79: 38 | Q79: 92% | R79: 69% | S79: 225 | T79: 55% | U79: 48% | V79: 64 | W79: 66% | X79: 59% | Y79: 149
A80: 264 | B80: MARNE-ARDENNES | C80: 2 | D80: CHARLEVILLE MEZIERES | E80: 508833 | F80: VILLERS SEMEUSE CORA | G80: 3.3 | H80: 49% | I80: 28% | J80: 71 | K80: 49% | L80: 39% | M80: 104 | N80: 68% | O80: 47% | P80: 138 | Q80: 80% | R80: 57% | S80: 102 | T80: 63% | U80: 56% | V80: 108 | W80: 53% | X80: 47% | Y80: 32
A81: 264 | B81: MOSELLE | C81: 44 | D81: MOSELLE NORD | E81: 457306 | F81: FLORANGE | G81: 3.9 | H81: 49% | I81: 28% | J81: 72 | K81: 41% | L81: 32% | M81: 66 | N81: 63% | O81: 41% | P81: 80 | Q81: 78% | R81: 55% | S81: 77 | T81: 66% | U81: 59% | V81: 130 | W81: 65% | X81: 59% | Y81: 140
A82: 264 | B82: MEURTHE ET MOSELLE MEUSE | C82: 26 | D82: NANCY | E82: 554611 | F82: SAINT NICOLAS DE PORT | G82: 2.7 | H82: 49% | I82: 28% | J82: 73 | K82: 33% | L82: 24% | M82: 36 | N82: 59% | O82: 38% | P82: 51 | Q82: 70% | R82: 48% | S82: 29 | T82: 87% | U82: 80% | V82: 255 | W82: 64% | X82: 57% | Y82: 120
A83: 264 | B83: MOSELLE | C83: 42 | D83: MOSELLE EST | E83: 457617 | F83: SARREGUEMINES | G83: 8.0 | H83: 49% | I83: 28% | J83: 74 | K83: 40% | L83: 31% | M83: 61 | N83: 64% | O83: 43% | P83: 95 | Q83: 77% | R83: 54% | S83: 66 | T83: 63% | U83: 56% | V83: 111 | W83: 69% | X83: 63% | Y83: 198
A84: 264 | B84: BAS-RHIN | C84: 5006 | D84: STRASBOURG | E84: 4006 | F84: STRASBOURG NEUDORF | G84: 8.1 | H84: 49% | I84: 28% | J84: 75 | K84: 44% | L84: 35% | M84: 86 | N84: 52% | O84: 30% | P84: 22 | Q84: 89% | R84: 67% | S84: 196 | T84: 56% | U84: 50% | V84: 71 | W84: 72% | X84: 65% | Y84: 223
A85: 264 | B85: MOSELLE | C85: 45 | D85: METZ | E85: 457453 | F85: MONTIGNY LES METZ | G85: 8.2 | H85: 49% | I85: 28% | J85: 76 | K85: 32% | L85: 23% | M85: 32 | N85: 59% | O85: 38% | P85: 48 | Q85: 85% | R85: 63% | S85: 150 | T85: 75% | U85: 69% | V85: 209 | W85: 62% | X85: 56% | Y85: 107
A86: 264 | B86: BAS-RHIN | C86: 5060 | D86: HAGUENAU | E86: 4057 | F86: BISCHWILLER | G86: 6.7 | H86: 50% | I86: 28% | J86: 77 | K86: 35% | L86: 25% | M86: 42 | N86: 63% | O86: 42% | P86: 84 | Q86: 92% | R86: 70% | S86: 233 | T86: 57% | U86: 51% | V86: 76 | W86: 67% | X86: 61% | Y86: 176
A87: 264 | B87: AUBE HAUTE MARNE | C87: 21 | D87: CHAUMONT | E87: 451156 | F87: SAINT DIZIER CENTRE | G87: 9.7 | H87: 50% | I87: 28% | J87: 78 | K87: 42% | L87: 32% | M87: 72 | N87: 72% | O87: 51% | P87: 182 | Q87: 78% | R87: 56% | S87: 87 | T87: 60% | U87: 53% | V87: 93 | W87: 64% | X87: 57% | Y87: 123
A88: 264 | B88: AUBE HAUTE MARNE | C88: 14 | D88: TROYES | E88: 410550 | F88: BAR SUR AUBE | G88: 5.9 | H88: 50% | I88: 28% | J88: 79 | K88: 37% | L88: 27% | M88: 47 | N88: 70% | O88: 48% | P88: 160 | Q88: 85% | R88: 62% | S88: 143 | T88: 58% | U88: 51% | V88: 79 | W88: 67% | X88: 60% | Y88: 166
A89: 264 | B89: VOSGES | C89: 57 | D89: EPINAL | E89: 488286 | F89: EPINAL ARISTIDE BRIAND | G89: 9.1 | H89: 50% | I89: 28% | J89: 80 | K89: 26% | L89: 16% | M89: 11 | N89: 71% | O89: 50% | P89: 176 | Q89: 90% | R89: 68% | S89: 210 | T89: 58% | U89: 51% | V89: 80 | W89: 71% | X89: 64% | Y89: 217
A90: 264 | B90: MOSELLE | C90: 42 | D90: MOSELLE EST | E90: 557503 | F90: NEUNKIRCH | G90: 3.7 | H90: 50% | I90: 28% | J90: 81 | K90: 38% | L90: 29% | M90: 52 | N90: 64% | O90: 42% | P90: 90 | Q90: 78% | R90: 55% | S90: 75 | T90: 75% | U90: 68% | V90: 205 | W90: 62% | X90: 56% | Y90: 103
A91: 264 | B91: BAS-RHIN | C91: 5101 | D91: SELESTAT | E91: 4107 | F91: VILLE | G91: 3.0 | H91: 50% | I91: 29% | J91: 82 | K91: 82% | L91: 72% | M91: 239 | N91: 47% | O91: 25% | P91: 14 | Q91: 77% | R91: 54% | S91: 71 | T91: 44% | U91: 38% | V91: 31 | W91: 68% | X91: 61% | Y91: 183
A92: 264 | B92: AUBE HAUTE MARNE | C92: 21 | D92: CHAUMONT | E92: 410560 | F92: BOURBONNE LES BAINS | G92: 2.0 | H92: 50% | I92: 29% | J92: 83 | K92: 24% | L92: 14% | M92: 8 | N92: 73% | O92: 51% | P92: 185 | Q92: 88% | R92: 65% | S92: 180 | T92: 63% | U92: 56% | V92: 110 | W92: 71% | X92: 64% | Y92: 216
A93: 264 | B93: MEURTHE ET MOSELLE MEUSE | C93: 31 | D93: VERDUN | E93: 454414 | F93: LONGWY HAUT | G93: 4.0 | H93: 50% | I93: 29% | J93: 84 | K93: 67% | L93: 58% | M93: 200 | N93: 63% | O93: 42% | P93: 85 | Q93: 72% | R93: 49% | S93: 40 | T93: 51% | U93: 45% | V93: 47 | W93: 64% | X93: 58% | Y93: 130
A94: 264 | B94: BAS-RHIN | C94: 5006 | D94: STRASBOURG | E94: 4038 | F94: OBERHAUSBERGEN | G94: 4.9 | H94: 50% | I94: 29% | J94: 85 | K94: 48% | L94: 39% | M94: 103 | N94: 63% | O94: 41% | P94: 79 | Q94: 79% | R94: 56% | S94: 89 | T94: 66% | U94: 59% | V94: 126 | W94: 63% | X94: 57% | Y94: 112
A95: 264 | B95: BAS-RHIN | C95: 5060 | D95: HAGUENAU | E95: 4082 | F95: BOUXWILLER | G95: 2.3 | H95: 50% | I95: 29% | J95: 86 | K95: 52% | L95: 43% | M95: 127 | N95: 74% | O95: 52% | P95: 196 | Q95: 60% | R95: 38% | S95: 7 | T95: 68% | U95: 62% | V95: 150 | W95: 64% | X95: 58% | Y95: 127
A96: 264 | B96: BAS-RHIN | C96: 5006 | D96: STRASBOURG | E96: 4026 | F96: STRASBOURG DANUBE | G96: 4.5 | H96: 50% | I96: 29% | J96: 87 | K96: 72% | L96: 63% | M96: 215 | N96: 66% | O96: 44% | P96: 106 | Q96: 80% | R96: 58% | S96: 106 | T96: 37% | U96: 31% | V96: 20 | W96: 63% | X96: 57% | Y96: 114
A97: 264 | B97: MARNE-ARDENNES | C97: 11 | D97: REIMS | E97: 551309 | F97: REIMS EUROPE | G97: 3.0 | H97: 50% | I97: 29% | J97: 88 | K97: 41% | L97: 31% | M97: 65 | N97: 69% | O97: 48% | P97: 150 | Q97: 84% | R97: 61% | S97: 133 | T97: 59% | U97: 52% | V97: 84 | W97: 66% | X97: 60% | Y97: 154
A98: 264 | B98: MOSELLE | C98: 42 | D98: MOSELLE EST | E98: 457163 | F98: BEHREN LES FORBACH | G98: 2.7 | H98: 51% | I98: 29% | J98: 89 | K98: 40% | L98: 31% | M98: 59 | N98: 53% | O98: 31% | P98: 26 | Q98: 80% | R98: 57% | S98: 100 | T98: 60% | U98: 53% | V98: 95 | W98: 86% | X98: 80% | Y98: 264
A99: 264 | B99: MARNE-ARDENNES | C99: 11 | D99: REIMS | E99: 551365 | F99: DORMANS | G99: 2.8 | H99: 51% | I99: 29% | J99: 90 | K99: 30% | L99: 20% | M99: 22 | N99: 76% | O99: 54% | P99: 212 | Q99: 81% | R99: 58% | S99: 112 | T99: 69% | U99: 62% | V99: 157 | W99: 64% | X99: 58% | Y99: 128
A100: 264 | B100: BAS-RHIN | C100: 5006 | D100: STRASBOURG | E100: 4010 | F100: STRASBOURG MEINAU | G100: 3.3 | H100: 51% | I100: 29% | J100: 91 | K100: 82% | L100: 73% | M100: 240 | N100: 57% | O100: 35% | P100: 37 | Q100: 82% | R100: 60% | S100: 123 | T100: 36% | U100: 29% | V100: 16 | W100: 63% | X100: 57% | Y100: 113
A101: 264 | B101: AUBE HAUTE MARNE | C101: 14 | D101: TROYES | E101: 410571 | F101: ROMILLY SUR SEINE | G101: 6.2 | H101: 51% | I101: 29% | J101: 92 | K101: 38% | L101: 28% | M101: 51 | N101: 67% | O101: 45% | P101: 122 | Q101: 85% | R101: 62% | S101: 146 | T101: 69% | U101: 63% | V101: 163 | W101: 61% | X101: 54% | Y101: 91
A102: 264 | B102: MOSELLE | C102: 45 | D102: METZ | E102: 457443 | F102: METZ REPUBLIQUE | G102: 4.2 | H102: 51% | I102: 29% | J102: 93 | K102: 23% | L102: 13% | M102: 6 | N102: 67% | O102: 45% | P102: 126 | Q102: 89% | R102: 66% | S102: 191 | T102: 82% | U102: 75% | V102: 236 | W102: 59% | X102: 53% | Y102: 73
A103: 30 | B103: MEURTHE ET MOSELLE MEUSE | C103: 27 | D103: PONT A MOUSSON | E103: 554516 | F103: PAGNY SUR MOSELLE | G103: 2.7 | H103: 51% | I103: 29% | J103: 94 | K103: 56% | L103: 47% | M103: 144 | N103: 70% | O103: 48% | P103: 158 | Q103: 71% | R103: 49% | S103: 35 | T103: 57% | U103: 51% | V103: 75 | W103: 66% | X103: 59% | Y103: 148
A104: 30 | B104: MEURTHE ET MOSELLE MEUSE | C104: 27 | D104: PONT A MOUSSON | E104: 554376 | F104: LAXOU BOUFFLERS | G104: 3.0 | H104: 51% | I104: 29% | J104: 95 | K104: 60% | L104: 51% | M104: 165 | N104: 66% | O104: 44% | P104: 110 | Q104: 72% | R104: 50% | S104: 42 | T104: 61% | U104: 55% | V104: 101 | W104: 61% | X104: 55% | Y104: 93
A105: 30 | B105: MOSELLE | C105: 42 | D105: MOSELLE EST | E105: 457614 | F105: SARREBOURG | G105: 9.1 | H105: 51% | I105: 29% | J105: 96 | K105: 41% | L105: 32% | M105: 69 | N105: 61% | O105: 40% | P105: 63 | Q105: 83% | R105: 61% | S105: 128 | T105: 71% | U105: 64% | V105: 174 | W105: 65% | X105: 58% | Y105: 135
A106: 30 | B106: VOSGES | C106: 55 | D106: SAINT DIE | E106: 588666 | F106: VAGNEY | G106: 3.9 | H106: 51% | I106: 29% | J106: 97 | K106: 29% | L106: 19% | M106: 18 | N106: 75% | O106: 53% | P106: 202 | Q106: 84% | R106: 61% | S106: 132 | T106: 65% | U106: 59% | V106: 123 | W106: 69% | X106: 62% | Y106: 194
A107: 30 | B107: AUBE HAUTE MARNE | C107: 21 | D107: CHAUMONT | E107: 410566 | F107: CHAUMONT HOTEL DE VILLE | G107: 7.4 | H107: 51% | I107: 29% | J107: 98 | K107: 47% | L107: 38% | M107: 99 | N107: 70% | O107: 48% | P107: 157 | Q107: 85% | R107: 62% | S107: 149 | T107: 62% | U107: 55% | V107: 104 | W107: 58% | X107: 51% | Y107: 58
A108: 30 | B108: MARNE-ARDENNES | C108: 11 | D108: REIMS | E108: 551314 | F108: FISMES | G108: 3.0 | H108: 51% | I108: 29% | J108: 99 | K108: 43% | L108: 33% | M108: 77 | N108: 66% | O108: 44% | P108: 111 | Q108: 82% | R108: 60% | S108: 120 | T108: 70% | U108: 63% | V108: 164 | W108: 61% | X108: 55% | Y108: 94
A109: 30 | B109: BAS-RHIN | C109: 5101 | D109: SELESTAT | E109: 4120 | F109: WASSELONNE | G109: 4.6 | H109: 51% | I109: 29% | J109: 100 | K109: 77% | L109: 68% | M109: 230 | N109: 68% | O109: 47% | P109: 136 | Q109: 69% | R109: 47% | S109: 24 | T109: 49% | U109: 42% | V109: 38 | W109: 58% | X109: 52% | Y109: 60
A110: 30 | B110: MOSELLE | C110: 44 | D110: MOSELLE NORD | E110: 557113 | F110: AUDUN LE TICHE | G110: 2.0 | H110: 51% | I110: 29% | J110: 101 | K110: 91% | L110: 82% | M110: 248 | N110: 61% | O110: 40% | P110: 67 | Q110: 68% | R110: 46% | S110: 19 | T110: 55% | U110: 48% | V110: 62 | W110: 46% | X110: 40% | Y110: 10
A111: 30 | B111: MEURTHE ET MOSELLE MEUSE | C111: 27 | D111: PONT A MOUSSON | E111: 554184 | F111: BRIEY | G111: 4.8 | H111: 51% | I111: 30% | J111: 102 | K111: 52% | L111: 43% | M111: 126 | N111: 67% | O111: 45% | P111: 125 | Q111: 72% | R111: 49% | S111: 37 | T111: 72% | U111: 65% | V111: 181 | W111: 59% | X111: 53% | Y111: 70
A112: 30 | B112: VOSGES | C112: 57 | D112: EPINAL | E112: 588501 | F112: NEUFCHATEAU | G112: 5.0 | H112: 51% | I112: 30% | J112: 103 | K112: 37% | L112: 28% | M112: 48 | N112: 75% | O112: 54% | P112: 208 | Q112: 83% | R112: 60% | S112: 124 | T112: 72% | U112: 65% | V112: 178 | W112: 55% | X112: 49% | Y112: 45
A113: 30 | B113: AUBE HAUTE MARNE | C113: 21 | D113: CHAUMONT | E113: 451151 | F113: WASSY | G113: 1.9 | H113: 51% | I113: 30% | J113: 104 | K113: 68% | L113: 59% | M113: 202 | N113: 61% | O113: 40% | P113: 66 | Q113: 92% | R113: 70% | S113: 227 | T113: 49% | U113: 42% | V113: 37 | W113: 52% | X113: 46% | Y113: 24
A114: 30 | B114: MOSELLE | C114: 44 | D114: MOSELLE NORD | E114: 557660 | F114: UCKANGE | G114: 1.6 | H114: 51% | I114: 30% | J114: 105 | K114: 90% | L114: 80% | M114: 246 | N114: 69% | O114: 48% | P114: 146 | Q114: 78% | R114: 55% | S114: 81 | T114: 33% | U114: 26% | V114: 12 | W114: 53% | X114: 46% | Y114: 30
A115: 30 | B115: MEURTHE ET MOSELLE MEUSE | C115: 26 | D115: NANCY | E115: 554266 | F115: DOMBASLE SUR MEURTHE | G115: 3.7 | H115: 51% | I115: 30% | J115: 106 | K115: 61% | L115: 52% | M115: 173 | N115: 78% | O115: 56% | P115: 222 | Q115: 60% | R115: 37% | S115: 6 | T115: 72% | U115: 65% | V115: 179 | W115: 52% | X115: 45% | Y115: 22
A116: 30 | B116: HAUT-RHIN | C116: 5130 | D116: COLMAR | E116: 4144 | F116: RIBEAUVILLE | G116: 2.9 | H116: 51% | I116: 30% | J116: 107 | K116: 71% | L116: 62% | M116: 212 | N116: 56% | O116: 34% | P116: 34 | Q116: 79% | R116: 57% | S116: 92 | T116: 50% | U116: 43% | V116: 42 | W116: 67% | X116: 60% | Y116: 165
A117: 30 | B117: VOSGES | C117: 57 | D117: EPINAL | E117: 488281 | F117: ELOYES | G117: 4.8 | H117: 51% | I117: 30% | J117: 108 | K117: 36% | L117: 26% | M117: 43 | N117: 70% | O117: 49% | P117: 166 | Q117: 86% | R117: 64% | S117: 164 | T117: 67% | U117: 60% | V117: 140 | W117: 65% | X117: 59% | Y117: 141
A118: 30 | B118: BAS-RHIN | C118: 5060 | D118: HAGUENAU | E118: 4079 | F118: SOULTZ SOUS FORETS | G118: 1.8 | H118: 52% | I118: 30% | J118: 109 | K118: 49% | L118: 40% | M118: 108 | N118: 54% | O118: 32% | P118: 29 | Q118: 92% | R118: 69% | S118: 224 | T118: 69% | U118: 62% | V118: 156 | W118: 61% | X118: 55% | Y118: 95
A119: 30 | B119: MEURTHE ET MOSELLE MEUSE | C119: 27 | D119: PONT A MOUSSON | E119: 554533 | F119: PONT A MOUSSON BREUIL | G119: 2.7 | H119: 52% | I119: 30% | J119: 110 | K119: 73% | L119: 64% | M119: 217 | N119: 61% | O119: 40% | P119: 64 | Q119: 74% | R119: 52% | S119: 49 | T119: 60% | U119: 53% | V119: 91 | W119: 56% | X119: 50% | Y119: 49
A120: 30 | B120: MARNE-ARDENNES | C120: 11 | D120: REIMS | E120: 451370 | F120: EPERNAY | G120: 11.6 | H120: 52% | I120: 30% | J120: 111 | K120: 36% | L120: 27% | M120: 46 | N120: 67% | O120: 45% | P120: 124 | Q120: 88% | R120: 66% | S120: 190 | T120: 65% | U120: 59% | V120: 124 | W120: 68% | X120: 61% | Y120: 185
A121: 30 | B121: MEURTHE ET MOSELLE MEUSE | C121: 26 | D121: NANCY | E121: 554601 | F121: SAINT MAX | G121: 5.0 | H121: 52% | I121: 30% | J121: 112 | K121: 31% | L121: 21% | M121: 28 | N121: 76% | O121: 54% | P121: 213 | Q121: 80% | R121: 58% | S121: 105 | T121: 66% | U121: 59% | V121: 128 | W121: 72% | X121: 66% | Y121: 227
A122: 30 | B122: AUBE HAUTE MARNE | C122: 14 | D122: TROYES | E122: 510520 | F122: SAINT ANDRE LES VERGERS | G122: 4.6 | H122: 52% | I122: 30% | J122: 113 | K122: 45% | L122: 35% | M122: 91 | N122: 65% | O122: 44% | P122: 102 | Q122: 81% | R122: 59% | S122: 115 | T122: 77% | U122: 70% | V122: 216 | W122: 57% | X122: 51% | Y122: 57
A123: 30 | B123: VOSGES | C123: 57 | D123: EPINAL | E123: 588336 | F123: GOLBEY | G123: 3.3 | H123: 52% | I123: 30% | J123: 114 | K123: 41% | L123: 32% | M123: 67 | N123: 80% | O123: 58% | P123: 230 | Q123: 82% | R123: 59% | S123: 116 | T123: 66% | U123: 60% | V123: 133 | W123: 57% | X123: 50% | Y123: 52
A124: 30 | B124: MOSELLE | C124: 44 | D124: MOSELLE NORD | E124: 457158 | F124: YUTZ | G124: 4.7 | H124: 52% | I124: 30% | J124: 115 | K124: 54% | L124: 45% | M124: 136 | N124: 65% | O124: 43% | P124: 100 | Q124: 90% | R124: 67% | S124: 204 | T124: 53% | U124: 46% | V124: 53 | W124: 64% | X124: 57% | Y124: 122
A125: 30 | B125: VOSGES | C125: 55 | D125: SAINT DIE | E125: 588587 | F125: SAINT DIE CATHEDRALE | G125: 4.0 | H125: 52% | I125: 31% | J125: 116 | K125: 37% | L125: 28% | M125: 50 | N125: 75% | O125: 54% | P125: 210 | Q125: 75% | R125: 52% | S125: 50 | T125: 70% | U125: 63% | V125: 165 | W125: 70% | X125: 63% | Y125: 204
A126: 30 | B126: BAS-RHIN | C126: 5060 | D126: HAGUENAU | E126: 4071 | F126: WISSEMBOURG | G126: 8.4 | H126: 52% | I126: 31% | J126: 117 | K126: 50% | L126: 41% | M126: 117 | N126: 63% | O126: 41% | P126: 83 | Q126: 74% | R126: 52% | S126: 47 | T126: 68% | U126: 61% | V126: 146 | W126: 72% | X126: 65% | Y126: 222
A127: 30 | B127: MEURTHE ET MOSELLE MEUSE | C127: 27 | D127: PONT A MOUSSON | E127: 554506 | F127: CHALIGNY NEUVES MAISONS | G127: 4.0 | H127: 52% | I127: 31% | J127: 118 | K127: 56% | L127: 47% | M127: 146 | N127: 50% | O127: 29% | P127: 19 | Q127: 90% | R127: 67% | S127: 205 | T127: 75% | U127: 68% | V127: 206 | W127: 55% | X127: 49% | Y127: 43
A128: 30 | B128: BAS-RHIN | C128: 5060 | D128: HAGUENAU | E128: 4030 | F128: BRUMATH | G128: 5.4 | H128: 52% | I128: 31% | J128: 119 | K128: 45% | L128: 35% | M128: 92 | N128: 70% | O128: 48% | P128: 164 | Q128: 75% | R128: 52% | S128: 54 | T128: 76% | U128: 69% | V128: 214 | W128: 61% | X128: 55% | Y128: 96
A129: 30 | B129: AUBE HAUTE MARNE | C129: 14 | D129: TROYES | E129: 510523 | F129: LA CHAPELLE ST LUC | G129: 5.6 | H129: 52% | I129: 31% | J129: 120 | K129: 65% | L129: 55% | M129: 190 | N129: 63% | O129: 41% | P129: 77 | Q129: 82% | R129: 59% | S129: 117 | T129: 48% | U129: 41% | V129: 36 | W129: 70% | X129: 63% | Y129: 206
A130: 30 | B130: MEURTHE ET MOSELLE MEUSE | C130: 27 | D130: PONT A MOUSSON | E130: 554416 | F130: LUDRES | G130: 4.0 | H130: 52% | I130: 31% | J130: 121 | K130: 30% | L130: 21% | M130: 24 | N130: 73% | O130: 52% | P130: 190 | Q130: 87% | R130: 64% | S130: 174 | T130: 79% | U130: 72% | V130: 225 | W130: 58% | X130: 52% | Y130: 62
A131: 30 | B131: BAS-RHIN | C131: 5006 | D131: STRASBOURG | E131: 4024 | F131: STRASBOURG AUSTERLITZ | G131: 2.2 | H131: 52% | I131: 31% | J131: 122 | K131: 101% | L131: 91% | M131: 255 | N131: 41% | O131: 19% | P131: 8 | Q131: 68% | R131: 46% | S131: 20 | T131: 60% | U131: 54% | V131: 96 | W131: 58% | X131: 51% | Y131: 59
A132: 30 | B132: MOSELLE | C132: 42 | D132: MOSELLE EST | E132: 557305 | F132: FAULQUEMONT | G132: 2.1 | H132: 52% | I132: 31% | J132: 123 | K132: 69% | L132: 60% | M132: 206 | N132: 56% | O132: 35% | P132: 35 | Q132: 83% | R132: 61% | S132: 130 | T132: 53% | U132: 46% | V132: 52 | W132: 66% | X132: 60% | Y132: 151
A133: 30 | B133: MEURTHE ET MOSELLE MEUSE | C133: 31 | D133: VERDUN | E133: 455231 | F133: COMMERCY | G133: 4.7 | H133: 52% | I133: 31% | J133: 124 | K133: 57% | L133: 48% | M133: 150 | N133: 65% | O133: 44% | P133: 104 | Q133: 91% | R133: 68% | S133: 215 | T133: 59% | U133: 53% | V133: 87 | W133: 55% | X133: 49% | Y133: 44
A134: 30 | B134: MOSELLE | C134: 44 | D134: MOSELLE NORD | E134: 557347 | F134: GUENANGE | G134: 5.3 | H134: 52% | I134: 31% | J134: 125 | K134: 61% | L134: 51% | M134: 169 | N134: 68% | O134: 46% | P134: 134 | Q134: 77% | R134: 54% | S134: 72 | T134: 62% | U134: 55% | V134: 106 | W134: 61% | X134: 54% | Y134: 89
A135: 30 | B135: BAS-RHIN | C135: 5101 | D135: SELESTAT | E135: 4116 | F135: MOLSHEIM | G135: 5.1 | H135: 52% | I135: 31% | J135: 126 | K135: 64% | L135: 55% | M135: 184 | N135: 66% | O135: 44% | P135: 113 | Q135: 63% | R135: 40% | S135: 11 | T135: 71% | U135: 64% | V135: 172 | W135: 65% | X135: 58% | Y135: 136
A136: 30 | B136: MOSELLE | C136: 42 | D136: MOSELLE EST | E136: 457583 | F136: SAINT AVOLD | G136: 7.5 | H136: 52% | I136: 31% | J136: 127 | K136: 50% | L136: 41% | M136: 118 | N136: 73% | O136: 51% | P136: 189 | Q136: 78% | R136: 55% | S136: 83 | T136: 61% | U136: 55% | V136: 100 | W136: 66% | X136: 60% | Y136: 155
A137: 30 | B137: MEURTHE ET MOSELLE MEUSE | C137: 31 | D137: VERDUN | E137: 455151 | F137: BAR LE DUC | G137: 9.6 | H137: 53% | I137: 31% | J137: 128 | K137: 45% | L137: 36% | M137: 94 | N137: 67% | O137: 46% | P137: 127 | Q137: 87% | R137: 64% | S137: 169 | T137: 68% | U137: 62% | V137: 152 | W137: 62% | X137: 56% | Y137: 109
A138: 30 | B138: MEURTHE ET MOSELLE MEUSE | C138: 31 | D138: VERDUN | E138: 455566 | F138: REVIGNY SUR ORNAIN | G138: 3.8 | H138: 53% | I138: 31% | J138: 129 | K138: 30% | L138: 20% | M138: 21 | N138: 63% | O138: 42% | P138: 86 | Q138: 99% | R138: 76% | S138: 252 | T138: 71% | U138: 65% | V138: 176 | W138: 67% | X138: 60% | Y138: 163
A139: 30 | B139: VOSGES | C139: 57 | D139: EPINAL | E139: 488561 | F139: REMIREMONT | G139: 6.2 | H139: 53% | I139: 31% | J139: 130 | K139: 42% | L139: 33% | M139: 74 | N139: 75% | O139: 53% | P139: 200 | Q139: 83% | R139: 61% | S139: 129 | T139: 63% | U139: 57% | V139: 113 | W139: 67% | X139: 60% | Y139: 167
A140: 30 | B140: MEURTHE ET MOSELLE MEUSE | C140: 27 | D140: PONT A MOUSSON | E140: 554357 | F140: JOEUF | G140: 4.0 | H140: 53% | I140: 31% | J140: 131 | K140: 61% | L140: 52% | M140: 174 | N140: 68% | O140: 47% | P140: 140 | Q140: 94% | R140: 71% | S140: 239 | T140: 55% | U140: 48% | V140: 63 | W140: 53% | X140: 46% | Y140: 29
A141: 30 | B141: MARNE-ARDENNES | C141: 11 | D141: REIMS | E141: 451308 | F141: REIMS SAINT THOMAS | G141: 8.1 | H141: 53% | I141: 31% | J141: 132 | K141: 54% | L141: 45% | M141: 134 | N141: 73% | O141: 51% | P141: 188 | Q141: 80% | R141: 57% | S141: 103 | T141: 69% | U141: 63% | V141: 161 | W141: 55% | X141: 48% | Y141: 40
A142: 30 | B142: MOSELLE | C142: 45 | D142: METZ | E142: 457574 | F142: ROMBAS | G142: 3.5 | H142: 53% | I142: 32% | J142: 133 | K142: 62% | L142: 53% | M142: 175 | N142: 51% | O142: 30% | P142: 21 | Q142: 81% | R142: 59% | S142: 113 | T142: 65% | U142: 58% | V142: 119 | W142: 72% | X142: 66% | Y142: 228
A143: 30 | B143: BAS-RHIN | C143: 5006 | D143: STRASBOURG | E143: 4045 | F143: STRASBOURG FRANCS BOURGEOIS | G143: 4.7 | H143: 53% | I143: 32% | J143: 134 | K143: 68% | L143: 59% | M143: 203 | N143: 62% | O143: 40% | P143: 68 | Q143: 63% | R143: 41% | S143: 14 | T143: 73% | U143: 66% | V143: 194 | W143: 66% | X143: 60% | Y143: 152
A144: 110 | B144: AUBE HAUTE MARNE | C144: 21 | D144: CHAUMONT | E144: 451154 | F144: JOINVILLE | G144: 2.0 | H144: 53% | I144: 32% | J144: 135 | K144: 25% | L144: 15% | M144: 10 | N144: 80% | O144: 59% | P144: 235 | Q144: 101% | R144: 78% | S144: 255 | T144: 68% | U144: 61% | V144: 148 | W144: 60% | X144: 54% | Y144: 82
A145: 110 | B145: MOSELLE | C145: 45 | D145: METZ | E145: 557612 | F145: SAINTE MARIE AUX CHENES | G145: 3.6 | H145: 53% | I145: 32% | J145: 136 | K145: 36% | L145: 27% | M145: 45 | N145: 79% | O145: 57% | P145: 226 | Q145: 88% | R145: 66% | S145: 185 | T145: 62% | U145: 55% | V145: 102 | W145: 68% | X145: 62% | Y145: 190
A146: 110 | B146: MARNE-ARDENNES | C146: 6 | D146: CHALONS EN CHAMPAGNE | E146: 551354 | F146: VERTUS | G146: 2.5 | H146: 53% | I146: 32% | J146: 137 | K146: 28% | L146: 18% | M146: 17 | N146: 81% | O146: 59% | P146: 239 | Q146: 100% | R146: 77% | S146: 253 | T146: 59% | U146: 52% | V146: 85 | W146: 66% | X146: 60% | Y146: 157
A147: 110 | B147: MARNE-ARDENNES | C147: 2 | D147: CHARLEVILLE MEZIERES | E147: 408806 | F147: SEDAN | G147: 8.5 | H147: 53% | I147: 32% | J147: 138 | K147: 36% | L147: 26% | M147: 44 | N147: 75% | O147: 54% | P147: 205 | Q147: 86% | R147: 63% | S147: 160 | T147: 75% | U147: 69% | V147: 208 | W147: 62% | X147: 55% | Y147: 97
A148: 110 | B148: MARNE-ARDENNES | C148: 6 | D148: CHALONS EN CHAMPAGNE | E148: 551103 | F148: FAGNIERES LECLERC | G148: 3.0 | H148: 53% | I148: 32% | J148: 139 | K148: 40% | L148: 31% | M148: 58 | N148: 60% | O148: 39% | P148: 58 | Q148: 95% | R148: 73% | S148: 243 | T148: 74% | U148: 68% | V148: 199 | W148: 64% | X148: 57% | Y148: 126
A149: 110 | B149: MARNE-ARDENNES | C149: 6 | D149: CHALONS EN CHAMPAGNE | E149: 551128 | F149: SAINTE MENEHOULD | G149: 3.4 | H149: 53% | I149: 32% | J149: 140 | K149: 51% | L149: 41% | M149: 120 | N149: 66% | O149: 44% | P149: 114 | Q149: 79% | R149: 57% | S149: 99 | T149: 64% | U149: 57% | V149: 116 | W149: 73% | X149: 67% | Y149: 240
A150: 110 | B150: MEURTHE ET MOSELLE MEUSE | C150: 26 | D150: NANCY | E150: 554116 | F150: BACCARAT | G150: 2.0 | H150: 53% | I150: 32% | J150: 141 | K150: 45% | L150: 36% | M150: 93 | N150: 79% | O150: 57% | P150: 227 | Q150: 83% | R150: 60% | S150: 127 | T150: 73% | U150: 67% | V150: 195 | W150: 54% | X150: 47% | Y150: 35
A151: 110 | B151: HAUT-RHIN | C151: 5130 | D151: COLMAR | E151: 4153 | F151: ROUFFACH | G151: 3.7 | H151: 54% | I151: 32% | J151: 142 | K151: 60% | L151: 51% | M151: 166 | N151: 71% | O151: 49% | P151: 171 | Q151: 91% | R151: 69% | S151: 219 | T151: 44% | U151: 37% | V151: 29 | W151: 68% | X151: 61% | Y151: 186
A152: 110 | B152: AUBE HAUTE MARNE | C152: 14 | D152: TROYES | E152: 510570 | F152: NOGENT SUR SEINE | G152: 4.1 | H152: 54% | I152: 32% | J152: 143 | K152: 27% | L152: 17% | M152: 14 | N152: 75% | O152: 54% | P152: 211 | Q152: 89% | R152: 66% | S152: 194 | T152: 83% | U152: 76% | V152: 240 | W152: 61% | X152: 54% | Y152: 88
A153: 110 | B153: HAUT-RHIN | C153: 5169 | D153: MULHOUSE | E153: 4181 | F153: WITTELSHEIM | G153: 3.1 | H153: 54% | I153: 32% | J153: 144 | K153: 63% | L153: 54% | M153: 180 | N153: 79% | O153: 58% | P153: 229 | Q153: 81% | R153: 58% | S153: 111 | T153: 65% | U153: 59% | V153: 125 | W153: 48% | X153: 41% | Y153: 11
A154: 110 | B154: MARNE-ARDENNES | C154: 6 | D154: CHALONS EN CHAMPAGNE | E154: 451381 | F154: SEZANNE | G154: 6.4 | H154: 54% | I154: 33% | J154: 145 | K154: 42% | L154: 32% | M154: 73 | N154: 66% | O154: 44% | P154: 109 | Q154: 89% | R154: 67% | S154: 195 | T154: 74% | U154: 67% | V154: 198 | W154: 66% | X154: 60% | Y154: 150
A155: 110 | B155: MOSELLE | C155: 44 | D155: MOSELLE NORD | E155: 557352 | F155: HETTANGE GRANDE | G155: 4.2 | H155: 54% | I155: 33% | J155: 146 | K155: 93% | L155: 84% | M155: 249 | N155: 45% | O155: 24% | P155: 12 | Q155: 87% | R155: 64% | S155: 171 | T155: 51% | U155: 44% | V155: 45 | W155: 62% | X155: 55% | Y155: 99
A156: 110 | B156: MEURTHE ET MOSELLE MEUSE | C156: 27 | D156: PONT A MOUSSON | E156: 554381 | F156: LAXOU ARISTIDE BRIAND | G156: 4.6 | H156: 54% | I156: 33% | J156: 147 | K156: 49% | L156: 40% | M156: 110 | N156: 65% | O156: 43% | P156: 101 | Q156: 84% | R156: 62% | S156: 140 | T156: 69% | U156: 62% | V156: 154 | W156: 70% | X156: 64% | Y156: 208
A157: 110 | B157: BAS-RHIN | C157: 5006 | D157: STRASBOURG | E157: 4027 | F157: SCHILTIGHEIM CENTRE | G157: 4.0 | H157: 54% | I157: 33% | J157: 148 | K157: 63% | L157: 53% | M157: 179 | N157: 64% | O157: 42% | P157: 88 | Q157: 70% | R157: 47% | S157: 26 | T157: 80% | U157: 73% | V157: 227 | W157: 63% | X157: 56% | Y157: 111
A158: 110 | B158: MARNE-ARDENNES | C158: 11 | D158: REIMS | E158: 551369 | F158: DAMERY | G158: 3.0 | H158: 54% | I158: 33% | J158: 149 | K158: 53% | L158: 43% | M158: 129 | N158: 80% | O158: 59% | P158: 237 | Q158: 86% | R158: 64% | S158: 166 | T158: 54% | U158: 48% | V158: 60 | W158: 65% | X158: 59% | Y158: 138
A159: 110 | B159: MEURTHE ET MOSELLE MEUSE | C159: 26 | D159: NANCY | E159: 554486 | F159: NANCY POINT CENTRAL | G159: 4.8 | H159: 54% | I159: 33% | J159: 150 | K159: 54% | L159: 45% | M159: 137 | N159: 69% | O159: 48% | P159: 154 | Q159: 82% | R159: 59% | S159: 119 | T159: 73% | U159: 66% | V159: 190 | W159: 61% | X159: 54% | Y159: 85
A160: 110 | B160: BAS-RHIN | C160: 5006 | D160: STRASBOURG | E160: 4020 | F160: STRASBOURG ROBERTSAU | G160: 5.6 | H160: 55% | I160: 33% | J160: 151 | K160: 65% | L160: 55% | M160: 188 | N160: 65% | O160: 44% | P160: 103 | Q160: 78% | R160: 56% | S160: 85 | T160: 72% | U160: 65% | V160: 177 | W160: 60% | X160: 53% | Y160: 76
A161: 110 | B161: BAS-RHIN | C161: 5060 | D161: HAGUENAU | E161: 4085 | F161: INGWILLER | G161: 3.3 | H161: 55% | I161: 33% | J161: 152 | K161: 69% | L161: 60% | M161: 208 | N161: 51% | O161: 29% | P161: 20 | Q161: 86% | R161: 64% | S161: 168 | T161: 71% | U161: 64% | V161: 173 | W161: 62% | X161: 56% | Y161: 104
A162: 110 | B162: MEURTHE ET MOSELLE MEUSE | C162: 27 | D162: PONT A MOUSSON | E162: 454696 | F162: VILLERS GENERAL LECLERC | G162: 6.2 | H162: 55% | I162: 33% | J162: 153 | K162: 39% | L162: 30% | M162: 56 | N162: 78% | O162: 57% | P162: 223 | Q162: 80% | R162: 57% | S162: 104 | T162: 70% | U162: 63% | V162: 167 | W162: 72% | X162: 66% | Y162: 225
A163: 110 | B163: HAUT-RHIN | C163: 5130 | D163: COLMAR | E163: 4141 | F163: HORBOURG WIHR | G163: 5.8 | H163: 55% | I163: 33% | J163: 154 | K163: 54% | L163: 45% | M163: 131 | N163: 80% | O163: 58% | P163: 231 | Q163: 73% | R163: 51% | S163: 45 | T163: 67% | U163: 61% | V163: 141 | W163: 65% | X163: 59% | Y163: 143
A164: 110 | B164: MEURTHE ET MOSELLE MEUSE | C164: 26 | D164: NANCY | E164: 454671 | F164: VANDOEUVRE LES NANCY | G164: 4.7 | H164: 55% | I164: 33% | J164: 155 | K164: 66% | L164: 56% | M164: 195 | N164: 62% | O164: 40% | P164: 70 | Q164: 93% | R164: 70% | S164: 235 | T164: 67% | U164: 60% | V164: 136 | W164: 52% | X164: 46% | Y164: 25
A165: 110 | B165: MARNE-ARDENNES | C165: 2 | D165: CHARLEVILLE MEZIERES | E165: 508819 | F165: MOUZON | G165: 2.0 | H165: 55% | I165: 33% | J165: 156 | K165: 57% | L165: 48% | M165: 149 | N165: 85% | O165: 64% | P165: 251 | Q165: 79% | R165: 57% | S165: 98 | T165: 66% | U165: 60% | V165: 132 | W165: 52% | X165: 45% | Y165: 21
A166: 110 | B166: AUBE HAUTE MARNE | C166: 14 | D166: TROYES | E166: 510530 | F166: ARCIS SUR AUBE | G166: 4.0 | H166: 55% | I166: 33% | J166: 157 | K166: 35% | L166: 25% | M166: 41 | N166: 75% | O166: 53% | P166: 199 | Q166: 90% | R166: 67% | S166: 198 | T166: 68% | U166: 62% | V166: 151 | W166: 73% | X166: 66% | Y166: 232
A167: 110 | B167: MOSELLE | C167: 42 | D167: MOSELLE EST | E167: 557668 | F167: VALMONT | G167: 4.6 | H167: 55% | I167: 33% | J167: 158 | K167: 29% | L167: 20% | M167: 20 | N167: 77% | O167: 56% | P167: 217 | Q167: 87% | R167: 64% | S167: 172 | T167: 74% | U167: 68% | V167: 201 | W167: 72% | X167: 66% | Y167: 230
A168: 110 | B168: MOSELLE | C168: 42 | D168: MOSELLE EST | E168: 457435 | F168: MERLEBACH | G168: 3.7 | H168: 55% | I168: 33% | J168: 159 | K168: 58% | L168: 48% | M168: 151 | N168: 60% | O168: 39% | P168: 57 | Q168: 90% | R168: 67% | S168: 202 | T168: 64% | U168: 58% | V168: 118 | W168: 68% | X168: 61% | Y168: 184
A169: 110 | B169: MARNE-ARDENNES | C169: 6 | D169: CHALONS EN CHAMPAGNE | E169: 451166 | F169: VITRY LE FRANCOIS | G169: 7.2 | H169: 55% | I169: 33% | J169: 160 | K169: 45% | L169: 36% | M169: 96 | N169: 69% | O169: 48% | P169: 147 | Q169: 88% | R169: 65% | S169: 182 | T169: 75% | U169: 69% | V169: 207 | W169: 62% | X169: 56% | Y169: 108
A170: 110 | B170: MEURTHE ET MOSELLE MEUSE | C170: 27 | D170: PONT A MOUSSON | E170: 554257 | F170: DIEULOUARD | G170: 3.5 | H170: 55% | I170: 33% | J170: 161 | K170: 45% | L170: 35% | M170: 90 | N170: 68% | O170: 46% | P170: 132 | Q170: 93% | R170: 71% | S170: 238 | T170: 68% | U170: 61% | V170: 147 | W170: 66% | X170: 60% | Y170: 153
A171: 110 | B171: MEURTHE ET MOSELLE MEUSE | C171: 31 | D171: VERDUN | E171: 554700 | F171: VILLERUPT | G171: 2.8 | H171: 55% | I171: 33% | J171: 162 | K171: 49% | L171: 40% | M171: 106 | N171: 64% | O171: 42% | P171: 91 | Q171: 82% | R171: 60% | S171: 121 | T171: 81% | U171: 74% | V171: 235 | W171: 64% | X171: 58% | Y171: 131
A172: 110 | B172: BAS-RHIN | C172: 5006 | D172: STRASBOURG | E172: 4054 | F172: STRASBOURG MONTAGNE VERTE | G172: 2.6 | H172: 55% | I172: 33% | J172: 163 | K172: 96% | L172: 87% | M172: 252 | N172: 64% | O172: 43% | P172: 96 | Q172: 96% | R172: 74% | S172: 246 | T172: 24% | U172: 17% | V172: 5 | W172: 60% | X172: 53% | Y172: 79
A173: 110 | B173: MOSELLE | C173: 45 | D173: METZ | E173: 557439 | F173: METZ POMPIDOU | G173: 3.9 | H173: 55% | I173: 33% | J173: 164 | K173: 54% | L173: 45% | M173: 133 | N173: 70% | O173: 48% | P173: 163 | Q173: 78% | R173: 55% | S173: 80 | T173: 72% | U173: 65% | V173: 182 | W173: 67% | X173: 61% | Y173: 168
A174: 110 | B174: MOSELLE | C174: 44 | D174: MOSELLE NORD | E174: 457632 | F174: THIONVILLE CENTRALE | G174: 11.8 | H174: 55% | I174: 33% | J174: 165 | K174: 59% | L174: 49% | M174: 159 | N174: 69% | O174: 48% | P174: 148 | Q174: 86% | R174: 63% | S174: 157 | T174: 60% | U174: 53% | V174: 88 | W174: 68% | X174: 61% | Y174: 181
A175: 110 | B175: MOSELLE | C175: 44 | D175: MOSELLE NORD | E175: 457350 | F175: HAYANGE | G175: 8.4 | H175: 55% | I175: 33% | J175: 166 | K175: 45% | L175: 35% | M175: 88 | N175: 61% | O175: 40% | P175: 65 | Q175: 101% | R175: 79% | S175: 257 | T175: 65% | U175: 58% | V175: 120 | W175: 70% | X175: 63% | Y175: 202
A176: 110 | B176: HAUT-RHIN | C176: 5130 | D176: COLMAR | E176: 4157 | F176: NEUF BRISACH | G176: 3.8 | H176: 55% | I176: 34% | J176: 167 | K176: 78% | L176: 69% | M176: 234 | N176: 70% | O176: 49% | P176: 167 | Q176: 80% | R176: 57% | S176: 101 | T176: 50% | U176: 43% | V176: 41 | W176: 64% | X176: 58% | Y176: 129
A177: 110 | B177: AUBE HAUTE MARNE | C177: 21 | D177: CHAUMONT | E177: 410541 | F177: LANGRES | G177: 6.7 | H177: 55% | I177: 34% | J177: 168 | K177: 50% | L177: 40% | M177: 114 | N177: 74% | O177: 52% | P177: 193 | Q177: 92% | R177: 70% | S177: 228 | T177: 63% | U177: 57% | V177: 112 | W177: 65% | X177: 58% | Y177: 134
A178: 110 | B178: MOSELLE | C178: 45 | D178: METZ | E178: 557559 | F178: REMILLY | G178: 4.1 | H178: 55% | I178: 34% | J178: 169 | K178: 79% | L178: 70% | M178: 237 | N178: 64% | O178: 42% | P178: 93 | Q178: 88% | R178: 66% | S178: 184 | T178: 49% | U178: 43% | V178: 40 | W178: 64% | X178: 57% | Y178: 121
A179: 110 | B179: MOSELLE | C179: 45 | D179: METZ | E179: 457446 | F179: METZ SAINT LOUIS | G179: 7.2 | H179: 56% | I179: 34% | J179: 170 | K179: 59% | L179: 49% | M179: 157 | N179: 75% | O179: 54% | P179: 209 | Q179: 71% | R179: 48% | S179: 31 | T179: 71% | U179: 64% | V179: 175 | W179: 69% | X179: 62% | Y179: 193
A180: 110 | B180: MEURTHE ET MOSELLE MEUSE | C180: 27 | D180: PONT A MOUSSON | E180: 454355 | F180: JARNY | G180: 4.5 | H180: 56% | I180: 34% | J180: 171 | K180: 60% | L180: 50% | M180: 163 | N180: 65% | O180: 43% | P180: 99 | Q180: 87% | R180: 65% | S180: 176 | T180: 67% | U180: 60% | V180: 137 | W180: 66% | X180: 60% | Y180: 158
A181: 110 | B181: MEURTHE ET MOSELLE MEUSE | C181: 27 | D181: PONT A MOUSSON | E181: 554196 | F181: CHAMPIGNEULLES | G181: 3.4 | H181: 56% | I181: 34% | J181: 172 | K181: 61% | L181: 52% | M181: 172 | N181: 72% | O181: 50% | P181: 179 | Q181: 85% | R181: 63% | S181: 153 | T181: 59% | U181: 53% | V181: 86 | W181: 67% | X181: 61% | Y181: 178
A182: 110 | B182: VOSGES | C182: 55 | D182: SAINT DIE | E182: 488556 | F182: RAON L ETAPE | G182: 2.5 | H182: 56% | I182: 34% | J182: 173 | K182: 53% | L182: 44% | M182: 130 | N182: 66% | O182: 44% | P182: 108 | Q182: 96% | R182: 73% | S182: 245 | T182: 72% | U182: 65% | V182: 183 | W182: 60% | X182: 53% | Y182: 77
A183: 110 | B183: BAS-RHIN | C183: 5101 | D183: SELESTAT | E183: 4101 | F183: SELESTAT CENTRE | G183: 8.2 | H183: 56% | I183: 35% | J183: 174 | K183: 73% | L183: 64% | M183: 219 | N183: 59% | O183: 38% | P183: 49 | Q183: 81% | R183: 59% | S183: 114 | T183: 68% | U183: 61% | V183: 149 | W183: 65% | X183: 59% | Y183: 139
A184: 110 | B184: VOSGES | C184: 57 | D184: EPINAL | E184: 488291 | F184: EPINAL AVRINSART | G184: 1.8 | H184: 56% | I184: 35% | J184: 175 | K184: 55% | L184: 45% | M184: 138 | N184: 92% | O184: 71% | P184: 261 | Q184: 93% | R184: 71% | S184: 237 | T184: 51% | U184: 44% | V184: 43 | W184: 56% | X184: 50% | Y184: 48
A185: 110 | B185: MARNE-ARDENNES | C185: 2 | D185: CHARLEVILLE MEZIERES | E185: 508817 | F185: CHARLEVILLE MOHON | G185: 3.3 | H185: 56% | I185: 35% | J185: 176 | K185: 42% | L185: 33% | M185: 75 | N185: 76% | O185: 55% | P185: 214 | Q185: 92% | R185: 70% | S185: 226 | T185: 70% | U185: 63% | V185: 168 | W185: 67% | X185: 60% | Y185: 162
A186: 110 | B186: MEURTHE ET MOSELLE MEUSE | C186: 31 | D186: VERDUN | E186: 455678 | F186: VERDUN CENTRALE | G186: 11.3 | H186: 56% | I186: 35% | J186: 177 | K186: 44% | L186: 34% | M186: 84 | N186: 71% | O186: 49% | P186: 168 | Q186: 92% | R186: 70% | S186: 231 | T186: 81% | U186: 74% | V186: 234 | W186: 61% | X186: 54% | Y186: 86
A187: 110 | B187: BAS-RHIN | C187: 5006 | D187: STRASBOURG | E187: 4023 | F187: STRASBOURG VOSGES | G187: 3.3 | H187: 56% | I187: 35% | J187: 178 | K187: 107% | L187: 98% | M187: 258 | N187: 52% | O187: 31% | P187: 24 | Q187: 56% | R187: 34% | S187: 5 | T187: 69% | U187: 63% | V187: 162 | W187: 63% | X187: 57% | Y187: 115
A188: 110 | B188: HAUT-RHIN | C188: 5169 | D188: MULHOUSE | E188: 4195 | F188: CERNAY | G188: 2.5 | H188: 56% | I188: 35% | J188: 179 | K188: 68% | L188: 59% | M188: 201 | N188: 69% | O188: 48% | P188: 153 | Q188: 77% | R188: 55% | S188: 73 | T188: 70% | U188: 64% | V188: 171 | W188: 63% | X188: 57% | Y188: 117
A189: 110 | B189: AUBE HAUTE MARNE | C189: 14 | D189: TROYES | E189: 410510 | F189: TROYES GAMBETTA | G189: 10.6 | H189: 56% | I189: 35% | J189: 180 | K189: 34% | L189: 25% | M189: 39 | N189: 69% | O189: 48% | P189: 149 | Q189: 95% | R189: 72% | S189: 241 | T189: 80% | U189: 73% | V189: 229 | W189: 70% | X189: 64% | Y189: 214
A190: 110 | B190: MOSELLE | C190: 45 | D190: METZ | E190: 557434 | F190: MARLY | G190: 4.0 | H190: 56% | I190: 35% | J190: 181 | K190: 46% | L190: 37% | M190: 97 | N190: 60% | O190: 39% | P190: 59 | Q190: 85% | R190: 63% | S190: 152 | T190: 84% | U190: 78% | V190: 247 | W190: 73% | X190: 66% | Y190: 233
A191: 110 | B191: MOSELLE | C191: 42 | D191: MOSELLE EST | E191: 457258 | F191: DIEUZE | G191: 3.1 | H191: 57% | I191: 35% | J191: 182 | K191: 58% | L191: 49% | M191: 156 | N191: 67% | O191: 46% | P191: 128 | Q191: 86% | R191: 64% | S191: 167 | T191: 66% | U191: 59% | V191: 127 | W191: 71% | X191: 65% | Y191: 218
A192: 160 | B192: BAS-RHIN | C192: 5101 | D192: SELESTAT | E192: 4111 | F192: BENFELD | G192: 4.4 | H192: 57% | I192: 35% | J192: 183 | K192: 50% | L192: 41% | M192: 119 | N192: 69% | O192: 48% | P192: 151 | Q192: 84% | R192: 62% | S192: 139 | T192: 72% | U192: 65% | V192: 185 | W192: 74% | X192: 67% | Y192: 241
A193: 160 | B193: AUBE HAUTE MARNE | C193: 14 | D193: TROYES | E193: 510522 | F193: TROYES CHARTREUX | G193: 3.0 | H193: 57% | I193: 35% | J193: 184 | K193: 43% | L193: 34% | M193: 78 | N193: 75% | O193: 53% | P193: 198 | Q193: 88% | R193: 65% | S193: 183 | T193: 72% | U193: 66% | V193: 188 | W193: 72% | X193: 65% | Y193: 224
A194: 160 | B194: MOSELLE | C194: 45 | D194: METZ | E194: 557432 | F194: MAIZIERES LES METZ | G194: 3.8 | H194: 57% | I194: 35% | J194: 185 | K194: 39% | L194: 30% | M194: 55 | N194: 77% | O194: 56% | P194: 220 | Q194: 84% | R194: 61% | S194: 131 | T194: 77% | U194: 70% | V194: 221 | W194: 73% | X194: 66% | Y194: 237
A195: 160 | B195: AUBE HAUTE MARNE | C195: 14 | D195: TROYES | E195: 410521 | F195: SAINTE SAVINE | G195: 5.0 | H195: 57% | I195: 35% | J195: 186 | K195: 34% | L195: 25% | M195: 38 | N195: 82% | O195: 61% | P195: 246 | Q195: 80% | R195: 58% | S195: 107 | T195: 80% | U195: 74% | V195: 232 | W195: 73% | X195: 66% | Y195: 236
A196: 160 | B196: AUBE HAUTE MARNE | C196: 14 | D196: TROYES | E196: 410524 | F196: SAINT JULIEN LES VILLAS | G196: 3.7 | H196: 57% | I196: 35% | J196: 187 | K196: 59% | L196: 50% | M196: 161 | N196: 63% | O196: 41% | P196: 78 | Q196: 87% | R196: 65% | S196: 175 | T196: 81% | U196: 74% | V196: 233 | W196: 60% | X196: 54% | Y196: 84
A197: 160 | B197: MARNE-ARDENNES | C197: 2 | D197: CHARLEVILLE MEZIERES | E197: 408840 | F197: RETHEL | G197: 4.9 | H197: 57% | I197: 35% | J197: 188 | K197: 32% | L197: 22% | M197: 31 | N197: 72% | O197: 50% | P197: 178 | Q197: 90% | R197: 68% | S197: 208 | T197: 84% | U197: 77% | V197: 245 | W197: 73% | X197: 66% | Y197: 238
A198: 160 | B198: MOSELLE | C198: 44 | D198: MOSELLE NORD | E198: 457192 | F198: CATTENOM | G198: 2.9 | H198: 57% | I198: 35% | J198: 189 | K198: 75% | L198: 66% | M198: 224 | N198: 68% | O198: 46% | P198: 131 | Q198: 75% | R198: 52% | S198: 59 | T198: 68% | U198: 61% | V198: 145 | W198: 65% | X198: 59% | Y198: 142
A199: 160 | B199: HAUT-RHIN | C199: 5130 | D199: COLMAR | E199: 4135 | F199: COLMAR SAINTE MARIE | G199: 6.6 | H199: 57% | I199: 35% | J199: 190 | K199: 60% | L199: 51% | M199: 167 | N199: 69% | O199: 47% | P199: 142 | Q199: 87% | R199: 64% | S199: 173 | T199: 65% | U199: 58% | V199: 121 | W199: 70% | X199: 64% | Y199: 209
A200: 160 | B200: VOSGES | C200: 55 | D200: SAINT DIE | E200: 588551 | F200: RAMBERVILLERS | G200: 3.7 | H200: 57% | I200: 35% | J200: 191 | K200: 30% | L200: 21% | M200: 23 | N200: 88% | O200: 67% | P200: 254 | Q200: 92% | R200: 69% | S200: 223 | T200: 74% | U200: 68% | V200: 200 | W200: 67% | X200: 61% | Y200: 173
A201: 160 | B201: HAUT-RHIN | C201: 5130 | D201: COLMAR | E201: 4143 | F201: MUNSTER | G201: 5.3 | H201: 57% | I201: 36% | J201: 192 | K201: 49% | L201: 39% | M201: 105 | N201: 70% | O201: 48% | P201: 159 | Q201: 92% | R201: 70% | S201: 229 | T201: 69% | U201: 62% | V201: 158 | W201: 72% | X201: 65% | Y201: 221
A202: 160 | B202: MOSELLE | C202: 44 | D202: MOSELLE NORD | E202: 557307 | F202: FONTOY | G202: 2.1 | H202: 57% | I202: 36% | J202: 193 | K202: 60% | L202: 51% | M202: 164 | N202: 75% | O202: 54% | P202: 206 | Q202: 72% | R202: 50% | S202: 41 | T202: 78% | U202: 71% | V202: 222 | W202: 67% | X202: 61% | Y202: 180
A203: 160 | B203: MOSELLE | C203: 42 | D203: MOSELLE EST | E203: 557523 | F203: PHALSBOURG | G203: 2.3 | H203: 57% | I203: 36% | J203: 194 | K203: 52% | L203: 43% | M203: 128 | N203: 89% | O203: 67% | P203: 257 | Q203: 72% | R203: 49% | S203: 36 | T203: 73% | U203: 67% | V203: 196 | W203: 66% | X203: 60% | Y203: 159
... 71 more rows

Sheet AG_BANCA
B1: Accueil | H1: BAROMETRE BDD - AGENCES
H2: BANCARISATION
H3: =ACCUEIL!F7 -> 2021-04-11
H7: Ventes Nettes produits pondérés | L7: Ventes sur client non détenteur de l’univers | P7: Mobilité Macron | T7: Remises commerciales | X7: Total Bancarisation
H8: =DATEMAJ!C8 -> au 11/04 | J8: coef | K8: ='RECAP DIRCOM'!AA4 -> 10% | L8: =DATEMAJ!C9 -> au 11/04 | N8: coef | O8: ='RECAP DIRCOM'!AE4 -> 4% | P8: =DATEMAJ!C10 -> au 11/04 | R8: coef | S8: ='RECAP DIRCOM'!AI4 -> 3% | T8: =DATEMAJ!C11 -> au 28/02 | V8: coef | W8: ='RECAP DIRCOM'!AM4 -> 3% | Y8: coef | Z8: ='RECAP DIRCOM'!$AP$4 -> 20%
B9: Direction | C9: eds | D9: Territoire | E9: eds | F9: Agence | G9: ="ETP perf "&DATEMAJ!$C$28 -> ETP perf 28-févr | H9: VN | I9: VN / ETP | J9: % Ecart au 1er | K9: Rang | L9: VB | M9: VB / ETP | N9: % Ecart au 1er | O9: Rang | P9: Nb | Q9: Nb / ETP | R9: % Ecart au 1er | S9: Rang | T9: Montant | U9: Montant / ETP | V9: % Ecart au 1er | W9: Rang | X9: Moyenne ecart au 1er | Y9: % Ecart au 1er | Z9: Rang CEGEE
A10: 50 | B10: AUBE HAUTE MARNE | C10: 21 | D10: CHAUMONT | E10: 410560 | F10: BOURBONNE LES BAINS | G10: =VLOOKUP($E10,'RECAP AG'!$G$6:$DC$270,3,FALSE) -> 2.0 | H10: =VLOOKUP($E10,'RECAP AG'!$G$6:$DC$270,18,FALSE) -> 35.9 | I10: =VLOOKUP($E10,'RECAP AG'!$G$6:$DC$270,19,FALSE) -> 17.95 | J10: =VLOOKUP($E10,'RECAP AG'!$G$6:$DC$270,20,FALSE) -> 77% | K10: =VLOOKUP($E10,'RECAP AG'!$G$6:$DC$270,21,FALSE) -> 167 | L10: =VLOOKUP($E10,'RECAP AG'!$G$6:$DC$270,22,FALSE) -> 18 | M10: =VLOOKUP($E10,'RECAP AG'!$G$6:$DC$270,23,FALSE) -> 9.00 | N10: =VLOOKUP($E10,'RECAP AG'!$G$6:$DC$270,24,FALSE) -> 76% | O10: =VLOOKUP($E10,'RECAP AG'!$G$6:$DC$270,25,FALSE) -> 251 | P10: =VLOOKUP($E10,'RECAP AG'!$G$6:$DC$270,26,FALSE) -> 2 | Q10: =VLOOKUP($E10,'RECAP AG'!$G$6:$DC$270,27,FALSE) -> 1.00 | R10: =VLOOKUP($E10,'RECAP AG'!$G$6:$DC$270,28,FALSE) -> 95% | S10: =VLOOKUP($E10,'RECAP AG'!$G$6:$DC$270,29,FALSE) -> 227 | T10: =VLOOKUP($E10,'RECAP AG'!$G$6:$DC$270,30,FALSE) -> -0.97 | U10: =VLOOKUP($E10,'RECAP AG'!$G$6:$DC$270,31,FALSE) -> -0.49 | V10: =VLOOKUP($E10,'RECAP AG'!$G$6:$DC$270,32,FALSE) -> 29% | W10: =VLOOKUP($E10,'RECAP AG'!$G$6:$DC$270,33,FALSE) -> 51 | X10: =VLOOKUP($E10,'RECAP AG'!$G$6:$DC$270,34,FALSE) -> 73% | Y10: =VLOOKUP($E10,'RECAP AG'!$G$6:$DC$270,35,FALSE) -> 51% | Z10: =VLOOKUP($E10,'RECAP AG'!$G$6:$DC$270,36,FALSE) -> 185
A11: 50 | B11: AUBE HAUTE MARNE | C11: 21 | D11: CHAUMONT | E11: 410566 | F11: CHAUMONT HOTEL DE VILLE | G11: =VLOOKUP($E11,'RECAP AG'!$G$6:$DC$270,3,FALSE) -> 7.4 | H11: =VLOOKUP($E11,'RECAP AG'!$G$6:$DC$270,18,FALSE) -> 149.7 | I11: =VLOOKUP($E11,'RECAP AG'!$G$6:$DC$270,19,FALSE) -> 20.33 | J11: =VLOOKUP($E11,'RECAP AG'!$G$6:$DC$270,20,FALSE) -> 74% | K11: =VLOOKUP($E11,'RECAP AG'!$G$6:$DC$270,21,FALSE) -> 149 | L11: =VLOOKUP($E11,'RECAP AG'!$G$6:$DC$270,22,FALSE) -> 136 | M11: =VLOOKUP($E11,'RECAP AG'!$G$6:$DC$270,23,FALSE) -> 18.47 | N11: =VLOOKUP($E11,'RECAP AG'!$G$6:$DC$270,24,FALSE) -> 51% | O11: =VLOOKUP($E11,'RECAP AG'!$G$6:$DC$270,25,FALSE) -> 66 | P11: =VLOOKUP($E11,'RECAP AG'!$G$6:$DC$270,26,FALSE) -> 21 | Q11: =VLOOKUP($E11,'RECAP AG'!$G$6:$DC$270,27,FALSE) -> 2.85 | R11: =VLOOKUP($E11,'RECAP AG'!$G$6:$DC$270,28,FALSE) -> 85% | S11: =VLOOKUP($E11,'RECAP AG'!$G$6:$DC$270,29,FALSE) -> 109 | T11: =VLOOKUP($E11,'RECAP AG'!$G$6:$DC$270,30,FALSE) -> -6.28 | U11: =VLOOKUP($E11,'RECAP AG'!$G$6:$DC$270,31,FALSE) -> -0.85 | V11: =VLOOKUP($E11,'RECAP AG'!$G$6:$DC$270,32,FALSE) -> 61% | W11: =VLOOKUP($E11,'RECAP AG'!$G$6:$DC$270,33,FALSE) -> 172 | X11: =VLOOKUP($E11,'RECAP AG'!$G$6:$DC$270,34,FALSE) -> 70% | Y11: =VLOOKUP($E11,'RECAP AG'!$G$6:$DC$270,35,FALSE) -> 48% | Z11: =VLOOKUP($E11,'RECAP AG'!$G$6:$DC$270,36,FALSE) -> 157
A12: 50 | B12: AUBE HAUTE MARNE | C12: 21 | D12: CHAUMONT | E12: 510590 | F12: CHAUMONT REPUBLIQUE | G12: =VLOOKUP($E12,'RECAP AG'!$G$6:$DC$270,3,FALSE) -> 4.2 | H12: =VLOOKUP($E12,'RECAP AG'!$G$6:$DC$270,18,FALSE) -> 59.6 | I12: =VLOOKUP($E12,'RECAP AG'!$G$6:$DC$270,19,FALSE) -> 14.33 | J12: =VLOOKUP($E12,'RECAP AG'!$G$6:$DC$270,20,FALSE) -> 82% | K12: =VLOOKUP($E12,'RECAP AG'!$G$6:$DC$270,21,FALSE) -> 196 | L12: =VLOOKUP($E12,'RECAP AG'!$G$6:$DC$270,22,FALSE) -> 85 | M12: =VLOOKUP($E12,'RECAP AG'!$G$6:$DC$270,23,FALSE) -> 20.44 | N12: =VLOOKUP($E12,'RECAP AG'!$G$6:$DC$270,24,FALSE) -> 46% | O12: =VLOOKUP($E12,'RECAP AG'!$G$6:$DC$270,25,FALSE) -> 46 | P12: =VLOOKUP($E12,'RECAP AG'!$G$6:$DC$270,26,FALSE) -> 11 | Q12: =VLOOKUP($E12,'RECAP AG'!$G$6:$DC$270,27,FALSE) -> 2.65 | R12: =VLOOKUP($E12,'RECAP AG'!$G$6:$DC$270,28,FALSE) -> 86% | S12: =VLOOKUP($E12,'RECAP AG'!$G$6:$DC$270,29,FALSE) -> 122 | T12: =VLOOKUP($E12,'RECAP AG'!$G$6:$DC$270,30,FALSE) -> -1.70 | U12: =VLOOKUP($E12,'RECAP AG'!$G$6:$DC$270,31,FALSE) -> -0.41 | V12: =VLOOKUP($E12,'RECAP AG'!$G$6:$DC$270,32,FALSE) -> 22% | W12: =VLOOKUP($E12,'RECAP AG'!$G$6:$DC$270,33,FALSE) -> 28 | X12: =VLOOKUP($E12,'RECAP AG'!$G$6:$DC$270,34,FALSE) -> 67% | Y12: =VLOOKUP($E12,'RECAP AG'!$G$6:$DC$270,35,FALSE) -> 45% | Z12: =VLOOKUP($E12,'RECAP AG'!$G$6:$DC$270,36,FALSE) -> 120
A13: 50 | B13: AUBE HAUTE MARNE | C13: 21 | D13: CHAUMONT | E13: 451154 | F13: JOINVILLE | G13: =VLOOKUP($E13,'RECAP AG'!$G$6:$DC$270,3,FALSE) -> 2.0 | H13: =VLOOKUP($E13,'RECAP AG'!$G$6:$DC$270,18,FALSE) -> 19.7 | I13: =VLOOKUP($E13,'RECAP AG'!$G$6:$DC$270,19,FALSE) -> 9.85 | J13: =VLOOKUP($E13,'RECAP AG'!$G$6:$DC$270,20,FALSE) -> 88% | K13: =VLOOKUP($E13,'RECAP AG'!$G$6:$DC$270,21,FALSE) -> 232 | L13: =VLOOKUP($E13,'RECAP AG'!$G$6:$DC$270,22,FALSE) -> 30 | M13: =VLOOKUP($E13,'RECAP AG'!$G$6:$DC$270,23,FALSE) -> 15.00 | N13: =VLOOKUP($E13,'RECAP AG'!$G$6:$DC$270,24,FALSE) -> 61% | O13: =VLOOKUP($E13,'RECAP AG'!$G$6:$DC$270,25,FALSE) -> 136 | P13: =VLOOKUP($E13,'RECAP AG'!$G$6:$DC$270,26,FALSE) -> 3 | Q13: =VLOOKUP($E13,'RECAP AG'!$G$6:$DC$270,27,FALSE) -> 1.50 | R13: =VLOOKUP($E13,'RECAP AG'!$G$6:$DC$270,28,FALSE) -> 92% | S13: =VLOOKUP($E13,'RECAP AG'!$G$6:$DC$270,29,FALSE) -> 199 | T13: =VLOOKUP($E13,'RECAP AG'!$G$6:$DC$270,30,FALSE) -> -1.88 | U13: =VLOOKUP($E13,'RECAP AG'!$G$6:$DC$270,31,FALSE) -> -0.94 | V13: =VLOOKUP($E13,'RECAP AG'!$G$6:$DC$270,32,FALSE) -> 69% | W13: =VLOOKUP($E13,'RECAP AG'!$G$6:$DC$270,33,FALSE) -> 193 | X13: =VLOOKUP($E13,'RECAP AG'!$G$6:$DC$270,34,FALSE) -> 80% | Y13: =VLOOKUP($E13,'RECAP AG'!$G$6:$DC$270,35,FALSE) -> 59% | Z13: =VLOOKUP($E13,'RECAP AG'!$G$6:$DC$270,36,FALSE) -> 235
A14: 50 | B14: AUBE HAUTE MARNE | C14: 21 | D14: CHAUMONT | E14: 410541 | F14: LANGRES | G14: =VLOOKUP($E14,'RECAP AG'!$G$6:$DC$270,3,FALSE) -> 6.7 | H14: =VLOOKUP($E14,'RECAP AG'!$G$6:$DC$270,18,FALSE) -> 123.2 | I14: =VLOOKUP($E14,'RECAP AG'!$G$6:$DC$270,19,FALSE) -> 18.40 | J14: =VLOOKUP($E14,'RECAP AG'!$G$6:$DC$270,20,FALSE) -> 77% | K14: =VLOOKUP($E14,'RECAP AG'!$G$6:$DC$270,21,FALSE) -> 163 | L14: =VLOOKUP($E14,'RECAP AG'!$G$6:$DC$270,22,FALSE) -> 85 | M14: =VLOOKUP($E14,'RECAP AG'!$G$6:$DC$270,23,FALSE) -> 12.69 | N14: =VLOOKUP($E14,'RECAP AG'!$G$6:$DC$270,24,FALSE) -> 67% | O14: =VLOOKUP($E14,'RECAP AG'!$G$6:$DC$270,25,FALSE) -> 199 | P14: =VLOOKUP($E14,'RECAP AG'!$G$6:$DC$270,26,FALSE) -> 15 | Q14: =VLOOKUP($E14,'RECAP AG'!$G$6:$DC$270,27,FALSE) -> 2.24 | R14: =VLOOKUP($E14,'RECAP AG'!$G$6:$DC$270,28,FALSE) -> 88% | S14: =VLOOKUP($E14,'RECAP AG'!$G$6:$DC$270,29,FALSE) -> 154 | T14: =VLOOKUP($E14,'RECAP AG'!$G$6:$DC$270,30,FALSE) -> -5.38 | U14: =VLOOKUP($E14,'RECAP AG'!$G$6:$DC$270,31,FALSE) -> -0.80 | V14: =VLOOKUP($E14,'RECAP AG'!$G$6:$DC$270,32,FALSE) -> 57% | W14: =VLOOKUP($E14,'RECAP AG'!$G$6:$DC$270,33,FALSE) -> 156 | X14: =VLOOKUP($E14,'RECAP AG'!$G$6:$DC$270,34,FALSE) -> 74% | Y14: =VLOOKUP($E14,'RECAP AG'!$G$6:$DC$270,35,FALSE) -> 52% | Z14: =VLOOKUP($E14,'RECAP AG'!$G$6:$DC$270,36,FALSE) -> 193
A15: 50 | B15: AUBE HAUTE MARNE | C15: 21 | D15: CHAUMONT | E15: 451156 | F15: SAINT DIZIER CENTRE | G15: =VLOOKUP($E15,'RECAP AG'!$G$6:$DC$270,3,FALSE) -> 9.7 | H15: =VLOOKUP($E15,'RECAP AG'!$G$6:$DC$270,18,FALSE) -> 144.3 | I15: =VLOOKUP($E15,'RECAP AG'!$G$6:$DC$270,19,FALSE) -> 14.82 | J15: =VLOOKUP($E15,'RECAP AG'!$G$6:$DC$270,20,FALSE) -> 81% | K15: =VLOOKUP($E15,'RECAP AG'!$G$6:$DC$270,21,FALSE) -> 193 | L15: =VLOOKUP($E15,'RECAP AG'!$G$6:$DC$270,22,FALSE) -> 157 | M15: =VLOOKUP($E15,'RECAP AG'!$G$6:$DC$270,23,FALSE) -> 16.13 | N15: =VLOOKUP($E15,'RECAP AG'!$G$6:$DC$270,24,FALSE) -> 58% | O15: =VLOOKUP($E15,'RECAP AG'!$G$6:$DC$270,25,FALSE) -> 107 | P15: =VLOOKUP($E15,'RECAP AG'!$G$6:$DC$270,26,FALSE) -> 24 | Q15: =VLOOKUP($E15,'RECAP AG'!$G$6:$DC$270,27,FALSE) -> 2.47 | R15: =VLOOKUP($E15,'RECAP AG'!$G$6:$DC$270,28,FALSE) -> 87% | S15: =VLOOKUP($E15,'RECAP AG'!$G$6:$DC$270,29,FALSE) -> 137 | T15: =VLOOKUP($E15,'RECAP AG'!$G$6:$DC$270,30,FALSE) -> -6.55 | U15: =VLOOKUP($E15,'RECAP AG'!$G$6:$DC$270,31,FALSE) -> -0.67 | V15: =VLOOKUP($E15,'RECAP AG'!$G$6:$DC$270,32,FALSE) -> 46% | W15: =VLOOKUP($E15,'RECAP AG'!$G$6:$DC$270,33,FALSE) -> 112 | X15: =VLOOKUP($E15,'RECAP AG'!$G$6:$DC$270,34,FALSE) -> 72% | Y15: =VLOOKUP($E15,'RECAP AG'!$G$6:$DC$270,35,FALSE) -> 51% | Z15: =VLOOKUP($E15,'RECAP AG'!$G$6:$DC$270,36,FALSE) -> 182
A16: 50 | B16: AUBE HAUTE MARNE | C16: 21 | D16: CHAUMONT | E16: 451151 | F16: WASSY | G16: =VLOOKUP($E16,'RECAP AG'!$G$6:$DC$270,3,FALSE) -> 1.9 | H16: =VLOOKUP($E16,'RECAP AG'!$G$6:$DC$270,18,FALSE) -> 60.0 | I16: =VLOOKUP($E16,'RECAP AG'!$G$6:$DC$270,19,FALSE) -> 31.17 | J16: =VLOOKUP($E16,'RECAP AG'!$G$6:$DC$270,20,FALSE) -> 61% | K16: =VLOOKUP($E16,'RECAP AG'!$G$6:$DC$270,21,FALSE) -> 72 | L16: =VLOOKUP($E16,'RECAP AG'!$G$6:$DC$270,22,FALSE) -> 31 | M16: =VLOOKUP($E16,'RECAP AG'!$G$6:$DC$270,23,FALSE) -> 16.10 | N16: =VLOOKUP($E16,'RECAP AG'!$G$6:$DC$270,24,FALSE) -> 58% | O16: =VLOOKUP($E16,'RECAP AG'!$G$6:$DC$270,25,FALSE) -> 108 | P16: =VLOOKUP($E16,'RECAP AG'!$G$6:$DC$270,26,FALSE) -> 5 | Q16: =VLOOKUP($E16,'RECAP AG'!$G$6:$DC$270,27,FALSE) -> 2.60 | R16: =VLOOKUP($E16,'RECAP AG'!$G$6:$DC$270,28,FALSE) -> 87% | S16: =VLOOKUP($E16,'RECAP AG'!$G$6:$DC$270,29,FALSE) -> 125 | T16: =VLOOKUP($E16,'RECAP AG'!$G$6:$DC$270,30,FALSE) -> -1.21 | U16: =VLOOKUP($E16,'RECAP AG'!$G$6:$DC$270,31,FALSE) -> -0.63 | V16: =VLOOKUP($E16,'RECAP AG'!$G$6:$DC$270,32,FALSE) -> 42% | W16: =VLOOKUP($E16,'RECAP AG'!$G$6:$DC$270,33,FALSE) -> 96 | X16: =VLOOKUP($E16,'RECAP AG'!$G$6:$DC$270,34,FALSE) -> 61% | Y16: =VLOOKUP($E16,'RECAP AG'!$G$6:$DC$270,35,FALSE) -> 40% | Z16: =VLOOKUP($E16,'RECAP AG'!$G$6:$DC$270,36,FALSE) -> 66
A17: 50 | B17: AUBE HAUTE MARNE | C17: 14 | D17: TROYES | E17: 510530 | F17: ARCIS SUR AUBE | G17: =VLOOKUP($E17,'RECAP AG'!$G$6:$DC$270,3,FALSE) -> 4.0 | H17: =VLOOKUP($E17,'RECAP AG'!$G$6:$DC$270,18,FALSE) -> 53.7 | I17: =VLOOKUP($E17,'RECAP AG'!$G$6:$DC$270,19,FALSE) -> 13.43 | J17: =VLOOKUP($E17,'RECAP AG'!$G$6:$DC$270,20,FALSE) -> 83% | K17: =VLOOKUP($E17,'RECAP AG'!$G$6:$DC$270,21,FALSE) -> 202 | L17: =VLOOKUP($E17,'RECAP AG'!$G$6:$DC$270,22,FALSE) -> 28 | M17: =VLOOKUP($E17,'RECAP AG'!$G$6:$DC$270,23,FALSE) -> 7.00 | N17: =VLOOKUP($E17,'RECAP AG'!$G$6:$DC$270,24,FALSE) -> 82% | O17: =VLOOKUP($E17,'RECAP AG'!$G$6:$DC$270,25,FALSE) -> 261 | P17: =VLOOKUP($E17,'RECAP AG'!$G$6:$DC$270,26,FALSE) -> 5 | Q17: =VLOOKUP($E17,'RECAP AG'!$G$6:$DC$270,27,FALSE) -> 1.25 | R17: =VLOOKUP($E17,'RECAP AG'!$G$6:$DC$270,28,FALSE) -> 94% | S17: =VLOOKUP($E17,'RECAP AG'!$G$6:$DC$270,29,FALSE) -> 211 | T17: =VLOOKUP($E17,'RECAP AG'!$G$6:$DC$270,30,FALSE) -> -1.42 | U17: =VLOOKUP($E17,'RECAP AG'!$G$6:$DC$270,31,FALSE) -> -0.36 | V17: =VLOOKUP($E17,'RECAP AG'!$G$6:$DC$270,32,FALSE) -> 18% | W17: =VLOOKUP($E17,'RECAP AG'!$G$6:$DC$270,33,FALSE) -> 20 | X17: =VLOOKUP($E17,'RECAP AG'!$G$6:$DC$270,34,FALSE) -> 75% | Y17: =VLOOKUP($E17,'RECAP AG'!$G$6:$DC$270,35,FALSE) -> 53% | Z17: =VLOOKUP($E17,'RECAP AG'!$G$6:$DC$270,36,FALSE) -> 199
A18: 50 | B18: AUBE HAUTE MARNE | C18: 14 | D18: TROYES | E18: 410550 | F18: BAR SUR AUBE | G18: =VLOOKUP($E18,'RECAP AG'!$G$6:$DC$270,3,FALSE) -> 5.9 | H18: =VLOOKUP($E18,'RECAP AG'!$G$6:$DC$270,18,FALSE) -> 100.4 | I18: =VLOOKUP($E18,'RECAP AG'!$G$6:$DC$270,19,FALSE) -> 16.99 | J18: =VLOOKUP($E18,'RECAP AG'!$G$6:$DC$270,20,FALSE) -> 79% | K18: =VLOOKUP($E18,'RECAP AG'!$G$6:$DC$270,21,FALSE) -> 175 | L18: =VLOOKUP($E18,'RECAP AG'!$G$6:$DC$270,22,FALSE) -> 91 | M18: =VLOOKUP($E18,'RECAP AG'!$G$6:$DC$270,23,FALSE) -> 15.40 | N18: =VLOOKUP($E18,'RECAP AG'!$G$6:$DC$270,24,FALSE) -> 59% | O18: =VLOOKUP($E18,'RECAP AG'!$G$6:$DC$270,25,FALSE) -> 128 | P18: =VLOOKUP($E18,'RECAP AG'!$G$6:$DC$270,26,FALSE) -> 5 | Q18: =VLOOKUP($E18,'RECAP AG'!$G$6:$DC$270,27,FALSE) -> 0.85 | R18: =VLOOKUP($E18,'RECAP AG'!$G$6:$DC$270,28,FALSE) -> 96% | S18: =VLOOKUP($E18,'RECAP AG'!$G$6:$DC$270,29,FALSE) -> 237 | T18: =VLOOKUP($E18,'RECAP AG'!$G$6:$DC$270,30,FALSE) -> -2.76 | U18: =VLOOKUP($E18,'RECAP AG'!$G$6:$DC$270,31,FALSE) -> -0.47 | V18: =VLOOKUP($E18,'RECAP AG'!$G$6:$DC$270,32,FALSE) -> 27% | W18: =VLOOKUP($E18,'RECAP AG'!$G$6:$DC$270,33,FALSE) -> 44 | X18: =VLOOKUP($E18,'RECAP AG'!$G$6:$DC$270,34,FALSE) -> 70% | Y18: =VLOOKUP($E18,'RECAP AG'!$G$6:$DC$270,35,FALSE) -> 48% | Z18: =VLOOKUP($E18,'RECAP AG'!$G$6:$DC$270,36,FALSE) -> 160
A19: 50 | B19: AUBE HAUTE MARNE | C19: 14 | D19: TROYES | E19: 510556 | F19: BAR SUR SEINE | G19: =VLOOKUP($E19,'RECAP AG'!$G$6:$DC$270,3,FALSE) -> 3.6 | H19: =VLOOKUP($E19,'RECAP AG'!$G$6:$DC$270,18,FALSE) -> 88.2 | I19: =VLOOKUP($E19,'RECAP AG'!$G$6:$DC$270,19,FALSE) -> 24.73 | J19: =VLOOKUP($E19,'RECAP AG'!$G$6:$DC$270,20,FALSE) -> 69% | K19: =VLOOKUP($E19,'RECAP AG'!$G$6:$DC$270,21,FALSE) -> 115 | L19: =VLOOKUP($E19,'RECAP AG'!$G$6:$DC$270,22,FALSE) -> 53 | M19: =VLOOKUP($E19,'RECAP AG'!$G$6:$DC$270,23,FALSE) -> 14.86 | N19: =VLOOKUP($E19,'RECAP AG'!$G$6:$DC$270,24,FALSE) -> 61% | O19: =VLOOKUP($E19,'RECAP AG'!$G$6:$DC$270,25,FALSE) -> 141 | P19: =VLOOKUP($E19,'RECAP AG'!$G$6:$DC$270,26,FALSE) -> 4 | Q19: =VLOOKUP($E19,'RECAP AG'!$G$6:$DC$270,27,FALSE) -> 1.12 | R19: =VLOOKUP($E19,'RECAP AG'!$G$6:$DC$270,28,FALSE) -> 94% | S19: =VLOOKUP($E19,'RECAP AG'!$G$6:$DC$270,29,FALSE) -> 218 | T19: =VLOOKUP($E19,'RECAP AG'!$G$6:$DC$270,30,FALSE) -> -3.78 | U19: =VLOOKUP($E19,'RECAP AG'!$G$6:$DC$270,31,FALSE) -> -1.06 | V19: =VLOOKUP($E19,'RECAP AG'!$G$6:$DC$270,32,FALSE) -> 80% | W19: =VLOOKUP($E19,'RECAP AG'!$G$6:$DC$270,33,FALSE) -> 213 | X19: =VLOOKUP($E19,'RECAP AG'!$G$6:$DC$270,34,FALSE) -> 73% | Y19: =VLOOKUP($E19,'RECAP AG'!$G$6:$DC$270,35,FALSE) -> 51% | Z19: =VLOOKUP($E19,'RECAP AG'!$G$6:$DC$270,36,FALSE) -> 187
A20: 50 | B20: AUBE HAUTE MARNE | C20: 14 | D20: TROYES | E20: 510523 | F20: LA CHAPELLE ST LUC | G20: =VLOOKUP($E20,'RECAP AG'!$G$6:$DC$270,3,FALSE) -> 5.6 | H20: =VLOOKUP($E20,'RECAP AG'!$G$6:$DC$270,18,FALSE) -> 144.3 | I20: =VLOOKUP($E20,'RECAP AG'!$G$6:$DC$270,19,FALSE) -> 25.57 | J20: =VLOOKUP($E20,'RECAP AG'!$G$6:$DC$270,20,FALSE) -> 68% | K20: =VLOOKUP($E20,'RECAP AG'!$G$6:$DC$270,21,FALSE) -> 110 | L20: =VLOOKUP($E20,'RECAP AG'!$G$6:$DC$270,22,FALSE) -> 101 | M20: =VLOOKUP($E20,'RECAP AG'!$G$6:$DC$270,23,FALSE) -> 17.90 | N20: =VLOOKUP($E20,'RECAP AG'!$G$6:$DC$270,24,FALSE) -> 53% | O20: =VLOOKUP($E20,'RECAP AG'!$G$6:$DC$270,25,FALSE) -> 73 | P20: =VLOOKUP($E20,'RECAP AG'!$G$6:$DC$270,26,FALSE) -> 10 | Q20: =VLOOKUP($E20,'RECAP AG'!$G$6:$DC$270,27,FALSE) -> 1.77 | R20: =VLOOKUP($E20,'RECAP AG'!$G$6:$DC$270,28,FALSE) -> 91% | S20: =VLOOKUP($E20,'RECAP AG'!$G$6:$DC$270,29,FALSE) -> 183 | T20: =VLOOKUP($E20,'RECAP AG'!$G$6:$DC$270,30,FALSE) -> -2.85 | U20: =VLOOKUP($E20,'RECAP AG'!$G$6:$DC$270,31,FALSE) -> -0.51 | V20: =VLOOKUP($E20,'RECAP AG'!$G$6:$DC$270,32,FALSE) -> 31% | W20: =VLOOKUP($E20,'RECAP AG'!$G$6:$DC$270,33,FALSE) -> 53 | X20: =VLOOKUP($E20,'RECAP AG'!$G$6:$DC$270,34,FALSE) -> 63% | Y20: =VLOOKUP($E20,'RECAP AG'!$G$6:$DC$270,35,FALSE) -> 41% | Z20: =VLOOKUP($E20,'RECAP AG'!$G$6:$DC$270,36,FALSE) -> 77
